Workbook

Sheet INPUT
F7: Your Caring Nonprofit
D9: =IFERROR(VLOOKUP($I$9,Sheet3!$A$2:$B$13,2,FALSE),0) -> 0 | E9: Month & Year | H9: =IFERROR(MATCH(CONCATENATE("15","-",INPUT!$I$9,"-",RIGHT(INPUT!$K$9,2))*1,Database!$C$24:$C$3186,0),0) -> 0 | L9: =IFERROR(VLOOKUP($I$9,Sheet3!$A$2:$B$13,2,FALSE),0) -> 0
E11: TTM Date ranges to be considered: | K11: 12 Months
E13: TTM trailing months : | K13: T3M
E15: =IF($H$15=TRUE,"Organizational Scorecard","Company Scorecard") -> Organizational Scorecard | H15: TRUE | I15: Actual | K15: Budget (Optional)
E17: Net Development Income
E19: Earned (Operating) Income
E21: Gross Profit
E23: Net Income
E25: People Scorecard | I25: Actual | K25: Budget (Optional)
E27: # of EEs
E29: Total # of Hours Paid
E31: Total Labor Cost
K32: SALES & MARKETING
E34: Custom Scorecard #1: | H34: =score1 -> Service People Scorecard | I34: Service People Scorecard
E35: Scorecard Data | G35: Data Type | I35: Actual | K35: Budget (Optional)
E36: EE Retention (yrs) | G36: #
E38: FTEs | G38: #
E40: Utilization % | G40: %
E42: Revenue per EE | G42: $
E44: Utilized Realization Rate | G44: $
E46: Fully Loaded Realization Rate | G46: $
E48: Custom Scorecard #2: | H48: =I48 -> Service Scorecard | I48: Service Scorecard
E49: Scorecard Data | G49: Data Type | I49: Actual | K49: Budget (Optional)
E50: Client Count | G50: #
E52: Revenue per Client | G52: $
E54: Recurring Revenue | G54: $
E56: Project Revenue | G56: $
E58: Utilized Gross Profit % | G58: %
E60: Fully Loaded Gross Profit % | G60: %
E62: Custom Scorecard #3: | H62: =I62 -> Attrition | I62: Attrition
E63: Scorecard Data | G63: Data Type | I63: Actual | K63: Budget (Optional)
E64: Client Attrition | G64: $
E66: Driver 2 | G66: $
E68: Driver 3 | G68: $
A70: =1+8 -> 9 | E70: Driver 4 | G70: $
E72: Driver 5 | G72: $
E74: Driver 6 | G74: $
E76: Custom Scorecard #4: | H76: =I76 -> Custom KPI #4 | I76: Custom KPI #4
E77: Scorecard Data | G77: Data Type | I77: Actual | K77: Budget (Optional)
E78: Driver 1 | G78: $
E80: Driver 2 | G80: $
E82: Driver 3 | G82: $
E84: Driver 4 | G84: $
E86: Driver 5 | G86: $
E88: Driver 6 | G88: $
E90: Custom Scorecard #5: | H90: =I90 -> Custom KPI #5 | I90: Custom KPI #5
E91: Scorecard Data | G91: Data Type | I91: Actual | K91: Budget (Optional)
E92: Driver 1 | G92: $
E94: Driver 2 | G94: $
E96: Driver 3 | G96: $
E98: Driver 4 | G98: $
E100: Driver 5 | G100: $
E102: Driver 6 | G102: $
E104: Custom Scorecard #6: | H104: =I104 -> Custom KPI #6 | I104: Custom KPI #6
E105: Scorecard Data | G105: Data Type | I105: Actual | K105: Budget (Optional)
E106: Driver 1 | G106: $
E108: Driver 2 | G108: $
E110: Driver 3 | G110: $
E112: Driver 4 | G112: $
O113: 12
E114: Driver 5 | G114: $
E116: Driver 6 | G116: #
F124: Scorecard Print Options
F126: =E15 -> Organizational Scorecard | I126: Yes
F127: =E25 -> People Scorecard | I127: Yes
F128: =score1 -> Service People Scorecard | I128: No
F129: =I48 -> Service Scorecard | I129: No
F130: =I62 -> Attrition | I130: No
F131: =I76 -> Custom KPI #4 | I131: No
F132: =I90 -> Custom KPI #5 | I132: No
F133: =I104 -> Custom KPI #6 | I133: No
E137: Version 4.1.05
F138: For internal management use only. GrowthForce is not a CPA firm.

Sheet Sheet3
A1: Month | B1: Month | D1: Year | F1: People Scorecard
A2: January | B2: 1 | C2: Jan | D2: =D3-1 -> 2016 | F2: $ / FTE
A3: February | B3: 2 | C3: Feb | D3: =D4-1 -> 2017 | F3: $ / Hr.
A4: March | B4: 3 | C4: Mar | D4: =D5-1 -> 2018
A5: April | B5: 4 | C5: Apr | D5: =YEAR(TODAY()) -> 2019
A6: May | B6: 5 | C6: May | D6: =+D5+1 -> 2020
A7: June | B7: 6 | C7: Jun | D7: 2021
A8: July | B8: 7 | C8: Jul | D8: 2022
A9: August | B9: 8 | C9: Aug | D9: 2023
A10: September | B10: 9 | C10: Sep | D10: 2024
A11: October | B11: 10 | C11: Oct | D11: 2025
A12: November | B12: 11 | C12: Nov | D12: 2026
A13: December | B13: 12 | C13: Dec | D13: 2027
D14: 2028
D15: 2029
D16: 2030
D17: 2031
D18: 2032
D19: 2033
D20: 2034
D21: 2035
D22: 2036
D23: 2037
D24: 2038
D25: 2039
D26: 2040
D27: 2041
D28: 2042
D29: 2043
D30: 2044
D31: 2045
D32: 2046
D33: 2047
D34: 2048
D35: 2049
D36: 2050
D37: 2051
D38: 2052
D39: 2053
D40: 2054
D41: 2055
D42: 2056
D43: 2057
D44: 2058

Sheet Database
C1: I | D1: I | E1: F | F1: F | G1: F | H1: I | I1: F | J1: I | K1: F | L1: F | M1: F | N1: I | O1: F | P1: F | Q1: F | R1: F | S1: I | T1: F | U1: F | V1: F | W1: I | X1: F | Y1: I | Z1: F | AA1: F | AB1: I | AC1: F | AD1: I | AE1: F | AF1: F | AG1: I | AH1: F | AI1: I | AJ1: F | AK1: F | AL1: I | AM1: F | AN1: F | AO1: F | AP1: F | AQ1: F | AR1: F | AS1: F | AT1: F | AU1: F | AV1: F | AW1: F | AX1: F | AY1: F | AZ1: F | BA1: F | BB1: F | BC1: I | BD1: F | BE1: F | BF1: I | BG1: F | BH1: I | BI1: F | BJ1: F | BK1: I | BL1: F | BM1: I | BN1: F | BO1: F | BP1: I | BQ1: F | BR1: I | BS1: F | BT1: F | BU1: I | BV1: F | BW1: I | BX1: F | BY1: F | BZ1: I | CA1: F | CB1: I | CC1: F | CD1: F | CE1: I | CF1: F | CG1: I | CH1: F | CI1: F | CJ1: I | CK1: F | CL1: I | CM1: F | CN1: F | CO1: I | CP1: F | CQ1: I | CR1: F | CS1: F | CT1: I | CU1: F | CV1: I | CW1: F | CX1: F | CY1: I | CZ1: F | DA1: I | DB1: F | DC1: F | DD1: I | DE1: F | DF1: I | DG1: F | DH1: F | DI1: I | DJ1: F | DK1: I | DL1: F | DM1: F | DN1: I | DO1: F | DP1: I | DQ1: F | DR1: F | DS1: I | DT1: F | DU1: I | DV1: F | DW1: F | DX1: I | DY1: F | DZ1: I | EA1: F | EB1: F | EC1: I | ED1: F | EE1: I | EF1: F | EG1: F | EH1: I | EI1: F | EJ1: I | EK1: F | EL1: F | EM1: I | EN1: F | EO1: I | EP1: F | EQ1: F | ER1: I | ES1: F | ET1: I | EU1: F | EV1: F | EW1: I | EX1: F | EY1: I | EZ1: F | FA1: F | FB1: I | FC1: F | FD1: I | FE1: F | FF1: F | FG1: I | FH1: F | FI1: I | FJ1: F | FK1: F | FL1: I | FM1: F | FN1: I | FO1: F | FP1: F | FQ1: I | FR1: F | FS1: I | FT1: F | FU1: F | FV1: I | FW1: F | FX1: I | FY1: F | FZ1: F | GA1: I | GB1: F | GC1: I | GD1: F | GE1: F | GF1: I | GG1: F | GH1: I | GI1: F | GJ1: F | GK1: I | GL1: F | GM1: I | GN1: F | GO1: F | GP1: I | GQ1: F | GR1: I | GS1: F | GT1: F | GU1: I | GV1: F | GW1: I | GX1: F | GY1: F | GZ1: I | HA1: F | HB1: I | HC1: F | HD1: F | HE1: I | HF1: F | HG1: I | HH1: F | HI1: F | HJ1: I | HK1: F | HL1: I | HM1: F | HN1: F | HO1: I | HP1: F | HQ1: I | HR1: F | HS1: F | HT1: I | HU1: F | HV1: I | HW1: F | HX1: F | HY1: I | HZ1: F | IA1: I | IB1: F | IC1: F | ID1: F | IE1: I | IF1: F | IG1: F | IH1: F | II1: F | IJ1: F | IK1: F | IL1: F
C2: I | D2: =IFERROR(MAX(D$6:D$505),0) -> 542818 | E2: =IFERROR(MAX(E$6:E$505),0) -> 3594904 | F2: 5793652 | G2: 4762457.333 | H2: 384635 | I2: 4185602 | J2: 136236.3867 | K2: 1374353.68 | L2: 1520854.6 | M2: 1445608.32 | N2: 125677.6667 | O2: 1281065 | P2: 0.7865289752 | Q2: 0.3823060866 | R2: 0.3996599771 | S2: 52006.68 | T2: 67682.64 | U2: 328772.16 | V2: 132175.06 | W2: 40300 | X2: 0 | Y2: 61 | Z2: 0 | AA2: 0 | AB2: 65 | AC2: 0 | AD2: 10613 | AE2: 115000.09 | AF2: 120510.04 | AG2: 11960 | AH2: 127696 | AI2: 424916 | AJ2: 4559773.49 | AK2: 4702676.6 | AL2: 430118 | AM2: 4552336 | AN2: 68.04360174 | AO2: 59.26987955 | AP2: 59.26987955 | AQ2: 34.48853755 | AR2: 33.09117724 | AS2: 7546.02 | AT2: 83798.92157 | AU2: 7310.112562 | AV2: 7199.811321 | AW2: 80162.72612 | AX2: 0.1426619953 | AY2: 0.01799256571 | AZ2: 0.07207324946 | BA2: 0.106443672 | BB2: 0 | BC2: 3.82 | BD2: 42.01030826 | BE2: 43.60555556 | BF2: 0 | BG2: 0 | BH2: 47 | BI2: 490 | BJ2: 520 | BK2: 51 | BL2: 504 | BM2: 0.8870689655 | BN2: 0 | BO2: 0 | BP2: 0.73 | BQ2: =IFERROR(MAX(BQ$6:BQ$505),0) -> 0 | BR2: 11488.2541 | BS2: 119834.3365 | BT2: 125787.4828 | BU2: 9914.476 | BV2: 117661.5688 | BW2: 124.1300763 | BX2: 1151.947598 | BY2: 1190.929029 | BZ2: 90 | CA2: 1065 | CB2: 79.45496657 | CC2: 794.6314618 | CD2: 829.7792335 | CE2: 70.2 | CF2: 830.7 | CG2: 149 | CH2: 1679 | CI2: 1712 | CJ2: 0 | CK2: 0 | CL2: 2986 | CM2: 33283.48963 | CN2: 34414.63915 | CO2: 0 | CP2: 0 | CQ2: 448041.91 | CR2: 4698531.41 | CS2: 4988099.48 | CT2: 467155 | CU2: 4759306 | CV2: 126295.07 | CW2: 809404 | CX2: 912644 | CY2: 96638 | CZ2: 843612 | DA2: 0.72 | DB2: 0 | DC2: 0 | DD2: 0.61 | DE2: 0 | DF2: 0.52 | DG2: 0 | DH2: 0 | DI2: 0.49 | DJ2: 0 | DK2: 6551 | DL2: 0 | DM2: 0 | DN2: -5123.190417 | DO2: 0 | DP2: 0 | DQ2: 0 | DR2: 0 | DS2: 0 | DT2: 0 | DU2: 0 | DV2: 0 | DW2: 0 | DX2: 0 | DY2: 0 | DZ2: 0 | EA2: 0 | EB2: 0 | EC2: =IFERROR(MAX(EC$6:EC$505),0) -> 0 | ED2: 0 | EE2: 0 | EF2: 0 | EG2: 0 | EH2: 0 | EI2: 0 | EJ2: 0 | EK2: 0 | EL2: 0 | EM2: 0 | EN2: 0 | EO2: 0 | EP2: 0 | EQ2: 0 | ER2: 0 | ES2: 0 | ET2: 0 | EU2: 0 | EV2: 0 | EW2: 0 | EX2: 0 | EY2: 0 | EZ2: 0 | FA2: 0 | FB2: 0 | FC2: 0 | FD2: 0 | FE2: 0 | FF2: 0 | FG2: 0 | FH2: 0 | FI2: 0 | FJ2: 0 | FK2: 0 | FL2: 0 | FM2: 0 | FN2: 0 | FO2: 0 | FP2: 0 | FQ2: 0 | FR2: 0 | FS2: 0 | FT2: 0 | FU2: 0 | FV2: 0 | FW2: 0 | FX2: 0 | FY2: 0 | FZ2: 0 | GA2: 0 | GB2: 0 | GC2: 0 | GD2: 0 | GE2: 0 | GF2: 0 | GG2: 0 | GH2: 0 | GI2: 0 | GJ2: 0 | GK2: 0 | GL2: 0 | GM2: 0 | GN2: 0 | GO2: =IFERROR(MAX(GO$6:GO$505),0) -> 0 | GP2: 0 | GQ2: 0 | GR2: 0 | GS2: 0 | GT2: 0 | GU2: 0 | GV2: 0 | GW2: 0 | GX2: 0 | GY2: 0 | GZ2: 0 | HA2: 0 | HB2: 0 | HC2: 0 | HD2: 0 | HE2: 0 | HF2: 0 | HG2: 0 | HH2: 0 | HI2: 0 | HJ2: 0 | HK2: 0 | HL2: 0 | HM2: 0 | HN2: 0 | HO2: 0 | HP2: 0 | HQ2: 0 | HR2: 0 | HS2: 0 | HT2: 0 | HU2: 0 | HV2: 0 | HW2: 0 | HX2: 0 | HY2: 0 | HZ2: 0
D3: $ | E3: =D3 -> $ | F3: $ | G3: $ | H3: $ | I3: $ | J3: $ | K3: $ | L3: $ | M3: $ | N3: $ | O3: $ | P3: % | Q3: % | R3: % | S3: $ | T3: =S3 -> $ | U3: =T3 -> $ | V3: =U3 -> $ | W3: =V3 -> $ | X3: =W3 -> $ | Y3: # | Z3: =Y3 -> # | AB3: =Z3 -> # | AC3: # | AD3: # | AE3: # | AG3: =AE3 -> # | AH3: # | AI3: $ | AJ3: =AI3 -> $ | AL3: =AJ3 -> $ | AM3: $ | AN3: $ | AO3: $ | AQ3: =AO3 -> $ | AR3: $ | AS3: $ | AT3: $ | AV3: =AT3 -> $ | AW3: $ | AX3: % | AY3: =AX3 -> % | BA3: =AY3 -> % | BB3: =BA3 -> % | BC3: =INPUT!$G$36 -> # | BD3: =BC3 -> # | BE3: =BD3 -> # | BF3: =BD3 -> # | BG3: =BF3 -> # | BH3: =INPUT!$G$38 -> # | BI3: =BH3 -> # | BJ3: =BI3 -> # | BK3: =BH3 -> # | BL3: =BK3 -> # | BM3: =INPUT!$G$40 -> % | BN3: =BM3 -> % | BO3: =BN3 -> % | BP3: =BM3 -> % | BQ3: =BP3 -> % | BR3: =INPUT!$G$42 -> $ | BS3: =BR3 -> $ | BT3: =BS3 -> $ | BU3: =BR3 -> $ | BV3: =BU3 -> $ | BW3: =INPUT!$G$44 -> $ | BX3: =BW3 -> $ | BY3: =BX3 -> $ | BZ3: =BW3 -> $ | CA3: =BZ3 -> $ | CB3: =INPUT!$G$46 -> $ | CC3: =CB3 -> $ | CD3: =CC3 -> $ | CE3: =CB3 -> $ | CF3: =CE3 -> $ | CG3: =INPUT!$G$50 -> # | CH3: =CG3 -> # | CI3: =CH3 -> # | CJ3: =CG3 -> # | CK3: =CJ3 -> # | CL3: =INPUT!$G$52 -> $ | CM3: =CL3 -> $ | CN3: =CM3 -> $ | CO3: =CL3 -> $ | CP3: =CO3 -> $ | CQ3: =INPUT!$G$54 -> $ | CR3: =CQ3 -> $ | CS3: =CR3 -> $ | CT3: =CQ3 -> $ | CU3: =CT3 -> $ | CV3: =INPUT!$G$56 -> $ | CW3: =CV3 -> $ | CX3: =CW3 -> $ | CY3: =CV3 -> $ | CZ3: =CY3 -> $ | DA3: =INPUT!$G$58 -> % | DB3: =DA3 -> % | DC3: =DB3 -> % | DD3: =DA3 -> % | DE3: =DD3 -> % | DF3: =INPUT!$G$60 -> % | DG3: =DF3 -> % | DH3: =DG3 -> % | DI3: =DF3 -> % | DJ3: =DI3 -> % | DK3: =INPUT!$G$64 -> $ | DL3: =DK3 -> $ | DM3: =DL3 -> $ | DN3: =DK3 -> $ | DO3: =DN3 -> $ | DP3: =INPUT!$G$66 -> $ | DQ3: =DP3 -> $ | DR3: =DQ3 -> $ | DS3: =DP3 -> $ | DT3: =DS3 -> $ | DU3: =INPUT!$G$68 -> $ | DV3: =DU3 -> $ | DW3: =DV3 -> $ | DX3: =DU3 -> $ | DY3: =DX3 -> $ | DZ3: =INPUT!$G$70 -> $ | EA3: =DZ3 -> $ | EB3: =EA3 -> $ | EC3: =DZ3 -> $ | ED3: =EC3 -> $ | EE3: =INPUT!$G$72 -> $ | EF3: =EE3 -> $ | EG3: =EF3 -> $ | EH3: =EE3 -> $ | EI3: =EH3 -> $ | EJ3: =INPUT!$G$74 -> $ | EK3: =EJ3 -> $ | EL3: =EK3 -> $ | EM3: =EJ3 -> $ | EN3: =EM3 -> $ | EO3: =INPUT!$G$78 -> $ | EP3: =EO3 -> $ | EQ3: =EP3 -> $ | ER3: =EO3 -> $ | ES3: =ER3 -> $ | ET3: =INPUT!$G$80 -> $ | EU3: =ET3 -> $ | EV3: =EU3 -> $ | EW3: =ET3 -> $ | EX3: =EW3 -> $ | EY3: =INPUT!$G$82 -> $ | EZ3: =EY3 -> $ | FA3: =EZ3 -> $ | FB3: =EY3 -> $ | FC3: =FB3 -> $ | FD3: =INPUT!$G$84 -> $ | FE3: =FD3 -> $ | FF3: =FE3 -> $ | FG3: =FD3 -> $ | FH3: =FG3 -> $ | FI3: =INPUT!$G$86 -> $ | FJ3: =FI3 -> $ | FK3: =FJ3 -> $ | FL3: =FI3 -> $ | FM3: =FL3 -> $ | FN3: =INPUT!$G$88 -> $ | FO3: =FN3 -> $ | FP3: =FO3 -> $ | FQ3: =FN3 -> $ | FR3: =FQ3 -> $ | FS3: =INPUT!$G$92 -> $ | FT3: =FS3 -> $ | FU3: =FT3 -> $ | FV3: =FS3 -> $ | FW3: =FV3 -> $ | FX3: =INPUT!$G$94 -> $ | FY3: =FX3 -> $ | FZ3: =FY3 -> $ | GA3: =FX3 -> $ | GB3: =GA3 -> $ | GC3: =INPUT!$G$96 -> $ | GD3: =GC3 -> $ | GE3: =GD3 -> $ | GF3: =GC3 -> $ | GG3: =GF3 -> $ | GH3: =INPUT!$G$98 -> $ | GI3: =GH3 -> $ | GJ3: =GI3 -> $ | GK3: =GH3 -> $ | GL3: =GK3 -> $ | GM3: =INPUT!$G$100 -> $ | GN3: =GM3 -> $ | GO3: =GN3 -> $ | GP3: =GM3 -> $ | GQ3: =GP3 -> $ | GR3: =INPUT!$G$102 -> $ | GS3: =GR3 -> $ | GT3: =GS3 -> $ | GU3: =GR3 -> $ | GV3: =GU3 -> $ | GW3: =INPUT!$G$106 -> $ | GX3: =GW3 -> $ | GY3: =GX3 -> $ | GZ3: =GW3 -> $ | HA3: =GZ3 -> $ | HB3: =INPUT!$G$108 -> $ | HC3: =HB3 -> $ | HD3: =HC3 -> $ | HE3: =HB3 -> $ | HF3: =HE3 -> $ | HG3: =INPUT!$G$110 -> $ | HH3: =HG3 -> $ | HI3: =HH3 -> $ | HJ3: =HG3 -> $ | HK3: =HJ3 -> $ | HL3: =INPUT!$G$112 -> $ | HM3: =HL3 -> $ | HN3: =HM3 -> $ | HO3: =HL3 -> $ | HP3: =HO3 -> $ | HQ3: =INPUT!$G$114 -> $ | HR3: =HQ3 -> $ | HS3: =HR3 -> $ | HT3: =HQ3 -> $ | HU3: =HT3 -> $ | HV3: =INPUT!$G$116 -> # | HW3: =HV3 -> # | HX3: =HW3 -> # | HY3: =HV3 -> # | HZ3: =HY3 -> # | IA3: $ | IB3: $ | IC3: $ | ID3: $ | IE3: $ | IF3: $ | IG3: $ | IH3: $ | II3: $ | IJ3: $ | IK3: $ | IL3: $
B4: =INPUT!$I$34 -> Service People Scorecard | C4: Month/Year | D4: =INPUT!E17 -> Net Development Income | E4: =CONCATENATE(D4," TTM") -> Net Development Income TTM | F4: =CONCATENATE(D4," trailing 3 month annualized") -> Net Development Income trailing 3 month annualized | G4: =CONCATENATE(D4," trailing 6 month annualized") -> Net Development Income trailing 6 month annualized | H4: =CONCATENATE(D4," Budget") -> Net Development Income Budget | I4: =CONCATENATE(H4," TTM") -> Net Development Income Budget TTM | J4: =INPUT!E19 -> Earned (Operating) Income | K4: =CONCATENATE(J4," TTM") -> Earned (Operating) Income TTM | L4: =CONCATENATE(J4," trailing 3 month annualized") -> Earned (Operating) Income trailing 3 month annualized | M4: =CONCATENATE(J4," trailing 6 month annualized") -> Earned (Operating) Income trailing 6 month annualized | N4: =CONCATENATE(J4," Budget") -> Earned (Operating) Income Budget | O4: =CONCATENATE(N4," TTM") -> Earned (Operating) Income Budget TTM | P4: =CONCATENATE(J4," % ") -> Earned (Operating) Income % | Q4: =CONCATENATE(P4," TTM") -> Earned (Operating) Income % TTM | R4: =CONCATENATE(J4," % Budget") -> Earned (Operating) Income % Budget | S4: =INPUT!E21 -> Gross Profit | T4: =CONCATENATE(S4," TTM") -> Gross Profit TTM | U4: =CONCATENATE(S4," trailing 3 month annualized") -> Gross Profit trailing 3 month annualized | V4: =CONCATENATE(S4," trailing 6 month annualized") -> Gross Profit trailing 6 month annualized | W4: =CONCATENATE(S4," Budget") -> Gross Profit Budget | X4: Net Income Budget TTM | Y4: =INPUT!$E$27 -> # of EEs | Z4: # of EE's (Avg) | AA4: =CONCATENATE(Y4," trailing 3 month annualized") -> # of EEs trailing 3 month annualized | AB4: =CONCATENATE(Y4," Budget") -> # of EEs Budget | AC4: # of EE's Budget (Avg) | AD4: =INPUT!$E$29 -> Total # of Hours Paid | AE4: Total # of Hours Paid TTM | AF4: =CONCATENATE(AD4," trailing 3 month annualized") -> Total # of Hours Paid trailing 3 month annualized | AG4: =CONCATENATE(AD4," Budget") -> Total # of Hours Paid Budget | AH4: Total # of Hours Paid Budget TTM | AI4: =INPUT!$E$31 -> Total Labor Cost | AJ4: =CONCATENATE(AI4," TTM") -> Total Labor Cost TTM | AK4: =CONCATENATE(AI4," trailing 3 month annualized") -> Total Labor Cost trailing 3 month annualized | AL4: =CONCATENATE(AI4," Budget") -> Total Labor Cost Budget | AM4: =CONCATENATE(AL4," TTM") -> Total Labor Cost Budget TTM | AN4: Revenue per hour paid | AO4: Revenue per hour paid TTM | AP4: =CONCATENATE(AN4," trailing 3 month annualized") -> Revenue per hour paid trailing 3 month annualized | AQ4: =CONCATENATE(AN4," Budget") -> Revenue per hour paid Budget | AR4: =CONCATENATE(AO4," Budget") -> Revenue per hour paid TTM Budget | AS4: =IF('Chart Support '!$D$68=1,"Labor Cost per FTE","Labor Cost per hour paid") -> Labor Cost per FTE | AT4: =CONCATENATE(AS4," TTM") -> Labor Cost per FTE TTM | AU4: =CONCATENATE(AS4," trailing 3 month annualized") -> Labor Cost per FTE trailing 3 month annualized | AV4: =CONCATENATE(AS4," Budget") -> Labor Cost per FTE Budget | AW4: =CONCATENATE(AV4," TTM") -> Labor Cost per FTE Budget TTM | AX4: ROI on Total Labor Cost | AY4: ROI on Total Labor Cost TTM | AZ4: =CONCATENATE(AX4," trailing 3 month annualized") -> ROI on Total Labor Cost trailing 3 month annualized | BA4: =CONCATENATE(AX4," Budget") -> ROI on Total Labor Cost Budget | BB4: ROI on Total Labor Cost budget TTM | BC4: =INPUT!$E$36 -> EE Retention (yrs) | BD4: =CONCATENATE(BC4," TTM") -> EE Retention (yrs) TTM | BE4: =CONCATENATE(BC4," trailing 3 month annualized") -> EE Retention (yrs) trailing 3 month annualized | BF4: =CONCATENATE(BC4," Budget") -> EE Retention (yrs) Budget | BG4: =CONCATENATE(BF4," TTM") -> EE Retention (yrs) Budget TTM | BH4: =INPUT!$E$38 -> FTEs | BI4: =CONCATENATE(BH4," TTM") -> FTEs TTM | BJ4: =CONCATENATE(BH4," trailing 3 month annualized") -> FTEs trailing 3 month annualized | BK4: =CONCATENATE(BH4," Budget") -> FTEs Budget | BL4: =CONCATENATE(BK4," TTM") -> FTEs Budget TTM | BM4: =INPUT!$E$40 -> Utilization % | BN4: =CONCATENATE(BM4," TTM") -> Utilization % TTM | BO4: =CONCATENATE(BM4," trailing 3 month annualized") -> Utilization % trailing 3 month annualized | BP4: =CONCATENATE(BM4," Budget") -> Utilization % Budget | BQ4: =CONCATENATE(BP4," TTM") -> Utilization % Budget TTM | BR4: =INPUT!$E$42 -> Revenue per EE | BS4: =CONCATENATE(BR4," TTM") -> Revenue per EE TTM | BT4: =CONCATENATE(BR4," trailing 3 month annualized") -> Revenue per EE trailing 3 month annualized | BU4: =CONCATENATE(BR4," Budget") -> Revenue per EE Budget | BV4: =CONCATENATE(BU4," TTM") -> Revenue per EE Budget TTM | BW4: =INPUT!$E$44 -> Utilized Realization Rate | BX4: =CONCATENATE(BW4," TTM") -> Utilized Realization Rate TTM | BY4: =CONCATENATE(BW4," trailing 3 month annualized") -> Utilized Realization Rate trailing 3 month annualized | BZ4: =CONCATENATE(BW4," Budget") -> Utilized Realization Rate Budget | CA4: =CONCATENATE(BZ4," TTM") -> Utilized Realization Rate Budget TTM | CB4: =INPUT!$E$46 -> Fully Loaded Realization Rate | CC4: =CONCATENATE(CB4," TTM") -> Fully Loaded Realization Rate TTM | CD4: =CONCATENATE(CB4," trailing 3 month annualized") -> Fully Loaded Realization Rate trailing 3 month annualized | CE4: =CONCATENATE(CB4," Budget") -> Fully Loaded Realization Rate Budget | CF4: =CONCATENATE(CE4," TTM") -> Fully Loaded Realization Rate Budget TTM | CG4: =INPUT!$E$50 -> Client Count | CH4: =CONCATENATE(CG4," TTM") -> Client Count TTM | CI4: =CONCATENATE(CG4," trailing 3 month annualized") -> Client Count trailing 3 month annualized | CJ4: =CONCATENATE(CG4," Budget") -> Client Count Budget | CK4: =CONCATENATE(CJ4," TTM") -> Client Count Budget TTM | CL4: =INPUT!$E$52 -> Revenue per Client | CM4: =CONCATENATE(CL4," TTM") -> Revenue per Client TTM | CN4: =CONCATENATE(CL4," trailing 3 month annualized") -> Revenue per Client trailing 3 month annualized | CO4: =CONCATENATE(CL4," Budget") -> Revenue per Client Budget | CP4: =CONCATENATE(CO4," TTM") -> Revenue per Client Budget TTM | CQ4: =INPUT!$E$54 -> Recurring Revenue | CR4: =CONCATENATE(CQ4," TTM") -> Recurring Revenue TTM | CS4: =CONCATENATE(CQ4," trailing 3 month annualized") -> Recurring Revenue trailing 3 month annualized | CT4: =CONCATENATE(CQ4," Budget") -> Recurring Revenue Budget | CU4: =CONCATENATE(CT4," TTM") -> Recurring Revenue Budget TTM | CV4: =INPUT!$E$56 -> Project Revenue | CW4: =CONCATENATE(CV4," TTM") -> Project Revenue TTM | CX4: =CONCATENATE(CV4," trailing 3 month annualized") -> Project Revenue trailing 3 month annualized | CY4: =CONCATENATE(CV4," Budget") -> Project Revenue Budget | CZ4: =CONCATENATE(CY4," TTM") -> Project Revenue Budget TTM | DA4: =INPUT!$E$58 -> Utilized Gross Profit % | DB4: =CONCATENATE(DA4," TTM") -> Utilized Gross Profit % TTM | DC4: =CONCATENATE(DA4," trailing 3 month annualized") -> Utilized Gross Profit % trailing 3 month annualized | DD4: =CONCATENATE(DA4," Budget") -> Utilized Gross Profit % Budget | DE4: =CONCATENATE(DD4," TTM") -> Utilized Gross Profit % Budget TTM | DF4: =INPUT!$E$60 -> Fully Loaded Gross Profit % | DG4: =CONCATENATE(DF4," TTM") -> Fully Loaded Gross Profit % TTM | DH4: =CONCATENATE(DF4," trailing 3 month annualized") -> Fully Loaded Gross Profit % trailing 3 month annualized | DI4: =CONCATENATE(DF4," Budget") -> Fully Loaded Gross Profit % Budget | DJ4: =CONCATENATE(DI4," TTM") -> Fully Loaded Gross Profit % Budget TTM | DK4: =INPUT!$E$64 -> Client Attrition | DL4: =CONCATENATE(DK4," TTM") -> Client Attrition TTM | DM4: =CONCATENATE(DK4," trailing 3 month annualized") -> Client Attrition trailing 3 month annualized | DN4: =CONCATENATE(DK4," Budget") -> Client Attrition Budget | DO4: =CONCATENATE(DN4," TTM") -> Client Attrition Budget TTM | DP4: =INPUT!$E$66 -> Driver 2 | DQ4: =CONCATENATE(DP4," TTM") -> Driver 2 TTM | DR4: =CONCATENATE(DP4," trailing 3 month annualized") -> Driver 2 trailing 3 month annualized | DS4: =CONCATENATE(DP4," Budget") -> Driver 2 Budget | DT4: =CONCATENATE(DS4," TTM") -> Driver 2 Budget TTM | DU4: =INPUT!$E$68 -> Driver 3 | DV4: =CONCATENATE(DU4," TTM") -> Driver 3 TTM | DW4: =CONCATENATE(DU4," trailing 3 month annualized") -> Driver 3 trailing 3 month annualized | DX4: =CONCATENATE(DU4," Budget") -> Driver 3 Budget | DY4: =CONCATENATE(DX4," TTM") -> Driver 3 Budget TTM | DZ4: =INPUT!$E$70 -> Driver 4 | EA4: =CONCATENATE(DZ4," TTM") -> Driver 4 TTM | EB4: =CONCATENATE(DZ4," trailing 3 month annualized") -> Driver 4 trailing 3 month annualized | EC4: =CONCATENATE(DZ4," Budget") -> Driver 4 Budget | ED4: =CONCATENATE(EC4," TTM") -> Driver 4 Budget TTM | EE4: =INPUT!$E$72 -> Driver 5 | EF4: =CONCATENATE(EE4," TTM") -> Driver 5 TTM | EG4: =CONCATENATE(EE4," trailing 3 month annualized") -> Driver 5 trailing 3 month annualized | EH4: =CONCATENATE(EE4," Budget") -> Driver 5 Budget | EI4: =CONCATENATE(EH4," TTM") -> Driver 5 Budget TTM | EJ4: =INPUT!$E$74 -> Driver 6 | EK4: =CONCATENATE(EJ4," TTM") -> Driver 6 TTM | EL4: =CONCATENATE(EJ4," trailing 3 month annualized") -> Driver 6 trailing 3 month annualized | EM4: =CONCATENATE(EJ4," Budget") -> Driver 6 Budget | EN4: =CONCATENATE(EM4," TTM") -> Driver 6 Budget TTM | EO4: =INPUT!$E$78 -> Driver 1 | EP4: =CONCATENATE(EO4," TTM") -> Driver 1 TTM | EQ4: =CONCATENATE(EO4," trailing 3 month annualized") -> Driver 1 trailing 3 month annualized | ER4: =CONCATENATE(EO4," Budget") -> Driver 1 Budget | ES4: =CONCATENATE(ER4," TTM") -> Driver 1 Budget TTM | ET4: =INPUT!$E$80 -> Driver 2 | EU4: =CONCATENATE(ET4," TTM") -> Driver 2 TTM | EV4: =CONCATENATE(ET4," trailing 3 month annualized") -> Driver 2 trailing 3 month annualized | EW4: =CONCATENATE(ET4," Budget") -> Driver 2 Budget | EX4: =CONCATENATE(EW4," TTM") -> Driver 2 Budget TTM | EY4: =INPUT!$E$82 -> Driver 3 | EZ4: =CONCATENATE(EY4," TTM") -> Driver 3 TTM | FA4: =CONCATENATE(EY4," trailing 3 month annualized") -> Driver 3 trailing 3 month annualized | FB4: =CONCATENATE(EY4," Budget") -> Driver 3 Budget | FC4: =CONCATENATE(FB4," TTM") -> Driver 3 Budget TTM | FD4: =INPUT!$E$84 -> Driver 4 | FE4: =CONCATENATE(FD4," TTM") -> Driver 4 TTM | FF4: =CONCATENATE(FD4," trailing 3 month annualized") -> Driver 4 trailing 3 month annualized | FG4: =CONCATENATE(FD4," Budget") -> Driver 4 Budget | FH4: =CONCATENATE(FG4," TTM") -> Driver 4 Budget TTM | FI4: =INPUT!$E$86 -> Driver 5 | FJ4: =CONCATENATE(FI4," TTM") -> Driver 5 TTM | FK4: =CONCATENATE(FI4," trailing 3 month annualized") -> Driver 5 trailing 3 month annualized | FL4: =CONCATENATE(FI4," Budget") -> Driver 5 Budget | FM4: =CONCATENATE(FL4," TTM") -> Driver 5 Budget TTM | FN4: =INPUT!$E$88 -> Driver 6 | FO4: =CONCATENATE(FN4," TTM") -> Driver 6 TTM | FP4: =CONCATENATE(FN4," trailing 3 month annualized") -> Driver 6 trailing 3 month annualized | FQ4: =CONCATENATE(FN4," Budget") -> Driver 6 Budget | FR4: =CONCATENATE(FQ4," TTM") -> Driver 6 Budget TTM | FS4: =INPUT!$E$92 -> Driver 1 | FT4: =CONCATENATE(FS4," TTM") -> Driver 1 TTM | FU4: =CONCATENATE(FS4," trailing 3 month annualized") -> Driver 1 trailing 3 month annualized | FV4: =CONCATENATE(FS4," Budget") -> Driver 1 Budget | FW4: =CONCATENATE(FV4," TTM") -> Driver 1 Budget TTM | FX4: =INPUT!$E$94 -> Driver 2 | FY4: =CONCATENATE(FX4," TTM") -> Driver 2 TTM | FZ4: =CONCATENATE(FX4," trailing 3 month annualized") -> Driver 2 trailing 3 month annualized | GA4: =CONCATENATE(FX4," Budget") -> Driver 2 Budget | GB4: =CONCATENATE(GA4," TTM") -> Driver 2 Budget TTM | GC4: =INPUT!$E$96 -> Driver 3 | GD4: =CONCATENATE(GC4," TTM") -> Driver 3 TTM | GE4: =CONCATENATE(GC4," trailing 3 month annualized") -> Driver 3 trailing 3 month annualized | GF4: =CONCATENATE(GC4," Budget") -> Driver 3 Budget | GG4: =CONCATENATE(GF4," TTM") -> Driver 3 Budget TTM | GH4: =INPUT!$E$98 -> Driver 4 | GI4: =CONCATENATE(GH4," TTM") -> Driver 4 TTM | GJ4: =CONCATENATE(GH4," trailing 3 month annualized") -> Driver 4 trailing 3 month annualized | GK4: =CONCATENATE(GH4," Budget") -> Driver 4 Budget | GL4: =CONCATENATE(GK4," TTM") -> Driver 4 Budget TTM | GM4: =INPUT!$E$100 -> Driver 5 | GN4: =CONCATENATE(GM4," TTM") -> Driver 5 TTM | GO4: =CONCATENATE(GM4," trailing 3 month annualized") -> Driver 5 trailing 3 month annualized | GP4: =CONCATENATE(GM4," Budget") -> Driver 5 Budget | GQ4: =CONCATENATE(GP4," TTM") -> Driver 5 Budget TTM | GR4: =INPUT!$E$102 -> Driver 6 | GS4: =CONCATENATE(GR4," TTM") -> Driver 6 TTM | GT4: =CONCATENATE(GR4," trailing 3 month annualized") -> Driver 6 trailing 3 month annualized | GU4: =CONCATENATE(GR4," Budget") -> Driver 6 Budget | GV4: =CONCATENATE(GU4," TTM") -> Driver 6 Budget TTM | GW4: =INPUT!$E$106 -> Driver 1 | GX4: =CONCATENATE(GW4," TTM") -> Driver 1 TTM | GY4: =CONCATENATE(GW4," trailing 3 month annualized") -> Driver 1 trailing 3 month annualized | GZ4: =CONCATENATE(GW4," Budget") -> Driver 1 Budget | HA4: =CONCATENATE(GZ4," TTM") -> Driver 1 Budget TTM | HB4: =INPUT!$E$108 -> Driver 2 | HC4: =CONCATENATE(HB4," TTM") -> Driver 2 TTM | HD4: =CONCATENATE(HB4," trailing 3 month annualized") -> Driver 2 trailing 3 month annualized | HE4: =CONCATENATE(HB4," Budget") -> Driver 2 Budget | HF4: =CONCATENATE(HE4," TTM") -> Driver 2 Budget TTM | HG4: =INPUT!$E$110 -> Driver 3 | HH4: =CONCATENATE(HG4," TTM") -> Driver 3 TTM | HI4: =CONCATENATE(HG4," trailing 3 month annualized") -> Driver 3 trailing 3 month annualized | HJ4: =CONCATENATE(HG4," Budget") -> Driver 3 Budget | HK4: =CONCATENATE(HJ4," TTM") -> Driver 3 Budget TTM | HL4: =INPUT!$E$112 -> Driver 4 | HM4: =CONCATENATE(HL4," TTM") -> Driver 4 TTM | HN4: =CONCATENATE(HL4," trailing 3 month annualized") -> Driver 4 trailing 3 month annualized | HO4: =CONCATENATE(HL4," Budget") -> Driver 4 Budget | HP4: =CONCATENATE(HO4," TTM") -> Driver 4 Budget TTM | HQ4: =INPUT!$E$114 -> Driver 5 | HR4: =CONCATENATE(HQ4," TTM") -> Driver 5 TTM | HS4: =CONCATENATE(HQ4," trailing 3 month annualized") -> Driver 5 trailing 3 month annualized | HT4: =CONCATENATE(HQ4," Budget") -> Driver 5 Budget | HU4: =CONCATENATE(HT4," TTM") -> Driver 5 Budget TTM | HV4: =INPUT!$E$116 -> Driver 6 | HW4: =CONCATENATE(HV4," TTM") -> Driver 6 TTM | HX4: =CONCATENATE(HV4," trailing 3 month annualized") -> Driver 6 trailing 3 month annualized | HY4: =CONCATENATE(HV4," Budget") -> Driver 6 Budget | HZ4: =CONCATENATE(HY4," TTM") -> Driver 6 Budget TTM | IA4: =INPUT!E23 -> Net Income | IB4: =CONCATENATE(IA4," TTM") -> Net Income TTM | IC4: =CONCATENATE(IA4," trailing 3 month annualized") -> Net Income trailing 3 month annualized | ID4: =CONCATENATE(IA4," trailing 6 month annualized") -> Net Income trailing 6 month annualized | IE4: =CONCATENATE(IA4," Budget") -> Net Income Budget | IF4: =CONCATENATE(IE4," TTM") -> Net Income Budget TTM | IG4: Revenue Per FTE | IH4: =CONCATENATE(IG4," TTM") -> Revenue Per FTE TTM | II4: =CONCATENATE(IG4," trailing 3 month annualized") -> Revenue Per FTE trailing 3 month annualized | IJ4: =CONCATENATE(IG4," Budget") -> Revenue Per FTE Budget | IK4: =CONCATENATE(IJ4," TTM") -> Revenue Per FTE Budget TTM | IL4: =CONCATENATE(IJ4," trailing 3 month annualized") -> Revenue Per FTE Budget trailing 3 month annualized
A5: =MONTH(C5) ->  | B5: =YEAR(C5) ->  | C5: =DATE(INPUT!$K$9,INPUT!$D$9,15) ->  | D5: =INPUT!$I$17 -> 0 | H5: =INPUT!$K$17 -> 0 | J5: =INPUT!$I$19 -> 0 | N5: =INPUT!$K$19 -> 0 | S5: =INPUT!$I$21 -> 0 | W5: =INPUT!$K$21 -> 0 | Y5: =INPUT!$I$27 -> 0 | AB5: =INPUT!$K$27 -> 0 | AD5: =INPUT!$I$29 -> 0 | AG5: =INPUT!$K$29 -> 0 | AI5: =INPUT!$I$31 -> 0 | AL5: =INPUT!$K$31 -> 0 | BC5: =INPUT!$I$36 -> 0 | BF5: =INPUT!$K$36 -> 0 | BH5: =INPUT!$I$38 -> 0 | BK5: =INPUT!$K$38 -> 0 | BM5: =INPUT!$I$40 -> 0 | BP5: =INPUT!$K$40 -> 0 | BR5: =INPUT!$I$42 -> 0 | BU5: =INPUT!$K$42 -> 0 | BW5: =INPUT!$I$44 -> 0 | BZ5: =INPUT!$K$42 -> 0 | CB5: =INPUT!$I$46 -> 0 | CE5: =INPUT!$K$46 -> 0 | CG5: =INPUT!$I$50 -> 0 | CJ5: =INPUT!$K$50 -> 0 | CL5: =INPUT!$I$52 -> 0 | CO5: =INPUT!$K$52 -> 0 | CQ5: =INPUT!$I$54 -> 0 | CT5: =INPUT!$K$54 -> 0 | CV5: =INPUT!$I$56 -> 0 | CY5: =INPUT!$K$56 -> 0 | DA5: =INPUT!$I$58 -> 0 | DD5: =INPUT!$K$58 -> 0 | DF5: =INPUT!$I$60 -> 0 | DI5: =INPUT!$K$60 -> 0 | DK5: =INPUT!$I$64 -> 0 | DN5: =INPUT!$K$64 -> 0 | DP5: =INPUT!$I$66 -> 0 | DS5: =INPUT!$K$66 -> 0 | DU5: =INPUT!$I$68 -> 0 | DX5: =INPUT!$K$68 -> 0 | DZ5: =INPUT!$I$70 -> 0 | EC5: =INPUT!$K$70 -> 0 | EE5: =INPUT!$I$72 -> 0 | EH5: =INPUT!$K$72 -> 0 | EJ5: =INPUT!$I$74 -> 0 | EM5: =INPUT!$K$74 -> 0 | EO5: =INPUT!$I$78 -> 0 | ER5: =INPUT!$K$78 -> 0 | ET5: =INPUT!$I$80 -> 0 | EW5: =INPUT!$K$80 -> 0 | EY5: =INPUT!$I$82 -> 0 | FB5: =INPUT!$K$82 -> 0 | FD5: =INPUT!$I$84 -> 0 | FG5: =INPUT!$K$84 -> 0 | FI5: =INPUT!$I$86 -> 0 | FL5: =INPUT!$K$86 -> 0 | FN5: =INPUT!$I$88 -> 0 | FQ5: =INPUT!$K$88 -> 0 | FS5: =INPUT!$I$92 -> 0 | FV5: =INPUT!$K$92 -> 0 | FX5: =INPUT!$I$94 -> 0 | GA5: =INPUT!$K$94 -> 0 | GC5: =INPUT!$I$96 -> 0 | GF5: =INPUT!$K$96 -> 0 | GH5: =INPUT!$I$98 -> 0 | GK5: =INPUT!$K$98 -> 0 | GM5: =INPUT!$I$100 -> 0 | GP5: =INPUT!$K$100 -> 0 | GR5: =INPUT!$I$102 -> 0 | GU5: =INPUT!$K$102 -> 0 | GW5: =INPUT!$I$106 -> 0 | GZ5: =INPUT!$K$106 -> 0 | HB5: =INPUT!$I$108 -> 0 | HE5: =INPUT!$K$108 -> 0 | HG5: =INPUT!$I$110 -> 0 | HJ5: =INPUT!$K$110 -> 0 | HL5: =INPUT!$I$112 -> 0 | HO5: =INPUT!$K$112 -> 0 | HQ5: =INPUT!$I$114 -> 0 | HT5: =INPUT!$K$114 -> 0 | HV5: =INPUT!$I$116 -> 0 | HY5: =INPUT!$K$116 -> 0 | IA5: =INPUT!$I$23 -> 0 | IE5: =INPUT!$K$23 -> 0
A6: =MONTH(C6) -> 10 | B6: =YEAR(C6) -> 2017 | C6: 2017-10-01 | D6: =+D18-(500000/12) -> 303289.3333 | E6: =SUMIFS(D$6:D$505,$C$6:$C$505,">="&EOMONTH($C6,-INPUT!$O$113),$C$6:$C$505,"<="&$C6) -> 303289.3333 | F6: =IF(COUNTIFS($C$6:C6,"<>"&"")>=3,SUMIFS(D$6:D$505,$C$6:$C$505,">="&EOMONTH($C6,-3),$C$6:$C$505,"<="&$C6)*4,"") ->  | G6: =IF(COUNTIFS($C$6:C6,"<>"&"")>=6,SUMIFS(D$6:D$505,$C$6:$C$505,">="&EOMONTH($C6,-6),$C$6:$C$505,"<="&$C6)*2,"") ->  | H6: 217586 | I6: =IF(COUNTIFS($H$6:$H$505,">"&0)>=24,SUMIFS(H$6:H$505,$C$6:$C$505,">="&EOMONTH($C6,-INPUT!$O$113),$C$6:$C$505,"<="&$C6),0) -> 217586 | J6: 48671.21667 | K6: =SUMIFS(J$6:J$505,$C$6:$C$505,">="&EOMONTH($C6,-INPUT!$O$113),$C$6:$C$505,"<="&$C6) -> 48671.21667 | L6: =IF(COUNTIFS($C$6:C6,"<>"&"")>=3,SUMIFS(J$6:J$505,$C$6:$C$505,">="&EOMONTH($C6,-3),$C$6:$C$505,"<="&$C6)*4,"") ->  | M6: =IF(COUNTIFS($C$6:C6,"<>"&"")>=6,SUMIFS(J$6:J$505,$C$6:$C$505,">="&EOMONTH($C6,-6),$C$6:$C$505,"<="&$C6)*2,"") ->  | N6: 58045.66667 | O6: =IF(COUNTIFS($N$6:$N$505,">"&0)>=24,SUMIFS(N$6:N$505,$C$6:$C$505,">="&EOMONTH($C6,-INPUT!$O$113),$C$6:$C$505,"<="&$C6),0) -> 58045.66667 | P6: =IFERROR(J6/D6,0) -> 0.1604778385 | Q6: =IF(C6<>"",IFERROR(K6/E6,0),0) -> 0.1604778385 | R6: =IFERROR(N6/H6,0) -> 0.2667711464 | S6: -13020.78 | T6: =SUMIFS(S$6:S$505,$C$6:$C$505,">="&EOMONTH($C6,-INPUT!$O$113),$C$6:$C$505,"<="&$C6) -> -13020.78 | U6: =IF(COUNTIFS($C$6:C6,"<>"&"")>=3,SUMIFS(S$6:S$505,$C$6:$C$505,">="&EOMONTH($C6,-3),$C$6:$C$505,"<="&$C6)*4,"") ->  | V6: =IF(COUNTIFS($C$6:C6,"<>"&"")>=6,SUMIFS(S$6:S$505,$C$6:$C$505,">="&EOMONTH($C6,-6),$C$6:$C$505,"<="&$C6)*2,"") ->  | W6: -5023 | X6: =IF(COUNTIFS($W$6:$W$505,">"&0)>=24,SUMIFS(W$6:W$505,$C$6:$C$505,">="&EOMONTH($C6,-INPUT!$O$113),$C$6:$C$505,"<="&$C6),0) -> 0 | Y6: 40 | Z6: =AVERAGEIFS(Y$6:Y$505,$C$6:$C$505,">="&EOMONTH($C6,-INPUT!$O$113),$C$6:$C$505,"<="&$C6) -> 40 | AA6: =IF(COUNTIFS($C$6:$C6,"<>"&"")>=3,AVERAGEIFS(Y$6:Y$505,$C$6:$C$505,">="&EOMONTH($C6,-3),$C$6:$C$505,"<="&$C6),"") ->  | AB6: 44 | AC6: =IF(COUNTIFS($AB$6:$AB$505,">"&0)>=24,AVERAGEIFS(AB$6:AB$505,$C$6:$C$505,">="&EOMONTH($C6,-INPUT!$O$113),$C$6:$C$505,"<="&$C6),0) -> 44 | AD6: 6875.05 | AE6: =SUMIFS(AD$6:AD$505,$C$6:$C$505,">="&EOMONTH($C6,-INPUT!$O$113),$C$6:$C$505,"<="&$C6) -> 6875.05 | AF6: =IF(COUNTIFS($C$6:$C6,"<>"&"")>=3,SUMIFS(AD$6:AD$505,$C$6:$C$505,">="&EOMONTH($C6,-3),$C$6:$C$505,"<="&$C6)*4,"") ->  | AG6: 8096 | AH6: =IF(COUNTIFS($AG$6:$AG$505,">"&0)>=24,SUMIFS(AG$6:AG$505,$C$6:$C$505,">="&EOMONTH($C6,-INPUT!$O$113),$C$6:$C$505,"<="&$C6),0) -> 8096 | AI6: 258157.96 | AJ6: =SUMIFS(AI$6:AI$505,$C$6:$C$505,">="&EOMONTH($C6,-INPUT!$O$113),$C$6:$C$505,"<="&$C6) -> 258157.96 | AK6: =IF(COUNTIFS($C$6:$C6,"<>"&"")>=3,SUMIFS(AI$6:AI$505,$C$6:$C$505,">="&EOMONTH($C6,-3),$C$6:$C$505,"<="&$C6)*4,"") ->  | AL6: 288643 | AM6: =IF(COUNTIFS($AL$6:$AL$505,">"&0)>=24,SUMIFS(AL$6:AL$505,$C$6:$C$505,">="&EOMONTH($C6,-INPUT!$O$113),$C$6:$C$505,"<="&$C6),0) -> 288643 | AN6: =IFERROR(D6/AD6,0) -> 44.11449129 | AO6: =IFERROR(E6/AE6,0) -> 44.11449129 | AP6: =IFERROR(F6/AF6,0) -> 0 | AQ6: =IFERROR(H6/AG6,0) -> 26.87574111 | AR6: =IFERROR(I6/AH6,0) -> 26.87574111 | AS6: =IFERROR(IF('Chart Support '!$D$68=1,AI6/Y6,AI6/AD6),0) -> 6453.949 | AT6: =IFERROR(IF('Chart Support '!$D$68=1,SUMIFS(AS$6:AS$505,$C$6:$C$505,">="&EOMONTH($C6,-INPUT!$O$113),$C$6:$C$505,"<="&$C6),$AJ6/$AE6),0) -> 6453.949 | AU6: =IFERROR(IF('Chart Support '!$D$68=1,$AK6/IF(IC$3="%",IF(COUNTIFS($C$6:$C6,"<>"&"")>=3,AVERAGEIFS(Y$6:Y$505,$C$6:$C$505,">="&EOMONTH($C6,-3),$C$6:$C$505,"<="&$C6),""),IF(COUNTIFS($C$6:$C6,"<>"&"")>=3,SUMIFS(Y$6:Y$505,$C$6:$C$505,">="&EOMONTH($C6,-3),$C$6:$C$505,"<="&$C6)*4,"")),$AK6/$AF6),0) -> 0 | AV6: =IFERROR(IF('Chart Support '!$D$68=1,$AL6/$AB6,$AL6/$AG6),0) -> 6560.068182 | AW6: =IFERROR(IF('Chart Support '!$D$68=1,SUMIFS(AV$6:AV$505,$C$6:$C$505,">="&EOMONTH($C6,-INPUT!$O$113),$C$6:$C$505,"<="&$C6),$AM6/$AH6),0) -> 6560.068182 | AX6: =IFERROR(S6/AI6,0) -> -0.05043725942 | AY6: =IFERROR(T6/AJ6,0) -> -0.05043725942 | AZ6: =IFERROR(U6/AK6,0) -> 0 | BA6: =IFERROR(W6/AL6,0) -> -0.01740211957 | BB6: =IFERROR(X6/AM6,0) -> 0 | BC6: 3.294444444 | BD6: =IF(BC$3="%",AVERAGEIFS(BC$6:BC$505,$C$6:$C$505,">="&EOMONTH($C6,-INPUT!$O$113),$C$6:$C$505,"<="&$C6),SUMIFS(BC$6:BC$505,$C$6:$C$505,">="&EOMONTH($C6,-INPUT!$O$113),$C$6:$C$505,"<="&$C6)) -> 3.294444444 | BE6: =IF(BE$3="%",IF(COUNTIFS($C$6:$C6,"<>"&"")>=3,AVERAGEIFS(BC$6:BC$505,$C$6:$C$505,">="&EOMONTH($C6,-3),$C$6:$C$505,"<="&$C6),""),IF(COUNTIFS($C$6:$C6,"<>"&"")>=3,SUMIFS(BC$6:BC$505,$C$6:$C$505,">="&EOMONTH($C6,-3),$C$6:$C$505,"<="&$C6)*4,"")) ->  | BG6: =IF(COUNTIFS($BF$6:$BF$505,">"&0)>=24,IF(BF$3="%",AVERAGEIFS(BF$6:BF$505,$C$6:$C$505,">="&EOMONTH($C6,-INPUT!$O$113),$C$6:$C$505,"<="&$C6),SUMIFS(BF$6:BF$505,$C$6:$C$505,">="&EOMONTH($C6,-INPUT!$O$113),$C$6:$C$505,"<="&$C6)),0) -> 0 | BH6: 30 | BI6: =IF(BH$3="%",AVERAGEIFS(BH$6:BH$505,$C$6:$C$505,">="&EOMONTH($C6,-INPUT!$O$113),$C$6:$C$505,"<="&$C6),SUMIFS(BH$6:BH$505,$C$6:$C$505,">="&EOMONTH($C6,-INPUT!$O$113),$C$6:$C$505,"<="&$C6)) -> 30 | BJ6: =IF(BJ$3="%",IF(COUNTIFS($C$6:$C6,"<>"&"")>=3,AVERAGEIFS(BH$6:BH$505,$C$6:$C$505,">="&EOMONTH($C6,-3),$C$6:$C$505,"<="&$C6),""),IF(COUNTIFS($C$6:$C6,"<>"&"")>=3,SUMIFS(BH$6:BH$505,$C$6:$C$505,">="&EOMONTH($C6,-3),$C$6:$C$505,"<="&$C6)*4,"")) ->  | BK6: 30 | BL6: =IF(COUNTIFS($BK$6:$BK$505,">"&0)>=24,IF(BK$3="%",AVERAGEIFS(BK$6:BK$505,$C$6:$C$505,">="&EOMONTH($C6,-INPUT!$O$113),$C$6:$C$505,"<="&$C6),SUMIFS(BK$6:BK$505,$C$6:$C$505,">="&EOMONTH($C6,-INPUT!$O$113),$C$6:$C$505,"<="&$C6)),0) -> 30 | BM6: 0.6650297619 | BN6: =IF(BM$3="%",AVERAGEIFS(BM$6:BM$505,$C$6:$C$505,">="&EOMONTH($C6,-INPUT!$O$113),$C$6:$C$505,"<="&$C6),SUMIFS(BM$6:BM$505,$C$6:$C$505,">="&EOMONTH($C6,-INPUT!$O$113),$C$6:$C$505,"<="&$C6)) -> 0.6650297619 | BO6: =IF(BO$3="%",IF(COUNTIFS($C$6:$C6,"<>"&"")>=3,AVERAGEIFS(BM$6:BM$505,$C$6:$C$505,">="&EOMONTH($C6,-3),$C$6:$C$505,"<="&$C6),""),IF(COUNTIFS($C$6:$C6,"<>"&"")>=3,SUMIFS(BM$6:BM$505,$C$6:$C$505,">="&EOMONTH($C6,-3),$C$6:$C$505,"<="&$C6)*4,"")) ->  | BP6: 0.73 | BQ6: =IF(BP$3="%",AVERAGEIFS(BP$6:BP$505,$C$6:$C$505,">="&EOMONTH($C6,-INPUT!$O$113),$C$6:$C$505,"<="&$C6),SUMIFS(BP$6:BP$505,$C$6:$C$505,">="&EOMONTH($C6,-INPUT!$O$113),$C$6:$C$505,"<="&$C6)) -> 0.73 | BR6: 8967.163667 | BS6: =IF(BR$3="%",AVERAGEIFS(BR$6:BR$505,$C$6:$C$505,">="&EOMONTH($C6,-INPUT!$O$113),$C$6:$C$505,"<="&$C6),SUMIFS(BR$6:BR$505,$C$6:$C$505,">="&EOMONTH($C6,-INPUT!$O$113),$C$6:$C$505,"<="&$C6)) -> 8967.163667 | BT6: =IF(BT$3="%",IF(COUNTIFS($C$6:$C6,"<>"&"")>=3,AVERAGEIFS(BR$6:BR$505,$C$6:$C$505,">="&EOMONTH($C6,-3),$C$6:$C$505,"<="&$C6),""),IF(COUNTIFS($C$6:$C6,"<>"&"")>=3,SUMIFS(BR$6:BR$505,$C$6:$C$505,">="&EOMONTH($C6,-3),$C$6:$C$505,"<="&$C6)*4,"")) ->  | BU6: 9463.818 | BV6: =IF(COUNTIFS($BU$6:$BU$505,">"&0)>=24,IF(BU$3="%",AVERAGEIFS(BU$6:BU$505,$C$6:$C$505,">="&EOMONTH($C6,-INPUT!$O$113),$C$6:$C$505,"<="&$C6),SUMIFS(BU$6:BU$505,$C$6:$C$505,">="&EOMONTH($C6,-INPUT!$O$113),$C$6:$C$505,"<="&$C6)),0) -> 9463.818 | BW6: 81.9959454 | BX6: =IF(BW$3="%",AVERAGEIFS(BW$6:BW$505,$C$6:$C$505,">="&EOMONTH($C6,-INPUT!$O$113),$C$6:$C$505,"<="&$C6),SUMIFS(BW$6:BW$505,$C$6:$C$505,">="&EOMONTH($C6,-INPUT!$O$113),$C$6:$C$505,"<="&$C6)) -> 81.9959454 | BY6: =IF(BY$3="%",IF(COUNTIFS($C$6:$C6,"<>"&"")>=3,AVERAGEIFS(BW$6:BW$505,$C$6:$C$505,">="&EOMONTH($C6,-3),$C$6:$C$505,"<="&$C6),""),IF(COUNTIFS($C$6:$C6,"<>"&"")>=3,SUMIFS(BW$6:BW$505,$C$6:$C$505,">="&EOMONTH($C6,-3),$C$6:$C$505,"<="&$C6)*4,"")) ->  | BZ6: 85 | CA6: =IF(COUNTIFS($BZ$6:$BZ$505,">"&0)>=24,IF(BZ$3="%",AVERAGEIFS(BZ$6:BZ$505,$C$6:$C$505,">="&EOMONTH($C6,-INPUT!$O$113),$C$6:$C$505,"<="&$C6),SUMIFS(BZ$6:BZ$505,$C$6:$C$505,">="&EOMONTH($C6,-INPUT!$O$113),$C$6:$C$505,"<="&$C6)),0) -> 85 | CB6: 54.52974405 | CC6: =IF(CB$3="%",AVERAGEIFS(CB$6:CB$505,$C$6:$C$505,">="&EOMONTH($C6,-INPUT!$O$113),$C$6:$C$505,"<="&$C6),SUMIFS(CB$6:CB$505,$C$6:$C$505,">="&EOMONTH($C6,-INPUT!$O$113),$C$6:$C$505,"<="&$C6)) -> 54.52974405 | CD6: =IF(CD$3="%",IF(COUNTIFS($C$6:$C6,"<>"&"")>=3,AVERAGEIFS(CB$6:CB$505,$C$6:$C$505,">="&EOMONTH($C6,-3),$C$6:$C$505,"<="&$C6),""),IF(COUNTIFS($C$6:$C6,"<>"&"")>=3,SUMIFS(CB$6:CB$505,$C$6:$C$505,">="&EOMONTH($C6,-3),$C$6:$C$505,"<="&$C6)*4,"")) ->  | CE6: 68 | CF6: =IF(COUNTIFS($CE$6:$CE$505,">"&0)>=24,IF(CE$3="%",AVERAGEIFS(CE$6:CE$505,$C$6:$C$505,">="&EOMONTH($C6,-INPUT!$O$113),$C$6:$C$505,"<="&$C6),SUMIFS(CE$6:CE$505,$C$6:$C$505,">="&EOMONTH($C6,-INPUT!$O$113),$C$6:$C$505,"<="&$C6)),0) -> 68 | CG6: 107 | CH6: =IF(CG$3="%",AVERAGEIFS(CG$6:CG$505,$C$6:$C$505,">="&EOMONTH($C6,-INPUT!$O$113),$C$6:$C$505,"<="&$C6),SUMIFS(CG$6:CG$505,$C$6:$C$505,">="&EOMONTH($C6,-INPUT!$O$113),$C$6:$C$505,"<="&$C6)) -> 107 | CI6: =IF(CI$3="%",IF(COUNTIFS($C$6:$C6,"<>"&"")>=3,AVERAGEIFS(CG$6:CG$505,$C$6:$C$505,">="&EOMONTH($C6,-3),$C$6:$C$505,"<="&$C6),""),IF(COUNTIFS($C$6:$C6,"<>"&"")>=3,SUMIFS(CG$6:CG$505,$C$6:$C$505,">="&EOMONTH($C6,-3),$C$6:$C$505,"<="&$C6)*4,"")) ->  | CK6: =IF(COUNTIFS($CJ$6:$CJ$505,">"&0)>=24,IF(CJ$3="%",AVERAGEIFS(CJ$6:CJ$505,$C$6:$C$505,">="&EOMONTH($C6,-INPUT!$O$113),$C$6:$C$505,"<="&$C6),SUMIFS(CJ$6:CJ$505,$C$6:$C$505,">="&EOMONTH($C6,-INPUT!$O$113),$C$6:$C$505,"<="&$C6)),0) -> 0 | CL6: 2490 | CM6: =IF(CL$3="%",AVERAGEIFS(CL$6:CL$505,$C$6:$C$505,">="&EOMONTH($C6,-INPUT!$O$113),$C$6:$C$505,"<="&$C6),SUMIFS(CL$6:CL$505,$C$6:$C$505,">="&EOMONTH($C6,-INPUT!$O$113),$C$6:$C$505,"<="&$C6)) -> 2490 | CN6: =IF(CN$3="%",IF(COUNTIFS($C$6:$C6,"<>"&"")>=3,AVERAGEIFS(CL$6:CL$505,$C$6:$C$505,">="&EOMONTH($C6,-3),$C$6:$C$505,"<="&$C6),""),IF(COUNTIFS($C$6:$C6,"<>"&"")>=3,SUMIFS(CL$6:CL$505,$C$6:$C$505,">="&EOMONTH($C6,-3),$C$6:$C$505,"<="&$C6)*4,"")) ->  | CP6: =IF(COUNTIFS($CO$6:$CO$505,">"&0)>=24,IF(CO$3="%",AVERAGEIFS(CO$6:CO$505,$C$6:$C$505,">="&EOMONTH($C6,-INPUT!$O$113),$C$6:$C$505,"<="&$C6),SUMIFS(CO$6:CO$505,$C$6:$C$505,">="&EOMONTH($C6,-INPUT!$O$113),$C$6:$C$505,"<="&$C6)),0) -> 0 | CQ6: 269014.91 | CR6: =IF(CQ$3="%",AVERAGEIFS(CQ$6:CQ$505,$C$6:$C$505,">="&EOMONTH($C6,-INPUT!$O$113),$C$6:$C$505,"<="&$C6),SUMIFS(CQ$6:CQ$505,$C$6:$C$505,">="&EOMONTH($C6,-INPUT!$O$113),$C$6:$C$505,"<="&$C6)) -> 269014.91 | CS6: =IF(CS$3="%",IF(COUNTIFS($C$6:$C6,"<>"&"")>=3,AVERAGEIFS(CQ$6:CQ$505,$C$6:$C$505,">="&EOMONTH($C6,-3),$C$6:$C$505,"<="&$C6),""),IF(COUNTIFS($C$6:$C6,"<>"&"")>=3,SUMIFS(CQ$6:CQ$505,$C$6:$C$505,">="&EOMONTH($C6,-3),$C$6:$C$505,"<="&$C6)*4,"")) ->  | CT6: 276192 | CU6: =IF(COUNTIFS($CT$6:$CT$505,">"&0)>=24,IF(CT$3="%",AVERAGEIFS(CT$6:CT$505,$C$6:$C$505,">="&EOMONTH($C6,-INPUT!$O$113),$C$6:$C$505,"<="&$C6),SUMIFS(CT$6:CT$505,$C$6:$C$505,">="&EOMONTH($C6,-INPUT!$O$113),$C$6:$C$505,"<="&$C6)),0) -> 276192 | CV6: 5815 | CW6: =IF(CV$3="%",AVERAGEIFS(CV$6:CV$505,$C$6:$C$505,">="&EOMONTH($C6,-INPUT!$O$113),$C$6:$C$505,"<="&$C6),SUMIFS(CV$6:CV$505,$C$6:$C$505,">="&EOMONTH($C6,-INPUT!$O$113),$C$6:$C$505,"<="&$C6)) -> 5815 | CX6: =IF(CX$3="%",IF(COUNTIFS($C$6:$C6,"<>"&"")>=3,AVERAGEIFS(CV$6:CV$505,$C$6:$C$505,">="&EOMONTH($C6,-3),$C$6:$C$505,"<="&$C6),""),IF(COUNTIFS($C$6:$C6,"<>"&"")>=3,SUMIFS(CV$6:CV$505,$C$6:$C$505,">="&EOMONTH($C6,-3),$C$6:$C$505,"<="&$C6)*4,"")) ->  | CY6: 8087 | CZ6: =IF(COUNTIFS($CY$6:$CY$505,">"&0)>=24,IF(CY$3="%",AVERAGEIFS(CY$6:CY$505,$C$6:$C$505,">="&EOMONTH($C6,-INPUT!$O$113),$C$6:$C$505,"<="&$C6),SUMIFS(CY$6:CY$505,$C$6:$C$505,">="&EOMONTH($C6,-INPUT!$O$113),$C$6:$C$505,"<="&$C6)),0) -> 8087 | DA6: 0.61 | DB6: =IF(DA$3="%",AVERAGEIFS(DA$6:DA$505,$C$6:$C$505,">="&EOMONTH($C6,-INPUT!$O$113),$C$6:$C$505,"<="&$C6),SUMIFS(DA$6:DA$505,$C$6:$C$505,">="&EOMONTH($C6,-INPUT!$O$113),$C$6:$C$505,"<="&$C6)) -> 0.61 | DC6: =IF(DC$3="%",IF(COUNTIFS($C$6:$C6,"<>"&"")>=3,AVERAGEIFS(DA$6:DA$505,$C$6:$C$505,">="&EOMONTH($C6,-3),$C$6:$C$505,"<="&$C6),""),IF(COUNTIFS($C$6:$C6,"<>"&"")>=3,SUMIFS(DA$6:DA$505,$C$6:$C$505,">="&EOMONTH($C6,-3),$C$6:$C$505,"<="&$C6)*4,"")) ->  | DD6: 0.53 | DE6: =IF(COUNTIFS($DD$6:$DD$505,">"&0)>=24,IF(DD$3="%",AVERAGEIFS(DD$6:DD$505,$C$6:$C$505,">="&EOMONTH($C6,-INPUT!$O$113),$C$6:$C$505,"<="&$C6),SUMIFS(DD$6:DD$505,$C$6:$C$505,">="&EOMONTH($C6,-INPUT!$O$113),$C$6:$C$505,"<="&$C6)),0) -> 0.53 | DF6: 0.44 | DG6: =IF(DF$3="%",AVERAGEIFS(DF$6:DF$505,$C$6:$C$505,">="&EOMONTH($C6,-INPUT!$O$113),$C$6:$C$505,"<="&$C6),SUMIFS(DF$6:DF$505,$C$6:$C$505,">="&EOMONTH($C6,-INPUT!$O$113),$C$6:$C$505,"<="&$C6)) -> 0.44 | DH6: =IF(DH$3="%",IF(COUNTIFS($C$6:$C6,"<>"&"")>=3,AVERAGEIFS(DF$6:DF$505,$C$6:$C$505,">="&EOMONTH($C6,-3),$C$6:$C$505,"<="&$C6),""),IF(COUNTIFS($C$6:$C6,"<>"&"")>=3,SUMIFS(DF$6:DF$505,$C$6:$C$505,">="&EOMONTH($C6,-3),$C$6:$C$505,"<="&$C6)*4,"")) ->  | DI6: 0.42 | DJ6: =IF(COUNTIFS($DI$6:$DI$505,">"&0)>=24,IF(DI$3="%",AVERAGEIFS(DI$6:DI$505,$C$6:$C$505,">="&EOMONTH($C6,-INPUT!$O$113),$C$6:$C$505,"<="&$C6),SUMIFS(DI$6:DI$505,$C$6:$C$505,">="&EOMONTH($C6,-INPUT!$O$113),$C$6:$C$505,"<="&$C6)),0) -> 0.42 | DL6: =IF(DK$3="%",AVERAGEIFS(DK$6:DK$505,$C$6:$C$505,">="&EOMONTH($C6,-INPUT!$O$113),$C$6:$C$505,"<="&$C6),SUMIFS(DK$6:DK$505,$C$6:$C$505,">="&EOMONTH($C6,-INPUT!$O$113),$C$6:$C$505,"<="&$C6)) -> 0 | DM6: =IF(DM$3="%",IF(COUNTIFS($C$6:$C6,"<>"&"")>=3,AVERAGEIFS(DK$6:DK$505,$C$6:$C$505,">="&EOMONTH($C6,-3),$C$6:$C$505,"<="&$C6),""),IF(COUNTIFS($C$6:$C6,"<>"&"")>=3,SUMIFS(DK$6:DK$505,$C$6:$C$505,">="&EOMONTH($C6,-3),$C$6:$C$505,"<="&$C6)*4,"")) ->  | DO6: =IF(COUNTIFS($DN$6:$DN$505,">"&0)>=24,IF(DN$3="%",AVERAGEIFS(DN$6:DN$505,$C$6:$C$505,">="&EOMONTH($C6,-INPUT!$O$113),$C$6:$C$505,"<="&$C6),SUMIFS(DN$6:DN$505,$C$6:$C$505,">="&EOMONTH($C6,-INPUT!$O$113),$C$6:$C$505,"<="&$C6)),0) -> 0 | DQ6: =IF(DP$3="%",AVERAGEIFS(DP$6:DP$505,$C$6:$C$505,">="&EOMONTH($C6,-INPUT!$O$113),$C$6:$C$505,"<="&$C6),SUMIFS(DP$6:DP$505,$C$6:$C$505,">="&EOMONTH($C6,-INPUT!$O$113),$C$6:$C$505,"<="&$C6)) -> 0 | DR6: =IF(DR$3="%",IF(COUNTIFS($C$6:$C6,"<>"&"")>=3,AVERAGEIFS(DP$6:DP$505,$C$6:$C$505,">="&EOMONTH($C6,-3),$C$6:$C$505,"<="&$C6),""),IF(COUNTIFS($C$6:$C6,"<>"&"")>=3,SUMIFS(DP$6:DP$505,$C$6:$C$505,">="&EOMONTH($C6,-3),$C$6:$C$505,"<="&$C6)*4,"")) ->  | DT6: =IF(COUNTIFS($DS$6:$DS$505,">"&0)>=24,IF(DS$3="%",AVERAGEIFS(DS$6:DS$505,$C$6:$C$505,">="&EOMONTH($C6,-INPUT!$O$113),$C$6:$C$505,"<="&$C6),SUMIFS(DS$6:DS$505,$C$6:$C$505,">="&EOMONTH($C6,-INPUT!$O$113),$C$6:$C$505,"<="&$C6)),0) -> 0 | DV6: =IF(DU$3="%",AVERAGEIFS(DU$6:DU$505,$C$6:$C$505,">="&EOMONTH($C6,-INPUT!$O$113),$C$6:$C$505,"<="&$C6),SUMIFS(DU$6:DU$505,$C$6:$C$505,">="&EOMONTH($C6,-INPUT!$O$113),$C$6:$C$505,"<="&$C6)) -> 0 | DW6: =IF(DW$3="%",IF(COUNTIFS($C$6:$C6,"<>"&"")>=3,AVERAGEIFS(DU$6:DU$505,$C$6:$C$505,">="&EOMONTH($C6,-3),$C$6:$C$505,"<="&$C6),""),IF(COUNTIFS($C$6:$C6,"<>"&"")>=3,SUMIFS(DU$6:DU$505,$C$6:$C$505,">="&EOMONTH($C6,-3),$C$6:$C$505,"<="&$C6)*4,"")) ->  | DY6: =IF(COUNTIFS($DX$6:$DX$505,">"&0)>=24,IF(DX$3="%",AVERAGEIFS(DX$6:DX$505,$C$6:$C$505,">="&EOMONTH($C6,-INPUT!$O$113),$C$6:$C$505,"<="&$C6),SUMIFS(DX$6:DX$505,$C$6:$C$505,">="&EOMONTH($C6,-INPUT!$O$113),$C$6:$C$505,"<="&$C6)),0) -> 0 | EA6: =IF(DZ$3="%",AVERAGEIFS(DZ$6:DZ$505,$C$6:$C$505,">="&EOMONTH($C6,-INPUT!$O$113),$C$6:$C$505,"<="&$C6),SUMIFS(DZ$6:DZ$505,$C$6:$C$505,">="&EOMONTH($C6,-INPUT!$O$113),$C$6:$C$505,"<="&$C6)) -> 0 | EB6: =IF(EB$3="%",IF(COUNTIFS($C$6:$C6,"<>"&"")>=3,AVERAGEIFS(DZ$6:DZ$505,$C$6:$C$505,">="&EOMONTH($C6,-3),$C$6:$C$505,"<="&$C6),""),IF(COUNTIFS($C$6:$C6,"<>"&"")>=3,SUMIFS(DZ$6:DZ$505,$C$6:$C$505,">="&EOMONTH($C6,-3),$C$6:$C$505,"<="&$C6)*4,"")) ->  | ED6: =IF(COUNTIFS($EC$6:$EC$505,">"&0)>=24,IF(EC$3="%",AVERAGEIFS(EC$6:EC$505,$C$6:$C$505,">="&EOMONTH($C6,-INPUT!$O$113),$C$6:$C$505,"<="&$C6),SUMIFS(EC$6:EC$505,$C$6:$C$505,">="&EOMONTH($C6,-INPUT!$O$113),$C$6:$C$505,"<="&$C6)),0) -> 0 | EF6: =IF(EE$3="%",AVERAGEIFS(EE$6:EE$505,$C$6:$C$505,">="&EOMONTH($C6,-INPUT!$O$113),$C$6:$C$505,"<="&$C6),SUMIFS(EE$6:EE$505,$C$6:$C$505,">="&EOMONTH($C6,-INPUT!$O$113),$C$6:$C$505,"<="&$C6)) -> 0 | EG6: =IF(EG$3="%",IF(COUNTIFS($C$6:$C6,"<>"&"")>=3,AVERAGEIFS(EE$6:EE$505,$C$6:$C$505,">="&EOMONTH($C6,-3),$C$6:$C$505,"<="&$C6),""),IF(COUNTIFS($C$6:$C6,"<>"&"")>=3,SUMIFS(EE$6:EE$505,$C$6:$C$505,">="&EOMONTH($C6,-3),$C$6:$C$505,"<="&$C6)*4,"")) ->  | EI6: =IF(COUNTIFS($EH$6:$EH$505,">"&0)>=24,IF(EH$3="%",AVERAGEIFS(EH$6:EH$505,$C$6:$C$505,">="&EOMONTH($C6,-INPUT!$O$113),$C$6:$C$505,"<="&$C6),SUMIFS(EH$6:EH$505,$C$6:$C$505,">="&EOMONTH($C6,-INPUT!$O$113),$C$6:$C$505,"<="&$C6)),0) -> 0 | EK6: =IF(EJ$3="%",AVERAGEIFS(EJ$6:EJ$505,$C$6:$C$505,">="&EOMONTH($C6,-INPUT!$O$113),$C$6:$C$505,"<="&$C6),SUMIFS(EJ$6:EJ$505,$C$6:$C$505,">="&EOMONTH($C6,-INPUT!$O$113),$C$6:$C$505,"<="&$C6)) -> 0 | EL6: =IF(EL$3="%",IF(COUNTIFS($C$6:$C6,"<>"&"")>=3,AVERAGEIFS(EJ$6:EJ$505,$C$6:$C$505,">="&EOMONTH($C6,-3),$C$6:$C$505,"<="&$C6),""),IF(COUNTIFS($C$6:$C6,"<>"&"")>=3,SUMIFS(EJ$6:EJ$505,$C$6:$C$505,">="&EOMONTH($C6,-3),$C$6:$C$505,"<="&$C6)*4,"")) ->  | EN6: =IF(COUNTIFS($EM$6:$EM$505,">"&0)>=24,IF(EM$3="%",AVERAGEIFS(EM$6:EM$505,$C$6:$C$505,">="&EOMONTH($C6,-INPUT!$O$113),$C$6:$C$505,"<="&$C6),SUMIFS(EM$6:EM$505,$C$6:$C$505,">="&EOMONTH($C6,-INPUT!$O$113),$C$6:$C$505,"<="&$C6)),0) -> 0 | EP6: =IF(EO$3="%",AVERAGEIFS(EO$6:EO$505,$C$6:$C$505,">="&EOMONTH($C6,-INPUT!$O$113),$C$6:$C$505,"<="&$C6),SUMIFS(EO$6:EO$505,$C$6:$C$505,">="&EOMONTH($C6,-INPUT!$O$113),$C$6:$C$505,"<="&$C6)) -> 0 | EQ6: =IF(EQ$3="%",IF(COUNTIFS($C$6:$C6,"<>"&"")>=3,AVERAGEIFS(EO$6:EO$505,$C$6:$C$505,">="&EOMONTH($C6,-3),$C$6:$C$505,"<="&$C6),""),IF(COUNTIFS($C$6:$C6,"<>"&"")>=3,SUMIFS(EO$6:EO$505,$C$6:$C$505,">="&EOMONTH($C6,-3),$C$6:$C$505,"<="&$C6)*4,"")) ->  | ES6: =IF(COUNTIFS($ER$6:$ER$505,">"&0)>=24,IF(ER$3="%",AVERAGEIFS(ER$6:ER$505,$C$6:$C$505,">="&EOMONTH($C6,-INPUT!$O$113),$C$6:$C$505,"<="&$C6),SUMIFS(ER$6:ER$505,$C$6:$C$505,">="&EOMONTH($C6,-INPUT!$O$113),$C$6:$C$505,"<="&$C6)),0) -> 0 | EU6: =IF(ET$3="%",AVERAGEIFS(ET$6:ET$505,$C$6:$C$505,">="&EOMONTH($C6,-INPUT!$O$113),$C$6:$C$505,"<="&$C6),SUMIFS(ET$6:ET$505,$C$6:$C$505,">="&EOMONTH($C6,-INPUT!$O$113),$C$6:$C$505,"<="&$C6)) -> 0 | EV6: =IF(EV$3="%",IF(COUNTIFS($C$6:$C6,"<>"&"")>=3,AVERAGEIFS(ET$6:ET$505,$C$6:$C$505,">="&EOMONTH($C6,-3),$C$6:$C$505,"<="&$C6),""),IF(COUNTIFS($C$6:$C6,"<>"&"")>=3,SUMIFS(ET$6:ET$505,$C$6:$C$505,">="&EOMONTH($C6,-3),$C$6:$C$505,"<="&$C6)*4,"")) ->  | EX6: =IF(COUNTIFS($EW$6:$EW$505,">"&0)>=24,IF(EW$3="%",AVERAGEIFS(EW$6:EW$505,$C$6:$C$505,">="&EOMONTH($C6,-INPUT!$O$113),$C$6:$C$505,"<="&$C6),SUMIFS(EW$6:EW$505,$C$6:$C$505,">="&EOMONTH($C6,-INPUT!$O$113),$C$6:$C$505,"<="&$C6)),0) -> 0 | EZ6: =IF(EY$3="%",AVERAGEIFS(EY$6:EY$505,$C$6:$C$505,">="&EOMONTH($C6,-INPUT!$O$113),$C$6:$C$505,"<="&$C6),SUMIFS(EY$6:EY$505,$C$6:$C$505,">="&EOMONTH($C6,-INPUT!$O$113),$C$6:$C$505,"<="&$C6)) -> 0 | FA6: =IF(FA$3="%",IF(COUNTIFS($C$6:$C6,"<>"&"")>=3,AVERAGEIFS(EY$6:EY$505,$C$6:$C$505,">="&EOMONTH($C6,-3),$C$6:$C$505,"<="&$C6),""),IF(COUNTIFS($C$6:$C6,"<>"&"")>=3,SUMIFS(EY$6:EY$505,$C$6:$C$505,">="&EOMONTH($C6,-3),$C$6:$C$505,"<="&$C6)*4,"")) ->  | FC6: =IF(COUNTIFS($FB$6:$FB$505,">"&0)>=24,IF(FB$3="%",AVERAGEIFS(FB$6:FB$505,$C$6:$C$505,">="&EOMONTH($C6,-INPUT!$O$113),$C$6:$C$505,"<="&$C6),SUMIFS(FB$6:FB$505,$C$6:$C$505,">="&EOMONTH($C6,-INPUT!$O$113),$C$6:$C$505,"<="&$C6)),0) -> 0 | FE6: =IF(FD$3="%",AVERAGEIFS(FD$6:FD$505,$C$6:$C$505,">="&EOMONTH($C6,-INPUT!$O$113),$C$6:$C$505,"<="&$C6),SUMIFS(FD$6:FD$505,$C$6:$C$505,">="&EOMONTH($C6,-INPUT!$O$113),$C$6:$C$505,"<="&$C6)) -> 0 | FF6: =IF(FF$3="%",IF(COUNTIFS($C$6:$C6,"<>"&"")>=3,AVERAGEIFS(FD$6:FD$505,$C$6:$C$505,">="&EOMONTH($C6,-3),$C$6:$C$505,"<="&$C6),""),IF(COUNTIFS($C$6:$C6,"<>"&"")>=3,SUMIFS(FD$6:FD$505,$C$6:$C$505,">="&EOMONTH($C6,-3),$C$6:$C$505,"<="&$C6)*4,"")) ->  | FH6: =IF(COUNTIFS($FG$6:$FG$505,">"&0)>=24,IF(FG$3="%",AVERAGEIFS(FG$6:FG$505,$C$6:$C$505,">="&EOMONTH($C6,-INPUT!$O$113),$C$6:$C$505,"<="&$C6),SUMIFS(FG$6:FG$505,$C$6:$C$505,">="&EOMONTH($C6,-INPUT!$O$113),$C$6:$C$505,"<="&$C6)),0) -> 0 | FJ6: =IF(FI$3="%",AVERAGEIFS(FI$6:FI$505,$C$6:$C$505,">="&EOMONTH($C6,-INPUT!$O$113),$C$6:$C$505,"<="&$C6),SUMIFS(FI$6:FI$505,$C$6:$C$505,">="&EOMONTH($C6,-INPUT!$O$113),$C$6:$C$505,"<="&$C6)) -> 0 | FK6: =IF(FK$3="%",IF(COUNTIFS($C$6:$C6,"<>"&"")>=3,AVERAGEIFS(FI$6:FI$505,$C$6:$C$505,">="&EOMONTH($C6,-3),$C$6:$C$505,"<="&$C6),""),IF(COUNTIFS($C$6:$C6,"<>"&"")>=3,SUMIFS(FI$6:FI$505,$C$6:$C$505,">="&EOMONTH($C6,-3),$C$6:$C$505,"<="&$C6)*4,"")) ->  | FM6: =IF(COUNTIFS($FL$6:$FL$505,">"&0)>=24,IF(FL$3="%",AVERAGEIFS(FL$6:FL$505,$C$6:$C$505,">="&EOMONTH($C6,-INPUT!$O$113),$C$6:$C$505,"<="&$C6),SUMIFS(FL$6:FL$505,$C$6:$C$505,">="&EOMONTH($C6,-INPUT!$O$113),$C$6:$C$505,"<="&$C6)),0) -> 0 | FO6: =IF(FN$3="%",AVERAGEIFS(FN$6:FN$505,$C$6:$C$505,">="&EOMONTH($C6,-INPUT!$O$113),$C$6:$C$505,"<="&$C6),SUMIFS(FN$6:FN$505,$C$6:$C$505,">="&EOMONTH($C6,-INPUT!$O$113),$C$6:$C$505,"<="&$C6)) -> 0 | FP6: =IF(FP$3="%",IF(COUNTIFS($C$6:$C6,"<>"&"")>=3,AVERAGEIFS(FN$6:FN$505,$C$6:$C$505,">="&EOMONTH($C6,-3),$C$6:$C$505,"<="&$C6),""),IF(COUNTIFS($C$6:$C6,"<>"&"")>=3,SUMIFS(FN$6:FN$505,$C$6:$C$505,">="&EOMONTH($C6,-3),$C$6:$C$505,"<="&$C6)*4,"")) ->  | FR6: =IF(COUNTIFS($FQ$6:$FQ$505,">"&0)>=24,IF(FQ$3="%",AVERAGEIFS(FQ$6:FQ$505,$C$6:$C$505,">="&EOMONTH($C6,-INPUT!$O$113),$C$6:$C$505,"<="&$C6),SUMIFS(FQ$6:FQ$505,$C$6:$C$505,">="&EOMONTH($C6,-INPUT!$O$113),$C$6:$C$505,"<="&$C6)),0) -> 0 | FT6: =IF(FS$3="%",AVERAGEIFS(FS$6:FS$505,$C$6:$C$505,">="&EOMONTH($C6,-INPUT!$O$113),$C$6:$C$505,"<="&$C6),SUMIFS(FS$6:FS$505,$C$6:$C$505,">="&EOMONTH($C6,-INPUT!$O$113),$C$6:$C$505,"<="&$C6)) -> 0 | FU6: =IF(FU$3="%",IF(COUNTIFS($C$6:$C6,"<>"&"")>=3,AVERAGEIFS(FS$6:FS$505,$C$6:$C$505,">="&EOMONTH($C6,-3),$C$6:$C$505,"<="&$C6),""),IF(COUNTIFS($C$6:$C6,"<>"&"")>=3,SUMIFS(FS$6:FS$505,$C$6:$C$505,">="&EOMONTH($C6,-3),$C$6:$C$505,"<="&$C6)*4,"")) ->  | FW6: =IF(COUNTIFS($FV$6:$FV$505,">"&0)>=24,IF(FV$3="%",AVERAGEIFS(FV$6:FV$505,$C$6:$C$505,">="&EOMONTH($C6,-INPUT!$O$113),$C$6:$C$505,"<="&$C6),SUMIFS(FV$6:FV$505,$C$6:$C$505,">="&EOMONTH($C6,-INPUT!$O$113),$C$6:$C$505,"<="&$C6)),0) -> 0 | FY6: =IF(FX$3="%",AVERAGEIFS(FX$6:FX$505,$C$6:$C$505,">="&EOMONTH($C6,-INPUT!$O$113),$C$6:$C$505,"<="&$C6),SUMIFS(FX$6:FX$505,$C$6:$C$505,">="&EOMONTH($C6,-INPUT!$O$113),$C$6:$C$505,"<="&$C6)) -> 0 | FZ6: =IF(FZ$3="%",IF(COUNTIFS($C$6:$C6,"<>"&"")>=3,AVERAGEIFS(FX$6:FX$505,$C$6:$C$505,">="&EOMONTH($C6,-3),$C$6:$C$505,"<="&$C6),""),IF(COUNTIFS($C$6:$C6,"<>"&"")>=3,SUMIFS(FX$6:FX$505,$C$6:$C$505,">="&EOMONTH($C6,-3),$C$6:$C$505,"<="&$C6)*4,"")) ->  | GB6: =IF(COUNTIFS($GA$6:$GA$505,">"&0)>=24,IF(GA$3="%",AVERAGEIFS(GA$6:GA$505,$C$6:$C$505,">="&EOMONTH($C6,-INPUT!$O$113),$C$6:$C$505,"<="&$C6),SUMIFS(GA$6:GA$505,$C$6:$C$505,">="&EOMONTH($C6,-INPUT!$O$113),$C$6:$C$505,"<="&$C6)),0) -> 0 | GD6: =IF(GC$3="%",AVERAGEIFS(GC$6:GC$505,$C$6:$C$505,">="&EOMONTH($C6,-INPUT!$O$113),$C$6:$C$505,"<="&$C6),SUMIFS(GC$6:GC$505,$C$6:$C$505,">="&EOMONTH($C6,-INPUT!$O$113),$C$6:$C$505,"<="&$C6)) -> 0 | GE6: =IF(GE$3="%",IF(COUNTIFS($C$6:$C6,"<>"&"")>=3,AVERAGEIFS(GC$6:GC$505,$C$6:$C$505,">="&EOMONTH($C6,-3),$C$6:$C$505,"<="&$C6),""),IF(COUNTIFS($C$6:$C6,"<>"&"")>=3,SUMIFS(GC$6:GC$505,$C$6:$C$505,">="&EOMONTH($C6,-3),$C$6:$C$505,"<="&$C6)*4,"")) ->  | GG6: =IF(COUNTIFS($GF$6:$GF$505,">"&0)>=24,IF(GF$3="%",AVERAGEIFS(GF$6:GF$505,$C$6:$C$505,">="&EOMONTH($C6,-INPUT!$O$113),$C$6:$C$505,"<="&$C6),SUMIFS(GF$6:GF$505,$C$6:$C$505,">="&EOMONTH($C6,-INPUT!$O$113),$C$6:$C$505,"<="&$C6)),0) -> 0 | GI6: =IF(GH$3="%",AVERAGEIFS(GH$6:GH$505,$C$6:$C$505,">="&EOMONTH($C6,-INPUT!$O$113),$C$6:$C$505,"<="&$C6),SUMIFS(GH$6:GH$505,$C$6:$C$505,">="&EOMONTH($C6,-INPUT!$O$113),$C$6:$C$505,"<="&$C6)) -> 0 | GJ6: =IF(GJ$3="%",IF(COUNTIFS($C$6:$C6,"<>"&"")>=3,AVERAGEIFS(GH$6:GH$505,$C$6:$C$505,">="&EOMONTH($C6,-3),$C$6:$C$505,"<="&$C6),""),IF(COUNTIFS($C$6:$C6,"<>"&"")>=3,SUMIFS(GH$6:GH$505,$C$6:$C$505,">="&EOMONTH($C6,-3),$C$6:$C$505,"<="&$C6)*4,"")) ->  | GL6: =IF(COUNTIFS($GK$6:$GK$505,">"&0)>=24,IF(GK$3="%",AVERAGEIFS(GK$6:GK$505,$C$6:$C$505,">="&EOMONTH($C6,-INPUT!$O$113),$C$6:$C$505,"<="&$C6),SUMIFS(GK$6:GK$505,$C$6:$C$505,">="&EOMONTH($C6,-INPUT!$O$113),$C$6:$C$505,"<="&$C6)),0) -> 0 | GN6: =IF(GM$3="%",AVERAGEIFS(GM$6:GM$505,$C$6:$C$505,">="&EOMONTH($C6,-INPUT!$O$113),$C$6:$C$505,"<="&$C6),SUMIFS(GM$6:GM$505,$C$6:$C$505,">="&EOMONTH($C6,-INPUT!$O$113),$C$6:$C$505,"<="&$C6)) -> 0 | GO6: =IF(GO$3="%",IF(COUNTIFS($C$6:$C6,"<>"&"")>=3,AVERAGEIFS(GM$6:GM$505,$C$6:$C$505,">="&EOMONTH($C6,-3),$C$6:$C$505,"<="&$C6),""),IF(COUNTIFS($C$6:$C6,"<>"&"")>=3,SUMIFS(GM$6:GM$505,$C$6:$C$505,">="&EOMONTH($C6,-3),$C$6:$C$505,"<="&$C6)*4,"")) ->  | GQ6: =IF(COUNTIFS($GP$6:$GP$505,">"&0)>=24,IF(GP$3="%",AVERAGEIFS(GP$6:GP$505,$C$6:$C$505,">="&EOMONTH($C6,-INPUT!$O$113),$C$6:$C$505,"<="&$C6),SUMIFS(GP$6:GP$505,$C$6:$C$505,">="&EOMONTH($C6,-INPUT!$O$113),$C$6:$C$505,"<="&$C6)),0) -> 0 | GS6: =IF(GR$3="%",AVERAGEIFS(GR$6:GR$505,$C$6:$C$505,">="&EOMONTH($C6,-INPUT!$O$113),$C$6:$C$505,"<="&$C6),SUMIFS(GR$6:GR$505,$C$6:$C$505,">="&EOMONTH($C6,-INPUT!$O$113),$C$6:$C$505,"<="&$C6)) -> 0 | GT6: =IF(GT$3="%",IF(COUNTIFS($C$6:$C6,"<>"&"")>=3,AVERAGEIFS(GR$6:GR$505,$C$6:$C$505,">="&EOMONTH($C6,-3),$C$6:$C$505,"<="&$C6),""),IF(COUNTIFS($C$6:$C6,"<>"&"")>=3,SUMIFS(GR$6:GR$505,$C$6:$C$505,">="&EOMONTH($C6,-3),$C$6:$C$505,"<="&$C6)*4,"")) ->  | GV6: =IF(COUNTIFS($GU$6:$GU$505,">"&0)>=24,IF(GU$3="%",AVERAGEIFS(GU$6:GU$505,$C$6:$C$505,">="&EOMONTH($C6,-INPUT!$O$113),$C$6:$C$505,"<="&$C6),SUMIFS(GU$6:GU$505,$C$6:$C$505,">="&EOMONTH($C6,-INPUT!$O$113),$C$6:$C$505,"<="&$C6)),0) -> 0 | GX6: =IF(GW$3="%",AVERAGEIFS(GW$6:GW$505,$C$6:$C$505,">="&EOMONTH($C6,-INPUT!$O$113),$C$6:$C$505,"<="&$C6),SUMIFS(GW$6:GW$505,$C$6:$C$505,">="&EOMONTH($C6,-INPUT!$O$113),$C$6:$C$505,"<="&$C6)) -> 0 | GY6: =IF(GY$3="%",IF(COUNTIFS($C$6:$C6,"<>"&"")>=3,AVERAGEIFS(GW$6:GW$505,$C$6:$C$505,">="&EOMONTH($C6,-3),$C$6:$C$505,"<="&$C6),""),IF(COUNTIFS($C$6:$C6,"<>"&"")>=3,SUMIFS(GW$6:GW$505,$C$6:$C$505,">="&EOMONTH($C6,-3),$C$6:$C$505,"<="&$C6)*4,"")) ->  | HA6: =IF(COUNTIFS($GZ$6:$GZ$505,">"&0)>=24,IF(GZ$3="%",AVERAGEIFS(GZ$6:GZ$505,$C$6:$C$505,">="&EOMONTH($C6,-INPUT!$O$113),$C$6:$C$505,"<="&$C6),SUMIFS(GZ$6:GZ$505,$C$6:$C$505,">="&EOMONTH($C6,-INPUT!$O$113),$C$6:$C$505,"<="&$C6)),0) -> 0 | HC6: =IF(HB$3="%",AVERAGEIFS(HB$6:HB$505,$C$6:$C$505,">="&EOMONTH($C6,-INPUT!$O$113),$C$6:$C$505,"<="&$C6),SUMIFS(HB$6:HB$505,$C$6:$C$505,">="&EOMONTH($C6,-INPUT!$O$113),$C$6:$C$505,"<="&$C6)) -> 0 | HD6: =IF(HD$3="%",IF(COUNTIFS($C$6:$C6,"<>"&"")>=3,AVERAGEIFS(HB$6:HB$505,$C$6:$C$505,">="&EOMONTH($C6,-3),$C$6:$C$505,"<="&$C6),""),IF(COUNTIFS($C$6:$C6,"<>"&"")>=3,SUMIFS(HB$6:HB$505,$C$6:$C$505,">="&EOMONTH($C6,-3),$C$6:$C$505,"<="&$C6)*4,"")) ->  | HF6: =IF(COUNTIFS($HE$6:$HE$505,">"&0)>=24,IF(HE$3="%",AVERAGEIFS(HE$6:HE$505,$C$6:$C$505,">="&EOMONTH($C6,-INPUT!$O$113),$C$6:$C$505,"<="&$C6),SUMIFS(HE$6:HE$505,$C$6:$C$505,">="&EOMONTH($C6,-INPUT!$O$113),$C$6:$C$505,"<="&$C6)),0) -> 0 | HH6: =IF(HG$3="%",AVERAGEIFS(HG$6:HG$505,$C$6:$C$505,">="&EOMONTH($C6,-INPUT!$O$113),$C$6:$C$505,"<="&$C6),SUMIFS(HG$6:HG$505,$C$6:$C$505,">="&EOMONTH($C6,-INPUT!$O$113),$C$6:$C$505,"<="&$C6)) -> 0 | HI6: =IF(HI$3="%",IF(COUNTIFS($C$6:$C6,"<>"&"")>=3,AVERAGEIFS(HG$6:HG$505,$C$6:$C$505,">="&EOMONTH($C6,-3),$C$6:$C$505,"<="&$C6),""),IF(COUNTIFS($C$6:$C6,"<>"&"")>=3,SUMIFS(HG$6:HG$505,$C$6:$C$505,">="&EOMONTH($C6,-3),$C$6:$C$505,"<="&$C6)*4,"")) ->  | HK6: =IF(COUNTIFS($HJ$6:$HJ$505,">"&0)>=24,IF(HJ$3="%",AVERAGEIFS(HJ$6:HJ$505,$C$6:$C$505,">="&EOMONTH($C6,-INPUT!$O$113),$C$6:$C$505,"<="&$C6),SUMIFS(HJ$6:HJ$505,$C$6:$C$505,">="&EOMONTH($C6,-INPUT!$O$113),$C$6:$C$505,"<="&$C6)),0) -> 0 | HM6: =IF(HL$3="%",AVERAGEIFS(HL$6:HL$505,$C$6:$C$505,">="&EOMONTH($C6,-INPUT!$O$113),$C$6:$C$505,"<="&$C6),SUMIFS(HL$6:HL$505,$C$6:$C$505,">="&EOMONTH($C6,-INPUT!$O$113),$C$6:$C$505,"<="&$C6)) -> 0 | HN6: =IF(HN$3="%",IF(COUNTIFS($C$6:$C6,"<>"&"")>=3,AVERAGEIFS(HL$6:HL$505,$C$6:$C$505,">="&EOMONTH($C6,-3),$C$6:$C$505,"<="&$C6),""),IF(COUNTIFS($C$6:$C6,"<>"&"")>=3,SUMIFS(HL$6:HL$505,$C$6:$C$505,">="&EOMONTH($C6,-3),$C$6:$C$505,"<="&$C6)*4,"")) ->  | HP6: =IF(COUNTIFS($HO$6:$HO$505,">"&0)>=24,IF(HO$3="%",AVERAGEIFS(HO$6:HO$505,$C$6:$C$505,">="&EOMONTH($C6,-INPUT!$O$113),$C$6:$C$505,"<="&$C6),SUMIFS(HO$6:HO$505,$C$6:$C$505,">="&EOMONTH($C6,-INPUT!$O$113),$C$6:$C$505,"<="&$C6)),0) -> 0 | HR6: =IF(HQ$3="%",AVERAGEIFS(HQ$6:HQ$505,$C$6:$C$505,">="&EOMONTH($C6,-INPUT!$O$113),$C$6:$C$505,"<="&$C6),SUMIFS(HQ$6:HQ$505,$C$6:$C$505,">="&EOMONTH($C6,-INPUT!$O$113),$C$6:$C$505,"<="&$C6)) -> 0 | HS6: =IF(HS$3="%",IF(COUNTIFS($C$6:$C6,"<>"&"")>=3,AVERAGEIFS(HQ$6:HQ$505,$C$6:$C$505,">="&EOMONTH($C6,-3),$C$6:$C$505,"<="&$C6),""),IF(COUNTIFS($C$6:$C6,"<>"&"")>=3,SUMIFS(HQ$6:HQ$505,$C$6:$C$505,">="&EOMONTH($C6,-3),$C$6:$C$505,"<="&$C6)*4,"")) ->  | HU6: =IF(COUNTIFS($HT$6:$HT$505,">"&0)>=24,IF(HT$3="%",AVERAGEIFS(HT$6:HT$505,$C$6:$C$505,">="&EOMONTH($C6,-INPUT!$O$113),$C$6:$C$505,"<="&$C6),SUMIFS(HT$6:HT$505,$C$6:$C$505,">="&EOMONTH($C6,-INPUT!$O$113),$C$6:$C$505,"<="&$C6)),0) -> 0 | HW6: =IF(HV$3="%",AVERAGEIFS(HV$6:HV$505,$C$6:$C$505,">="&EOMONTH($C6,-INPUT!$O$113),$C$6:$C$505,"<="&$C6),SUMIFS(HV$6:HV$505,$C$6:$C$505,">="&EOMONTH($C6,-INPUT!$O$113),$C$6:$C$505,"<="&$C6)) -> 0 | HX6: =IF(HX$3="%",IF(COUNTIFS($C$6:$C6,"<>"&"")>=3,AVERAGEIFS(HV$6:HV$505,$C$6:$C$505,">="&EOMONTH($C6,-3),$C$6:$C$505,"<="&$C6),""),IF(COUNTIFS($C$6:$C6,"<>"&"")>=3,SUMIFS(HV$6:HV$505,$C$6:$C$505,">="&EOMONTH($C6,-3),$C$6:$C$505,"<="&$C6)*4,"")) ->  | HZ6: =IF(COUNTIFS($HY$6:$HY$505,">"&0)>=24,IF(HY$3="%",AVERAGEIFS(HY$6:HY$505,$C$6:$C$505,">="&EOMONTH($C6,-INPUT!$O$113),$C$6:$C$505,"<="&$C6),SUMIFS(HY$6:HY$505,$C$6:$C$505,">="&EOMONTH($C6,-INPUT!$O$113),$C$6:$C$505,"<="&$C6)),0) -> 0 | IA6: =+IA31-(150000/12) -> 5820.933333 | IB6: =SUMIFS(IA$6:IA$505,$C$6:$C$505,">="&EOMONTH($C6,-INPUT!$O$113),$C$6:$C$505,"<="&$C6) -> 5820.933333 | IC6: =IF(COUNTIFS($C$6:HK6,"<>"&"")>=3,SUMIFS(IA$6:IA$505,$C$6:$C$505,">="&EOMONTH($C6,-3),$C$6:$C$505,"<="&$C6)*4,"") -> 23283.73333 | ID6: =IF(COUNTIFS($C$6:HK6,"<>"&"")>=6,SUMIFS(IA$6:IA$505,$C$6:$C$505,">="&EOMONTH($C6,-6),$C$6:$C$505,"<="&$C6)*2,"") -> 11641.86667 | IE6: =+IE31-(150000/12) -> -4179.066667 | IF6: =IF(COUNTIFS($IE$6:$IE$505,">"&0)>=24,SUMIFS(IE$6:IE$505,$C$6:$C$505,">="&EOMONTH($C6,-INPUT!$O$113),$C$6:$C$505,"<="&$C6),0) -> -4179.066667 | IG6: =IFERROR(D6/Y6,0) -> 7582.233333 | IH6: =IFERROR(SUMIFS(IG$6:IG$505,$C$6:$C$505,">="&EOMONTH($C6,-INPUT!$O$113),$C$6:$C$505,"<="&$C6),0) -> 7582.233333 | II6: =IFERROR(IF(II$3="%",IF(COUNTIFS($C$6:$C6,"<>"&"")>=3,AVERAGEIFS(D$6:D$505,$C$6:$C$505,">="&EOMONTH($C6,-3),$C$6:$C$505,"<="&$C6),""),IF(COUNTIFS($C$6:$C6,"<>"&"")>=3,SUMIFS(D$6:D$505,$C$6:$C$505,">="&EOMONTH($C6,-3),$C$6:$C$505,"<="&$C6)*4,"")) / IF(II$3="%",IF(COUNTIFS($C$6:$C6,"<>"&"")>=3,AVERAGEIFS(Y$6:Y$505,$C$6:$C$505,">="&EOMONTH($C6,-3),$C$6:$C$505,"<="&$C6),""),IF(COUNTIFS($C$6:$C6,"<>"&"")>=3,SUMIFS(Y$6:Y$505,$C$6:$C$505,">="&EOMONTH($C6,-3),$C$6:$C$505,"<="&$C6)*4,"")),0) -> 0 | IJ6: =IFERROR(H6/AB6,0) -> 4945.136364 | IK6: =IFERROR(SUMIFS(IJ$6:IJ$505,$C$6:$C$505,">="&EOMONTH($C6,-INPUT!$O$113),$C$6:$C$505,"<="&$C6),0) -> 4945.136364 | IL6: =IFERROR(IF(IL$3="%",IF(COUNTIFS($C$6:$C6,"<>"&"")>=3,AVERAGEIFS(H$6:H$505,$C$6:$C$505,">="&EOMONTH($C6,-3),$C$6:$C$505,"<="&$C6),""),IF(COUNTIFS($C$6:$C6,"<>"&"")>=3,SUMIFS(H$6:H$505,$C$6:$C$505,">="&EOMONTH($C6,-3),$C$6:$C$505,"<="&$C6)*4,"")) / IF(IL$3="%",IF(COUNTIFS($C$6:$C6,"<>"&"")>=3,AVERAGEIFS(AB$6:AB$505,$C$6:$C$505,">="&EOMONTH($C6,-3),$C$6:$C$505,"<="&$C6),""),IF(COUNTIFS($C$6:$C6,"<>"&"")>=3,SUMIFS(AB$6:AB$505,$C$6:$C$505,">="&EOMONTH($C6,-3),$C$6:$C$505,"<="&$C6)*4,"")),0) -> 0
A7: =MONTH(C7) -> 11 | B7: =YEAR(C7) -> 2017 | C7: 2017-11-01 | D7: =+D19-(500000/12) -> 501151.3333 | E7: =SUMIFS(D$6:D$505,$C$6:$C$505,">="&EOMONTH($C7,-INPUT!$O$113),$C$6:$C$505,"<="&$C7) -> 804440.6667 | F7: =IF(COUNTIFS($C$6:C7,"<>"&"")>=3,SUMIFS(D$6:D$505,$C$6:$C$505,">="&EOMONTH($C7,-3),$C$6:$C$505,"<="&$C7)*4,"") ->  | G7: =IF(COUNTIFS($C$6:C7,"<>"&"")>=6,SUMIFS(D$6:D$505,$C$6:$C$505,">="&EOMONTH($C7,-6),$C$6:$C$505,"<="&$C7)*2,"") ->  | H7: 233961 | I7: =IF(COUNTIFS($H$6:$H$505,">"&0)>=24,SUMIFS(H$6:H$505,$C$6:$C$505,">="&EOMONTH($C7,-INPUT!$O$113),$C$6:$C$505,"<="&$C7),0) -> 451547 | J7: 34533.89667 | K7: =SUMIFS(J$6:J$505,$C$6:$C$505,">="&EOMONTH($C7,-INPUT!$O$113),$C$6:$C$505,"<="&$C7) -> 83205.11333 | L7: =IF(COUNTIFS($C$6:C7,"<>"&"")>=3,SUMIFS(J$6:J$505,$C$6:$C$505,">="&EOMONTH($C7,-3),$C$6:$C$505,"<="&$C7)*4,"") ->  | M7: =IF(COUNTIFS($C$6:C7,"<>"&"")>=6,SUMIFS(J$6:J$505,$C$6:$C$505,">="&EOMONTH($C7,-6),$C$6:$C$505,"<="&$C7)*2,"") ->  | N7: 69094.66667 | O7: =IF(COUNTIFS($N$6:$N$505,">"&0)>=24,SUMIFS(N$6:N$505,$C$6:$C$505,">="&EOMONTH($C7,-INPUT!$O$113),$C$6:$C$505,"<="&$C7),0) -> 127140.3333 | P7: =IFERROR(J7/D7,0) -> 0.0689091186 | Q7: =IF(C7<>"",IFERROR(K7/E7,0),0) -> 0.1034322564 | R7: =IFERROR(N7/H7,0) -> 0.2953255742 | S7: -31642.54 | T7: =SUMIFS(S$6:S$505,$C$6:$C$505,">="&EOMONTH($C7,-INPUT!$O$113),$C$6:$C$505,"<="&$C7) -> -44663.32 | U7: =IF(COUNTIFS($C$6:C7,"<>"&"")>=3,SUMIFS(S$6:S$505,$C$6:$C$505,">="&EOMONTH($C7,-3),$C$6:$C$505,"<="&$C7)*4,"") ->  | V7: =IF(COUNTIFS($C$6:C7,"<>"&"")>=6,SUMIFS(S$6:S$505,$C$6:$C$505,">="&EOMONTH($C7,-6),$C$6:$C$505,"<="&$C7)*2,"") ->  | W7: 5784 | X7: =IF(COUNTIFS($W$6:$W$505,">"&0)>=24,SUMIFS(W$6:W$505,$C$6:$C$505,">="&EOMONTH($C7,-INPUT!$O$113),$C$6:$C$505,"<="&$C7),0) -> 0 | Y7: 42 | Z7: =AVERAGEIFS(Y$6:Y$505,$C$6:$C$505,">="&EOMONTH($C7,-INPUT!$O$113),$C$6:$C$505,"<="&$C7) -> 41 | AA7: =IF(COUNTIFS($C$6:$C7,"<>"&"")>=3,AVERAGEIFS(Y$6:Y$505,$C$6:$C$505,">="&EOMONTH($C7,-3),$C$6:$C$505,"<="&$C7),"") ->  | AB7: 45 | AC7: =IF(COUNTIFS($AB$6:$AB$505,">"&0)>=24,AVERAGEIFS(AB$6:AB$505,$C$6:$C$505,">="&EOMONTH($C7,-INPUT!$O$113),$C$6:$C$505,"<="&$C7),0) -> 44.5 | AD7: 7365.15 | AE7: =SUMIFS(AD$6:AD$505,$C$6:$C$505,">="&EOMONTH($C7,-INPUT!$O$113),$C$6:$C$505,"<="&$C7) -> 14240.2 | AF7: =IF(COUNTIFS($C$6:$C7,"<>"&"")>=3,SUMIFS(AD$6:AD$505,$C$6:$C$505,">="&EOMONTH($C7,-3),$C$6:$C$505,"<="&$C7)*4,"") ->  | AG7: 8280 | AH7: =IF(COUNTIFS($AG$6:$AG$505,">"&0)>=24,SUMIFS(AG$6:AG$505,$C$6:$C$505,">="&EOMONTH($C7,-INPUT!$O$113),$C$6:$C$505,"<="&$C7),0) -> 16376 | AI7: 269861.67 | AJ7: =SUMIFS(AI$6:AI$505,$C$6:$C$505,">="&EOMONTH($C7,-INPUT!$O$113),$C$6:$C$505,"<="&$C7) -> 528019.63 | AK7: =IF(COUNTIFS($C$6:$C7,"<>"&"")>=3,SUMIFS(AI$6:AI$505,$C$6:$C$505,">="&EOMONTH($C7,-3),$C$6:$C$505,"<="&$C7)*4,"") ->  | AL7: 294244 | AM7: =IF(COUNTIFS($AL$6:$AL$505,">"&0)>=24,SUMIFS(AL$6:AL$505,$C$6:$C$505,">="&EOMONTH($C7,-INPUT!$O$113),$C$6:$C$505,"<="&$C7),0) -> 582887 | AN7: =IFERROR(D7/AD7,0) -> 68.04360174 | AO7: =IFERROR(E7/AE7,0) -> 56.49082644 | AP7: =IFERROR(F7/AF7,0) -> 0 | AQ7: =IFERROR(H7/AG7,0) -> 28.25615942 | AR7: =IFERROR(I7/AH7,0) -> 27.57370542 | AS7: =IFERROR(IF('Chart Support '!$D$68=1,AI7/Y7,AI7/AD7),0) -> 6425.277857 | AT7: =IFERROR(IF('Chart Support '!$D$68=1,SUMIFS(AS$6:AS$505,$C$6:$C$505,">="&EOMONTH($C7,-INPUT!$O$113),$C$6:$C$505,"<="&$C7),$AJ7/$AE7),0) -> 12879.22686 | AU7: =IFERROR(IF('Chart Support '!$D$68=1,$AK7/IF(IC$3="%",IF(COUNTIFS($C$6:$C7,"<>"&"")>=3,AVERAGEIFS(Y$6:Y$505,$C$6:$C$505,">="&EOMONTH($C7,-3),$C$6:$C$505,"<="&$C7),""),IF(COUNTIFS($C$6:$C7,"<>"&"")>=3,SUMIFS(Y$6:Y$505,$C$6:$C$505,">="&EOMONTH($C7,-3),$C$6:$C$505,"<="&$C7)*4,"")),$AK7/$AF7),0) -> 0 | AV7: =IFERROR(IF('Chart Support '!$D$68=1,$AL7/$AB7,$AL7/$AG7),0) -> 6538.755556 | AW7: =IFERROR(IF('Chart Support '!$D$68=1,SUMIFS(AV$6:AV$505,$C$6:$C$505,">="&EOMONTH($C7,-INPUT!$O$113),$C$6:$C$505,"<="&$C7),$AM7/$AH7),0) -> 13098.82374 | AX7: =IFERROR(S7/AI7,0) -> -0.1172546661 | AY7: =IFERROR(T7/AJ7,0) -> -0.08458647645 | AZ7: =IFERROR(U7/AK7,0) -> 0 | BA7: =IFERROR(W7/AL7,0) -> 0.01965715529 | BB7: =IFERROR(X7/AM7,0) -> 0 | BC7: 3.377777778 | BD7: =IF(BC$3="%",AVERAGEIFS(BC$6:BC$505,$C$6:$C$505,">="&EOMONTH($C7,-INPUT!$O$113),$C$6:$C$505,"<="&$C7),SUMIFS(BC$6:BC$505,$C$6:$C$505,">="&EOMONTH($C7,-INPUT!$O$113),$C$6:$C$505,"<="&$C7)) -> 6.672222222 | BE7: =IF(BE$3="%",IF(COUNTIFS($C$6:$C7,"<>"&"")>=3,AVERAGEIFS(BC$6:BC$505,$C$6:$C$505,">="&EOMONTH($C7,-3),$C$6:$C$505,"<="&$C7),""),IF(COUNTIFS($C$6:$C7,"<>"&"")>=3,SUMIFS(BC$6:BC$505,$C$6:$C$505,">="&EOMONTH($C7,-3),$C$6:$C$505,"<="&$C7)*4,"")) ->  | BG7: =IF(COUNTIFS($BF$6:$BF$505,">"&0)>=24,IF(BF$3="%",AVERAGEIFS(BF$6:BF$505,$C$6:$C$505,">="&EOMONTH($C7,-INPUT!$O$113),$C$6:$C$505,"<="&$C7),SUMIFS(BF$6:BF$505,$C$6:$C$505,">="&EOMONTH($C7,-INPUT!$O$113),$C$6:$C$505,"<="&$C7)),0) -> 0 | BH7: 30 | BI7: =IF(BH$3="%",AVERAGEIFS(BH$6:BH$505,$C$6:$C$505,">="&EOMONTH($C7,-INPUT!$O$113),$C$6:$C$505,"<="&$C7),SUMIFS(BH$6:BH$505,$C$6:$C$505,">="&EOMONTH($C7,-INPUT!$O$113),$C$6:$C$505,"<="&$C7)) -> 60 | BJ7: =IF(BJ$3="%",IF(COUNTIFS($C$6:$C7,"<>"&"")>=3,AVERAGEIFS(BH$6:BH$505,$C$6:$C$505,">="&EOMONTH($C7,-3),$C$6:$C$505,"<="&$C7),""),IF(COUNTIFS($C$6:$C7,"<>"&"")>=3,SUMIFS(BH$6:BH$505,$C$6:$C$505,">="&EOMONTH($C7,-3),$C$6:$C$505,"<="&$C7)*4,"")) ->  | BK7: 30 | BL7: =IF(COUNTIFS($BK$6:$BK$505,">"&0)>=24,IF(BK$3="%",AVERAGEIFS(BK$6:BK$505,$C$6:$C$505,">="&EOMONTH($C7,-INPUT!$O$113),$C$6:$C$505,"<="&$C7),SUMIFS(BK$6:BK$505,$C$6:$C$505,">="&EOMONTH($C7,-INPUT!$O$113),$C$6:$C$505,"<="&$C7)),0) -> 60 | BM7: 0.6363162879 | BN7: =IF(BM$3="%",AVERAGEIFS(BM$6:BM$505,$C$6:$C$505,">="&EOMONTH($C7,-INPUT!$O$113),$C$6:$C$505,"<="&$C7),SUMIFS(BM$6:BM$505,$C$6:$C$505,">="&EOMONTH($C7,-INPUT!$O$113),$C$6:$C$505,"<="&$C7)) -> 0.6506730249 | BO7: =IF(BO$3="%",IF(COUNTIFS($C$6:$C7,"<>"&"")>=3,AVERAGEIFS(BM$6:BM$505,$C$6:$C$505,">="&EOMONTH($C7,-3),$C$6:$C$505,"<="&$C7),""),IF(COUNTIFS($C$6:$C7,"<>"&"")>=3,SUMIFS(BM$6:BM$505,$C$6:$C$505,">="&EOMONTH($C7,-3),$C$6:$C$505,"<="&$C7)*4,"")) ->  | BP7: 0.73 | BQ7: =IF(BP$3="%",AVERAGEIFS(BP$6:BP$505,$C$6:$C$505,">="&EOMONTH($C7,-INPUT!$O$113),$C$6:$C$505,"<="&$C7),SUMIFS(BP$6:BP$505,$C$6:$C$505,">="&EOMONTH($C7,-INPUT!$O$113),$C$6:$C$505,"<="&$C7)) -> 0.73 | BR7: 9107.492667 | BS7: =IF(BR$3="%",AVERAGEIFS(BR$6:BR$505,$C$6:$C$505,">="&EOMONTH($C7,-INPUT!$O$113),$C$6:$C$505,"<="&$C7),SUMIFS(BR$6:BR$505,$C$6:$C$505,">="&EOMONTH($C7,-INPUT!$O$113),$C$6:$C$505,"<="&$C7)) -> 18074.65633 | BT7: =IF(BT$3="%",IF(COUNTIFS($C$6:$C7,"<>"&"")>=3,AVERAGEIFS(BR$6:BR$505,$C$6:$C$505,">="&EOMONTH($C7,-3),$C$6:$C$505,"<="&$C7),""),IF(COUNTIFS($C$6:$C7,"<>"&"")>=3,SUMIFS(BR$6:BR$505,$C$6:$C$505,">="&EOMONTH($C7,-3),$C$6:$C$505,"<="&$C7)*4,"")) ->  | BU7: 9463.818 | BV7: =IF(COUNTIFS($BU$6:$BU$505,">"&0)>=24,IF(BU$3="%",AVERAGEIFS(BU$6:BU$505,$C$6:$C$505,">="&EOMONTH($C7,-INPUT!$O$113),$C$6:$C$505,"<="&$C7),SUMIFS(BU$6:BU$505,$C$6:$C$505,">="&EOMONTH($C7,-INPUT!$O$113),$C$6:$C$505,"<="&$C7)),0) -> 18927.636 | BW7: 83.81495052 | BX7: =IF(BW$3="%",AVERAGEIFS(BW$6:BW$505,$C$6:$C$505,">="&EOMONTH($C7,-INPUT!$O$113),$C$6:$C$505,"<="&$C7),SUMIFS(BW$6:BW$505,$C$6:$C$505,">="&EOMONTH($C7,-INPUT!$O$113),$C$6:$C$505,"<="&$C7)) -> 165.8108959 | BY7: =IF(BY$3="%",IF(COUNTIFS($C$6:$C7,"<>"&"")>=3,AVERAGEIFS(BW$6:BW$505,$C$6:$C$505,">="&EOMONTH($C7,-3),$C$6:$C$505,"<="&$C7),""),IF(COUNTIFS($C$6:$C7,"<>"&"")>=3,SUMIFS(BW$6:BW$505,$C$6:$C$505,">="&EOMONTH($C7,-3),$C$6:$C$505,"<="&$C7)*4,"")) ->  | BZ7: 85 | CA7: =IF(COUNTIFS($BZ$6:$BZ$505,">"&0)>=24,IF(BZ$3="%",AVERAGEIFS(BZ$6:BZ$505,$C$6:$C$505,">="&EOMONTH($C7,-INPUT!$O$113),$C$6:$C$505,"<="&$C7),SUMIFS(BZ$6:BZ$505,$C$6:$C$505,">="&EOMONTH($C7,-INPUT!$O$113),$C$6:$C$505,"<="&$C7)),0) -> 170 | CB7: 53.33281818 | CC7: =IF(CB$3="%",AVERAGEIFS(CB$6:CB$505,$C$6:$C$505,">="&EOMONTH($C7,-INPUT!$O$113),$C$6:$C$505,"<="&$C7),SUMIFS(CB$6:CB$505,$C$6:$C$505,">="&EOMONTH($C7,-INPUT!$O$113),$C$6:$C$505,"<="&$C7)) -> 107.8625622 | CD7: =IF(CD$3="%",IF(COUNTIFS($C$6:$C7,"<>"&"")>=3,AVERAGEIFS(CB$6:CB$505,$C$6:$C$505,">="&EOMONTH($C7,-3),$C$6:$C$505,"<="&$C7),""),IF(COUNTIFS($C$6:$C7,"<>"&"")>=3,SUMIFS(CB$6:CB$505,$C$6:$C$505,">="&EOMONTH($C7,-3),$C$6:$C$505,"<="&$C7)*4,"")) ->  | CE7: 66.3 | CF7: =IF(COUNTIFS($CE$6:$CE$505,">"&0)>=24,IF(CE$3="%",AVERAGEIFS(CE$6:CE$505,$C$6:$C$505,">="&EOMONTH($C7,-INPUT!$O$113),$C$6:$C$505,"<="&$C7),SUMIFS(CE$6:CE$505,$C$6:$C$505,">="&EOMONTH($C7,-INPUT!$O$113),$C$6:$C$505,"<="&$C7)),0) -> 134.3 | CG7: 106 | CH7: =IF(CG$3="%",AVERAGEIFS(CG$6:CG$505,$C$6:$C$505,">="&EOMONTH($C7,-INPUT!$O$113),$C$6:$C$505,"<="&$C7),SUMIFS(CG$6:CG$505,$C$6:$C$505,">="&EOMONTH($C7,-INPUT!$O$113),$C$6:$C$505,"<="&$C7)) -> 213 | CI7: =IF(CI$3="%",IF(COUNTIFS($C$6:$C7,"<>"&"")>=3,AVERAGEIFS(CG$6:CG$505,$C$6:$C$505,">="&EOMONTH($C7,-3),$C$6:$C$505,"<="&$C7),""),IF(COUNTIFS($C$6:$C7,"<>"&"")>=3,SUMIFS(CG$6:CG$505,$C$6:$C$505,">="&EOMONTH($C7,-3),$C$6:$C$505,"<="&$C7)*4,"")) ->  | CK7: =IF(COUNTIFS($CJ$6:$CJ$505,">"&0)>=24,IF(CJ$3="%",AVERAGEIFS(CJ$6:CJ$505,$C$6:$C$505,">="&EOMONTH($C7,-INPUT!$O$113),$C$6:$C$505,"<="&$C7),SUMIFS(CJ$6:CJ$505,$C$6:$C$505,">="&EOMONTH($C7,-INPUT!$O$113),$C$6:$C$505,"<="&$C7)),0) -> 0 | CL7: 2486 | CM7: =IF(CL$3="%",AVERAGEIFS(CL$6:CL$505,$C$6:$C$505,">="&EOMONTH($C7,-INPUT!$O$113),$C$6:$C$505,"<="&$C7),SUMIFS(CL$6:CL$505,$C$6:$C$505,">="&EOMONTH($C7,-INPUT!$O$113),$C$6:$C$505,"<="&$C7)) -> 4976 | CN7: =IF(CN$3="%",IF(COUNTIFS($C$6:$C7,"<>"&"")>=3,AVERAGEIFS(CL$6:CL$505,$C$6:$C$505,">="&EOMONTH($C7,-3),$C$6:$C$505,"<="&$C7),""),IF(COUNTIFS($C$6:$C7,"<>"&"")>=3,SUMIFS(CL$6:CL$505,$C$6:$C$505,">="&EOMONTH($C7,-3),$C$6:$C$505,"<="&$C7)*4,"")) ->  | CP7: =IF(COUNTIFS($CO$6:$CO$505,">"&0)>=24,IF(CO$3="%",AVERAGEIFS(CO$6:CO$505,$C$6:$C$505,">="&EOMONTH($C7,-INPUT!$O$113),$C$6:$C$505,"<="&$C7),SUMIFS(CO$6:CO$505,$C$6:$C$505,">="&EOMONTH($C7,-INPUT!$O$113),$C$6:$C$505,"<="&$C7)),0) -> 0 | CQ7: 273224.78 | CR7: =IF(CQ$3="%",AVERAGEIFS(CQ$6:CQ$505,$C$6:$C$505,">="&EOMONTH($C7,-INPUT!$O$113),$C$6:$C$505,"<="&$C7),SUMIFS(CQ$6:CQ$505,$C$6:$C$505,">="&EOMONTH($C7,-INPUT!$O$113),$C$6:$C$505,"<="&$C7)) -> 542239.69 | CS7: =IF(CS$3="%",IF(COUNTIFS($C$6:$C7,"<>"&"")>=3,AVERAGEIFS(CQ$6:CQ$505,$C$6:$C$505,">="&EOMONTH($C7,-3),$C$6:$C$505,"<="&$C7),""),IF(COUNTIFS($C$6:$C7,"<>"&"")>=3,SUMIFS(CQ$6:CQ$505,$C$6:$C$505,">="&EOMONTH($C7,-3),$C$6:$C$505,"<="&$C7)*4,"")) ->  | CT7: 273017 | CU7: =IF(COUNTIFS($CT$6:$CT$505,">"&0)>=24,IF(CT$3="%",AVERAGEIFS(CT$6:CT$505,$C$6:$C$505,">="&EOMONTH($C7,-INPUT!$O$113),$C$6:$C$505,"<="&$C7),SUMIFS(CT$6:CT$505,$C$6:$C$505,">="&EOMONTH($C7,-INPUT!$O$113),$C$6:$C$505,"<="&$C7)),0) -> 549209 | CV7: 8372.5 | CW7: =IF(CV$3="%",AVERAGEIFS(CV$6:CV$505,$C$6:$C$505,">="&EOMONTH($C7,-INPUT!$O$113),$C$6:$C$505,"<="&$C7),SUMIFS(CV$6:CV$505,$C$6:$C$505,">="&EOMONTH($C7,-INPUT!$O$113),$C$6:$C$505,"<="&$C7)) -> 14187.5 | CX7: =IF(CX$3="%",IF(COUNTIFS($C$6:$C7,"<>"&"")>=3,AVERAGEIFS(CV$6:CV$505,$C$6:$C$505,">="&EOMONTH($C7,-3),$C$6:$C$505,"<="&$C7),""),IF(COUNTIFS($C$6:$C7,"<>"&"")>=3,SUMIFS(CV$6:CV$505,$C$6:$C$505,">="&EOMONTH($C7,-3),$C$6:$C$505,"<="&$C7)*4,"")) ->  | CY7: 7990 | CZ7: =IF(COUNTIFS($CY$6:$CY$505,">"&0)>=24,IF(CY$3="%",AVERAGEIFS(CY$6:CY$505,$C$6:$C$505,">="&EOMONTH($C7,-INPUT!$O$113),$C$6:$C$505,"<="&$C7),SUMIFS(CY$6:CY$505,$C$6:$C$505,">="&EOMONTH($C7,-INPUT!$O$113),$C$6:$C$505,"<="&$C7)),0) -> 16077 | DA7: 0.62 | DB7: =IF(DA$3="%",AVERAGEIFS(DA$6:DA$505,$C$6:$C$505,">="&EOMONTH($C7,-INPUT!$O$113),$C$6:$C$505,"<="&$C7),SUMIFS(DA$6:DA$505,$C$6:$C$505,">="&EOMONTH($C7,-INPUT!$O$113),$C$6:$C$505,"<="&$C7)) -> 0.615 | DC7: =IF(DC$3="%",IF(COUNTIFS($C$6:$C7,"<>"&"")>=3,AVERAGEIFS(DA$6:DA$505,$C$6:$C$505,">="&EOMONTH($C7,-3),$C$6:$C$505,"<="&$C7),""),IF(COUNTIFS($C$6:$C7,"<>"&"")>=3,SUMIFS(DA$6:DA$505,$C$6:$C$505,">="&EOMONTH($C7,-3),$C$6:$C$505,"<="&$C7)*4,"")) ->  | DD7: 0.52 | DE7: =IF(COUNTIFS($DD$6:$DD$505,">"&0)>=24,IF(DD$3="%",AVERAGEIFS(DD$6:DD$505,$C$6:$C$505,">="&EOMONTH($C7,-INPUT!$O$113),$C$6:$C$505,"<="&$C7),SUMIFS(DD$6:DD$505,$C$6:$C$505,">="&EOMONTH($C7,-INPUT!$O$113),$C$6:$C$505,"<="&$C7)),0) -> 0.525 | DF7: 0.42 | DG7: =IF(DF$3="%",AVERAGEIFS(DF$6:DF$505,$C$6:$C$505,">="&EOMONTH($C7,-INPUT!$O$113),$C$6:$C$505,"<="&$C7),SUMIFS(DF$6:DF$505,$C$6:$C$505,">="&EOMONTH($C7,-INPUT!$O$113),$C$6:$C$505,"<="&$C7)) -> 0.43 | DH7: =IF(DH$3="%",IF(COUNTIFS($C$6:$C7,"<>"&"")>=3,AVERAGEIFS(DF$6:DF$505,$C$6:$C$505,">="&EOMONTH($C7,-3),$C$6:$C$505,"<="&$C7),""),IF(COUNTIFS($C$6:$C7,"<>"&"")>=3,SUMIFS(DF$6:DF$505,$C$6:$C$505,">="&EOMONTH($C7,-3),$C$6:$C$505,"<="&$C7)*4,"")) ->  | DI7: 0.4 | DJ7: =IF(COUNTIFS($DI$6:$DI$505,">"&0)>=24,IF(DI$3="%",AVERAGEIFS(DI$6:DI$505,$C$6:$C$505,">="&EOMONTH($C7,-INPUT!$O$113),$C$6:$C$505,"<="&$C7),SUMIFS(DI$6:DI$505,$C$6:$C$505,">="&EOMONTH($C7,-INPUT!$O$113),$C$6:$C$505,"<="&$C7)),0) -> 0.41 | DL7: =IF(DK$3="%",AVERAGEIFS(DK$6:DK$505,$C$6:$C$505,">="&EOMONTH($C7,-INPUT!$O$113),$C$6:$C$505,"<="&$C7),SUMIFS(DK$6:DK$505,$C$6:$C$505,">="&EOMONTH($C7,-INPUT!$O$113),$C$6:$C$505,"<="&$C7)) -> 0 | DM7: =IF(DM$3="%",IF(COUNTIFS($C$6:$C7,"<>"&"")>=3,AVERAGEIFS(DK$6:DK$505,$C$6:$C$505,">="&EOMONTH($C7,-3),$C$6:$C$505,"<="&$C7),""),IF(COUNTIFS($C$6:$C7,"<>"&"")>=3,SUMIFS(DK$6:DK$505,$C$6:$C$505,">="&EOMONTH($C7,-3),$C$6:$C$505,"<="&$C7)*4,"")) ->  | DO7: =IF(COUNTIFS($DN$6:$DN$505,">"&0)>=24,IF(DN$3="%",AVERAGEIFS(DN$6:DN$505,$C$6:$C$505,">="&EOMONTH($C7,-INPUT!$O$113),$C$6:$C$505,"<="&$C7),SUMIFS(DN$6:DN$505,$C$6:$C$505,">="&EOMONTH($C7,-INPUT!$O$113),$C$6:$C$505,"<="&$C7)),0) -> 0 | DQ7: =IF(DP$3="%",AVERAGEIFS(DP$6:DP$505,$C$6:$C$505,">="&EOMONTH($C7,-INPUT!$O$113),$C$6:$C$505,"<="&$C7),SUMIFS(DP$6:DP$505,$C$6:$C$505,">="&EOMONTH($C7,-INPUT!$O$113),$C$6:$C$505,"<="&$C7)) -> 0 | DR7: =IF(DR$3="%",IF(COUNTIFS($C$6:$C7,"<>"&"")>=3,AVERAGEIFS(DP$6:DP$505,$C$6:$C$505,">="&EOMONTH($C7,-3),$C$6:$C$505,"<="&$C7),""),IF(COUNTIFS($C$6:$C7,"<>"&"")>=3,SUMIFS(DP$6:DP$505,$C$6:$C$505,">="&EOMONTH($C7,-3),$C$6:$C$505,"<="&$C7)*4,"")) ->  | DT7: =IF(COUNTIFS($DS$6:$DS$505,">"&0)>=24,IF(DS$3="%",AVERAGEIFS(DS$6:DS$505,$C$6:$C$505,">="&EOMONTH($C7,-INPUT!$O$113),$C$6:$C$505,"<="&$C7),SUMIFS(DS$6:DS$505,$C$6:$C$505,">="&EOMONTH($C7,-INPUT!$O$113),$C$6:$C$505,"<="&$C7)),0) -> 0 | DV7: =IF(DU$3="%",AVERAGEIFS(DU$6:DU$505,$C$6:$C$505,">="&EOMONTH($C7,-INPUT!$O$113),$C$6:$C$505,"<="&$C7),SUMIFS(DU$6:DU$505,$C$6:$C$505,">="&EOMONTH($C7,-INPUT!$O$113),$C$6:$C$505,"<="&$C7)) -> 0 | DW7: =IF(DW$3="%",IF(COUNTIFS($C$6:$C7,"<>"&"")>=3,AVERAGEIFS(DU$6:DU$505,$C$6:$C$505,">="&EOMONTH($C7,-3),$C$6:$C$505,"<="&$C7),""),IF(COUNTIFS($C$6:$C7,"<>"&"")>=3,SUMIFS(DU$6:DU$505,$C$6:$C$505,">="&EOMONTH($C7,-3),$C$6:$C$505,"<="&$C7)*4,"")) ->  | DY7: =IF(COUNTIFS($DX$6:$DX$505,">"&0)>=24,IF(DX$3="%",AVERAGEIFS(DX$6:DX$505,$C$6:$C$505,">="&EOMONTH($C7,-INPUT!$O$113),$C$6:$C$505,"<="&$C7),SUMIFS(DX$6:DX$505,$C$6:$C$505,">="&EOMONTH($C7,-INPUT!$O$113),$C$6:$C$505,"<="&$C7)),0) -> 0 | EA7: =IF(DZ$3="%",AVERAGEIFS(DZ$6:DZ$505,$C$6:$C$505,">="&EOMONTH($C7,-INPUT!$O$113),$C$6:$C$505,"<="&$C7),SUMIFS(DZ$6:DZ$505,$C$6:$C$505,">="&EOMONTH($C7,-INPUT!$O$113),$C$6:$C$505,"<="&$C7)) -> 0 | EB7: =IF(EB$3="%",IF(COUNTIFS($C$6:$C7,"<>"&"")>=3,AVERAGEIFS(DZ$6:DZ$505,$C$6:$C$505,">="&EOMONTH($C7,-3),$C$6:$C$505,"<="&$C7),""),IF(COUNTIFS($C$6:$C7,"<>"&"")>=3,SUMIFS(DZ$6:DZ$505,$C$6:$C$505,">="&EOMONTH($C7,-3),$C$6:$C$505,"<="&$C7)*4,"")) ->  | ED7: =IF(COUNTIFS($EC$6:$EC$505,">"&0)>=24,IF(EC$3="%",AVERAGEIFS(EC$6:EC$505,$C$6:$C$505,">="&EOMONTH($C7,-INPUT!$O$113),$C$6:$C$505,"<="&$C7),SUMIFS(EC$6:EC$505,$C$6:$C$505,">="&EOMONTH($C7,-INPUT!$O$113),$C$6:$C$505,"<="&$C7)),0) -> 0 | EF7: =IF(EE$3="%",AVERAGEIFS(EE$6:EE$505,$C$6:$C$505,">="&EOMONTH($C7,-INPUT!$O$113),$C$6:$C$505,"<="&$C7),SUMIFS(EE$6:EE$505,$C$6:$C$505,">="&EOMONTH($C7,-INPUT!$O$113),$C$6:$C$505,"<="&$C7)) -> 0 | EG7: =IF(EG$3="%",IF(COUNTIFS($C$6:$C7,"<>"&"")>=3,AVERAGEIFS(EE$6:EE$505,$C$6:$C$505,">="&EOMONTH($C7,-3),$C$6:$C$505,"<="&$C7),""),IF(COUNTIFS($C$6:$C7,"<>"&"")>=3,SUMIFS(EE$6:EE$505,$C$6:$C$505,">="&EOMONTH($C7,-3),$C$6:$C$505,"<="&$C7)*4,"")) ->  | EI7: =IF(COUNTIFS($EH$6:$EH$505,">"&0)>=24,IF(EH$3="%",AVERAGEIFS(EH$6:EH$505,$C$6:$C$505,">="&EOMONTH($C7,-INPUT!$O$113),$C$6:$C$505,"<="&$C7),SUMIFS(EH$6:EH$505,$C$6:$C$505,">="&EOMONTH($C7,-INPUT!$O$113),$C$6:$C$505,"<="&$C7)),0) -> 0 | EK7: =IF(EJ$3="%",AVERAGEIFS(EJ$6:EJ$505,$C$6:$C$505,">="&EOMONTH($C7,-INPUT!$O$113),$C$6:$C$505,"<="&$C7),SUMIFS(EJ$6:EJ$505,$C$6:$C$505,">="&EOMONTH($C7,-INPUT!$O$113),$C$6:$C$505,"<="&$C7)) -> 0 | EL7: =IF(EL$3="%",IF(COUNTIFS($C$6:$C7,"<>"&"")>=3,AVERAGEIFS(EJ$6:EJ$505,$C$6:$C$505,">="&EOMONTH($C7,-3),$C$6:$C$505,"<="&$C7),""),IF(COUNTIFS($C$6:$C7,"<>"&"")>=3,SUMIFS(EJ$6:EJ$505,$C$6:$C$505,">="&EOMONTH($C7,-3),$C$6:$C$505,"<="&$C7)*4,"")) ->  | EN7: =IF(COUNTIFS($EM$6:$EM$505,">"&0)>=24,IF(EM$3="%",AVERAGEIFS(EM$6:EM$505,$C$6:$C$505,">="&EOMONTH($C7,-INPUT!$O$113),$C$6:$C$505,"<="&$C7),SUMIFS(EM$6:EM$505,$C$6:$C$505,">="&EOMONTH($C7,-INPUT!$O$113),$C$6:$C$505,"<="&$C7)),0) -> 0 | EP7: =IF(EO$3="%",AVERAGEIFS(EO$6:EO$505,$C$6:$C$505,">="&EOMONTH($C7,-INPUT!$O$113),$C$6:$C$505,"<="&$C7),SUMIFS(EO$6:EO$505,$C$6:$C$505,">="&EOMONTH($C7,-INPUT!$O$113),$C$6:$C$505,"<="&$C7)) -> 0 | EQ7: =IF(EQ$3="%",IF(COUNTIFS($C$6:$C7,"<>"&"")>=3,AVERAGEIFS(EO$6:EO$505,$C$6:$C$505,">="&EOMONTH($C7,-3),$C$6:$C$505,"<="&$C7),""),IF(COUNTIFS($C$6:$C7,"<>"&"")>=3,SUMIFS(EO$6:EO$505,$C$6:$C$505,">="&EOMONTH($C7,-3),$C$6:$C$505,"<="&$C7)*4,"")) ->  | ES7: =IF(COUNTIFS($ER$6:$ER$505,">"&0)>=24,IF(ER$3="%",AVERAGEIFS(ER$6:ER$505,$C$6:$C$505,">="&EOMONTH($C7,-INPUT!$O$113),$C$6:$C$505,"<="&$C7),SUMIFS(ER$6:ER$505,$C$6:$C$505,">="&EOMONTH($C7,-INPUT!$O$113),$C$6:$C$505,"<="&$C7)),0) -> 0 | EU7: =IF(ET$3="%",AVERAGEIFS(ET$6:ET$505,$C$6:$C$505,">="&EOMONTH($C7,-INPUT!$O$113),$C$6:$C$505,"<="&$C7),SUMIFS(ET$6:ET$505,$C$6:$C$505,">="&EOMONTH($C7,-INPUT!$O$113),$C$6:$C$505,"<="&$C7)) -> 0 | EV7: =IF(EV$3="%",IF(COUNTIFS($C$6:$C7,"<>"&"")>=3,AVERAGEIFS(ET$6:ET$505,$C$6:$C$505,">="&EOMONTH($C7,-3),$C$6:$C$505,"<="&$C7),""),IF(COUNTIFS($C$6:$C7,"<>"&"")>=3,SUMIFS(ET$6:ET$505,$C$6:$C$505,">="&EOMONTH($C7,-3),$C$6:$C$505,"<="&$C7)*4,"")) ->  | EX7: =IF(COUNTIFS($EW$6:$EW$505,">"&0)>=24,IF(EW$3="%",AVERAGEIFS(EW$6:EW$505,$C$6:$C$505,">="&EOMONTH($C7,-INPUT!$O$113),$C$6:$C$505,"<="&$C7),SUMIFS(EW$6:EW$505,$C$6:$C$505,">="&EOMONTH($C7,-INPUT!$O$113),$C$6:$C$505,"<="&$C7)),0) -> 0 | EZ7: =IF(EY$3="%",AVERAGEIFS(EY$6:EY$505,$C$6:$C$505,">="&EOMONTH($C7,-INPUT!$O$113),$C$6:$C$505,"<="&$C7),SUMIFS(EY$6:EY$505,$C$6:$C$505,">="&EOMONTH($C7,-INPUT!$O$113),$C$6:$C$505,"<="&$C7)) -> 0 | FA7: =IF(FA$3="%",IF(COUNTIFS($C$6:$C7,"<>"&"")>=3,AVERAGEIFS(EY$6:EY$505,$C$6:$C$505,">="&EOMONTH($C7,-3),$C$6:$C$505,"<="&$C7),""),IF(COUNTIFS($C$6:$C7,"<>"&"")>=3,SUMIFS(EY$6:EY$505,$C$6:$C$505,">="&EOMONTH($C7,-3),$C$6:$C$505,"<="&$C7)*4,"")) ->  | FC7: =IF(COUNTIFS($FB$6:$FB$505,">"&0)>=24,IF(FB$3="%",AVERAGEIFS(FB$6:FB$505,$C$6:$C$505,">="&EOMONTH($C7,-INPUT!$O$113),$C$6:$C$505,"<="&$C7),SUMIFS(FB$6:FB$505,$C$6:$C$505,">="&EOMONTH($C7,-INPUT!$O$113),$C$6:$C$505,"<="&$C7)),0) -> 0 | FE7: =IF(FD$3="%",AVERAGEIFS(FD$6:FD$505,$C$6:$C$505,">="&EOMONTH($C7,-INPUT!$O$113),$C$6:$C$505,"<="&$C7),SUMIFS(FD$6:FD$505,$C$6:$C$505,">="&EOMONTH($C7,-INPUT!$O$113),$C$6:$C$505,"<="&$C7)) -> 0 | FF7: =IF(FF$3="%",IF(COUNTIFS($C$6:$C7,"<>"&"")>=3,AVERAGEIFS(FD$6:FD$505,$C$6:$C$505,">="&EOMONTH($C7,-3),$C$6:$C$505,"<="&$C7),""),IF(COUNTIFS($C$6:$C7,"<>"&"")>=3,SUMIFS(FD$6:FD$505,$C$6:$C$505,">="&EOMONTH($C7,-3),$C$6:$C$505,"<="&$C7)*4,"")) ->  | FH7: =IF(COUNTIFS($FG$6:$FG$505,">"&0)>=24,IF(FG$3="%",AVERAGEIFS(FG$6:FG$505,$C$6:$C$505,">="&EOMONTH($C7,-INPUT!$O$113),$C$6:$C$505,"<="&$C7),SUMIFS(FG$6:FG$505,$C$6:$C$505,">="&EOMONTH($C7,-INPUT!$O$113),$C$6:$C$505,"<="&$C7)),0) -> 0 | FJ7: =IF(FI$3="%",AVERAGEIFS(FI$6:FI$505,$C$6:$C$505,">="&EOMONTH($C7,-INPUT!$O$113),$C$6:$C$505,"<="&$C7),SUMIFS(FI$6:FI$505,$C$6:$C$505,">="&EOMONTH($C7,-INPUT!$O$113),$C$6:$C$505,"<="&$C7)) -> 0 | FK7: =IF(FK$3="%",IF(COUNTIFS($C$6:$C7,"<>"&"")>=3,AVERAGEIFS(FI$6:FI$505,$C$6:$C$505,">="&EOMONTH($C7,-3),$C$6:$C$505,"<="&$C7),""),IF(COUNTIFS($C$6:$C7,"<>"&"")>=3,SUMIFS(FI$6:FI$505,$C$6:$C$505,">="&EOMONTH($C7,-3),$C$6:$C$505,"<="&$C7)*4,"")) ->  | FM7: =IF(COUNTIFS($FL$6:$FL$505,">"&0)>=24,IF(FL$3="%",AVERAGEIFS(FL$6:FL$505,$C$6:$C$505,">="&EOMONTH($C7,-INPUT!$O$113),$C$6:$C$505,"<="&$C7),SUMIFS(FL$6:FL$505,$C$6:$C$505,">="&EOMONTH($C7,-INPUT!$O$113),$C$6:$C$505,"<="&$C7)),0) -> 0 | FO7: =IF(FN$3="%",AVERAGEIFS(FN$6:FN$505,$C$6:$C$505,">="&EOMONTH($C7,-INPUT!$O$113),$C$6:$C$505,"<="&$C7),SUMIFS(FN$6:FN$505,$C$6:$C$505,">="&EOMONTH($C7,-INPUT!$O$113),$C$6:$C$505,"<="&$C7)) -> 0 | FP7: =IF(FP$3="%",IF(COUNTIFS($C$6:$C7,"<>"&"")>=3,AVERAGEIFS(FN$6:FN$505,$C$6:$C$505,">="&EOMONTH($C7,-3),$C$6:$C$505,"<="&$C7),""),IF(COUNTIFS($C$6:$C7,"<>"&"")>=3,SUMIFS(FN$6:FN$505,$C$6:$C$505,">="&EOMONTH($C7,-3),$C$6:$C$505,"<="&$C7)*4,"")) ->  | FR7: =IF(COUNTIFS($FQ$6:$FQ$505,">"&0)>=24,IF(FQ$3="%",AVERAGEIFS(FQ$6:FQ$505,$C$6:$C$505,">="&EOMONTH($C7,-INPUT!$O$113),$C$6:$C$505,"<="&$C7),SUMIFS(FQ$6:FQ$505,$C$6:$C$505,">="&EOMONTH($C7,-INPUT!$O$113),$C$6:$C$505,"<="&$C7)),0) -> 0 | FT7: =IF(FS$3="%",AVERAGEIFS(FS$6:FS$505,$C$6:$C$505,">="&EOMONTH($C7,-INPUT!$O$113),$C$6:$C$505,"<="&$C7),SUMIFS(FS$6:FS$505,$C$6:$C$505,">="&EOMONTH($C7,-INPUT!$O$113),$C$6:$C$505,"<="&$C7)) -> 0 | FU7: =IF(FU$3="%",IF(COUNTIFS($C$6:$C7,"<>"&"")>=3,AVERAGEIFS(FS$6:FS$505,$C$6:$C$505,">="&EOMONTH($C7,-3),$C$6:$C$505,"<="&$C7),""),IF(COUNTIFS($C$6:$C7,"<>"&"")>=3,SUMIFS(FS$6:FS$505,$C$6:$C$505,">="&EOMONTH($C7,-3),$C$6:$C$505,"<="&$C7)*4,"")) ->  | FW7: =IF(COUNTIFS($FV$6:$FV$505,">"&0)>=24,IF(FV$3="%",AVERAGEIFS(FV$6:FV$505,$C$6:$C$505,">="&EOMONTH($C7,-INPUT!$O$113),$C$6:$C$505,"<="&$C7),SUMIFS(FV$6:FV$505,$C$6:$C$505,">="&EOMONTH($C7,-INPUT!$O$113),$C$6:$C$505,"<="&$C7)),0) -> 0 | FY7: =IF(FX$3="%",AVERAGEIFS(FX$6:FX$505,$C$6:$C$505,">="&EOMONTH($C7,-INPUT!$O$113),$C$6:$C$505,"<="&$C7),SUMIFS(FX$6:FX$505,$C$6:$C$505,">="&EOMONTH($C7,-INPUT!$O$113),$C$6:$C$505,"<="&$C7)) -> 0 | FZ7: =IF(FZ$3="%",IF(COUNTIFS($C$6:$C7,"<>"&"")>=3,AVERAGEIFS(FX$6:FX$505,$C$6:$C$505,">="&EOMONTH($C7,-3),$C$6:$C$505,"<="&$C7),""),IF(COUNTIFS($C$6:$C7,"<>"&"")>=3,SUMIFS(FX$6:FX$505,$C$6:$C$505,">="&EOMONTH($C7,-3),$C$6:$C$505,"<="&$C7)*4,"")) ->  | GB7: =IF(COUNTIFS($GA$6:$GA$505,">"&0)>=24,IF(GA$3="%",AVERAGEIFS(GA$6:GA$505,$C$6:$C$505,">="&EOMONTH($C7,-INPUT!$O$113),$C$6:$C$505,"<="&$C7),SUMIFS(GA$6:GA$505,$C$6:$C$505,">="&EOMONTH($C7,-INPUT!$O$113),$C$6:$C$505,"<="&$C7)),0) -> 0 | GD7: =IF(GC$3="%",AVERAGEIFS(GC$6:GC$505,$C$6:$C$505,">="&EOMONTH($C7,-INPUT!$O$113),$C$6:$C$505,"<="&$C7),SUMIFS(GC$6:GC$505,$C$6:$C$505,">="&EOMONTH($C7,-INPUT!$O$113),$C$6:$C$505,"<="&$C7)) -> 0 | GE7: =IF(GE$3="%",IF(COUNTIFS($C$6:$C7,"<>"&"")>=3,AVERAGEIFS(GC$6:GC$505,$C$6:$C$505,">="&EOMONTH($C7,-3),$C$6:$C$505,"<="&$C7),""),IF(COUNTIFS($C$6:$C7,"<>"&"")>=3,SUMIFS(GC$6:GC$505,$C$6:$C$505,">="&EOMONTH($C7,-3),$C$6:$C$505,"<="&$C7)*4,"")) ->  | GG7: =IF(COUNTIFS($GF$6:$GF$505,">"&0)>=24,IF(GF$3="%",AVERAGEIFS(GF$6:GF$505,$C$6:$C$505,">="&EOMONTH($C7,-INPUT!$O$113),$C$6:$C$505,"<="&$C7),SUMIFS(GF$6:GF$505,$C$6:$C$505,">="&EOMONTH($C7,-INPUT!$O$113),$C$6:$C$505,"<="&$C7)),0) -> 0 | GI7: =IF(GH$3="%",AVERAGEIFS(GH$6:GH$505,$C$6:$C$505,">="&EOMONTH($C7,-INPUT!$O$113),$C$6:$C$505,"<="&$C7),SUMIFS(GH$6:GH$505,$C$6:$C$505,">="&EOMONTH($C7,-INPUT!$O$113),$C$6:$C$505,"<="&$C7)) -> 0 | GJ7: =IF(GJ$3="%",IF(COUNTIFS($C$6:$C7,"<>"&"")>=3,AVERAGEIFS(GH$6:GH$505,$C$6:$C$505,">="&EOMONTH($C7,-3),$C$6:$C$505,"<="&$C7),""),IF(COUNTIFS($C$6:$C7,"<>"&"")>=3,SUMIFS(GH$6:GH$505,$C$6:$C$505,">="&EOMONTH($C7,-3),$C$6:$C$505,"<="&$C7)*4,"")) ->  | GL7: =IF(COUNTIFS($GK$6:$GK$505,">"&0)>=24,IF(GK$3="%",AVERAGEIFS(GK$6:GK$505,$C$6:$C$505,">="&EOMONTH($C7,-INPUT!$O$113),$C$6:$C$505,"<="&$C7),SUMIFS(GK$6:GK$505,$C$6:$C$505,">="&EOMONTH($C7,-INPUT!$O$113),$C$6:$C$505,"<="&$C7)),0) -> 0 | GN7: =IF(GM$3="%",AVERAGEIFS(GM$6:GM$505,$C$6:$C$505,">="&EOMONTH($C7,-INPUT!$O$113),$C$6:$C$505,"<="&$C7),SUMIFS(GM$6:GM$505,$C$6:$C$505,">="&EOMONTH($C7,-INPUT!$O$113),$C$6:$C$505,"<="&$C7)) -> 0 | GO7: =IF(GO$3="%",IF(COUNTIFS($C$6:$C7,"<>"&"")>=3,AVERAGEIFS(GM$6:GM$505,$C$6:$C$505,">="&EOMONTH($C7,-3),$C$6:$C$505,"<="&$C7),""),IF(COUNTIFS($C$6:$C7,"<>"&"")>=3,SUMIFS(GM$6:GM$505,$C$6:$C$505,">="&EOMONTH($C7,-3),$C$6:$C$505,"<="&$C7)*4,"")) ->  | GQ7: =IF(COUNTIFS($GP$6:$GP$505,">"&0)>=24,IF(GP$3="%",AVERAGEIFS(GP$6:GP$505,$C$6:$C$505,">="&EOMONTH($C7,-INPUT!$O$113),$C$6:$C$505,"<="&$C7),SUMIFS(GP$6:GP$505,$C$6:$C$505,">="&EOMONTH($C7,-INPUT!$O$113),$C$6:$C$505,"<="&$C7)),0) -> 0 | GS7: =IF(GR$3="%",AVERAGEIFS(GR$6:GR$505,$C$6:$C$505,">="&EOMONTH($C7,-INPUT!$O$113),$C$6:$C$505,"<="&$C7),SUMIFS(GR$6:GR$505,$C$6:$C$505,">="&EOMONTH($C7,-INPUT!$O$113),$C$6:$C$505,"<="&$C7)) -> 0 | GT7: =IF(GT$3="%",IF(COUNTIFS($C$6:$C7,"<>"&"")>=3,AVERAGEIFS(GR$6:GR$505,$C$6:$C$505,">="&EOMONTH($C7,-3),$C$6:$C$505,"<="&$C7),""),IF(COUNTIFS($C$6:$C7,"<>"&"")>=3,SUMIFS(GR$6:GR$505,$C$6:$C$505,">="&EOMONTH($C7,-3),$C$6:$C$505,"<="&$C7)*4,"")) ->  | GV7: =IF(COUNTIFS($GU$6:$GU$505,">"&0)>=24,IF(GU$3="%",AVERAGEIFS(GU$6:GU$505,$C$6:$C$505,">="&EOMONTH($C7,-INPUT!$O$113),$C$6:$C$505,"<="&$C7),SUMIFS(GU$6:GU$505,$C$6:$C$505,">="&EOMONTH($C7,-INPUT!$O$113),$C$6:$C$505,"<="&$C7)),0) -> 0 | GX7: =IF(GW$3="%",AVERAGEIFS(GW$6:GW$505,$C$6:$C$505,">="&EOMONTH($C7,-INPUT!$O$113),$C$6:$C$505,"<="&$C7),SUMIFS(GW$6:GW$505,$C$6:$C$505,">="&EOMONTH($C7,-INPUT!$O$113),$C$6:$C$505,"<="&$C7)) -> 0 | GY7: =IF(GY$3="%",IF(COUNTIFS($C$6:$C7,"<>"&"")>=3,AVERAGEIFS(GW$6:GW$505,$C$6:$C$505,">="&EOMONTH($C7,-3),$C$6:$C$505,"<="&$C7),""),IF(COUNTIFS($C$6:$C7,"<>"&"")>=3,SUMIFS(GW$6:GW$505,$C$6:$C$505,">="&EOMONTH($C7,-3),$C$6:$C$505,"<="&$C7)*4,"")) ->  | HA7: =IF(COUNTIFS($GZ$6:$GZ$505,">"&0)>=24,IF(GZ$3="%",AVERAGEIFS(GZ$6:GZ$505,$C$6:$C$505,">="&EOMONTH($C7,-INPUT!$O$113),$C$6:$C$505,"<="&$C7),SUMIFS(GZ$6:GZ$505,$C$6:$C$505,">="&EOMONTH($C7,-INPUT!$O$113),$C$6:$C$505,"<="&$C7)),0) -> 0 | HC7: =IF(HB$3="%",AVERAGEIFS(HB$6:HB$505,$C$6:$C$505,">="&EOMONTH($C7,-INPUT!$O$113),$C$6:$C$505,"<="&$C7),SUMIFS(HB$6:HB$505,$C$6:$C$505,">="&EOMONTH($C7,-INPUT!$O$113),$C$6:$C$505,"<="&$C7)) -> 0 | HD7: =IF(HD$3="%",IF(COUNTIFS($C$6:$C7,"<>"&"")>=3,AVERAGEIFS(HB$6:HB$505,$C$6:$C$505,">="&EOMONTH($C7,-3),$C$6:$C$505,"<="&$C7),""),IF(COUNTIFS($C$6:$C7,"<>"&"")>=3,SUMIFS(HB$6:HB$505,$C$6:$C$505,">="&EOMONTH($C7,-3),$C$6:$C$505,"<="&$C7)*4,"")) ->  | HF7: =IF(COUNTIFS($HE$6:$HE$505,">"&0)>=24,IF(HE$3="%",AVERAGEIFS(HE$6:HE$505,$C$6:$C$505,">="&EOMONTH($C7,-INPUT!$O$113),$C$6:$C$505,"<="&$C7),SUMIFS(HE$6:HE$505,$C$6:$C$505,">="&EOMONTH($C7,-INPUT!$O$113),$C$6:$C$505,"<="&$C7)),0) -> 0 | HH7: =IF(HG$3="%",AVERAGEIFS(HG$6:HG$505,$C$6:$C$505,">="&EOMONTH($C7,-INPUT!$O$113),$C$6:$C$505,"<="&$C7),SUMIFS(HG$6:HG$505,$C$6:$C$505,">="&EOMONTH($C7,-INPUT!$O$113),$C$6:$C$505,"<="&$C7)) -> 0 | HI7: =IF(HI$3="%",IF(COUNTIFS($C$6:$C7,"<>"&"")>=3,AVERAGEIFS(HG$6:HG$505,$C$6:$C$505,">="&EOMONTH($C7,-3),$C$6:$C$505,"<="&$C7),""),IF(COUNTIFS($C$6:$C7,"<>"&"")>=3,SUMIFS(HG$6:HG$505,$C$6:$C$505,">="&EOMONTH($C7,-3),$C$6:$C$505,"<="&$C7)*4,"")) ->  | HK7: =IF(COUNTIFS($HJ$6:$HJ$505,">"&0)>=24,IF(HJ$3="%",AVERAGEIFS(HJ$6:HJ$505,$C$6:$C$505,">="&EOMONTH($C7,-INPUT!$O$113),$C$6:$C$505,"<="&$C7),SUMIFS(HJ$6:HJ$505,$C$6:$C$505,">="&EOMONTH($C7,-INPUT!$O$113),$C$6:$C$505,"<="&$C7)),0) -> 0 | HM7: =IF(HL$3="%",AVERAGEIFS(HL$6:HL$505,$C$6:$C$505,">="&EOMONTH($C7,-INPUT!$O$113),$C$6:$C$505,"<="&$C7),SUMIFS(HL$6:HL$505,$C$6:$C$505,">="&EOMONTH($C7,-INPUT!$O$113),$C$6:$C$505,"<="&$C7)) -> 0 | HN7: =IF(HN$3="%",IF(COUNTIFS($C$6:$C7,"<>"&"")>=3,AVERAGEIFS(HL$6:HL$505,$C$6:$C$505,">="&EOMONTH($C7,-3),$C$6:$C$505,"<="&$C7),""),IF(COUNTIFS($C$6:$C7,"<>"&"")>=3,SUMIFS(HL$6:HL$505,$C$6:$C$505,">="&EOMONTH($C7,-3),$C$6:$C$505,"<="&$C7)*4,"")) ->  | HP7: =IF(COUNTIFS($HO$6:$HO$505,">"&0)>=24,IF(HO$3="%",AVERAGEIFS(HO$6:HO$505,$C$6:$C$505,">="&EOMONTH($C7,-INPUT!$O$113),$C$6:$C$505,"<="&$C7),SUMIFS(HO$6:HO$505,$C$6:$C$505,">="&EOMONTH($C7,-INPUT!$O$113),$C$6:$C$505,"<="&$C7)),0) -> 0 | HR7: =IF(HQ$3="%",AVERAGEIFS(HQ$6:HQ$505,$C$6:$C$505,">="&EOMONTH($C7,-INPUT!$O$113),$C$6:$C$505,"<="&$C7),SUMIFS(HQ$6:HQ$505,$C$6:$C$505,">="&EOMONTH($C7,-INPUT!$O$113),$C$6:$C$505,"<="&$C7)) -> 0 | HS7: =IF(HS$3="%",IF(COUNTIFS($C$6:$C7,"<>"&"")>=3,AVERAGEIFS(HQ$6:HQ$505,$C$6:$C$505,">="&EOMONTH($C7,-3),$C$6:$C$505,"<="&$C7),""),IF(COUNTIFS($C$6:$C7,"<>"&"")>=3,SUMIFS(HQ$6:HQ$505,$C$6:$C$505,">="&EOMONTH($C7,-3),$C$6:$C$505,"<="&$C7)*4,"")) ->  | HU7: =IF(COUNTIFS($HT$6:$HT$505,">"&0)>=24,IF(HT$3="%",AVERAGEIFS(HT$6:HT$505,$C$6:$C$505,">="&EOMONTH($C7,-INPUT!$O$113),$C$6:$C$505,"<="&$C7),SUMIFS(HT$6:HT$505,$C$6:$C$505,">="&EOMONTH($C7,-INPUT!$O$113),$C$6:$C$505,"<="&$C7)),0) -> 0 | HW7: =IF(HV$3="%",AVERAGEIFS(HV$6:HV$505,$C$6:$C$505,">="&EOMONTH($C7,-INPUT!$O$113),$C$6:$C$505,"<="&$C7),SUMIFS(HV$6:HV$505,$C$6:$C$505,">="&EOMONTH($C7,-INPUT!$O$113),$C$6:$C$505,"<="&$C7)) -> 0 | HX7: =IF(HX$3="%",IF(COUNTIFS($C$6:$C7,"<>"&"")>=3,AVERAGEIFS(HV$6:HV$505,$C$6:$C$505,">="&EOMONTH($C7,-3),$C$6:$C$505,"<="&$C7),""),IF(COUNTIFS($C$6:$C7,"<>"&"")>=3,SUMIFS(HV$6:HV$505,$C$6:$C$505,">="&EOMONTH($C7,-3),$C$6:$C$505,"<="&$C7)*4,"")) ->  | HZ7: =IF(COUNTIFS($HY$6:$HY$505,">"&0)>=24,IF(HY$3="%",AVERAGEIFS(HY$6:HY$505,$C$6:$C$505,">="&EOMONTH($C7,-INPUT!$O$113),$C$6:$C$505,"<="&$C7),SUMIFS(HY$6:HY$505,$C$6:$C$505,">="&EOMONTH($C7,-INPUT!$O$113),$C$6:$C$505,"<="&$C7)),0) -> 0 | IA7: =+IA32-(150000/12) -> 6184.197333 | IB7: =SUMIFS(IA$6:IA$505,$C$6:$C$505,">="&EOMONTH($C7,-INPUT!$O$113),$C$6:$C$505,"<="&$C7) -> 12005.13067 | IC7: =IF(COUNTIFS($C$6:HK7,"<>"&"")>=3,SUMIFS(IA$6:IA$505,$C$6:$C$505,">="&EOMONTH($C7,-3),$C$6:$C$505,"<="&$C7)*4,"") -> 48020.52267 | ID7: =IF(COUNTIFS($C$6:HK7,"<>"&"")>=6,SUMIFS(IA$6:IA$505,$C$6:$C$505,">="&EOMONTH($C7,-6),$C$6:$C$505,"<="&$C7)*2,"") -> 24010.26133 | IE7: =+IE32-(150000/12) -> -3815.802667 | IF7: =IF(COUNTIFS($IE$6:$IE$505,">"&0)>=24,SUMIFS(IE$6:IE$505,$C$6:$C$505,">="&EOMONTH($C7,-INPUT!$O$113),$C$6:$C$505,"<="&$C7),0) -> -7994.869333 | IG7: =IFERROR(D7/Y7,0) -> 11932.1746 | IH7: =IFERROR(SUMIFS(IG$6:IG$505,$C$6:$C$505,">="&EOMONTH($C7,-INPUT!$O$113),$C$6:$C$505,"<="&$C7),0) -> 19514.40794 | II7: =IFERROR(IF(II$3="%",IF(COUNTIFS($C$6:$C7,"<>"&"")>=3,AVERAGEIFS(D$6:D$505,$C$6:$C$505,">="&EOMONTH($C7,-3),$C$6:$C$505,"<="&$C7),""),IF(COUNTIFS($C$6:$C7,"<>"&"")>=3,SUMIFS(D$6:D$505,$C$6:$C$505,">="&EOMONTH($C7,-3),$C$6:$C$505,"<="&$C7)*4,"")) / IF(II$3="%",IF(COUNTIFS($C$6:$C7,"<>"&"")>=3,AVERAGEIFS(Y$6:Y$505,$C$6:$C$505,">="&EOMONTH($C7,-3),$C$6:$C$505,"<="&$C7),""),IF(COUNTIFS($C$6:$C7,"<>"&"")>=3,SUMIFS(Y$6:Y$505,$C$6:$C$505,">="&EOMONTH($C7,-3),$C$6:$C$505,"<="&$C7)*4,"")),0) -> 0 | IJ7: =IFERROR(H7/AB7,0) -> 5199.133333 | IK7: =IFERROR(SUMIFS(IJ$6:IJ$505,$C$6:$C$505,">="&EOMONTH($C7,-INPUT!$O$113),$C$6:$C$505,"<="&$C7),0) -> 10144.2697 | IL7: =IFERROR(IF(IL$3="%",IF(COUNTIFS($C$6:$C7,"<>"&"")>=3,AVERAGEIFS(H$6:H$505,$C$6:$C$505,">="&EOMONTH($C7,-3),$C$6:$C$505,"<="&$C7),""),IF(COUNTIFS($C$6:$C7,"<>"&"")>=3,SUMIFS(H$6:H$505,$C$6:$C$505,">="&EOMONTH($C7,-3),$C$6:$C$505,"<="&$C7)*4,"")) / IF(IL$3="%",IF(COUNTIFS($C$6:$C7,"<>"&"")>=3,AVERAGEIFS(AB$6:AB$505,$C$6:$C$505,">="&EOMONTH($C7,-3),$C$6:$C$505,"<="&$C7),""),IF(COUNTIFS($C$6:$C7,"<>"&"")>=3,SUMIFS(AB$6:AB$505,$C$6:$C$505,">="&EOMONTH($C7,-3),$C$6:$C$505,"<="&$C7)*4,"")),0) -> 0
A8: 12 | B8: 2017 | C8: 2017-12-01 | D8: 488241.3333 | E8: =SUMIFS(D$6:D$505,$C$6:$C$505,">="&EOMONTH($C8,-INPUT!$O$113),$C$6:$C$505,"<="&$C8) -> 1292682 | F8: =IF(COUNTIFS($C$6:C8,"<>"&"")>=3,SUMIFS(D$6:D$505,$C$6:$C$505,">="&EOMONTH($C8,-3),$C$6:$C$505,"<="&$C8)*4,"") -> 5170728 | G8: =IF(COUNTIFS($C$6:C8,"<>"&"")>=6,SUMIFS(D$6:D$505,$C$6:$C$505,">="&EOMONTH($C8,-6),$C$6:$C$505,"<="&$C8)*2,"") ->  | H8: 249977 | I8: =IF(COUNTIFS($H$6:$H$505,">"&0)>=24,SUMIFS(H$6:H$505,$C$6:$C$505,">="&EOMONTH($C8,-INPUT!$O$113),$C$6:$C$505,"<="&$C8),0) -> 701524 | J8: 57055.57667 | K8: =SUMIFS(J$6:J$505,$C$6:$C$505,">="&EOMONTH($C8,-INPUT!$O$113),$C$6:$C$505,"<="&$C8) -> 140260.69 | L8: =IF(COUNTIFS($C$6:C8,"<>"&"")>=3,SUMIFS(J$6:J$505,$C$6:$C$505,">="&EOMONTH($C8,-3),$C$6:$C$505,"<="&$C8)*4,"") -> 561042.76 | M8: =IF(COUNTIFS($C$6:C8,"<>"&"")>=6,SUMIFS(J$6:J$505,$C$6:$C$505,">="&EOMONTH($C8,-6),$C$6:$C$505,"<="&$C8)*2,"") ->  | N8: 78979.66667 | O8: =IF(COUNTIFS($N$6:$N$505,">"&0)>=24,SUMIFS(N$6:N$505,$C$6:$C$505,">="&EOMONTH($C8,-INPUT!$O$113),$C$6:$C$505,"<="&$C8),0) -> 206120 | P8: 0.1168593742 | Q8: 0.1085036304 | R8: 0.3159477339 | S8: -49117.24 | T8: =SUMIFS(S$6:S$505,$C$6:$C$505,">="&EOMONTH($C8,-INPUT!$O$113),$C$6:$C$505,"<="&$C8) -> -93780.56 | U8: =IF(COUNTIFS($C$6:C8,"<>"&"")>=3,SUMIFS(S$6:S$505,$C$6:$C$505,">="&EOMONTH($C8,-3),$C$6:$C$505,"<="&$C8)*4,"") -> -375122.24 | V8: =IF(COUNTIFS($C$6:C8,"<>"&"")>=6,SUMIFS(S$6:S$505,$C$6:$C$505,">="&EOMONTH($C8,-6),$C$6:$C$505,"<="&$C8)*2,"") ->  | W8: 11053 | X8: =IF(COUNTIFS($W$6:$W$505,">"&0)>=24,SUMIFS(W$6:W$505,$C$6:$C$505,">="&EOMONTH($C8,-INPUT!$O$113),$C$6:$C$505,"<="&$C8),0) -> 0 | Y8: 42 | Z8: =AVERAGEIFS(Y$6:Y$505,$C$6:$C$505,">="&EOMONTH($C8,-INPUT!$O$113),$C$6:$C$505,"<="&$C8) -> 41.33333333 | AA8: =IF(COUNTIFS($C$6:$C8,"<>"&"")>=3,AVERAGEIFS(Y$6:Y$505,$C$6:$C$505,">="&EOMONTH($C8,-3),$C$6:$C$505,"<="&$C8),"") -> 41.33333333 | AB8: 46 | AC8: =IF(COUNTIFS($AB$6:$AB$505,">"&0)>=24,AVERAGEIFS(AB$6:AB$505,$C$6:$C$505,">="&EOMONTH($C8,-INPUT!$O$113),$C$6:$C$505,"<="&$C8),0) -> 45 | AD8: 7569.9 | AE8: =SUMIFS(AD$6:AD$505,$C$6:$C$505,">="&EOMONTH($C8,-INPUT!$O$113),$C$6:$C$505,"<="&$C8) -> 21810.1 | AF8: =IF(COUNTIFS($C$6:$C8,"<>"&"")>=3,SUMIFS(AD$6:AD$505,$C$6:$C$505,">="&EOMONTH($C8,-3),$C$6:$C$505,"<="&$C8)*4,"") -> 87240.4 | AG8: 8464 | AH8: =IF(COUNTIFS($AG$6:$AG$505,">"&0)>=24,SUMIFS(AG$6:AG$505,$C$6:$C$505,">="&EOMONTH($C8,-INPUT!$O$113),$C$6:$C$505,"<="&$C8),0) -> 24840 | AI8: 291227.76 | AJ8: =SUMIFS(AI$6:AI$505,$C$6:$C$505,">="&EOMONTH($C8,-INPUT!$O$113),$C$6:$C$505,"<="&$C8) -> 819247.39 | AK8: =IF(COUNTIFS($C$6:$C8,"<>"&"")>=3,SUMIFS(AI$6:AI$505,$C$6:$C$505,">="&EOMONTH($C8,-3),$C$6:$C$505,"<="&$C8)*4,"") -> 3276989.56 | AL8: 300238 | AM8: =IF(COUNTIFS($AL$6:$AL$505,">"&0)>=24,SUMIFS(AL$6:AL$505,$C$6:$C$505,">="&EOMONTH($C8,-INPUT!$O$113),$C$6:$C$505,"<="&$C8),0) -> 883125 | AN8: 64.49772564 | AO8: 59.26987955 | AP8: 59.26987955 | AQ8: 29.53414461 | AR8: 28.24170692 | AS8: =IFERROR(IF('Chart Support '!$D$68=1,AI8/Y8,AI8/AD8),0) -> 6933.994286 | AT8: =IFERROR(IF('Chart Support '!$D$68=1,SUMIFS(AS$6:AS$505,$C$6:$C$505,">="&EOMONTH($C8,-INPUT!$O$113),$C$6:$C$505,"<="&$C8),$AJ8/$AE8),0) -> 19813.22114 | AU8: =IFERROR(IF('Chart Support '!$D$68=1,$AK8/IF(IC$3="%",IF(COUNTIFS($C$6:$C8,"<>"&"")>=3,AVERAGEIFS(Y$6:Y$505,$C$6:$C$505,">="&EOMONTH($C8,-3),$C$6:$C$505,"<="&$C8),""),IF(COUNTIFS($C$6:$C8,"<>"&"")>=3,SUMIFS(Y$6:Y$505,$C$6:$C$505,">="&EOMONTH($C8,-3),$C$6:$C$505,"<="&$C8)*4,"")),$AK8/$AF8),0) -> 6606.83379 | AV8: =IFERROR(IF('Chart Support '!$D$68=1,$AL8/$AB8,$AL8/$AG8),0) -> 6526.913043 | AW8: =IFERROR(IF('Chart Support '!$D$68=1,SUMIFS(AV$6:AV$505,$C$6:$C$505,">="&EOMONTH($C8,-INPUT!$O$113),$C$6:$C$505,"<="&$C8),$AM8/$AH8),0) -> 19625.73678 | AX8: -0.1686557628 | AY8: -0.1144716006 | AZ8: -0.1144716006 | BA8: 0.03681412746 | BB8: 0 | BC8: 3.461111111 | BD8: =IF(BC$3="%",AVERAGEIFS(BC$6:BC$505,$C$6:$C$505,">="&EOMONTH($C8,-INPUT!$O$113),$C$6:$C$505,"<="&$C8),SUMIFS(BC$6:BC$505,$C$6:$C$505,">="&EOMONTH($C8,-INPUT!$O$113),$C$6:$C$505,"<="&$C8)) -> 10.13333333 | BE8: =IF(BE$3="%",IF(COUNTIFS($C$6:$C8,"<>"&"")>=3,AVERAGEIFS(BC$6:BC$505,$C$6:$C$505,">="&EOMONTH($C8,-3),$C$6:$C$505,"<="&$C8),""),IF(COUNTIFS($C$6:$C8,"<>"&"")>=3,SUMIFS(BC$6:BC$505,$C$6:$C$505,">="&EOMONTH($C8,-3),$C$6:$C$505,"<="&$C8)*4,"")) -> 40.53333333 | BG8: =IF(COUNTIFS($BF$6:$BF$505,">"&0)>=24,IF(BF$3="%",AVERAGEIFS(BF$6:BF$505,$C$6:$C$505,">="&EOMONTH($C8,-INPUT!$O$113),$C$6:$C$505,"<="&$C8),SUMIFS(BF$6:BF$505,$C$6:$C$505,">="&EOMONTH($C8,-INPUT!$O$113),$C$6:$C$505,"<="&$C8)),0) -> 0 | BH8: 30 | BI8: =IF(BH$3="%",AVERAGEIFS(BH$6:BH$505,$C$6:$C$505,">="&EOMONTH($C8,-INPUT!$O$113),$C$6:$C$505,"<="&$C8),SUMIFS(BH$6:BH$505,$C$6:$C$505,">="&EOMONTH($C8,-INPUT!$O$113),$C$6:$C$505,"<="&$C8)) -> 90 | BJ8: =IF(BJ$3="%",IF(COUNTIFS($C$6:$C8,"<>"&"")>=3,AVERAGEIFS(BH$6:BH$505,$C$6:$C$505,">="&EOMONTH($C8,-3),$C$6:$C$505,"<="&$C8),""),IF(COUNTIFS($C$6:$C8,"<>"&"")>=3,SUMIFS(BH$6:BH$505,$C$6:$C$505,">="&EOMONTH($C8,-3),$C$6:$C$505,"<="&$C8)*4,"")) -> 360 | BK8: 30 | BL8: =IF(COUNTIFS($BK$6:$BK$505,">"&0)>=24,IF(BK$3="%",AVERAGEIFS(BK$6:BK$505,$C$6:$C$505,">="&EOMONTH($C8,-INPUT!$O$113),$C$6:$C$505,"<="&$C8),SUMIFS(BK$6:BK$505,$C$6:$C$505,">="&EOMONTH($C8,-INPUT!$O$113),$C$6:$C$505,"<="&$C8)),0) -> 90 | BM8: 0.6642045455 | BN8: =IF(BM$3="%",AVERAGEIFS(BM$6:BM$505,$C$6:$C$505,">="&EOMONTH($C8,-INPUT!$O$113),$C$6:$C$505,"<="&$C8),SUMIFS(BM$6:BM$505,$C$6:$C$505,">="&EOMONTH($C8,-INPUT!$O$113),$C$6:$C$505,"<="&$C8)) -> 0.6551835317 | BO8: =IF(BO$3="%",IF(COUNTIFS($C$6:$C8,"<>"&"")>=3,AVERAGEIFS(BM$6:BM$505,$C$6:$C$505,">="&EOMONTH($C8,-3),$C$6:$C$505,"<="&$C8),""),IF(COUNTIFS($C$6:$C8,"<>"&"")>=3,SUMIFS(BM$6:BM$505,$C$6:$C$505,">="&EOMONTH($C8,-3),$C$6:$C$505,"<="&$C8)*4,"")) -> 0.6551835317 | BP8: 0.73 | BQ8: =IF(BP$3="%",AVERAGEIFS(BP$6:BP$505,$C$6:$C$505,">="&EOMONTH($C8,-INPUT!$O$113),$C$6:$C$505,"<="&$C8),SUMIFS(BP$6:BP$505,$C$6:$C$505,">="&EOMONTH($C8,-INPUT!$O$113),$C$6:$C$505,"<="&$C8)) -> 0.73 | BR8: 9469.029 | BS8: =IF(BR$3="%",AVERAGEIFS(BR$6:BR$505,$C$6:$C$505,">="&EOMONTH($C8,-INPUT!$O$113),$C$6:$C$505,"<="&$C8),SUMIFS(BR$6:BR$505,$C$6:$C$505,">="&EOMONTH($C8,-INPUT!$O$113),$C$6:$C$505,"<="&$C8)) -> 27543.68533 | BT8: =IF(BT$3="%",IF(COUNTIFS($C$6:$C8,"<>"&"")>=3,AVERAGEIFS(BR$6:BR$505,$C$6:$C$505,">="&EOMONTH($C8,-3),$C$6:$C$505,"<="&$C8),""),IF(COUNTIFS($C$6:$C8,"<>"&"")>=3,SUMIFS(BR$6:BR$505,$C$6:$C$505,">="&EOMONTH($C8,-3),$C$6:$C$505,"<="&$C8)*4,"")) -> 110174.7413 | BU8: 9463.818 | BV8: =IF(COUNTIFS($BU$6:$BU$505,">"&0)>=24,IF(BU$3="%",AVERAGEIFS(BU$6:BU$505,$C$6:$C$505,">="&EOMONTH($C8,-INPUT!$O$113),$C$6:$C$505,"<="&$C8),SUMIFS(BU$6:BU$505,$C$6:$C$505,">="&EOMONTH($C8,-INPUT!$O$113),$C$6:$C$505,"<="&$C8)),0) -> 28391.454 | BW8: 84.72330197 | BX8: =IF(BW$3="%",AVERAGEIFS(BW$6:BW$505,$C$6:$C$505,">="&EOMONTH($C8,-INPUT!$O$113),$C$6:$C$505,"<="&$C8),SUMIFS(BW$6:BW$505,$C$6:$C$505,">="&EOMONTH($C8,-INPUT!$O$113),$C$6:$C$505,"<="&$C8)) -> 250.5341979 | BY8: =IF(BY$3="%",IF(COUNTIFS($C$6:$C8,"<>"&"")>=3,AVERAGEIFS(BW$6:BW$505,$C$6:$C$505,">="&EOMONTH($C8,-3),$C$6:$C$505,"<="&$C8),""),IF(COUNTIFS($C$6:$C8,"<>"&"")>=3,SUMIFS(BW$6:BW$505,$C$6:$C$505,">="&EOMONTH($C8,-3),$C$6:$C$505,"<="&$C8)*4,"")) -> 1002.136792 | BZ8: 85 | CA8: =IF(COUNTIFS($BZ$6:$BZ$505,">"&0)>=24,IF(BZ$3="%",AVERAGEIFS(BZ$6:BZ$505,$C$6:$C$505,">="&EOMONTH($C8,-INPUT!$O$113),$C$6:$C$505,"<="&$C8),SUMIFS(BZ$6:BZ$505,$C$6:$C$505,">="&EOMONTH($C8,-INPUT!$O$113),$C$6:$C$505,"<="&$C8)),0) -> 255 | CB8: 56.27360227 | CC8: =IF(CB$3="%",AVERAGEIFS(CB$6:CB$505,$C$6:$C$505,">="&EOMONTH($C8,-INPUT!$O$113),$C$6:$C$505,"<="&$C8),SUMIFS(CB$6:CB$505,$C$6:$C$505,">="&EOMONTH($C8,-INPUT!$O$113),$C$6:$C$505,"<="&$C8)) -> 164.1361645 | CD8: =IF(CD$3="%",IF(COUNTIFS($C$6:$C8,"<>"&"")>=3,AVERAGEIFS(CB$6:CB$505,$C$6:$C$505,">="&EOMONTH($C8,-3),$C$6:$C$505,"<="&$C8),""),IF(COUNTIFS($C$6:$C8,"<>"&"")>=3,SUMIFS(CB$6:CB$505,$C$6:$C$505,">="&EOMONTH($C8,-3),$C$6:$C$505,"<="&$C8)*4,"")) -> 656.544658 | CE8: 66.3 | CF8: =IF(COUNTIFS($CE$6:$CE$505,">"&0)>=24,IF(CE$3="%",AVERAGEIFS(CE$6:CE$505,$C$6:$C$505,">="&EOMONTH($C8,-INPUT!$O$113),$C$6:$C$505,"<="&$C8),SUMIFS(CE$6:CE$505,$C$6:$C$505,">="&EOMONTH($C8,-INPUT!$O$113),$C$6:$C$505,"<="&$C8)),0) -> 200.6 | CG8: 108 | CH8: =IF(CG$3="%",AVERAGEIFS(CG$6:CG$505,$C$6:$C$505,">="&EOMONTH($C8,-INPUT!$O$113),$C$6:$C$505,"<="&$C8),SUMIFS(CG$6:CG$505,$C$6:$C$505,">="&EOMONTH($C8,-INPUT!$O$113),$C$6:$C$505,"<="&$C8)) -> 321 | CI8: =IF(CI$3="%",IF(COUNTIFS($C$6:$C8,"<>"&"")>=3,AVERAGEIFS(CG$6:CG$505,$C$6:$C$505,">="&EOMONTH($C8,-3),$C$6:$C$505,"<="&$C8),""),IF(COUNTIFS($C$6:$C8,"<>"&"")>=3,SUMIFS(CG$6:CG$505,$C$6:$C$505,">="&EOMONTH($C8,-3),$C$6:$C$505,"<="&$C8)*4,"")) -> 1284 | CK8: =IF(COUNTIFS($CJ$6:$CJ$505,">"&0)>=24,IF(CJ$3="%",AVERAGEIFS(CJ$6:CJ$505,$C$6:$C$505,">="&EOMONTH($C8,-INPUT!$O$113),$C$6:$C$505,"<="&$C8),SUMIFS(CJ$6:CJ$505,$C$6:$C$505,">="&EOMONTH($C8,-INPUT!$O$113),$C$6:$C$505,"<="&$C8)),0) -> 0 | CL8: 2630 | CM8: =IF(CL$3="%",AVERAGEIFS(CL$6:CL$505,$C$6:$C$505,">="&EOMONTH($C8,-INPUT!$O$113),$C$6:$C$505,"<="&$C8),SUMIFS(CL$6:CL$505,$C$6:$C$505,">="&EOMONTH($C8,-INPUT!$O$113),$C$6:$C$505,"<="&$C8)) -> 7606 | CN8: =IF(CN$3="%",IF(COUNTIFS($C$6:$C8,"<>"&"")>=3,AVERAGEIFS(CL$6:CL$505,$C$6:$C$505,">="&EOMONTH($C8,-3),$C$6:$C$505,"<="&$C8),""),IF(COUNTIFS($C$6:$C8,"<>"&"")>=3,SUMIFS(CL$6:CL$505,$C$6:$C$505,">="&EOMONTH($C8,-3),$C$6:$C$505,"<="&$C8)*4,"")) -> 30424 | CP8: =IF(COUNTIFS($CO$6:$CO$505,">"&0)>=24,IF(CO$3="%",AVERAGEIFS(CO$6:CO$505,$C$6:$C$505,">="&EOMONTH($C8,-INPUT!$O$113),$C$6:$C$505,"<="&$C8),SUMIFS(CO$6:CO$505,$C$6:$C$505,">="&EOMONTH($C8,-INPUT!$O$113),$C$6:$C$505,"<="&$C8)),0) -> 0 | CQ8: 284070.87 | CR8: =IF(CQ$3="%",AVERAGEIFS(CQ$6:CQ$505,$C$6:$C$505,">="&EOMONTH($C8,-INPUT!$O$113),$C$6:$C$505,"<="&$C8),SUMIFS(CQ$6:CQ$505,$C$6:$C$505,">="&EOMONTH($C8,-INPUT!$O$113),$C$6:$C$505,"<="&$C8)) -> 826310.56 | CS8: =IF(CS$3="%",IF(COUNTIFS($C$6:$C8,"<>"&"")>=3,AVERAGEIFS(CQ$6:CQ$505,$C$6:$C$505,">="&EOMONTH($C8,-3),$C$6:$C$505,"<="&$C8),""),IF(COUNTIFS($C$6:$C8,"<>"&"")>=3,SUMIFS(CQ$6:CQ$505,$C$6:$C$505,">="&EOMONTH($C8,-3),$C$6:$C$505,"<="&$C8)*4,"")) -> 3305242.24 | CT8: 270855 | CU8: =IF(COUNTIFS($CT$6:$CT$505,">"&0)>=24,IF(CT$3="%",AVERAGEIFS(CT$6:CT$505,$C$6:$C$505,">="&EOMONTH($C8,-INPUT!$O$113),$C$6:$C$505,"<="&$C8),SUMIFS(CT$6:CT$505,$C$6:$C$505,">="&EOMONTH($C8,-INPUT!$O$113),$C$6:$C$505,"<="&$C8)),0) -> 820064 | CV8: 13053.75 | CW8: =IF(CV$3="%",AVERAGEIFS(CV$6:CV$505,$C$6:$C$505,">="&EOMONTH($C8,-INPUT!$O$113),$C$6:$C$505,"<="&$C8),SUMIFS(CV$6:CV$505,$C$6:$C$505,">="&EOMONTH($C8,-INPUT!$O$113),$C$6:$C$505,"<="&$C8)) -> 27241.25 | CX8: =IF(CX$3="%",IF(COUNTIFS($C$6:$C8,"<>"&"")>=3,AVERAGEIFS(CV$6:CV$505,$C$6:$C$505,">="&EOMONTH($C8,-3),$C$6:$C$505,"<="&$C8),""),IF(COUNTIFS($C$6:$C8,"<>"&"")>=3,SUMIFS(CV$6:CV$505,$C$6:$C$505,">="&EOMONTH($C8,-3),$C$6:$C$505,"<="&$C8)*4,"")) -> 108965 | CY8: 7922 | CZ8: =IF(COUNTIFS($CY$6:$CY$505,">"&0)>=24,IF(CY$3="%",AVERAGEIFS(CY$6:CY$505,$C$6:$C$505,">="&EOMONTH($C8,-INPUT!$O$113),$C$6:$C$505,"<="&$C8),SUMIFS(CY$6:CY$505,$C$6:$C$505,">="&EOMONTH($C8,-INPUT!$O$113),$C$6:$C$505,"<="&$C8)),0) -> 23999 | DA8: 0.59 | DB8: =IF(DA$3="%",AVERAGEIFS(DA$6:DA$505,$C$6:$C$505,">="&EOMONTH($C8,-INPUT!$O$113),$C$6:$C$505,"<="&$C8),SUMIFS(DA$6:DA$505,$C$6:$C$505,">="&EOMONTH($C8,-INPUT!$O$113),$C$6:$C$505,"<="&$C8)) -> 0.6066666667 | DC8: =IF(DC$3="%",IF(COUNTIFS($C$6:$C8,"<>"&"")>=3,AVERAGEIFS(DA$6:DA$505,$C$6:$C$505,">="&EOMONTH($C8,-3),$C$6:$C$505,"<="&$C8),""),IF(COUNTIFS($C$6:$C8,"<>"&"")>=3,SUMIFS(DA$6:DA$505,$C$6:$C$505,">="&EOMONTH($C8,-3),$C$6:$C$505,"<="&$C8)*4,"")) -> 0.6066666667 | DD8: 0.51 | DE8: =IF(COUNTIFS($DD$6:$DD$505,">"&0)>=24,IF(DD$3="%",AVERAGEIFS(DD$6:DD$505,$C$6:$C$505,">="&EOMONTH($C8,-INPUT!$O$113),$C$6:$C$505,"<="&$C8),SUMIFS(DD$6:DD$505,$C$6:$C$505,">="&EOMONTH($C8,-INPUT!$O$113),$C$6:$C$505,"<="&$C8)),0) -> 0.52 | DF8: 0.41 | DG8: =IF(DF$3="%",AVERAGEIFS(DF$6:DF$505,$C$6:$C$505,">="&EOMONTH($C8,-INPUT!$O$113),$C$6:$C$505,"<="&$C8),SUMIFS(DF$6:DF$505,$C$6:$C$505,">="&EOMONTH($C8,-INPUT!$O$113),$C$6:$C$505,"<="&$C8)) -> 0.4233333333 | DH8: =IF(DH$3="%",IF(COUNTIFS($C$6:$C8,"<>"&"")>=3,AVERAGEIFS(DF$6:DF$505,$C$6:$C$505,">="&EOMONTH($C8,-3),$C$6:$C$505,"<="&$C8),""),IF(COUNTIFS($C$6:$C8,"<>"&"")>=3,SUMIFS(DF$6:DF$505,$C$6:$C$505,">="&EOMONTH($C8,-3),$C$6:$C$505,"<="&$C8)*4,"")) -> 0.4233333333 | DI8: 0.38 | DJ8: =IF(COUNTIFS($DI$6:$DI$505,">"&0)>=24,IF(DI$3="%",AVERAGEIFS(DI$6:DI$505,$C$6:$C$505,">="&EOMONTH($C8,-INPUT!$O$113),$C$6:$C$505,"<="&$C8),SUMIFS(DI$6:DI$505,$C$6:$C$505,">="&EOMONTH($C8,-INPUT!$O$113),$C$6:$C$505,"<="&$C8)),0) -> 0.4 | DL8: =IF(DK$3="%",AVERAGEIFS(DK$6:DK$505,$C$6:$C$505,">="&EOMONTH($C8,-INPUT!$O$113),$C$6:$C$505,"<="&$C8),SUMIFS(DK$6:DK$505,$C$6:$C$505,">="&EOMONTH($C8,-INPUT!$O$113),$C$6:$C$505,"<="&$C8)) -> 0 | DM8: =IF(DM$3="%",IF(COUNTIFS($C$6:$C8,"<>"&"")>=3,AVERAGEIFS(DK$6:DK$505,$C$6:$C$505,">="&EOMONTH($C8,-3),$C$6:$C$505,"<="&$C8),""),IF(COUNTIFS($C$6:$C8,"<>"&"")>=3,SUMIFS(DK$6:DK$505,$C$6:$C$505,">="&EOMONTH($C8,-3),$C$6:$C$505,"<="&$C8)*4,"")) -> 0 | DO8: =IF(COUNTIFS($DN$6:$DN$505,">"&0)>=24,IF(DN$3="%",AVERAGEIFS(DN$6:DN$505,$C$6:$C$505,">="&EOMONTH($C8,-INPUT!$O$113),$C$6:$C$505,"<="&$C8),SUMIFS(DN$6:DN$505,$C$6:$C$505,">="&EOMONTH($C8,-INPUT!$O$113),$C$6:$C$505,"<="&$C8)),0) -> 0 | DQ8: =IF(DP$3="%",AVERAGEIFS(DP$6:DP$505,$C$6:$C$505,">="&EOMONTH($C8,-INPUT!$O$113),$C$6:$C$505,"<="&$C8),SUMIFS(DP$6:DP$505,$C$6:$C$505,">="&EOMONTH($C8,-INPUT!$O$113),$C$6:$C$505,"<="&$C8)) -> 0 | DR8: =IF(DR$3="%",IF(COUNTIFS($C$6:$C8,"<>"&"")>=3,AVERAGEIFS(DP$6:DP$505,$C$6:$C$505,">="&EOMONTH($C8,-3),$C$6:$C$505,"<="&$C8),""),IF(COUNTIFS($C$6:$C8,"<>"&"")>=3,SUMIFS(DP$6:DP$505,$C$6:$C$505,">="&EOMONTH($C8,-3),$C$6:$C$505,"<="&$C8)*4,"")) -> 0 | DT8: =IF(COUNTIFS($DS$6:$DS$505,">"&0)>=24,IF(DS$3="%",AVERAGEIFS(DS$6:DS$505,$C$6:$C$505,">="&EOMONTH($C8,-INPUT!$O$113),$C$6:$C$505,"<="&$C8),SUMIFS(DS$6:DS$505,$C$6:$C$505,">="&EOMONTH($C8,-INPUT!$O$113),$C$6:$C$505,"<="&$C8)),0) -> 0 | DV8: =IF(DU$3="%",AVERAGEIFS(DU$6:DU$505,$C$6:$C$505,">="&EOMONTH($C8,-INPUT!$O$113),$C$6:$C$505,"<="&$C8),SUMIFS(DU$6:DU$505,$C$6:$C$505,">="&EOMONTH($C8,-INPUT!$O$113),$C$6:$C$505,"<="&$C8)) -> 0 | DW8: =IF(DW$3="%",IF(COUNTIFS($C$6:$C8,"<>"&"")>=3,AVERAGEIFS(DU$6:DU$505,$C$6:$C$505,">="&EOMONTH($C8,-3),$C$6:$C$505,"<="&$C8),""),IF(COUNTIFS($C$6:$C8,"<>"&"")>=3,SUMIFS(DU$6:DU$505,$C$6:$C$505,">="&EOMONTH($C8,-3),$C$6:$C$505,"<="&$C8)*4,"")) -> 0 | DY8: =IF(COUNTIFS($DX$6:$DX$505,">"&0)>=24,IF(DX$3="%",AVERAGEIFS(DX$6:DX$505,$C$6:$C$505,">="&EOMONTH($C8,-INPUT!$O$113),$C$6:$C$505,"<="&$C8),SUMIFS(DX$6:DX$505,$C$6:$C$505,">="&EOMONTH($C8,-INPUT!$O$113),$C$6:$C$505,"<="&$C8)),0) -> 0 | EA8: =IF(DZ$3="%",AVERAGEIFS(DZ$6:DZ$505,$C$6:$C$505,">="&EOMONTH($C8,-INPUT!$O$113),$C$6:$C$505,"<="&$C8),SUMIFS(DZ$6:DZ$505,$C$6:$C$505,">="&EOMONTH($C8,-INPUT!$O$113),$C$6:$C$505,"<="&$C8)) -> 0 | EB8: =IF(EB$3="%",IF(COUNTIFS($C$6:$C8,"<>"&"")>=3,AVERAGEIFS(DZ$6:DZ$505,$C$6:$C$505,">="&EOMONTH($C8,-3),$C$6:$C$505,"<="&$C8),""),IF(COUNTIFS($C$6:$C8,"<>"&"")>=3,SUMIFS(DZ$6:DZ$505,$C$6:$C$505,">="&EOMONTH($C8,-3),$C$6:$C$505,"<="&$C8)*4,"")) -> 0 | ED8: =IF(COUNTIFS($EC$6:$EC$505,">"&0)>=24,IF(EC$3="%",AVERAGEIFS(EC$6:EC$505,$C$6:$C$505,">="&EOMONTH($C8,-INPUT!$O$113),$C$6:$C$505,"<="&$C8),SUMIFS(EC$6:EC$505,$C$6:$C$505,">="&EOMONTH($C8,-INPUT!$O$113),$C$6:$C$505,"<="&$C8)),0) -> 0 | EF8: =IF(EE$3="%",AVERAGEIFS(EE$6:EE$505,$C$6:$C$505,">="&EOMONTH($C8,-INPUT!$O$113),$C$6:$C$505,"<="&$C8),SUMIFS(EE$6:EE$505,$C$6:$C$505,">="&EOMONTH($C8,-INPUT!$O$113),$C$6:$C$505,"<="&$C8)) -> 0 | EG8: =IF(EG$3="%",IF(COUNTIFS($C$6:$C8,"<>"&"")>=3,AVERAGEIFS(EE$6:EE$505,$C$6:$C$505,">="&EOMONTH($C8,-3),$C$6:$C$505,"<="&$C8),""),IF(COUNTIFS($C$6:$C8,"<>"&"")>=3,SUMIFS(EE$6:EE$505,$C$6:$C$505,">="&EOMONTH($C8,-3),$C$6:$C$505,"<="&$C8)*4,"")) -> 0 | EI8: =IF(COUNTIFS($EH$6:$EH$505,">"&0)>=24,IF(EH$3="%",AVERAGEIFS(EH$6:EH$505,$C$6:$C$505,">="&EOMONTH($C8,-INPUT!$O$113),$C$6:$C$505,"<="&$C8),SUMIFS(EH$6:EH$505,$C$6:$C$505,">="&EOMONTH($C8,-INPUT!$O$113),$C$6:$C$505,"<="&$C8)),0) -> 0 | EK8: =IF(EJ$3="%",AVERAGEIFS(EJ$6:EJ$505,$C$6:$C$505,">="&EOMONTH($C8,-INPUT!$O$113),$C$6:$C$505,"<="&$C8),SUMIFS(EJ$6:EJ$505,$C$6:$C$505,">="&EOMONTH($C8,-INPUT!$O$113),$C$6:$C$505,"<="&$C8)) -> 0 | EL8: =IF(EL$3="%",IF(COUNTIFS($C$6:$C8,"<>"&"")>=3,AVERAGEIFS(EJ$6:EJ$505,$C$6:$C$505,">="&EOMONTH($C8,-3),$C$6:$C$505,"<="&$C8),""),IF(COUNTIFS($C$6:$C8,"<>"&"")>=3,SUMIFS(EJ$6:EJ$505,$C$6:$C$505,">="&EOMONTH($C8,-3),$C$6:$C$505,"<="&$C8)*4,"")) -> 0 | EN8: =IF(COUNTIFS($EM$6:$EM$505,">"&0)>=24,IF(EM$3="%",AVERAGEIFS(EM$6:EM$505,$C$6:$C$505,">="&EOMONTH($C8,-INPUT!$O$113),$C$6:$C$505,"<="&$C8),SUMIFS(EM$6:EM$505,$C$6:$C$505,">="&EOMONTH($C8,-INPUT!$O$113),$C$6:$C$505,"<="&$C8)),0) -> 0 | EP8: =IF(EO$3="%",AVERAGEIFS(EO$6:EO$505,$C$6:$C$505,">="&EOMONTH($C8,-INPUT!$O$113),$C$6:$C$505,"<="&$C8),SUMIFS(EO$6:EO$505,$C$6:$C$505,">="&EOMONTH($C8,-INPUT!$O$113),$C$6:$C$505,"<="&$C8)) -> 0 | EQ8: =IF(EQ$3="%",IF(COUNTIFS($C$6:$C8,"<>"&"")>=3,AVERAGEIFS(EO$6:EO$505,$C$6:$C$505,">="&EOMONTH($C8,-3),$C$6:$C$505,"<="&$C8),""),IF(COUNTIFS($C$6:$C8,"<>"&"")>=3,SUMIFS(EO$6:EO$505,$C$6:$C$505,">="&EOMONTH($C8,-3),$C$6:$C$505,"<="&$C8)*4,"")) -> 0 | ES8: =IF(COUNTIFS($ER$6:$ER$505,">"&0)>=24,IF(ER$3="%",AVERAGEIFS(ER$6:ER$505,$C$6:$C$505,">="&EOMONTH($C8,-INPUT!$O$113),$C$6:$C$505,"<="&$C8),SUMIFS(ER$6:ER$505,$C$6:$C$505,">="&EOMONTH($C8,-INPUT!$O$113),$C$6:$C$505,"<="&$C8)),0) -> 0 | EU8: =IF(ET$3="%",AVERAGEIFS(ET$6:ET$505,$C$6:$C$505,">="&EOMONTH($C8,-INPUT!$O$113),$C$6:$C$505,"<="&$C8),SUMIFS(ET$6:ET$505,$C$6:$C$505,">="&EOMONTH($C8,-INPUT!$O$113),$C$6:$C$505,"<="&$C8)) -> 0 | EV8: =IF(EV$3="%",IF(COUNTIFS($C$6:$C8,"<>"&"")>=3,AVERAGEIFS(ET$6:ET$505,$C$6:$C$505,">="&EOMONTH($C8,-3),$C$6:$C$505,"<="&$C8),""),IF(COUNTIFS($C$6:$C8,"<>"&"")>=3,SUMIFS(ET$6:ET$505,$C$6:$C$505,">="&EOMONTH($C8,-3),$C$6:$C$505,"<="&$C8)*4,"")) -> 0 | EX8: =IF(COUNTIFS($EW$6:$EW$505,">"&0)>=24,IF(EW$3="%",AVERAGEIFS(EW$6:EW$505,$C$6:$C$505,">="&EOMONTH($C8,-INPUT!$O$113),$C$6:$C$505,"<="&$C8),SUMIFS(EW$6:EW$505,$C$6:$C$505,">="&EOMONTH($C8,-INPUT!$O$113),$C$6:$C$505,"<="&$C8)),0) -> 0 | EZ8: =IF(EY$3="%",AVERAGEIFS(EY$6:EY$505,$C$6:$C$505,">="&EOMONTH($C8,-INPUT!$O$113),$C$6:$C$505,"<="&$C8),SUMIFS(EY$6:EY$505,$C$6:$C$505,">="&EOMONTH($C8,-INPUT!$O$113),$C$6:$C$505,"<="&$C8)) -> 0 | FA8: =IF(FA$3="%",IF(COUNTIFS($C$6:$C8,"<>"&"")>=3,AVERAGEIFS(EY$6:EY$505,$C$6:$C$505,">="&EOMONTH($C8,-3),$C$6:$C$505,"<="&$C8),""),IF(COUNTIFS($C$6:$C8,"<>"&"")>=3,SUMIFS(EY$6:EY$505,$C$6:$C$505,">="&EOMONTH($C8,-3),$C$6:$C$505,"<="&$C8)*4,"")) -> 0 | FC8: =IF(COUNTIFS($FB$6:$FB$505,">"&0)>=24,IF(FB$3="%",AVERAGEIFS(FB$6:FB$505,$C$6:$C$505,">="&EOMONTH($C8,-INPUT!$O$113),$C$6:$C$505,"<="&$C8),SUMIFS(FB$6:FB$505,$C$6:$C$505,">="&EOMONTH($C8,-INPUT!$O$113),$C$6:$C$505,"<="&$C8)),0) -> 0 | FE8: =IF(FD$3="%",AVERAGEIFS(FD$6:FD$505,$C$6:$C$505,">="&EOMONTH($C8,-INPUT!$O$113),$C$6:$C$505,"<="&$C8),SUMIFS(FD$6:FD$505,$C$6:$C$505,">="&EOMONTH($C8,-INPUT!$O$113),$C$6:$C$505,"<="&$C8)) -> 0 | FF8: =IF(FF$3="%",IF(COUNTIFS($C$6:$C8,"<>"&"")>=3,AVERAGEIFS(FD$6:FD$505,$C$6:$C$505,">="&EOMONTH($C8,-3),$C$6:$C$505,"<="&$C8),""),IF(COUNTIFS($C$6:$C8,"<>"&"")>=3,SUMIFS(FD$6:FD$505,$C$6:$C$505,">="&EOMONTH($C8,-3),$C$6:$C$505,"<="&$C8)*4,"")) -> 0 | FH8: =IF(COUNTIFS($FG$6:$FG$505,">"&0)>=24,IF(FG$3="%",AVERAGEIFS(FG$6:FG$505,$C$6:$C$505,">="&EOMONTH($C8,-INPUT!$O$113),$C$6:$C$505,"<="&$C8),SUMIFS(FG$6:FG$505,$C$6:$C$505,">="&EOMONTH($C8,-INPUT!$O$113),$C$6:$C$505,"<="&$C8)),0) -> 0 | FJ8: =IF(FI$3="%",AVERAGEIFS(FI$6:FI$505,$C$6:$C$505,">="&EOMONTH($C8,-INPUT!$O$113),$C$6:$C$505,"<="&$C8),SUMIFS(FI$6:FI$505,$C$6:$C$505,">="&EOMONTH($C8,-INPUT!$O$113),$C$6:$C$505,"<="&$C8)) -> 0 | FK8: =IF(FK$3="%",IF(COUNTIFS($C$6:$C8,"<>"&"")>=3,AVERAGEIFS(FI$6:FI$505,$C$6:$C$505,">="&EOMONTH($C8,-3),$C$6:$C$505,"<="&$C8),""),IF(COUNTIFS($C$6:$C8,"<>"&"")>=3,SUMIFS(FI$6:FI$505,$C$6:$C$505,">="&EOMONTH($C8,-3),$C$6:$C$505,"<="&$C8)*4,"")) -> 0 | FM8: =IF(COUNTIFS($FL$6:$FL$505,">"&0)>=24,IF(FL$3="%",AVERAGEIFS(FL$6:FL$505,$C$6:$C$505,">="&EOMONTH($C8,-INPUT!$O$113),$C$6:$C$505,"<="&$C8),SUMIFS(FL$6:FL$505,$C$6:$C$505,">="&EOMONTH($C8,-INPUT!$O$113),$C$6:$C$505,"<="&$C8)),0) -> 0 | FO8: =IF(FN$3="%",AVERAGEIFS(FN$6:FN$505,$C$6:$C$505,">="&EOMONTH($C8,-INPUT!$O$113),$C$6:$C$505,"<="&$C8),SUMIFS(FN$6:FN$505,$C$6:$C$505,">="&EOMONTH($C8,-INPUT!$O$113),$C$6:$C$505,"<="&$C8)) -> 0 | FP8: =IF(FP$3="%",IF(COUNTIFS($C$6:$C8,"<>"&"")>=3,AVERAGEIFS(FN$6:FN$505,$C$6:$C$505,">="&EOMONTH($C8,-3),$C$6:$C$505,"<="&$C8),""),IF(COUNTIFS($C$6:$C8,"<>"&"")>=3,SUMIFS(FN$6:FN$505,$C$6:$C$505,">="&EOMONTH($C8,-3),$C$6:$C$505,"<="&$C8)*4,"")) -> 0 | FR8: =IF(COUNTIFS($FQ$6:$FQ$505,">"&0)>=24,IF(FQ$3="%",AVERAGEIFS(FQ$6:FQ$505,$C$6:$C$505,">="&EOMONTH($C8,-INPUT!$O$113),$C$6:$C$505,"<="&$C8),SUMIFS(FQ$6:FQ$505,$C$6:$C$505,">="&EOMONTH($C8,-INPUT!$O$113),$C$6:$C$505,"<="&$C8)),0) -> 0 | FT8: =IF(FS$3="%",AVERAGEIFS(FS$6:FS$505,$C$6:$C$505,">="&EOMONTH($C8,-INPUT!$O$113),$C$6:$C$505,"<="&$C8),SUMIFS(FS$6:FS$505,$C$6:$C$505,">="&EOMONTH($C8,-INPUT!$O$113),$C$6:$C$505,"<="&$C8)) -> 0 | FU8: =IF(FU$3="%",IF(COUNTIFS($C$6:$C8,"<>"&"")>=3,AVERAGEIFS(FS$6:FS$505,$C$6:$C$505,">="&EOMONTH($C8,-3),$C$6:$C$505,"<="&$C8),""),IF(COUNTIFS($C$6:$C8,"<>"&"")>=3,SUMIFS(FS$6:FS$505,$C$6:$C$505,">="&EOMONTH($C8,-3),$C$6:$C$505,"<="&$C8)*4,"")) -> 0 | FW8: =IF(COUNTIFS($FV$6:$FV$505,">"&0)>=24,IF(FV$3="%",AVERAGEIFS(FV$6:FV$505,$C$6:$C$505,">="&EOMONTH($C8,-INPUT!$O$113),$C$6:$C$505,"<="&$C8),SUMIFS(FV$6:FV$505,$C$6:$C$505,">="&EOMONTH($C8,-INPUT!$O$113),$C$6:$C$505,"<="&$C8)),0) -> 0 | FY8: =IF(FX$3="%",AVERAGEIFS(FX$6:FX$505,$C$6:$C$505,">="&EOMONTH($C8,-INPUT!$O$113),$C$6:$C$505,"<="&$C8),SUMIFS(FX$6:FX$505,$C$6:$C$505,">="&EOMONTH($C8,-INPUT!$O$113),$C$6:$C$505,"<="&$C8)) -> 0 | FZ8: =IF(FZ$3="%",IF(COUNTIFS($C$6:$C8,"<>"&"")>=3,AVERAGEIFS(FX$6:FX$505,$C$6:$C$505,">="&EOMONTH($C8,-3),$C$6:$C$505,"<="&$C8),""),IF(COUNTIFS($C$6:$C8,"<>"&"")>=3,SUMIFS(FX$6:FX$505,$C$6:$C$505,">="&EOMONTH($C8,-3),$C$6:$C$505,"<="&$C8)*4,"")) -> 0 | GB8: =IF(COUNTIFS($GA$6:$GA$505,">"&0)>=24,IF(GA$3="%",AVERAGEIFS(GA$6:GA$505,$C$6:$C$505,">="&EOMONTH($C8,-INPUT!$O$113),$C$6:$C$505,"<="&$C8),SUMIFS(GA$6:GA$505,$C$6:$C$505,">="&EOMONTH($C8,-INPUT!$O$113),$C$6:$C$505,"<="&$C8)),0) -> 0 | GD8: =IF(GC$3="%",AVERAGEIFS(GC$6:GC$505,$C$6:$C$505,">="&EOMONTH($C8,-INPUT!$O$113),$C$6:$C$505,"<="&$C8),SUMIFS(GC$6:GC$505,$C$6:$C$505,">="&EOMONTH($C8,-INPUT!$O$113),$C$6:$C$505,"<="&$C8)) -> 0 | GE8: =IF(GE$3="%",IF(COUNTIFS($C$6:$C8,"<>"&"")>=3,AVERAGEIFS(GC$6:GC$505,$C$6:$C$505,">="&EOMONTH($C8,-3),$C$6:$C$505,"<="&$C8),""),IF(COUNTIFS($C$6:$C8,"<>"&"")>=3,SUMIFS(GC$6:GC$505,$C$6:$C$505,">="&EOMONTH($C8,-3),$C$6:$C$505,"<="&$C8)*4,"")) -> 0 | GG8: =IF(COUNTIFS($GF$6:$GF$505,">"&0)>=24,IF(GF$3="%",AVERAGEIFS(GF$6:GF$505,$C$6:$C$505,">="&EOMONTH($C8,-INPUT!$O$113),$C$6:$C$505,"<="&$C8),SUMIFS(GF$6:GF$505,$C$6:$C$505,">="&EOMONTH($C8,-INPUT!$O$113),$C$6:$C$505,"<="&$C8)),0) -> 0 | GI8: =IF(GH$3="%",AVERAGEIFS(GH$6:GH$505,$C$6:$C$505,">="&EOMONTH($C8,-INPUT!$O$113),$C$6:$C$505,"<="&$C8),SUMIFS(GH$6:GH$505,$C$6:$C$505,">="&EOMONTH($C8,-INPUT!$O$113),$C$6:$C$505,"<="&$C8)) -> 0 | GJ8: =IF(GJ$3="%",IF(COUNTIFS($C$6:$C8,"<>"&"")>=3,AVERAGEIFS(GH$6:GH$505,$C$6:$C$505,">="&EOMONTH($C8,-3),$C$6:$C$505,"<="&$C8),""),IF(COUNTIFS($C$6:$C8,"<>"&"")>=3,SUMIFS(GH$6:GH$505,$C$6:$C$505,">="&EOMONTH($C8,-3),$C$6:$C$505,"<="&$C8)*4,"")) -> 0 | GL8: =IF(COUNTIFS($GK$6:$GK$505,">"&0)>=24,IF(GK$3="%",AVERAGEIFS(GK$6:GK$505,$C$6:$C$505,">="&EOMONTH($C8,-INPUT!$O$113),$C$6:$C$505,"<="&$C8),SUMIFS(GK$6:GK$505,$C$6:$C$505,">="&EOMONTH($C8,-INPUT!$O$113),$C$6:$C$505,"<="&$C8)),0) -> 0 | GN8: =IF(GM$3="%",AVERAGEIFS(GM$6:GM$505,$C$6:$C$505,">="&EOMONTH($C8,-INPUT!$O$113),$C$6:$C$505,"<="&$C8),SUMIFS(GM$6:GM$505,$C$6:$C$505,">="&EOMONTH($C8,-INPUT!$O$113),$C$6:$C$505,"<="&$C8)) -> 0 | GO8: =IF(GO$3="%",IF(COUNTIFS($C$6:$C8,"<>"&"")>=3,AVERAGEIFS(GM$6:GM$505,$C$6:$C$505,">="&EOMONTH($C8,-3),$C$6:$C$505,"<="&$C8),""),IF(COUNTIFS($C$6:$C8,"<>"&"")>=3,SUMIFS(GM$6:GM$505,$C$6:$C$505,">="&EOMONTH($C8,-3),$C$6:$C$505,"<="&$C8)*4,"")) -> 0 | GQ8: =IF(COUNTIFS($GP$6:$GP$505,">"&0)>=24,IF(GP$3="%",AVERAGEIFS(GP$6:GP$505,$C$6:$C$505,">="&EOMONTH($C8,-INPUT!$O$113),$C$6:$C$505,"<="&$C8),SUMIFS(GP$6:GP$505,$C$6:$C$505,">="&EOMONTH($C8,-INPUT!$O$113),$C$6:$C$505,"<="&$C8)),0) -> 0 | GS8: =IF(GR$3="%",AVERAGEIFS(GR$6:GR$505,$C$6:$C$505,">="&EOMONTH($C8,-INPUT!$O$113),$C$6:$C$505,"<="&$C8),SUMIFS(GR$6:GR$505,$C$6:$C$505,">="&EOMONTH($C8,-INPUT!$O$113),$C$6:$C$505,"<="&$C8)) -> 0 | GT8: =IF(GT$3="%",IF(COUNTIFS($C$6:$C8,"<>"&"")>=3,AVERAGEIFS(GR$6:GR$505,$C$6:$C$505,">="&EOMONTH($C8,-3),$C$6:$C$505,"<="&$C8),""),IF(COUNTIFS($C$6:$C8,"<>"&"")>=3,SUMIFS(GR$6:GR$505,$C$6:$C$505,">="&EOMONTH($C8,-3),$C$6:$C$505,"<="&$C8)*4,"")) -> 0 | GV8: =IF(COUNTIFS($GU$6:$GU$505,">"&0)>=24,IF(GU$3="%",AVERAGEIFS(GU$6:GU$505,$C$6:$C$505,">="&EOMONTH($C8,-INPUT!$O$113),$C$6:$C$505,"<="&$C8),SUMIFS(GU$6:GU$505,$C$6:$C$505,">="&EOMONTH($C8,-INPUT!$O$113),$C$6:$C$505,"<="&$C8)),0) -> 0 | GX8: =IF(GW$3="%",AVERAGEIFS(GW$6:GW$505,$C$6:$C$505,">="&EOMONTH($C8,-INPUT!$O$113),$C$6:$C$505,"<="&$C8),SUMIFS(GW$6:GW$505,$C$6:$C$505,">="&EOMONTH($C8,-INPUT!$O$113),$C$6:$C$505,"<="&$C8)) -> 0 | GY8: =IF(GY$3="%",IF(COUNTIFS($C$6:$C8,"<>"&"")>=3,AVERAGEIFS(GW$6:GW$505,$C$6:$C$505,">="&EOMONTH($C8,-3),$C$6:$C$505,"<="&$C8),""),IF(COUNTIFS($C$6:$C8,"<>"&"")>=3,SUMIFS(GW$6:GW$505,$C$6:$C$505,">="&EOMONTH($C8,-3),$C$6:$C$505,"<="&$C8)*4,"")) -> 0 | HA8: =IF(COUNTIFS($GZ$6:$GZ$505,">"&0)>=24,IF(GZ$3="%",AVERAGEIFS(GZ$6:GZ$505,$C$6:$C$505,">="&EOMONTH($C8,-INPUT!$O$113),$C$6:$C$505,"<="&$C8),SUMIFS(GZ$6:GZ$505,$C$6:$C$505,">="&EOMONTH($C8,-INPUT!$O$113),$C$6:$C$505,"<="&$C8)),0) -> 0 | HC8: =IF(HB$3="%",AVERAGEIFS(HB$6:HB$505,$C$6:$C$505,">="&EOMONTH($C8,-INPUT!$O$113),$C$6:$C$505,"<="&$C8),SUMIFS(HB$6:HB$505,$C$6:$C$505,">="&EOMONTH($C8,-INPUT!$O$113),$C$6:$C$505,"<="&$C8)) -> 0 | HD8: =IF(HD$3="%",IF(COUNTIFS($C$6:$C8,"<>"&"")>=3,AVERAGEIFS(HB$6:HB$505,$C$6:$C$505,">="&EOMONTH($C8,-3),$C$6:$C$505,"<="&$C8),""),IF(COUNTIFS($C$6:$C8,"<>"&"")>=3,SUMIFS(HB$6:HB$505,$C$6:$C$505,">="&EOMONTH($C8,-3),$C$6:$C$505,"<="&$C8)*4,"")) -> 0 | HF8: =IF(COUNTIFS($HE$6:$HE$505,">"&0)>=24,IF(HE$3="%",AVERAGEIFS(HE$6:HE$505,$C$6:$C$505,">="&EOMONTH($C8,-INPUT!$O$113),$C$6:$C$505,"<="&$C8),SUMIFS(HE$6:HE$505,$C$6:$C$505,">="&EOMONTH($C8,-INPUT!$O$113),$C$6:$C$505,"<="&$C8)),0) -> 0 | HH8: =IF(HG$3="%",AVERAGEIFS(HG$6:HG$505,$C$6:$C$505,">="&EOMONTH($C8,-INPUT!$O$113),$C$6:$C$505,"<="&$C8),SUMIFS(HG$6:HG$505,$C$6:$C$505,">="&EOMONTH($C8,-INPUT!$O$113),$C$6:$C$505,"<="&$C8)) -> 0 | HI8: =IF(HI$3="%",IF(COUNTIFS($C$6:$C8,"<>"&"")>=3,AVERAGEIFS(HG$6:HG$505,$C$6:$C$505,">="&EOMONTH($C8,-3),$C$6:$C$505,"<="&$C8),""),IF(COUNTIFS($C$6:$C8,"<>"&"")>=3,SUMIFS(HG$6:HG$505,$C$6:$C$505,">="&EOMONTH($C8,-3),$C$6:$C$505,"<="&$C8)*4,"")) -> 0 | HK8: =IF(COUNTIFS($HJ$6:$HJ$505,">"&0)>=24,IF(HJ$3="%",AVERAGEIFS(HJ$6:HJ$505,$C$6:$C$505,">="&EOMONTH($C8,-INPUT!$O$113),$C$6:$C$505,"<="&$C8),SUMIFS(HJ$6:HJ$505,$C$6:$C$505,">="&EOMONTH($C8,-INPUT!$O$113),$C$6:$C$505,"<="&$C8)),0) -> 0 | HM8: =IF(HL$3="%",AVERAGEIFS(HL$6:HL$505,$C$6:$C$505,">="&EOMONTH($C8,-INPUT!$O$113),$C$6:$C$505,"<="&$C8),SUMIFS(HL$6:HL$505,$C$6:$C$505,">="&EOMONTH($C8,-INPUT!$O$113),$C$6:$C$505,"<="&$C8)) -> 0 | HN8: =IF(HN$3="%",IF(COUNTIFS($C$6:$C8,"<>"&"")>=3,AVERAGEIFS(HL$6:HL$505,$C$6:$C$505,">="&EOMONTH($C8,-3),$C$6:$C$505,"<="&$C8),""),IF(COUNTIFS($C$6:$C8,"<>"&"")>=3,SUMIFS(HL$6:HL$505,$C$6:$C$505,">="&EOMONTH($C8,-3),$C$6:$C$505,"<="&$C8)*4,"")) -> 0 | HP8: =IF(COUNTIFS($HO$6:$HO$505,">"&0)>=24,IF(HO$3="%",AVERAGEIFS(HO$6:HO$505,$C$6:$C$505,">="&EOMONTH($C8,-INPUT!$O$113),$C$6:$C$505,"<="&$C8),SUMIFS(HO$6:HO$505,$C$6:$C$505,">="&EOMONTH($C8,-INPUT!$O$113),$C$6:$C$505,"<="&$C8)),0) -> 0 | HR8: =IF(HQ$3="%",AVERAGEIFS(HQ$6:HQ$505,$C$6:$C$505,">="&EOMONTH($C8,-INPUT!$O$113),$C$6:$C$505,"<="&$C8),SUMIFS(HQ$6:HQ$505,$C$6:$C$505,">="&EOMONTH($C8,-INPUT!$O$113),$C$6:$C$505,"<="&$C8)) -> 0 | HS8: =IF(HS$3="%",IF(COUNTIFS($C$6:$C8,"<>"&"")>=3,AVERAGEIFS(HQ$6:HQ$505,$C$6:$C$505,">="&EOMONTH($C8,-3),$C$6:$C$505,"<="&$C8),""),IF(COUNTIFS($C$6:$C8,"<>"&"")>=3,SUMIFS(HQ$6:HQ$505,$C$6:$C$505,">="&EOMONTH($C8,-3),$C$6:$C$505,"<="&$C8)*4,"")) -> 0 | HU8: =IF(COUNTIFS($HT$6:$HT$505,">"&0)>=24,IF(HT$3="%",AVERAGEIFS(HT$6:HT$505,$C$6:$C$505,">="&EOMONTH($C8,-INPUT!$O$113),$C$6:$C$505,"<="&$C8),SUMIFS(HT$6:HT$505,$C$6:$C$505,">="&EOMONTH($C8,-INPUT!$O$113),$C$6:$C$505,"<="&$C8)),0) -> 0 | HW8: =IF(HV$3="%",AVERAGEIFS(HV$6:HV$505,$C$6:$C$505,">="&EOMONTH($C8,-INPUT!$O$113),$C$6:$C$505,"<="&$C8),SUMIFS(HV$6:HV$505,$C$6:$C$505,">="&EOMONTH($C8,-INPUT!$O$113),$C$6:$C$505,"<="&$C8)) -> 0 | HX8: =IF(HX$3="%",IF(COUNTIFS($C$6:$C8,"<>"&"")>=3,AVERAGEIFS(HV$6:HV$505,$C$6:$C$505,">="&EOMONTH($C8,-3),$C$6:$C$505,"<="&$C8),""),IF(COUNTIFS($C$6:$C8,"<>"&"")>=3,SUMIFS(HV$6:HV$505,$C$6:$C$505,">="&EOMONTH($C8,-3),$C$6:$C$505,"<="&$C8)*4,"")) -> 0 | HZ8: =IF(COUNTIFS($HY$6:$HY$505,">"&0)>=24,IF(HY$3="%",AVERAGEIFS(HY$6:HY$505,$C$6:$C$505,">="&EOMONTH($C8,-INPUT!$O$113),$C$6:$C$505,"<="&$C8),SUMIFS(HY$6:HY$505,$C$6:$C$505,">="&EOMONTH($C8,-INPUT!$O$113),$C$6:$C$505,"<="&$C8)),0) -> 0 | IA8: 6851.325333 | IB8: =SUMIFS(IA$6:IA$505,$C$6:$C$505,">="&EOMONTH($C8,-INPUT!$O$113),$C$6:$C$505,"<="&$C8) -> 18856.456 | IC8: =IF(COUNTIFS($C$6:HK8,"<>"&"")>=3,SUMIFS(IA$6:IA$505,$C$6:$C$505,">="&EOMONTH($C8,-3),$C$6:$C$505,"<="&$C8)*4,"") -> 75425.824 | ID8: =IF(COUNTIFS($C$6:HK8,"<>"&"")>=6,SUMIFS(IA$6:IA$505,$C$6:$C$505,">="&EOMONTH($C8,-6),$C$6:$C$505,"<="&$C8)*2,"") -> 37712.912 | IE8: -3148.674667 | IF8: =IF(COUNTIFS($IE$6:$IE$505,">"&0)>=24,SUMIFS(IE$6:IE$505,$C$6:$C$505,">="&EOMONTH($C8,-INPUT!$O$113),$C$6:$C$505,"<="&$C8),0) -> -11143.544 | IG8: 11624.79365 | IH8: =IFERROR(SUMIFS(IG$6:IG$505,$C$6:$C$505,">="&EOMONTH($C8,-INPUT!$O$113),$C$6:$C$505,"<="&$C8),0) -> 31139.20159 | II8: =IFERROR(IF(II$3="%",IF(COUNTIFS($C$6:$C8,"<>"&"")>=3,AVERAGEIFS(D$6:D$505,$C$6:$C$505,">="&EOMONTH($C8,-3),$C$6:$C$505,"<="&$C8),""),IF(COUNTIFS($C$6:$C8,"<>"&"")>=3,SUMIFS(D$6:D$505,$C$6:$C$505,">="&EOMONTH($C8,-3),$C$6:$C$505,"<="&$C8)*4,"")) / IF(II$3="%",IF(COUNTIFS($C$6:$C8,"<>"&"")>=3,AVERAGEIFS(Y$6:Y$505,$C$6:$C$505,">="&EOMONTH($C8,-3),$C$6:$C$505,"<="&$C8),""),IF(COUNTIFS($C$6:$C8,"<>"&"")>=3,SUMIFS(Y$6:Y$505,$C$6:$C$505,">="&EOMONTH($C8,-3),$C$6:$C$505,"<="&$C8)*4,"")),0) -> 10424.85484 | IJ8: 5434.282609 | IK8: =IFERROR(SUMIFS(IJ$6:IJ$505,$C$6:$C$505,">="&EOMONTH($C8,-INPUT!$O$113),$C$6:$C$505,"<="&$C8),0) -> 15578.55231 | IL8: =IFERROR(IF(IL$3="%",IF(COUNTIFS($C$6:$C8,"<>"&"")>=3,AVERAGEIFS(H$6:H$505,$C$6:$C$505,">="&EOMONTH($C8,-3),$C$6:$C$505,"<="&$C8),""),IF(COUNTIFS($C$6:$C8,"<>"&"")>=3,SUMIFS(H$6:H$505,$C$6:$C$505,">="&EOMONTH($C8,-3),$C$6:$C$505,"<="&$C8)*4,"")) / IF(IL$3="%",IF(COUNTIFS($C$6:$C8,"<>"&"")>=3,AVERAGEIFS(AB$6:AB$505,$C$6:$C$505,">="&EOMONTH($C8,-3),$C$6:$C$505,"<="&$C8),""),IF(COUNTIFS($C$6:$C8,"<>"&"")>=3,SUMIFS(AB$6:AB$505,$C$6:$C$505,">="&EOMONTH($C8,-3),$C$6:$C$505,"<="&$C8)*4,"")),0) -> 5196.474074
A9: 1 | B9: 2018 | C9: 2018-01-01 | D9: 334020.3333 | E9: =SUMIFS(D$6:D$505,$C$6:$C$505,">="&EOMONTH($C9,-INPUT!$O$113),$C$6:$C$505,"<="&$C9) -> 1626702.333 | F9: =IF(COUNTIFS($C$6:C9,"<>"&"")>=3,SUMIFS(D$6:D$505,$C$6:$C$505,">="&EOMONTH($C9,-3),$C$6:$C$505,"<="&$C9)*4,"") -> 5293652 | G9: =IF(COUNTIFS($C$6:C9,"<>"&"")>=6,SUMIFS(D$6:D$505,$C$6:$C$505,">="&EOMONTH($C9,-6),$C$6:$C$505,"<="&$C9)*2,"") ->  | H9: 243230 | I9: =IF(COUNTIFS($H$6:$H$505,">"&0)>=24,SUMIFS(H$6:H$505,$C$6:$C$505,">="&EOMONTH($C9,-INPUT!$O$113),$C$6:$C$505,"<="&$C9),0) -> 944754 | J9: 90717.57667 | K9: =SUMIFS(J$6:J$505,$C$6:$C$505,">="&EOMONTH($C9,-INPUT!$O$113),$C$6:$C$505,"<="&$C9) -> 230978.2667 | L9: =IF(COUNTIFS($C$6:C9,"<>"&"")>=3,SUMIFS(J$6:J$505,$C$6:$C$505,">="&EOMONTH($C9,-3),$C$6:$C$505,"<="&$C9)*4,"") -> 729228.2 | M9: =IF(COUNTIFS($C$6:C9,"<>"&"")>=6,SUMIFS(J$6:J$505,$C$6:$C$505,">="&EOMONTH($C9,-6),$C$6:$C$505,"<="&$C9)*2,"") ->  | N9: 89540.66667 | O9: =IF(COUNTIFS($N$6:$N$505,">"&0)>=24,SUMIFS(N$6:N$505,$C$6:$C$505,">="&EOMONTH($C9,-INPUT!$O$113),$C$6:$C$505,"<="&$C9),0) -> 295660.6667 | P9: 0.2715929769 | Q9: 0.1419917227 | R9: 0.3681316724 | S9: 16121.72 | T9: =SUMIFS(S$6:S$505,$C$6:$C$505,">="&EOMONTH($C9,-INPUT!$O$113),$C$6:$C$505,"<="&$C9) -> -77658.84 | U9: =IF(COUNTIFS($C$6:C9,"<>"&"")>=3,SUMIFS(S$6:S$505,$C$6:$C$505,">="&EOMONTH($C9,-3),$C$6:$C$505,"<="&$C9)*4,"") -> -258552.24 | V9: =IF(COUNTIFS($C$6:C9,"<>"&"")>=6,SUMIFS(S$6:S$505,$C$6:$C$505,">="&EOMONTH($C9,-6),$C$6:$C$505,"<="&$C9)*2,"") ->  | W9: 12101 | X9: =IF(COUNTIFS($W$6:$W$505,">"&0)>=24,SUMIFS(W$6:W$505,$C$6:$C$505,">="&EOMONTH($C9,-INPUT!$O$113),$C$6:$C$505,"<="&$C9),0) -> 0 | Y9: 41 | Z9: =AVERAGEIFS(Y$6:Y$505,$C$6:$C$505,">="&EOMONTH($C9,-INPUT!$O$113),$C$6:$C$505,"<="&$C9) -> 41.25 | AA9: =IF(COUNTIFS($C$6:$C9,"<>"&"")>=3,AVERAGEIFS(Y$6:Y$505,$C$6:$C$505,">="&EOMONTH($C9,-3),$C$6:$C$505,"<="&$C9),"") -> 41.66666667 | AB9: 42 | AC9: =IF(COUNTIFS($AB$6:$AB$505,">"&0)>=24,AVERAGEIFS(AB$6:AB$505,$C$6:$C$505,">="&EOMONTH($C9,-INPUT!$O$113),$C$6:$C$505,"<="&$C9),0) -> 44.25 | AD9: 7526.75 | AE9: =SUMIFS(AD$6:AD$505,$C$6:$C$505,">="&EOMONTH($C9,-INPUT!$O$113),$C$6:$C$505,"<="&$C9) -> 29336.85 | AF9: =IF(COUNTIFS($C$6:$C9,"<>"&"")>=3,SUMIFS(AD$6:AD$505,$C$6:$C$505,">="&EOMONTH($C9,-3),$C$6:$C$505,"<="&$C9)*4,"") -> 89847.2 | AG9: 7728 | AH9: =IF(COUNTIFS($AG$6:$AG$505,">"&0)>=24,SUMIFS(AG$6:AG$505,$C$6:$C$505,">="&EOMONTH($C9,-INPUT!$O$113),$C$6:$C$505,"<="&$C9),0) -> 32568 | AI9: 300466.49 | AJ9: =SUMIFS(AI$6:AI$505,$C$6:$C$505,">="&EOMONTH($C9,-INPUT!$O$113),$C$6:$C$505,"<="&$C9) -> 1119713.88 | AK9: =IF(COUNTIFS($C$6:$C9,"<>"&"")>=3,SUMIFS(AI$6:AI$505,$C$6:$C$505,">="&EOMONTH($C9,-3),$C$6:$C$505,"<="&$C9)*4,"") -> 3446223.68 | AL9: 293399 | AM9: =IF(COUNTIFS($AL$6:$AL$505,">"&0)>=24,SUMIFS(AL$6:AL$505,$C$6:$C$505,">="&EOMONTH($C9,-INPUT!$O$113),$C$6:$C$505,"<="&$C9),0) -> 1176524 | AN9: 44.37776375 | AO9: 55.44911377 | AP9: 58.91838588 | AQ9: 31.47386128 | AR9: 29.00865881 | AS9: =IFERROR(IF('Chart Support '!$D$68=1,AI9/Y9,AI9/AD9),0) -> 7328.450976 | AT9: =IFERROR(IF('Chart Support '!$D$68=1,SUMIFS(AS$6:AS$505,$C$6:$C$505,">="&EOMONTH($C9,-INPUT!$O$113),$C$6:$C$505,"<="&$C9),$AJ9/$AE9),0) -> 27141.67212 | AU9: =IFERROR(IF('Chart Support '!$D$68=1,$AK9/IF(IC$3="%",IF(COUNTIFS($C$6:$C9,"<>"&"")>=3,AVERAGEIFS(Y$6:Y$505,$C$6:$C$505,">="&EOMONTH($C9,-3),$C$6:$C$505,"<="&$C9),""),IF(COUNTIFS($C$6:$C9,"<>"&"")>=3,SUMIFS(Y$6:Y$505,$C$6:$C$505,">="&EOMONTH($C9,-3),$C$6:$C$505,"<="&$C9)*4,"")),$AK9/$AF9),0) -> 6892.44736 | AV9: =IFERROR(IF('Chart Support '!$D$68=1,$AL9/$AB9,$AL9/$AG9),0) -> 6985.690476 | AW9: =IFERROR(IF('Chart Support '!$D$68=1,SUMIFS(AV$6:AV$505,$C$6:$C$505,">="&EOMONTH($C9,-INPUT!$O$113),$C$6:$C$505,"<="&$C9),$AM9/$AH9),0) -> 26611.42726 | AX9: 0.05365563394 | AY9: -0.06935596797 | AZ9: -0.07502479932 | BA9: 0.04124417602 | BB9: 0 | BC9: 3.544444444 | BD9: =IF(BC$3="%",AVERAGEIFS(BC$6:BC$505,$C$6:$C$505,">="&EOMONTH($C9,-INPUT!$O$113),$C$6:$C$505,"<="&$C9),SUMIFS(BC$6:BC$505,$C$6:$C$505,">="&EOMONTH($C9,-INPUT!$O$113),$C$6:$C$505,"<="&$C9)) -> 13.67777778 | BE9: =IF(BE$3="%",IF(COUNTIFS($C$6:$C9,"<>"&"")>=3,AVERAGEIFS(BC$6:BC$505,$C$6:$C$505,">="&EOMONTH($C9,-3),$C$6:$C$505,"<="&$C9),""),IF(COUNTIFS($C$6:$C9,"<>"&"")>=3,SUMIFS(BC$6:BC$505,$C$6:$C$505,">="&EOMONTH($C9,-3),$C$6:$C$505,"<="&$C9)*4,"")) -> 41.53333333 | BG9: =IF(COUNTIFS($BF$6:$BF$505,">"&0)>=24,IF(BF$3="%",AVERAGEIFS(BF$6:BF$505,$C$6:$C$505,">="&EOMONTH($C9,-INPUT!$O$113),$C$6:$C$505,"<="&$C9),SUMIFS(BF$6:BF$505,$C$6:$C$505,">="&EOMONTH($C9,-INPUT!$O$113),$C$6:$C$505,"<="&$C9)),0) -> 0 | BH9: 29 | BI9: =IF(BH$3="%",AVERAGEIFS(BH$6:BH$505,$C$6:$C$505,">="&EOMONTH($C9,-INPUT!$O$113),$C$6:$C$505,"<="&$C9),SUMIFS(BH$6:BH$505,$C$6:$C$505,">="&EOMONTH($C9,-INPUT!$O$113),$C$6:$C$505,"<="&$C9)) -> 119 | BJ9: =IF(BJ$3="%",IF(COUNTIFS($C$6:$C9,"<>"&"")>=3,AVERAGEIFS(BH$6:BH$505,$C$6:$C$505,">="&EOMONTH($C9,-3),$C$6:$C$505,"<="&$C9),""),IF(COUNTIFS($C$6:$C9,"<>"&"")>=3,SUMIFS(BH$6:BH$505,$C$6:$C$505,">="&EOMONTH($C9,-3),$C$6:$C$505,"<="&$C9)*4,"")) -> 356 | BK9: 30 | BL9: =IF(COUNTIFS($BK$6:$BK$505,">"&0)>=24,IF(BK$3="%",AVERAGEIFS(BK$6:BK$505,$C$6:$C$505,">="&EOMONTH($C9,-INPUT!$O$113),$C$6:$C$505,"<="&$C9),SUMIFS(BK$6:BK$505,$C$6:$C$505,">="&EOMONTH($C9,-INPUT!$O$113),$C$6:$C$505,"<="&$C9)),0) -> 120 | BM9: 0.8438479624 | BN9: =IF(BM$3="%",AVERAGEIFS(BM$6:BM$505,$C$6:$C$505,">="&EOMONTH($C9,-INPUT!$O$113),$C$6:$C$505,"<="&$C9),SUMIFS(BM$6:BM$505,$C$6:$C$505,">="&EOMONTH($C9,-INPUT!$O$113),$C$6:$C$505,"<="&$C9)) -> 0.7023496394 | BO9: =IF(BO$3="%",IF(COUNTIFS($C$6:$C9,"<>"&"")>=3,AVERAGEIFS(BM$6:BM$505,$C$6:$C$505,">="&EOMONTH($C9,-3),$C$6:$C$505,"<="&$C9),""),IF(COUNTIFS($C$6:$C9,"<>"&"")>=3,SUMIFS(BM$6:BM$505,$C$6:$C$505,">="&EOMONTH($C9,-3),$C$6:$C$505,"<="&$C9)*4,"")) -> 0.7147895986 | BP9: 0.73 | BQ9: =IF(BP$3="%",AVERAGEIFS(BP$6:BP$505,$C$6:$C$505,">="&EOMONTH($C9,-INPUT!$O$113),$C$6:$C$505,"<="&$C9),SUMIFS(BP$6:BP$505,$C$6:$C$505,">="&EOMONTH($C9,-INPUT!$O$113),$C$6:$C$505,"<="&$C9)) -> 0.73 | BR9: 10302.42241 | BS9: =IF(BR$3="%",AVERAGEIFS(BR$6:BR$505,$C$6:$C$505,">="&EOMONTH($C9,-INPUT!$O$113),$C$6:$C$505,"<="&$C9),SUMIFS(BR$6:BR$505,$C$6:$C$505,">="&EOMONTH($C9,-INPUT!$O$113),$C$6:$C$505,"<="&$C9)) -> 37846.10775 | BT9: =IF(BT$3="%",IF(COUNTIFS($C$6:$C9,"<>"&"")>=3,AVERAGEIFS(BR$6:BR$505,$C$6:$C$505,">="&EOMONTH($C9,-3),$C$6:$C$505,"<="&$C9),""),IF(COUNTIFS($C$6:$C9,"<>"&"")>=3,SUMIFS(BR$6:BR$505,$C$6:$C$505,">="&EOMONTH($C9,-3),$C$6:$C$505,"<="&$C9)*4,"")) -> 115515.7763 | BU9: 9869.4102 | BV9: =IF(COUNTIFS($BU$6:$BU$505,">"&0)>=24,IF(BU$3="%",AVERAGEIFS(BU$6:BU$505,$C$6:$C$505,">="&EOMONTH($C9,-INPUT!$O$113),$C$6:$C$505,"<="&$C9),SUMIFS(BU$6:BU$505,$C$6:$C$505,">="&EOMONTH($C9,-INPUT!$O$113),$C$6:$C$505,"<="&$C9)),0) -> 38260.8642 | BW9: 78.78900859 | BX9: =IF(BW$3="%",AVERAGEIFS(BW$6:BW$505,$C$6:$C$505,">="&EOMONTH($C9,-INPUT!$O$113),$C$6:$C$505,"<="&$C9),SUMIFS(BW$6:BW$505,$C$6:$C$505,">="&EOMONTH($C9,-INPUT!$O$113),$C$6:$C$505,"<="&$C9)) -> 329.3232065 | BY9: =IF(BY$3="%",IF(COUNTIFS($C$6:$C9,"<>"&"")>=3,AVERAGEIFS(BW$6:BW$505,$C$6:$C$505,">="&EOMONTH($C9,-3),$C$6:$C$505,"<="&$C9),""),IF(COUNTIFS($C$6:$C9,"<>"&"")>=3,SUMIFS(BW$6:BW$505,$C$6:$C$505,">="&EOMONTH($C9,-3),$C$6:$C$505,"<="&$C9)*4,"")) -> 989.3090443 | BZ9: 85 | CA9: =IF(COUNTIFS($BZ$6:$BZ$505,">"&0)>=24,IF(BZ$3="%",AVERAGEIFS(BZ$6:BZ$505,$C$6:$C$505,">="&EOMONTH($C9,-INPUT!$O$113),$C$6:$C$505,"<="&$C9),SUMIFS(BZ$6:BZ$505,$C$6:$C$505,">="&EOMONTH($C9,-INPUT!$O$113),$C$6:$C$505,"<="&$C9)),0) -> 340 | CB9: 66.48594436 | CC9: =IF(CB$3="%",AVERAGEIFS(CB$6:CB$505,$C$6:$C$505,">="&EOMONTH($C9,-INPUT!$O$113),$C$6:$C$505,"<="&$C9),SUMIFS(CB$6:CB$505,$C$6:$C$505,">="&EOMONTH($C9,-INPUT!$O$113),$C$6:$C$505,"<="&$C9)) -> 230.6221089 | CD9: =IF(CD$3="%",IF(COUNTIFS($C$6:$C9,"<>"&"")>=3,AVERAGEIFS(CB$6:CB$505,$C$6:$C$505,">="&EOMONTH($C9,-3),$C$6:$C$505,"<="&$C9),""),IF(COUNTIFS($C$6:$C9,"<>"&"")>=3,SUMIFS(CB$6:CB$505,$C$6:$C$505,">="&EOMONTH($C9,-3),$C$6:$C$505,"<="&$C9)*4,"")) -> 704.3694592 | CE9: 66.3 | CF9: =IF(COUNTIFS($CE$6:$CE$505,">"&0)>=24,IF(CE$3="%",AVERAGEIFS(CE$6:CE$505,$C$6:$C$505,">="&EOMONTH($C9,-INPUT!$O$113),$C$6:$C$505,"<="&$C9),SUMIFS(CE$6:CE$505,$C$6:$C$505,">="&EOMONTH($C9,-INPUT!$O$113),$C$6:$C$505,"<="&$C9)),0) -> 266.9 | CG9: 111 | CH9: =IF(CG$3="%",AVERAGEIFS(CG$6:CG$505,$C$6:$C$505,">="&EOMONTH($C9,-INPUT!$O$113),$C$6:$C$505,"<="&$C9),SUMIFS(CG$6:CG$505,$C$6:$C$505,">="&EOMONTH($C9,-INPUT!$O$113),$C$6:$C$505,"<="&$C9)) -> 432 | CI9: =IF(CI$3="%",IF(COUNTIFS($C$6:$C9,"<>"&"")>=3,AVERAGEIFS(CG$6:CG$505,$C$6:$C$505,">="&EOMONTH($C9,-3),$C$6:$C$505,"<="&$C9),""),IF(COUNTIFS($C$6:$C9,"<>"&"")>=3,SUMIFS(CG$6:CG$505,$C$6:$C$505,">="&EOMONTH($C9,-3),$C$6:$C$505,"<="&$C9)*4,"")) -> 1300 | CK9: =IF(COUNTIFS($CJ$6:$CJ$505,">"&0)>=24,IF(CJ$3="%",AVERAGEIFS(CJ$6:CJ$505,$C$6:$C$505,">="&EOMONTH($C9,-INPUT!$O$113),$C$6:$C$505,"<="&$C9),SUMIFS(CJ$6:CJ$505,$C$6:$C$505,">="&EOMONTH($C9,-INPUT!$O$113),$C$6:$C$505,"<="&$C9)),0) -> 0 | CL9: 2700 | CM9: =IF(CL$3="%",AVERAGEIFS(CL$6:CL$505,$C$6:$C$505,">="&EOMONTH($C9,-INPUT!$O$113),$C$6:$C$505,"<="&$C9),SUMIFS(CL$6:CL$505,$C$6:$C$505,">="&EOMONTH($C9,-INPUT!$O$113),$C$6:$C$505,"<="&$C9)) -> 10306 | CN9: =IF(CN$3="%",IF(COUNTIFS($C$6:$C9,"<>"&"")>=3,AVERAGEIFS(CL$6:CL$505,$C$6:$C$505,">="&EOMONTH($C9,-3),$C$6:$C$505,"<="&$C9),""),IF(COUNTIFS($C$6:$C9,"<>"&"")>=3,SUMIFS(CL$6:CL$505,$C$6:$C$505,">="&EOMONTH($C9,-3),$C$6:$C$505,"<="&$C9)*4,"")) -> 31264 | CP9: =IF(COUNTIFS($CO$6:$CO$505,">"&0)>=24,IF(CO$3="%",AVERAGEIFS(CO$6:CO$505,$C$6:$C$505,">="&EOMONTH($C9,-INPUT!$O$113),$C$6:$C$505,"<="&$C9),SUMIFS(CO$6:CO$505,$C$6:$C$505,">="&EOMONTH($C9,-INPUT!$O$113),$C$6:$C$505,"<="&$C9)),0) -> 0 | CQ9: 298770.25 | CR9: =IF(CQ$3="%",AVERAGEIFS(CQ$6:CQ$505,$C$6:$C$505,">="&EOMONTH($C9,-INPUT!$O$113),$C$6:$C$505,"<="&$C9),SUMIFS(CQ$6:CQ$505,$C$6:$C$505,">="&EOMONTH($C9,-INPUT!$O$113),$C$6:$C$505,"<="&$C9)) -> 1125080.81 | CS9: =IF(CS$3="%",IF(COUNTIFS($C$6:$C9,"<>"&"")>=3,AVERAGEIFS(CQ$6:CQ$505,$C$6:$C$505,">="&EOMONTH($C9,-3),$C$6:$C$505,"<="&$C9),""),IF(COUNTIFS($C$6:$C9,"<>"&"")>=3,SUMIFS(CQ$6:CQ$505,$C$6:$C$505,">="&EOMONTH($C9,-3),$C$6:$C$505,"<="&$C9)*4,"")) -> 3424263.6 | CT9: 304861 | CU9: =IF(COUNTIFS($CT$6:$CT$505,">"&0)>=24,IF(CT$3="%",AVERAGEIFS(CT$6:CT$505,$C$6:$C$505,">="&EOMONTH($C9,-INPUT!$O$113),$C$6:$C$505,"<="&$C9),SUMIFS(CT$6:CT$505,$C$6:$C$505,">="&EOMONTH($C9,-INPUT!$O$113),$C$6:$C$505,"<="&$C9)),0) -> 1124925 | CV9: 40574.01 | CW9: =IF(CV$3="%",AVERAGEIFS(CV$6:CV$505,$C$6:$C$505,">="&EOMONTH($C9,-INPUT!$O$113),$C$6:$C$505,"<="&$C9),SUMIFS(CV$6:CV$505,$C$6:$C$505,">="&EOMONTH($C9,-INPUT!$O$113),$C$6:$C$505,"<="&$C9)) -> 67815.26 | CX9: =IF(CX$3="%",IF(COUNTIFS($C$6:$C9,"<>"&"")>=3,AVERAGEIFS(CV$6:CV$505,$C$6:$C$505,">="&EOMONTH($C9,-3),$C$6:$C$505,"<="&$C9),""),IF(COUNTIFS($C$6:$C9,"<>"&"")>=3,SUMIFS(CV$6:CV$505,$C$6:$C$505,">="&EOMONTH($C9,-3),$C$6:$C$505,"<="&$C9)*4,"")) -> 248001.04 | CY9: 28913 | CZ9: =IF(COUNTIFS($CY$6:$CY$505,">"&0)>=24,IF(CY$3="%",AVERAGEIFS(CY$6:CY$505,$C$6:$C$505,">="&EOMONTH($C9,-INPUT!$O$113),$C$6:$C$505,"<="&$C9),SUMIFS(CY$6:CY$505,$C$6:$C$505,">="&EOMONTH($C9,-INPUT!$O$113),$C$6:$C$505,"<="&$C9)),0) -> 52912 | DA9: 0.56 | DB9: =IF(DA$3="%",AVERAGEIFS(DA$6:DA$505,$C$6:$C$505,">="&EOMONTH($C9,-INPUT!$O$113),$C$6:$C$505,"<="&$C9),SUMIFS(DA$6:DA$505,$C$6:$C$505,">="&EOMONTH($C9,-INPUT!$O$113),$C$6:$C$505,"<="&$C9)) -> 0.595 | DC9: =IF(DC$3="%",IF(COUNTIFS($C$6:$C9,"<>"&"")>=3,AVERAGEIFS(DA$6:DA$505,$C$6:$C$505,">="&EOMONTH($C9,-3),$C$6:$C$505,"<="&$C9),""),IF(COUNTIFS($C$6:$C9,"<>"&"")>=3,SUMIFS(DA$6:DA$505,$C$6:$C$505,">="&EOMONTH($C9,-3),$C$6:$C$505,"<="&$C9)*4,"")) -> 0.59 | DD9: 0.59 | DE9: =IF(COUNTIFS($DD$6:$DD$505,">"&0)>=24,IF(DD$3="%",AVERAGEIFS(DD$6:DD$505,$C$6:$C$505,">="&EOMONTH($C9,-INPUT!$O$113),$C$6:$C$505,"<="&$C9),SUMIFS(DD$6:DD$505,$C$6:$C$505,">="&EOMONTH($C9,-INPUT!$O$113),$C$6:$C$505,"<="&$C9)),0) -> 0.5375 | DF9: 0.47 | DG9: =IF(DF$3="%",AVERAGEIFS(DF$6:DF$505,$C$6:$C$505,">="&EOMONTH($C9,-INPUT!$O$113),$C$6:$C$505,"<="&$C9),SUMIFS(DF$6:DF$505,$C$6:$C$505,">="&EOMONTH($C9,-INPUT!$O$113),$C$6:$C$505,"<="&$C9)) -> 0.435 | DH9: =IF(DH$3="%",IF(COUNTIFS($C$6:$C9,"<>"&"")>=3,AVERAGEIFS(DF$6:DF$505,$C$6:$C$505,">="&EOMONTH($C9,-3),$C$6:$C$505,"<="&$C9),""),IF(COUNTIFS($C$6:$C9,"<>"&"")>=3,SUMIFS(DF$6:DF$505,$C$6:$C$505,">="&EOMONTH($C9,-3),$C$6:$C$505,"<="&$C9)*4,"")) -> 0.4333333333 | DI9: 0.48 | DJ9: =IF(COUNTIFS($DI$6:$DI$505,">"&0)>=24,IF(DI$3="%",AVERAGEIFS(DI$6:DI$505,$C$6:$C$505,">="&EOMONTH($C9,-INPUT!$O$113),$C$6:$C$505,"<="&$C9),SUMIFS(DI$6:DI$505,$C$6:$C$505,">="&EOMONTH($C9,-INPUT!$O$113),$C$6:$C$505,"<="&$C9)),0) -> 0.42 | DL9: =IF(DK$3="%",AVERAGEIFS(DK$6:DK$505,$C$6:$C$505,">="&EOMONTH($C9,-INPUT!$O$113),$C$6:$C$505,"<="&$C9),SUMIFS(DK$6:DK$505,$C$6:$C$505,">="&EOMONTH($C9,-INPUT!$O$113),$C$6:$C$505,"<="&$C9)) -> 0 | DM9: =IF(DM$3="%",IF(COUNTIFS($C$6:$C9,"<>"&"")>=3,AVERAGEIFS(DK$6:DK$505,$C$6:$C$505,">="&EOMONTH($C9,-3),$C$6:$C$505,"<="&$C9),""),IF(COUNTIFS($C$6:$C9,"<>"&"")>=3,SUMIFS(DK$6:DK$505,$C$6:$C$505,">="&EOMONTH($C9,-3),$C$6:$C$505,"<="&$C9)*4,"")) -> 0 | DO9: =IF(COUNTIFS($DN$6:$DN$505,">"&0)>=24,IF(DN$3="%",AVERAGEIFS(DN$6:DN$505,$C$6:$C$505,">="&EOMONTH($C9,-INPUT!$O$113),$C$6:$C$505,"<="&$C9),SUMIFS(DN$6:DN$505,$C$6:$C$505,">="&EOMONTH($C9,-INPUT!$O$113),$C$6:$C$505,"<="&$C9)),0) -> 0 | DQ9: =IF(DP$3="%",AVERAGEIFS(DP$6:DP$505,$C$6:$C$505,">="&EOMONTH($C9,-INPUT!$O$113),$C$6:$C$505,"<="&$C9),SUMIFS(DP$6:DP$505,$C$6:$C$505,">="&EOMONTH($C9,-INPUT!$O$113),$C$6:$C$505,"<="&$C9)) -> 0 | DR9: =IF(DR$3="%",IF(COUNTIFS($C$6:$C9,"<>"&"")>=3,AVERAGEIFS(DP$6:DP$505,$C$6:$C$505,">="&EOMONTH($C9,-3),$C$6:$C$505,"<="&$C9),""),IF(COUNTIFS($C$6:$C9,"<>"&"")>=3,SUMIFS(DP$6:DP$505,$C$6:$C$505,">="&EOMONTH($C9,-3),$C$6:$C$505,"<="&$C9)*4,"")) -> 0 | DT9: =IF(COUNTIFS($DS$6:$DS$505,">"&0)>=24,IF(DS$3="%",AVERAGEIFS(DS$6:DS$505,$C$6:$C$505,">="&EOMONTH($C9,-INPUT!$O$113),$C$6:$C$505,"<="&$C9),SUMIFS(DS$6:DS$505,$C$6:$C$505,">="&EOMONTH($C9,-INPUT!$O$113),$C$6:$C$505,"<="&$C9)),0) -> 0 | DV9: =IF(DU$3="%",AVERAGEIFS(DU$6:DU$505,$C$6:$C$505,">="&EOMONTH($C9,-INPUT!$O$113),$C$6:$C$505,"<="&$C9),SUMIFS(DU$6:DU$505,$C$6:$C$505,">="&EOMONTH($C9,-INPUT!$O$113),$C$6:$C$505,"<="&$C9)) -> 0 | DW9: =IF(DW$3="%",IF(COUNTIFS($C$6:$C9,"<>"&"")>=3,AVERAGEIFS(DU$6:DU$505,$C$6:$C$505,">="&EOMONTH($C9,-3),$C$6:$C$505,"<="&$C9),""),IF(COUNTIFS($C$6:$C9,"<>"&"")>=3,SUMIFS(DU$6:DU$505,$C$6:$C$505,">="&EOMONTH($C9,-3),$C$6:$C$505,"<="&$C9)*4,"")) -> 0 | DY9: =IF(COUNTIFS($DX$6:$DX$505,">"&0)>=24,IF(DX$3="%",AVERAGEIFS(DX$6:DX$505,$C$6:$C$505,">="&EOMONTH($C9,-INPUT!$O$113),$C$6:$C$505,"<="&$C9),SUMIFS(DX$6:DX$505,$C$6:$C$505,">="&EOMONTH($C9,-INPUT!$O$113),$C$6:$C$505,"<="&$C9)),0) -> 0 | EA9: =IF(DZ$3="%",AVERAGEIFS(DZ$6:DZ$505,$C$6:$C$505,">="&EOMONTH($C9,-INPUT!$O$113),$C$6:$C$505,"<="&$C9),SUMIFS(DZ$6:DZ$505,$C$6:$C$505,">="&EOMONTH($C9,-INPUT!$O$113),$C$6:$C$505,"<="&$C9)) -> 0 | EB9: =IF(EB$3="%",IF(COUNTIFS($C$6:$C9,"<>"&"")>=3,AVERAGEIFS(DZ$6:DZ$505,$C$6:$C$505,">="&EOMONTH($C9,-3),$C$6:$C$505,"<="&$C9),""),IF(COUNTIFS($C$6:$C9,"<>"&"")>=3,SUMIFS(DZ$6:DZ$505,$C$6:$C$505,">="&EOMONTH($C9,-3),$C$6:$C$505,"<="&$C9)*4,"")) -> 0 | ED9: =IF(COUNTIFS($EC$6:$EC$505,">"&0)>=24,IF(EC$3="%",AVERAGEIFS(EC$6:EC$505,$C$6:$C$505,">="&EOMONTH($C9,-INPUT!$O$113),$C$6:$C$505,"<="&$C9),SUMIFS(EC$6:EC$505,$C$6:$C$505,">="&EOMONTH($C9,-INPUT!$O$113),$C$6:$C$505,"<="&$C9)),0) -> 0 | EF9: =IF(EE$3="%",AVERAGEIFS(EE$6:EE$505,$C$6:$C$505,">="&EOMONTH($C9,-INPUT!$O$113),$C$6:$C$505,"<="&$C9),SUMIFS(EE$6:EE$505,$C$6:$C$505,">="&EOMONTH($C9,-INPUT!$O$113),$C$6:$C$505,"<="&$C9)) -> 0 | EG9: =IF(EG$3="%",IF(COUNTIFS($C$6:$C9,"<>"&"")>=3,AVERAGEIFS(EE$6:EE$505,$C$6:$C$505,">="&EOMONTH($C9,-3),$C$6:$C$505,"<="&$C9),""),IF(COUNTIFS($C$6:$C9,"<>"&"")>=3,SUMIFS(EE$6:EE$505,$C$6:$C$505,">="&EOMONTH($C9,-3),$C$6:$C$505,"<="&$C9)*4,"")) -> 0 | EI9: =IF(COUNTIFS($EH$6:$EH$505,">"&0)>=24,IF(EH$3="%",AVERAGEIFS(EH$6:EH$505,$C$6:$C$505,">="&EOMONTH($C9,-INPUT!$O$113),$C$6:$C$505,"<="&$C9),SUMIFS(EH$6:EH$505,$C$6:$C$505,">="&EOMONTH($C9,-INPUT!$O$113),$C$6:$C$505,"<="&$C9)),0) -> 0 | EK9: =IF(EJ$3="%",AVERAGEIFS(EJ$6:EJ$505,$C$6:$C$505,">="&EOMONTH($C9,-INPUT!$O$113),$C$6:$C$505,"<="&$C9),SUMIFS(EJ$6:EJ$505,$C$6:$C$505,">="&EOMONTH($C9,-INPUT!$O$113),$C$6:$C$505,"<="&$C9)) -> 0 | EL9: =IF(EL$3="%",IF(COUNTIFS($C$6:$C9,"<>"&"")>=3,AVERAGEIFS(EJ$6:EJ$505,$C$6:$C$505,">="&EOMONTH($C9,-3),$C$6:$C$505,"<="&$C9),""),IF(COUNTIFS($C$6:$C9,"<>"&"")>=3,SUMIFS(EJ$6:EJ$505,$C$6:$C$505,">="&EOMONTH($C9,-3),$C$6:$C$505,"<="&$C9)*4,"")) -> 0 | EN9: =IF(COUNTIFS($EM$6:$EM$505,">"&0)>=24,IF(EM$3="%",AVERAGEIFS(EM$6:EM$505,$C$6:$C$505,">="&EOMONTH($C9,-INPUT!$O$113),$C$6:$C$505,"<="&$C9),SUMIFS(EM$6:EM$505,$C$6:$C$505,">="&EOMONTH($C9,-INPUT!$O$113),$C$6:$C$505,"<="&$C9)),0) -> 0 | EP9: =IF(EO$3="%",AVERAGEIFS(EO$6:EO$505,$C$6:$C$505,">="&EOMONTH($C9,-INPUT!$O$113),$C$6:$C$505,"<="&$C9),SUMIFS(EO$6:EO$505,$C$6:$C$505,">="&EOMONTH($C9,-INPUT!$O$113),$C$6:$C$505,"<="&$C9)) -> 0 | EQ9: =IF(EQ$3="%",IF(COUNTIFS($C$6:$C9,"<>"&"")>=3,AVERAGEIFS(EO$6:EO$505,$C$6:$C$505,">="&EOMONTH($C9,-3),$C$6:$C$505,"<="&$C9),""),IF(COUNTIFS($C$6:$C9,"<>"&"")>=3,SUMIFS(EO$6:EO$505,$C$6:$C$505,">="&EOMONTH($C9,-3),$C$6:$C$505,"<="&$C9)*4,"")) -> 0 | ES9: =IF(COUNTIFS($ER$6:$ER$505,">"&0)>=24,IF(ER$3="%",AVERAGEIFS(ER$6:ER$505,$C$6:$C$505,">="&EOMONTH($C9,-INPUT!$O$113),$C$6:$C$505,"<="&$C9),SUMIFS(ER$6:ER$505,$C$6:$C$505,">="&EOMONTH($C9,-INPUT!$O$113),$C$6:$C$505,"<="&$C9)),0) -> 0 | EU9: =IF(ET$3="%",AVERAGEIFS(ET$6:ET$505,$C$6:$C$505,">="&EOMONTH($C9,-INPUT!$O$113),$C$6:$C$505,"<="&$C9),SUMIFS(ET$6:ET$505,$C$6:$C$505,">="&EOMONTH($C9,-INPUT!$O$113),$C$6:$C$505,"<="&$C9)) -> 0 | EV9: =IF(EV$3="%",IF(COUNTIFS($C$6:$C9,"<>"&"")>=3,AVERAGEIFS(ET$6:ET$505,$C$6:$C$505,">="&EOMONTH($C9,-3),$C$6:$C$505,"<="&$C9),""),IF(COUNTIFS($C$6:$C9,"<>"&"")>=3,SUMIFS(ET$6:ET$505,$C$6:$C$505,">="&EOMONTH($C9,-3),$C$6:$C$505,"<="&$C9)*4,"")) -> 0 | EX9: =IF(COUNTIFS($EW$6:$EW$505,">"&0)>=24,IF(EW$3="%",AVERAGEIFS(EW$6:EW$505,$C$6:$C$505,">="&EOMONTH($C9,-INPUT!$O$113),$C$6:$C$505,"<="&$C9),SUMIFS(EW$6:EW$505,$C$6:$C$505,">="&EOMONTH($C9,-INPUT!$O$113),$C$6:$C$505,"<="&$C9)),0) -> 0 | EZ9: =IF(EY$3="%",AVERAGEIFS(EY$6:EY$505,$C$6:$C$505,">="&EOMONTH($C9,-INPUT!$O$113),$C$6:$C$505,"<="&$C9),SUMIFS(EY$6:EY$505,$C$6:$C$505,">="&EOMONTH($C9,-INPUT!$O$113),$C$6:$C$505,"<="&$C9)) -> 0 | FA9: =IF(FA$3="%",IF(COUNTIFS($C$6:$C9,"<>"&"")>=3,AVERAGEIFS(EY$6:EY$505,$C$6:$C$505,">="&EOMONTH($C9,-3),$C$6:$C$505,"<="&$C9),""),IF(COUNTIFS($C$6:$C9,"<>"&"")>=3,SUMIFS(EY$6:EY$505,$C$6:$C$505,">="&EOMONTH($C9,-3),$C$6:$C$505,"<="&$C9)*4,"")) -> 0 | FC9: =IF(COUNTIFS($FB$6:$FB$505,">"&0)>=24,IF(FB$3="%",AVERAGEIFS(FB$6:FB$505,$C$6:$C$505,">="&EOMONTH($C9,-INPUT!$O$113),$C$6:$C$505,"<="&$C9),SUMIFS(FB$6:FB$505,$C$6:$C$505,">="&EOMONTH($C9,-INPUT!$O$113),$C$6:$C$505,"<="&$C9)),0) -> 0 | FE9: =IF(FD$3="%",AVERAGEIFS(FD$6:FD$505,$C$6:$C$505,">="&EOMONTH($C9,-INPUT!$O$113),$C$6:$C$505,"<="&$C9),SUMIFS(FD$6:FD$505,$C$6:$C$505,">="&EOMONTH($C9,-INPUT!$O$113),$C$6:$C$505,"<="&$C9)) -> 0 | FF9: =IF(FF$3="%",IF(COUNTIFS($C$6:$C9,"<>"&"")>=3,AVERAGEIFS(FD$6:FD$505,$C$6:$C$505,">="&EOMONTH($C9,-3),$C$6:$C$505,"<="&$C9),""),IF(COUNTIFS($C$6:$C9,"<>"&"")>=3,SUMIFS(FD$6:FD$505,$C$6:$C$505,">="&EOMONTH($C9,-3),$C$6:$C$505,"<="&$C9)*4,"")) -> 0 | FH9: =IF(COUNTIFS($FG$6:$FG$505,">"&0)>=24,IF(FG$3="%",AVERAGEIFS(FG$6:FG$505,$C$6:$C$505,">="&EOMONTH($C9,-INPUT!$O$113),$C$6:$C$505,"<="&$C9),SUMIFS(FG$6:FG$505,$C$6:$C$505,">="&EOMONTH($C9,-INPUT!$O$113),$C$6:$C$505,"<="&$C9)),0) -> 0 | FJ9: =IF(FI$3="%",AVERAGEIFS(FI$6:FI$505,$C$6:$C$505,">="&EOMONTH($C9,-INPUT!$O$113),$C$6:$C$505,"<="&$C9),SUMIFS(FI$6:FI$505,$C$6:$C$505,">="&EOMONTH($C9,-INPUT!$O$113),$C$6:$C$505,"<="&$C9)) -> 0 | FK9: =IF(FK$3="%",IF(COUNTIFS($C$6:$C9,"<>"&"")>=3,AVERAGEIFS(FI$6:FI$505,$C$6:$C$505,">="&EOMONTH($C9,-3),$C$6:$C$505,"<="&$C9),""),IF(COUNTIFS($C$6:$C9,"<>"&"")>=3,SUMIFS(FI$6:FI$505,$C$6:$C$505,">="&EOMONTH($C9,-3),$C$6:$C$505,"<="&$C9)*4,"")) -> 0 | FM9: =IF(COUNTIFS($FL$6:$FL$505,">"&0)>=24,IF(FL$3="%",AVERAGEIFS(FL$6:FL$505,$C$6:$C$505,">="&EOMONTH($C9,-INPUT!$O$113),$C$6:$C$505,"<="&$C9),SUMIFS(FL$6:FL$505,$C$6:$C$505,">="&EOMONTH($C9,-INPUT!$O$113),$C$6:$C$505,"<="&$C9)),0) -> 0 | FO9: =IF(FN$3="%",AVERAGEIFS(FN$6:FN$505,$C$6:$C$505,">="&EOMONTH($C9,-INPUT!$O$113),$C$6:$C$505,"<="&$C9),SUMIFS(FN$6:FN$505,$C$6:$C$505,">="&EOMONTH($C9,-INPUT!$O$113),$C$6:$C$505,"<="&$C9)) -> 0 | FP9: =IF(FP$3="%",IF(COUNTIFS($C$6:$C9,"<>"&"")>=3,AVERAGEIFS(FN$6:FN$505,$C$6:$C$505,">="&EOMONTH($C9,-3),$C$6:$C$505,"<="&$C9),""),IF(COUNTIFS($C$6:$C9,"<>"&"")>=3,SUMIFS(FN$6:FN$505,$C$6:$C$505,">="&EOMONTH($C9,-3),$C$6:$C$505,"<="&$C9)*4,"")) -> 0 | FR9: =IF(COUNTIFS($FQ$6:$FQ$505,">"&0)>=24,IF(FQ$3="%",AVERAGEIFS(FQ$6:FQ$505,$C$6:$C$505,">="&EOMONTH($C9,-INPUT!$O$113),$C$6:$C$505,"<="&$C9),SUMIFS(FQ$6:FQ$505,$C$6:$C$505,">="&EOMONTH($C9,-INPUT!$O$113),$C$6:$C$505,"<="&$C9)),0) -> 0 | FT9: =IF(FS$3="%",AVERAGEIFS(FS$6:FS$505,$C$6:$C$505,">="&EOMONTH($C9,-INPUT!$O$113),$C$6:$C$505,"<="&$C9),SUMIFS(FS$6:FS$505,$C$6:$C$505,">="&EOMONTH($C9,-INPUT!$O$113),$C$6:$C$505,"<="&$C9)) -> 0 | FU9: =IF(FU$3="%",IF(COUNTIFS($C$6:$C9,"<>"&"")>=3,AVERAGEIFS(FS$6:FS$505,$C$6:$C$505,">="&EOMONTH($C9,-3),$C$6:$C$505,"<="&$C9),""),IF(COUNTIFS($C$6:$C9,"<>"&"")>=3,SUMIFS(FS$6:FS$505,$C$6:$C$505,">="&EOMONTH($C9,-3),$C$6:$C$505,"<="&$C9)*4,"")) -> 0 | FW9: =IF(COUNTIFS($FV$6:$FV$505,">"&0)>=24,IF(FV$3="%",AVERAGEIFS(FV$6:FV$505,$C$6:$C$505,">="&EOMONTH($C9,-INPUT!$O$113),$C$6:$C$505,"<="&$C9),SUMIFS(FV$6:FV$505,$C$6:$C$505,">="&EOMONTH($C9,-INPUT!$O$113),$C$6:$C$505,"<="&$C9)),0) -> 0 | FY9: =IF(FX$3="%",AVERAGEIFS(FX$6:FX$505,$C$6:$C$505,">="&EOMONTH($C9,-INPUT!$O$113),$C$6:$C$505,"<="&$C9),SUMIFS(FX$6:FX$505,$C$6:$C$505,">="&EOMONTH($C9,-INPUT!$O$113),$C$6:$C$505,"<="&$C9)) -> 0 | FZ9: =IF(FZ$3="%",IF(COUNTIFS($C$6:$C9,"<>"&"")>=3,AVERAGEIFS(FX$6:FX$505,$C$6:$C$505,">="&EOMONTH($C9,-3),$C$6:$C$505,"<="&$C9),""),IF(COUNTIFS($C$6:$C9,"<>"&"")>=3,SUMIFS(FX$6:FX$505,$C$6:$C$505,">="&EOMONTH($C9,-3),$C$6:$C$505,"<="&$C9)*4,"")) -> 0 | GB9: =IF(COUNTIFS($GA$6:$GA$505,">"&0)>=24,IF(GA$3="%",AVERAGEIFS(GA$6:GA$505,$C$6:$C$505,">="&EOMONTH($C9,-INPUT!$O$113),$C$6:$C$505,"<="&$C9),SUMIFS(GA$6:GA$505,$C$6:$C$505,">="&EOMONTH($C9,-INPUT!$O$113),$C$6:$C$505,"<="&$C9)),0) -> 0 | GD9: =IF(GC$3="%",AVERAGEIFS(GC$6:GC$505,$C$6:$C$505,">="&EOMONTH($C9,-INPUT!$O$113),$C$6:$C$505,"<="&$C9),SUMIFS(GC$6:GC$505,$C$6:$C$505,">="&EOMONTH($C9,-INPUT!$O$113),$C$6:$C$505,"<="&$C9)) -> 0 | GE9: =IF(GE$3="%",IF(COUNTIFS($C$6:$C9,"<>"&"")>=3,AVERAGEIFS(GC$6:GC$505,$C$6:$C$505,">="&EOMONTH($C9,-3),$C$6:$C$505,"<="&$C9),""),IF(COUNTIFS($C$6:$C9,"<>"&"")>=3,SUMIFS(GC$6:GC$505,$C$6:$C$505,">="&EOMONTH($C9,-3),$C$6:$C$505,"<="&$C9)*4,"")) -> 0 | GG9: =IF(COUNTIFS($GF$6:$GF$505,">"&0)>=24,IF(GF$3="%",AVERAGEIFS(GF$6:GF$505,$C$6:$C$505,">="&EOMONTH($C9,-INPUT!$O$113),$C$6:$C$505,"<="&$C9),SUMIFS(GF$6:GF$505,$C$6:$C$505,">="&EOMONTH($C9,-INPUT!$O$113),$C$6:$C$505,"<="&$C9)),0) -> 0 | GI9: =IF(GH$3="%",AVERAGEIFS(GH$6:GH$505,$C$6:$C$505,">="&EOMONTH($C9,-INPUT!$O$113),$C$6:$C$505,"<="&$C9),SUMIFS(GH$6:GH$505,$C$6:$C$505,">="&EOMONTH($C9,-INPUT!$O$113),$C$6:$C$505,"<="&$C9)) -> 0 | GJ9: =IF(GJ$3="%",IF(COUNTIFS($C$6:$C9,"<>"&"")>=3,AVERAGEIFS(GH$6:GH$505,$C$6:$C$505,">="&EOMONTH($C9,-3),$C$6:$C$505,"<="&$C9),""),IF(COUNTIFS($C$6:$C9,"<>"&"")>=3,SUMIFS(GH$6:GH$505,$C$6:$C$505,">="&EOMONTH($C9,-3),$C$6:$C$505,"<="&$C9)*4,"")) -> 0 | GL9: =IF(COUNTIFS($GK$6:$GK$505,">"&0)>=24,IF(GK$3="%",AVERAGEIFS(GK$6:GK$505,$C$6:$C$505,">="&EOMONTH($C9,-INPUT!$O$113),$C$6:$C$505,"<="&$C9),SUMIFS(GK$6:GK$505,$C$6:$C$505,">="&EOMONTH($C9,-INPUT!$O$113),$C$6:$C$505,"<="&$C9)),0) -> 0 | GN9: =IF(GM$3="%",AVERAGEIFS(GM$6:GM$505,$C$6:$C$505,">="&EOMONTH($C9,-INPUT!$O$113),$C$6:$C$505,"<="&$C9),SUMIFS(GM$6:GM$505,$C$6:$C$505,">="&EOMONTH($C9,-INPUT!$O$113),$C$6:$C$505,"<="&$C9)) -> 0 | GO9: =IF(GO$3="%",IF(COUNTIFS($C$6:$C9,"<>"&"")>=3,AVERAGEIFS(GM$6:GM$505,$C$6:$C$505,">="&EOMONTH($C9,-3),$C$6:$C$505,"<="&$C9),""),IF(COUNTIFS($C$6:$C9,"<>"&"")>=3,SUMIFS(GM$6:GM$505,$C$6:$C$505,">="&EOMONTH($C9,-3),$C$6:$C$505,"<="&$C9)*4,"")) -> 0 | GQ9: =IF(COUNTIFS($GP$6:$GP$505,">"&0)>=24,IF(GP$3="%",AVERAGEIFS(GP$6:GP$505,$C$6:$C$505,">="&EOMONTH($C9,-INPUT!$O$113),$C$6:$C$505,"<="&$C9),SUMIFS(GP$6:GP$505,$C$6:$C$505,">="&EOMONTH($C9,-INPUT!$O$113),$C$6:$C$505,"<="&$C9)),0) -> 0 | GS9: =IF(GR$3="%",AVERAGEIFS(GR$6:GR$505,$C$6:$C$505,">="&EOMONTH($C9,-INPUT!$O$113),$C$6:$C$505,"<="&$C9),SUMIFS(GR$6:GR$505,$C$6:$C$505,">="&EOMONTH($C9,-INPUT!$O$113),$C$6:$C$505,"<="&$C9)) -> 0 | GT9: =IF(GT$3="%",IF(COUNTIFS($C$6:$C9,"<>"&"")>=3,AVERAGEIFS(GR$6:GR$505,$C$6:$C$505,">="&EOMONTH($C9,-3),$C$6:$C$505,"<="&$C9),""),IF(COUNTIFS($C$6:$C9,"<>"&"")>=3,SUMIFS(GR$6:GR$505,$C$6:$C$505,">="&EOMONTH($C9,-3),$C$6:$C$505,"<="&$C9)*4,"")) -> 0 | GV9: =IF(COUNTIFS($GU$6:$GU$505,">"&0)>=24,IF(GU$3="%",AVERAGEIFS(GU$6:GU$505,$C$6:$C$505,">="&EOMONTH($C9,-INPUT!$O$113),$C$6:$C$505,"<="&$C9),SUMIFS(GU$6:GU$505,$C$6:$C$505,">="&EOMONTH($C9,-INPUT!$O$113),$C$6:$C$505,"<="&$C9)),0) -> 0 | GX9: =IF(GW$3="%",AVERAGEIFS(GW$6:GW$505,$C$6:$C$505,">="&EOMONTH($C9,-INPUT!$O$113),$C$6:$C$505,"<="&$C9),SUMIFS(GW$6:GW$505,$C$6:$C$505,">="&EOMONTH($C9,-INPUT!$O$113),$C$6:$C$505,"<="&$C9)) -> 0 | GY9: =IF(GY$3="%",IF(COUNTIFS($C$6:$C9,"<>"&"")>=3,AVERAGEIFS(GW$6:GW$505,$C$6:$C$505,">="&EOMONTH($C9,-3),$C$6:$C$505,"<="&$C9),""),IF(COUNTIFS($C$6:$C9,"<>"&"")>=3,SUMIFS(GW$6:GW$505,$C$6:$C$505,">="&EOMONTH($C9,-3),$C$6:$C$505,"<="&$C9)*4,"")) -> 0 | HA9: =IF(COUNTIFS($GZ$6:$GZ$505,">"&0)>=24,IF(GZ$3="%",AVERAGEIFS(GZ$6:GZ$505,$C$6:$C$505,">="&EOMONTH($C9,-INPUT!$O$113),$C$6:$C$505,"<="&$C9),SUMIFS(GZ$6:GZ$505,$C$6:$C$505,">="&EOMONTH($C9,-INPUT!$O$113),$C$6:$C$505,"<="&$C9)),0) -> 0 | HC9: =IF(HB$3="%",AVERAGEIFS(HB$6:HB$505,$C$6:$C$505,">="&EOMONTH($C9,-INPUT!$O$113),$C$6:$C$505,"<="&$C9),SUMIFS(HB$6:HB$505,$C$6:$C$505,">="&EOMONTH($C9,-INPUT!$O$113),$C$6:$C$505,"<="&$C9)) -> 0 | HD9: =IF(HD$3="%",IF(COUNTIFS($C$6:$C9,"<>"&"")>=3,AVERAGEIFS(HB$6:HB$505,$C$6:$C$505,">="&EOMONTH($C9,-3),$C$6:$C$505,"<="&$C9),""),IF(COUNTIFS($C$6:$C9,"<>"&"")>=3,SUMIFS(HB$6:HB$505,$C$6:$C$505,">="&EOMONTH($C9,-3),$C$6:$C$505,"<="&$C9)*4,"")) -> 0 | HF9: =IF(COUNTIFS($HE$6:$HE$505,">"&0)>=24,IF(HE$3="%",AVERAGEIFS(HE$6:HE$505,$C$6:$C$505,">="&EOMONTH($C9,-INPUT!$O$113),$C$6:$C$505,"<="&$C9),SUMIFS(HE$6:HE$505,$C$6:$C$505,">="&EOMONTH($C9,-INPUT!$O$113),$C$6:$C$505,"<="&$C9)),0) -> 0 | HH9: =IF(HG$3="%",AVERAGEIFS(HG$6:HG$505,$C$6:$C$505,">="&EOMONTH($C9,-INPUT!$O$113),$C$6:$C$505,"<="&$C9),SUMIFS(HG$6:HG$505,$C$6:$C$505,">="&EOMONTH($C9,-INPUT!$O$113),$C$6:$C$505,"<="&$C9)) -> 0 | HI9: =IF(HI$3="%",IF(COUNTIFS($C$6:$C9,"<>"&"")>=3,AVERAGEIFS(HG$6:HG$505,$C$6:$C$505,">="&EOMONTH($C9,-3),$C$6:$C$505,"<="&$C9),""),IF(COUNTIFS($C$6:$C9,"<>"&"")>=3,SUMIFS(HG$6:HG$505,$C$6:$C$505,">="&EOMONTH($C9,-3),$C$6:$C$505,"<="&$C9)*4,"")) -> 0 | HK9: =IF(COUNTIFS($HJ$6:$HJ$505,">"&0)>=24,IF(HJ$3="%",AVERAGEIFS(HJ$6:HJ$505,$C$6:$C$505,">="&EOMONTH($C9,-INPUT!$O$113),$C$6:$C$505,"<="&$C9),SUMIFS(HJ$6:HJ$505,$C$6:$C$505,">="&EOMONTH($C9,-INPUT!$O$113),$C$6:$C$505,"<="&$C9)),0) -> 0 | HM9: =IF(HL$3="%",AVERAGEIFS(HL$6:HL$505,$C$6:$C$505,">="&EOMONTH($C9,-INPUT!$O$113),$C$6:$C$505,"<="&$C9),SUMIFS(HL$6:HL$505,$C$6:$C$505,">="&EOMONTH($C9,-INPUT!$O$113),$C$6:$C$505,"<="&$C9)) -> 0 | HN9: =IF(HN$3="%",IF(COUNTIFS($C$6:$C9,"<>"&"")>=3,AVERAGEIFS(HL$6:HL$505,$C$6:$C$505,">="&EOMONTH($C9,-3),$C$6:$C$505,"<="&$C9),""),IF(COUNTIFS($C$6:$C9,"<>"&"")>=3,SUMIFS(HL$6:HL$505,$C$6:$C$505,">="&EOMONTH($C9,-3),$C$6:$C$505,"<="&$C9)*4,"")) -> 0 | HP9: =IF(COUNTIFS($HO$6:$HO$505,">"&0)>=24,IF(HO$3="%",AVERAGEIFS(HO$6:HO$505,$C$6:$C$505,">="&EOMONTH($C9,-INPUT!$O$113),$C$6:$C$505,"<="&$C9),SUMIFS(HO$6:HO$505,$C$6:$C$505,">="&EOMONTH($C9,-INPUT!$O$113),$C$6:$C$505,"<="&$C9)),0) -> 0 | HR9: =IF(HQ$3="%",AVERAGEIFS(HQ$6:HQ$505,$C$6:$C$505,">="&EOMONTH($C9,-INPUT!$O$113),$C$6:$C$505,"<="&$C9),SUMIFS(HQ$6:HQ$505,$C$6:$C$505,">="&EOMONTH($C9,-INPUT!$O$113),$C$6:$C$505,"<="&$C9)) -> 0 | HS9: =IF(HS$3="%",IF(COUNTIFS($C$6:$C9,"<>"&"")>=3,AVERAGEIFS(HQ$6:HQ$505,$C$6:$C$505,">="&EOMONTH($C9,-3),$C$6:$C$505,"<="&$C9),""),IF(COUNTIFS($C$6:$C9,"<>"&"")>=3,SUMIFS(HQ$6:HQ$505,$C$6:$C$505,">="&EOMONTH($C9,-3),$C$6:$C$505,"<="&$C9)*4,"")) -> 0 | HU9: =IF(COUNTIFS($HT$6:$HT$505,">"&0)>=24,IF(HT$3="%",AVERAGEIFS(HT$6:HT$505,$C$6:$C$505,">="&EOMONTH($C9,-INPUT!$O$113),$C$6:$C$505,"<="&$C9),SUMIFS(HT$6:HT$505,$C$6:$C$505,">="&EOMONTH($C9,-INPUT!$O$113),$C$6:$C$505,"<="&$C9)),0) -> 0 | HW9: =IF(HV$3="%",AVERAGEIFS(HV$6:HV$505,$C$6:$C$505,">="&EOMONTH($C9,-INPUT!$O$113),$C$6:$C$505,"<="&$C9),SUMIFS(HV$6:HV$505,$C$6:$C$505,">="&EOMONTH($C9,-INPUT!$O$113),$C$6:$C$505,"<="&$C9)) -> 0 | HX9: =IF(HX$3="%",IF(COUNTIFS($C$6:$C9,"<>"&"")>=3,AVERAGEIFS(HV$6:HV$505,$C$6:$C$505,">="&EOMONTH($C9,-3),$C$6:$C$505,"<="&$C9),""),IF(COUNTIFS($C$6:$C9,"<>"&"")>=3,SUMIFS(HV$6:HV$505,$C$6:$C$505,">="&EOMONTH($C9,-3),$C$6:$C$505,"<="&$C9)*4,"")) -> 0 | HZ9: =IF(COUNTIFS($HY$6:$HY$505,">"&0)>=24,IF(HY$3="%",AVERAGEIFS(HY$6:HY$505,$C$6:$C$505,">="&EOMONTH($C9,-INPUT!$O$113),$C$6:$C$505,"<="&$C9),SUMIFS(HY$6:HY$505,$C$6:$C$505,">="&EOMONTH($C9,-INPUT!$O$113),$C$6:$C$505,"<="&$C9)),0) -> 0 | IA9: 6816.213333 | IB9: =SUMIFS(IA$6:IA$505,$C$6:$C$505,">="&EOMONTH($C9,-INPUT!$O$113),$C$6:$C$505,"<="&$C9) -> 25672.66933 | IC9: =IF(COUNTIFS($C$6:HK9,"<>"&"")>=3,SUMIFS(IA$6:IA$505,$C$6:$C$505,">="&EOMONTH($C9,-3),$C$6:$C$505,"<="&$C9)*4,"") -> 79406.944 | ID9: =IF(COUNTIFS($C$6:HK9,"<>"&"")>=6,SUMIFS(IA$6:IA$505,$C$6:$C$505,">="&EOMONTH($C9,-6),$C$6:$C$505,"<="&$C9)*2,"") -> 51345.33867 | IE9: -3183.786667 | IF9: =IF(COUNTIFS($IE$6:$IE$505,">"&0)>=24,SUMIFS(IE$6:IE$505,$C$6:$C$505,">="&EOMONTH($C9,-INPUT!$O$113),$C$6:$C$505,"<="&$C9),0) -> -14327.33067 | IG9: 8146.837398 | IH9: =IFERROR(SUMIFS(IG$6:IG$505,$C$6:$C$505,">="&EOMONTH($C9,-INPUT!$O$113),$C$6:$C$505,"<="&$C9),0) -> 39286.03899 | II9: =IFERROR(IF(II$3="%",IF(COUNTIFS($C$6:$C9,"<>"&"")>=3,AVERAGEIFS(D$6:D$505,$C$6:$C$505,">="&EOMONTH($C9,-3),$C$6:$C$505,"<="&$C9),""),IF(COUNTIFS($C$6:$C9,"<>"&"")>=3,SUMIFS(D$6:D$505,$C$6:$C$505,">="&EOMONTH($C9,-3),$C$6:$C$505,"<="&$C9)*4,"")) / IF(II$3="%",IF(COUNTIFS($C$6:$C9,"<>"&"")>=3,AVERAGEIFS(Y$6:Y$505,$C$6:$C$505,">="&EOMONTH($C9,-3),$C$6:$C$505,"<="&$C9),""),IF(COUNTIFS($C$6:$C9,"<>"&"")>=3,SUMIFS(Y$6:Y$505,$C$6:$C$505,">="&EOMONTH($C9,-3),$C$6:$C$505,"<="&$C9)*4,"")),0) -> 10587.304 | IJ9: 5791.190476 | IK9: =IFERROR(SUMIFS(IJ$6:IJ$505,$C$6:$C$505,">="&EOMONTH($C9,-INPUT!$O$113),$C$6:$C$505,"<="&$C9),0) -> 21369.74278 | IL9: =IFERROR(IF(IL$3="%",IF(COUNTIFS($C$6:$C9,"<>"&"")>=3,AVERAGEIFS(H$6:H$505,$C$6:$C$505,">="&EOMONTH($C9,-3),$C$6:$C$505,"<="&$C9),""),IF(COUNTIFS($C$6:$C9,"<>"&"")>=3,SUMIFS(H$6:H$505,$C$6:$C$505,">="&EOMONTH($C9,-3),$C$6:$C$505,"<="&$C9)*4,"")) / IF(IL$3="%",IF(COUNTIFS($C$6:$C9,"<>"&"")>=3,AVERAGEIFS(AB$6:AB$505,$C$6:$C$505,">="&EOMONTH($C9,-3),$C$6:$C$505,"<="&$C9),""),IF(COUNTIFS($C$6:$C9,"<>"&"")>=3,SUMIFS(AB$6:AB$505,$C$6:$C$505,">="&EOMONTH($C9,-3),$C$6:$C$505,"<="&$C9)*4,"")),0) -> 5467.428571
A10: 2 | B10: 2018 | C10: 2018-02-01 | D10: 127915.3333 | E10: =SUMIFS(D$6:D$505,$C$6:$C$505,">="&EOMONTH($C10,-INPUT!$O$113),$C$6:$C$505,"<="&$C10) -> 1754617.667 | F10: =IF(COUNTIFS($C$6:C10,"<>"&"")>=3,SUMIFS(D$6:D$505,$C$6:$C$505,">="&EOMONTH($C10,-3),$C$6:$C$505,"<="&$C10)*4,"") -> 3800708 | G10: =IF(COUNTIFS($C$6:C10,"<>"&"")>=6,SUMIFS(D$6:D$505,$C$6:$C$505,">="&EOMONTH($C10,-6),$C$6:$C$505,"<="&$C10)*2,"") ->  | H10: 240376 | I10: =IF(COUNTIFS($H$6:$H$505,">"&0)>=24,SUMIFS(H$6:H$505,$C$6:$C$505,">="&EOMONTH($C10,-INPUT!$O$113),$C$6:$C$505,"<="&$C10),0) -> 1185130 | J10: 97189.79667 | K10: =SUMIFS(J$6:J$505,$C$6:$C$505,">="&EOMONTH($C10,-INPUT!$O$113),$C$6:$C$505,"<="&$C10) -> 328168.0633 | L10: =IF(COUNTIFS($C$6:C10,"<>"&"")>=3,SUMIFS(J$6:J$505,$C$6:$C$505,">="&EOMONTH($C10,-3),$C$6:$C$505,"<="&$C10)*4,"") -> 979851.8 | M10: =IF(COUNTIFS($C$6:C10,"<>"&"")>=6,SUMIFS(J$6:J$505,$C$6:$C$505,">="&EOMONTH($C10,-6),$C$6:$C$505,"<="&$C10)*2,"") ->  | N10: 96068.66667 | O10: =IF(COUNTIFS($N$6:$N$505,">"&0)>=24,SUMIFS(N$6:N$505,$C$6:$C$505,">="&EOMONTH($C10,-INPUT!$O$113),$C$6:$C$505,"<="&$C10),0) -> 391729.3333 | P10: 0.7597978611 | Q10: 0.1870310949 | R10: 0.3996599771 | S10: 32788.49 | T10: =SUMIFS(S$6:S$505,$C$6:$C$505,">="&EOMONTH($C10,-INPUT!$O$113),$C$6:$C$505,"<="&$C10) -> -44870.35 | U10: =IF(COUNTIFS($C$6:C10,"<>"&"")>=3,SUMIFS(S$6:S$505,$C$6:$C$505,">="&EOMONTH($C10,-3),$C$6:$C$505,"<="&$C10)*4,"") -> -828.12 | V10: =IF(COUNTIFS($C$6:C10,"<>"&"")>=6,SUMIFS(S$6:S$505,$C$6:$C$505,">="&EOMONTH($C10,-6),$C$6:$C$505,"<="&$C10)*2,"") ->  | W10: 24981 | X10: =IF(COUNTIFS($W$6:$W$505,">"&0)>=24,SUMIFS(W$6:W$505,$C$6:$C$505,">="&EOMONTH($C10,-INPUT!$O$113),$C$6:$C$505,"<="&$C10),0) -> 0 | Y10: 40 | Z10: =AVERAGEIFS(Y$6:Y$505,$C$6:$C$505,">="&EOMONTH($C10,-INPUT!$O$113),$C$6:$C$505,"<="&$C10) -> 41 | AA10: =IF(COUNTIFS($C$6:$C10,"<>"&"")>=3,AVERAGEIFS(Y$6:Y$505,$C$6:$C$505,">="&EOMONTH($C10,-3),$C$6:$C$505,"<="&$C10),"") -> 41 | AB10: 41 | AC10: =IF(COUNTIFS($AB$6:$AB$505,">"&0)>=24,AVERAGEIFS(AB$6:AB$505,$C$6:$C$505,">="&EOMONTH($C10,-INPUT!$O$113),$C$6:$C$505,"<="&$C10),0) -> 43.6 | AD10: 6721.25 | AE10: =SUMIFS(AD$6:AD$505,$C$6:$C$505,">="&EOMONTH($C10,-INPUT!$O$113),$C$6:$C$505,"<="&$C10) -> 36058.1 | AF10: =IF(COUNTIFS($C$6:$C10,"<>"&"")>=3,SUMIFS(AD$6:AD$505,$C$6:$C$505,">="&EOMONTH($C10,-3),$C$6:$C$505,"<="&$C10)*4,"") -> 87271.6 | AG10: 7544 | AH10: =IF(COUNTIFS($AG$6:$AG$505,">"&0)>=24,SUMIFS(AG$6:AG$505,$C$6:$C$505,">="&EOMONTH($C10,-INPUT!$O$113),$C$6:$C$505,"<="&$C10),0) -> 40112 | AI10: 301840.8 | AJ10: =SUMIFS(AI$6:AI$505,$C$6:$C$505,">="&EOMONTH($C10,-INPUT!$O$113),$C$6:$C$505,"<="&$C10) -> 1421554.68 | AK10: =IF(COUNTIFS($C$6:$C10,"<>"&"")>=3,SUMIFS(AI$6:AI$505,$C$6:$C$505,">="&EOMONTH($C10,-3),$C$6:$C$505,"<="&$C10)*4,"") -> 3574140.2 | AL10: 277148 | AM10: =IF(COUNTIFS($AL$6:$AL$505,">"&0)>=24,SUMIFS(AL$6:AL$505,$C$6:$C$505,">="&EOMONTH($C10,-INPUT!$O$113),$C$6:$C$505,"<="&$C10),0) -> 1453672 | AN10: 19.03147976 | AO10: 48.66084643 | AP10: 43.55034169 | AQ10: 31.86320255 | AR10: 29.54552254 | AS10: =IFERROR(IF('Chart Support '!$D$68=1,AI10/Y10,AI10/AD10),0) -> 7546.02 | AT10: =IFERROR(IF('Chart Support '!$D$68=1,SUMIFS(AS$6:AS$505,$C$6:$C$505,">="&EOMONTH($C10,-INPUT!$O$113),$C$6:$C$505,"<="&$C10),$AJ10/$AE10),0) -> 34687.69212 | AU10: =IFERROR(IF('Chart Support '!$D$68=1,$AK10/IF(IC$3="%",IF(COUNTIFS($C$6:$C10,"<>"&"")>=3,AVERAGEIFS(Y$6:Y$505,$C$6:$C$505,">="&EOMONTH($C10,-3),$C$6:$C$505,"<="&$C10),""),IF(COUNTIFS($C$6:$C10,"<>"&"")>=3,SUMIFS(Y$6:Y$505,$C$6:$C$505,">="&EOMONTH($C10,-3),$C$6:$C$505,"<="&$C10)*4,"")),$AK10/$AF10),0) -> 7264.512602 | AV10: =IFERROR(IF('Chart Support '!$D$68=1,$AL10/$AB10,$AL10/$AG10),0) -> 6759.707317 | AW10: =IFERROR(IF('Chart Support '!$D$68=1,SUMIFS(AV$6:AV$505,$C$6:$C$505,">="&EOMONTH($C10,-INPUT!$O$113),$C$6:$C$505,"<="&$C10),$AM10/$AH10),0) -> 33371.13457 | AX10: 0.1086284227 | AY10: -0.03156428003 | AZ10: -0.0002316976821 | BA10: 0.09013595624 | BB10: 0 | BC10: 3.627777778 | BD10: =IF(BC$3="%",AVERAGEIFS(BC$6:BC$505,$C$6:$C$505,">="&EOMONTH($C10,-INPUT!$O$113),$C$6:$C$505,"<="&$C10),SUMIFS(BC$6:BC$505,$C$6:$C$505,">="&EOMONTH($C10,-INPUT!$O$113),$C$6:$C$505,"<="&$C10)) -> 17.30555556 | BE10: =IF(BE$3="%",IF(COUNTIFS($C$6:$C10,"<>"&"")>=3,AVERAGEIFS(BC$6:BC$505,$C$6:$C$505,">="&EOMONTH($C10,-3),$C$6:$C$505,"<="&$C10),""),IF(COUNTIFS($C$6:$C10,"<>"&"")>=3,SUMIFS(BC$6:BC$505,$C$6:$C$505,">="&EOMONTH($C10,-3),$C$6:$C$505,"<="&$C10)*4,"")) -> 42.53333333 | BG10: =IF(COUNTIFS($BF$6:$BF$505,">"&0)>=24,IF(BF$3="%",AVERAGEIFS(BF$6:BF$505,$C$6:$C$505,">="&EOMONTH($C10,-INPUT!$O$113),$C$6:$C$505,"<="&$C10),SUMIFS(BF$6:BF$505,$C$6:$C$505,">="&EOMONTH($C10,-INPUT!$O$113),$C$6:$C$505,"<="&$C10)),0) -> 0 | BH10: 29 | BI10: =IF(BH$3="%",AVERAGEIFS(BH$6:BH$505,$C$6:$C$505,">="&EOMONTH($C10,-INPUT!$O$113),$C$6:$C$505,"<="&$C10),SUMIFS(BH$6:BH$505,$C$6:$C$505,">="&EOMONTH($C10,-INPUT!$O$113),$C$6:$C$505,"<="&$C10)) -> 148 | BJ10: =IF(BJ$3="%",IF(COUNTIFS($C$6:$C10,"<>"&"")>=3,AVERAGEIFS(BH$6:BH$505,$C$6:$C$505,">="&EOMONTH($C10,-3),$C$6:$C$505,"<="&$C10),""),IF(COUNTIFS($C$6:$C10,"<>"&"")>=3,SUMIFS(BH$6:BH$505,$C$6:$C$505,">="&EOMONTH($C10,-3),$C$6:$C$505,"<="&$C10)*4,"")) -> 352 | BK10: 30 | BL10: =IF(COUNTIFS($BK$6:$BK$505,">"&0)>=24,IF(BK$3="%",AVERAGEIFS(BK$6:BK$505,$C$6:$C$505,">="&EOMONTH($C10,-INPUT!$O$113),$C$6:$C$505,"<="&$C10),SUMIFS(BK$6:BK$505,$C$6:$C$505,">="&EOMONTH($C10,-INPUT!$O$113),$C$6:$C$505,"<="&$C10)),0) -> 150 | BM10: 0.8870689655 | BN10: =IF(BM$3="%",AVERAGEIFS(BM$6:BM$505,$C$6:$C$505,">="&EOMONTH($C10,-INPUT!$O$113),$C$6:$C$505,"<="&$C10),SUMIFS(BM$6:BM$505,$C$6:$C$505,">="&EOMONTH($C10,-INPUT!$O$113),$C$6:$C$505,"<="&$C10)) -> 0.7392935046 | BO10: =IF(BO$3="%",IF(COUNTIFS($C$6:$C10,"<>"&"")>=3,AVERAGEIFS(BM$6:BM$505,$C$6:$C$505,">="&EOMONTH($C10,-3),$C$6:$C$505,"<="&$C10),""),IF(COUNTIFS($C$6:$C10,"<>"&"")>=3,SUMIFS(BM$6:BM$505,$C$6:$C$505,">="&EOMONTH($C10,-3),$C$6:$C$505,"<="&$C10)*4,"")) -> 0.7983738245 | BP10: 0.73 | BQ10: =IF(BP$3="%",AVERAGEIFS(BP$6:BP$505,$C$6:$C$505,">="&EOMONTH($C10,-INPUT!$O$113),$C$6:$C$505,"<="&$C10),SUMIFS(BP$6:BP$505,$C$6:$C$505,">="&EOMONTH($C10,-INPUT!$O$113),$C$6:$C$505,"<="&$C10)) -> 0.73 | BR10: 10600.2069 | BS10: =IF(BR$3="%",AVERAGEIFS(BR$6:BR$505,$C$6:$C$505,">="&EOMONTH($C10,-INPUT!$O$113),$C$6:$C$505,"<="&$C10),SUMIFS(BR$6:BR$505,$C$6:$C$505,">="&EOMONTH($C10,-INPUT!$O$113),$C$6:$C$505,"<="&$C10)) -> 48446.31464 | BT10: =IF(BT$3="%",IF(COUNTIFS($C$6:$C10,"<>"&"")>=3,AVERAGEIFS(BR$6:BR$505,$C$6:$C$505,">="&EOMONTH($C10,-3),$C$6:$C$505,"<="&$C10),""),IF(COUNTIFS($C$6:$C10,"<>"&"")>=3,SUMIFS(BR$6:BR$505,$C$6:$C$505,">="&EOMONTH($C10,-3),$C$6:$C$505,"<="&$C10)*4,"")) -> 121486.6332 | BU10: 9869.4102 | BV10: =IF(COUNTIFS($BU$6:$BU$505,">"&0)>=24,IF(BU$3="%",AVERAGEIFS(BU$6:BU$505,$C$6:$C$505,">="&EOMONTH($C10,-INPUT!$O$113),$C$6:$C$505,"<="&$C10),SUMIFS(BU$6:BU$505,$C$6:$C$505,">="&EOMONTH($C10,-INPUT!$O$113),$C$6:$C$505,"<="&$C10)),0) -> 48130.2744 | BW10: 84.55053693 | BX10: =IF(BW$3="%",AVERAGEIFS(BW$6:BW$505,$C$6:$C$505,">="&EOMONTH($C10,-INPUT!$O$113),$C$6:$C$505,"<="&$C10),SUMIFS(BW$6:BW$505,$C$6:$C$505,">="&EOMONTH($C10,-INPUT!$O$113),$C$6:$C$505,"<="&$C10)) -> 413.8737434 | BY10: =IF(BY$3="%",IF(COUNTIFS($C$6:$C10,"<>"&"")>=3,AVERAGEIFS(BW$6:BW$505,$C$6:$C$505,">="&EOMONTH($C10,-3),$C$6:$C$505,"<="&$C10),""),IF(COUNTIFS($C$6:$C10,"<>"&"")>=3,SUMIFS(BW$6:BW$505,$C$6:$C$505,">="&EOMONTH($C10,-3),$C$6:$C$505,"<="&$C10)*4,"")) -> 992.2513899 | BZ10: 85 | CA10: =IF(COUNTIFS($BZ$6:$BZ$505,">"&0)>=24,IF(BZ$3="%",AVERAGEIFS(BZ$6:BZ$505,$C$6:$C$505,">="&EOMONTH($C10,-INPUT!$O$113),$C$6:$C$505,"<="&$C10),SUMIFS(BZ$6:BZ$505,$C$6:$C$505,">="&EOMONTH($C10,-INPUT!$O$113),$C$6:$C$505,"<="&$C10)),0) -> 425 | CB10: 75.00215733 | CC10: =IF(CB$3="%",AVERAGEIFS(CB$6:CB$505,$C$6:$C$505,">="&EOMONTH($C10,-INPUT!$O$113),$C$6:$C$505,"<="&$C10),SUMIFS(CB$6:CB$505,$C$6:$C$505,">="&EOMONTH($C10,-INPUT!$O$113),$C$6:$C$505,"<="&$C10)) -> 305.6242662 | CD10: =IF(CD$3="%",IF(COUNTIFS($C$6:$C10,"<>"&"")>=3,AVERAGEIFS(CB$6:CB$505,$C$6:$C$505,">="&EOMONTH($C10,-3),$C$6:$C$505,"<="&$C10),""),IF(COUNTIFS($C$6:$C10,"<>"&"")>=3,SUMIFS(CB$6:CB$505,$C$6:$C$505,">="&EOMONTH($C10,-3),$C$6:$C$505,"<="&$C10)*4,"")) -> 791.0468158 | CE10: 66.3 | CF10: =IF(COUNTIFS($CE$6:$CE$505,">"&0)>=24,IF(CE$3="%",AVERAGEIFS(CE$6:CE$505,$C$6:$C$505,">="&EOMONTH($C10,-INPUT!$O$113),$C$6:$C$505,"<="&$C10),SUMIFS(CE$6:CE$505,$C$6:$C$505,">="&EOMONTH($C10,-INPUT!$O$113),$C$6:$C$505,"<="&$C10)),0) -> 333.2 | CG10: 111 | CH10: =IF(CG$3="%",AVERAGEIFS(CG$6:CG$505,$C$6:$C$505,">="&EOMONTH($C10,-INPUT!$O$113),$C$6:$C$505,"<="&$C10),SUMIFS(CG$6:CG$505,$C$6:$C$505,">="&EOMONTH($C10,-INPUT!$O$113),$C$6:$C$505,"<="&$C10)) -> 543 | CI10: =IF(CI$3="%",IF(COUNTIFS($C$6:$C10,"<>"&"")>=3,AVERAGEIFS(CG$6:CG$505,$C$6:$C$505,">="&EOMONTH($C10,-3),$C$6:$C$505,"<="&$C10),""),IF(COUNTIFS($C$6:$C10,"<>"&"")>=3,SUMIFS(CG$6:CG$505,$C$6:$C$505,">="&EOMONTH($C10,-3),$C$6:$C$505,"<="&$C10)*4,"")) -> 1320 | CK10: =IF(COUNTIFS($CJ$6:$CJ$505,">"&0)>=24,IF(CJ$3="%",AVERAGEIFS(CJ$6:CJ$505,$C$6:$C$505,">="&EOMONTH($C10,-INPUT!$O$113),$C$6:$C$505,"<="&$C10),SUMIFS(CJ$6:CJ$505,$C$6:$C$505,">="&EOMONTH($C10,-INPUT!$O$113),$C$6:$C$505,"<="&$C10)),0) -> 0 | CL10: 2768 | CM10: =IF(CL$3="%",AVERAGEIFS(CL$6:CL$505,$C$6:$C$505,">="&EOMONTH($C10,-INPUT!$O$113),$C$6:$C$505,"<="&$C10),SUMIFS(CL$6:CL$505,$C$6:$C$505,">="&EOMONTH($C10,-INPUT!$O$113),$C$6:$C$505,"<="&$C10)) -> 13074 | CN10: =IF(CN$3="%",IF(COUNTIFS($C$6:$C10,"<>"&"")>=3,AVERAGEIFS(CL$6:CL$505,$C$6:$C$505,">="&EOMONTH($C10,-3),$C$6:$C$505,"<="&$C10),""),IF(COUNTIFS($C$6:$C10,"<>"&"")>=3,SUMIFS(CL$6:CL$505,$C$6:$C$505,">="&EOMONTH($C10,-3),$C$6:$C$505,"<="&$C10)*4,"")) -> 32392 | CP10: =IF(COUNTIFS($CO$6:$CO$505,">"&0)>=24,IF(CO$3="%",AVERAGEIFS(CO$6:CO$505,$C$6:$C$505,">="&EOMONTH($C10,-INPUT!$O$113),$C$6:$C$505,"<="&$C10),SUMIFS(CO$6:CO$505,$C$6:$C$505,">="&EOMONTH($C10,-INPUT!$O$113),$C$6:$C$505,"<="&$C10)),0) -> 0 | CQ10: 307406 | CR10: =IF(CQ$3="%",AVERAGEIFS(CQ$6:CQ$505,$C$6:$C$505,">="&EOMONTH($C10,-INPUT!$O$113),$C$6:$C$505,"<="&$C10),SUMIFS(CQ$6:CQ$505,$C$6:$C$505,">="&EOMONTH($C10,-INPUT!$O$113),$C$6:$C$505,"<="&$C10)) -> 1432486.81 | CS10: =IF(CS$3="%",IF(COUNTIFS($C$6:$C10,"<>"&"")>=3,AVERAGEIFS(CQ$6:CQ$505,$C$6:$C$505,">="&EOMONTH($C10,-3),$C$6:$C$505,"<="&$C10),""),IF(COUNTIFS($C$6:$C10,"<>"&"")>=3,SUMIFS(CQ$6:CQ$505,$C$6:$C$505,">="&EOMONTH($C10,-3),$C$6:$C$505,"<="&$C10)*4,"")) -> 3560988.48 | CT10: 298386 | CU10: =IF(COUNTIFS($CT$6:$CT$505,">"&0)>=24,IF(CT$3="%",AVERAGEIFS(CT$6:CT$505,$C$6:$C$505,">="&EOMONTH($C10,-INPUT!$O$113),$C$6:$C$505,"<="&$C10),SUMIFS(CT$6:CT$505,$C$6:$C$505,">="&EOMONTH($C10,-INPUT!$O$113),$C$6:$C$505,"<="&$C10)),0) -> 1423311 | CV10: 40604.01 | CW10: =IF(CV$3="%",AVERAGEIFS(CV$6:CV$505,$C$6:$C$505,">="&EOMONTH($C10,-INPUT!$O$113),$C$6:$C$505,"<="&$C10),SUMIFS(CV$6:CV$505,$C$6:$C$505,">="&EOMONTH($C10,-INPUT!$O$113),$C$6:$C$505,"<="&$C10)) -> 108419.27 | CX10: =IF(CX$3="%",IF(COUNTIFS($C$6:$C10,"<>"&"")>=3,AVERAGEIFS(CV$6:CV$505,$C$6:$C$505,">="&EOMONTH($C10,-3),$C$6:$C$505,"<="&$C10),""),IF(COUNTIFS($C$6:$C10,"<>"&"")>=3,SUMIFS(CV$6:CV$505,$C$6:$C$505,">="&EOMONTH($C10,-3),$C$6:$C$505,"<="&$C10)*4,"")) -> 376927.08 | CY10: 28814 | CZ10: =IF(COUNTIFS($CY$6:$CY$505,">"&0)>=24,IF(CY$3="%",AVERAGEIFS(CY$6:CY$505,$C$6:$C$505,">="&EOMONTH($C10,-INPUT!$O$113),$C$6:$C$505,"<="&$C10),SUMIFS(CY$6:CY$505,$C$6:$C$505,">="&EOMONTH($C10,-INPUT!$O$113),$C$6:$C$505,"<="&$C10)),0) -> 81726 | DA10: 0.58 | DB10: =IF(DA$3="%",AVERAGEIFS(DA$6:DA$505,$C$6:$C$505,">="&EOMONTH($C10,-INPUT!$O$113),$C$6:$C$505,"<="&$C10),SUMIFS(DA$6:DA$505,$C$6:$C$505,">="&EOMONTH($C10,-INPUT!$O$113),$C$6:$C$505,"<="&$C10)) -> 0.592 | DC10: =IF(DC$3="%",IF(COUNTIFS($C$6:$C10,"<>"&"")>=3,AVERAGEIFS(DA$6:DA$505,$C$6:$C$505,">="&EOMONTH($C10,-3),$C$6:$C$505,"<="&$C10),""),IF(COUNTIFS($C$6:$C10,"<>"&"")>=3,SUMIFS(DA$6:DA$505,$C$6:$C$505,">="&EOMONTH($C10,-3),$C$6:$C$505,"<="&$C10)*4,"")) -> 0.5766666667 | DD10: 0.59 | DE10: =IF(COUNTIFS($DD$6:$DD$505,">"&0)>=24,IF(DD$3="%",AVERAGEIFS(DD$6:DD$505,$C$6:$C$505,">="&EOMONTH($C10,-INPUT!$O$113),$C$6:$C$505,"<="&$C10),SUMIFS(DD$6:DD$505,$C$6:$C$505,">="&EOMONTH($C10,-INPUT!$O$113),$C$6:$C$505,"<="&$C10)),0) -> 0.548 | DF10: 0.51 | DG10: =IF(DF$3="%",AVERAGEIFS(DF$6:DF$505,$C$6:$C$505,">="&EOMONTH($C10,-INPUT!$O$113),$C$6:$C$505,"<="&$C10),SUMIFS(DF$6:DF$505,$C$6:$C$505,">="&EOMONTH($C10,-INPUT!$O$113),$C$6:$C$505,"<="&$C10)) -> 0.45 | DH10: =IF(DH$3="%",IF(COUNTIFS($C$6:$C10,"<>"&"")>=3,AVERAGEIFS(DF$6:DF$505,$C$6:$C$505,">="&EOMONTH($C10,-3),$C$6:$C$505,"<="&$C10),""),IF(COUNTIFS($C$6:$C10,"<>"&"")>=3,SUMIFS(DF$6:DF$505,$C$6:$C$505,">="&EOMONTH($C10,-3),$C$6:$C$505,"<="&$C10)*4,"")) -> 0.4633333333 | DI10: 0.49 | DJ10: =IF(COUNTIFS($DI$6:$DI$505,">"&0)>=24,IF(DI$3="%",AVERAGEIFS(DI$6:DI$505,$C$6:$C$505,">="&EOMONTH($C10,-INPUT!$O$113),$C$6:$C$505,"<="&$C10),SUMIFS(DI$6:DI$505,$C$6:$C$505,">="&EOMONTH($C10,-INPUT!$O$113),$C$6:$C$505,"<="&$C10)),0) -> 0.434 | DL10: =IF(DK$3="%",AVERAGEIFS(DK$6:DK$505,$C$6:$C$505,">="&EOMONTH($C10,-INPUT!$O$113),$C$6:$C$505,"<="&$C10),SUMIFS(DK$6:DK$505,$C$6:$C$505,">="&EOMONTH($C10,-INPUT!$O$113),$C$6:$C$505,"<="&$C10)) -> 0 | DM10: =IF(DM$3="%",IF(COUNTIFS($C$6:$C10,"<>"&"")>=3,AVERAGEIFS(DK$6:DK$505,$C$6:$C$505,">="&EOMONTH($C10,-3),$C$6:$C$505,"<="&$C10),""),IF(COUNTIFS($C$6:$C10,"<>"&"")>=3,SUMIFS(DK$6:DK$505,$C$6:$C$505,">="&EOMONTH($C10,-3),$C$6:$C$505,"<="&$C10)*4,"")) -> 0 | DO10: =IF(COUNTIFS($DN$6:$DN$505,">"&0)>=24,IF(DN$3="%",AVERAGEIFS(DN$6:DN$505,$C$6:$C$505,">="&EOMONTH($C10,-INPUT!$O$113),$C$6:$C$505,"<="&$C10),SUMIFS(DN$6:DN$505,$C$6:$C$505,">="&EOMONTH($C10,-INPUT!$O$113),$C$6:$C$505,"<="&$C10)),0) -> 0 | DQ10: =IF(DP$3="%",AVERAGEIFS(DP$6:DP$505,$C$6:$C$505,">="&EOMONTH($C10,-INPUT!$O$113),$C$6:$C$505,"<="&$C10),SUMIFS(DP$6:DP$505,$C$6:$C$505,">="&EOMONTH($C10,-INPUT!$O$113),$C$6:$C$505,"<="&$C10)) -> 0 | DR10: =IF(DR$3="%",IF(COUNTIFS($C$6:$C10,"<>"&"")>=3,AVERAGEIFS(DP$6:DP$505,$C$6:$C$505,">="&EOMONTH($C10,-3),$C$6:$C$505,"<="&$C10),""),IF(COUNTIFS($C$6:$C10,"<>"&"")>=3,SUMIFS(DP$6:DP$505,$C$6:$C$505,">="&EOMONTH($C10,-3),$C$6:$C$505,"<="&$C10)*4,"")) -> 0 | DT10: =IF(COUNTIFS($DS$6:$DS$505,">"&0)>=24,IF(DS$3="%",AVERAGEIFS(DS$6:DS$505,$C$6:$C$505,">="&EOMONTH($C10,-INPUT!$O$113),$C$6:$C$505,"<="&$C10),SUMIFS(DS$6:DS$505,$C$6:$C$505,">="&EOMONTH($C10,-INPUT!$O$113),$C$6:$C$505,"<="&$C10)),0) -> 0 | DV10: =IF(DU$3="%",AVERAGEIFS(DU$6:DU$505,$C$6:$C$505,">="&EOMONTH($C10,-INPUT!$O$113),$C$6:$C$505,"<="&$C10),SUMIFS(DU$6:DU$505,$C$6:$C$505,">="&EOMONTH($C10,-INPUT!$O$113),$C$6:$C$505,"<="&$C10)) -> 0 | DW10: =IF(DW$3="%",IF(COUNTIFS($C$6:$C10,"<>"&"")>=3,AVERAGEIFS(DU$6:DU$505,$C$6:$C$505,">="&EOMONTH($C10,-3),$C$6:$C$505,"<="&$C10),""),IF(COUNTIFS($C$6:$C10,"<>"&"")>=3,SUMIFS(DU$6:DU$505,$C$6:$C$505,">="&EOMONTH($C10,-3),$C$6:$C$505,"<="&$C10)*4,"")) -> 0 | DY10: =IF(COUNTIFS($DX$6:$DX$505,">"&0)>=24,IF(DX$3="%",AVERAGEIFS(DX$6:DX$505,$C$6:$C$505,">="&EOMONTH($C10,-INPUT!$O$113),$C$6:$C$505,"<="&$C10),SUMIFS(DX$6:DX$505,$C$6:$C$505,">="&EOMONTH($C10,-INPUT!$O$113),$C$6:$C$505,"<="&$C10)),0) -> 0 | EA10: =IF(DZ$3="%",AVERAGEIFS(DZ$6:DZ$505,$C$6:$C$505,">="&EOMONTH($C10,-INPUT!$O$113),$C$6:$C$505,"<="&$C10),SUMIFS(DZ$6:DZ$505,$C$6:$C$505,">="&EOMONTH($C10,-INPUT!$O$113),$C$6:$C$505,"<="&$C10)) -> 0 | EB10: =IF(EB$3="%",IF(COUNTIFS($C$6:$C10,"<>"&"")>=3,AVERAGEIFS(DZ$6:DZ$505,$C$6:$C$505,">="&EOMONTH($C10,-3),$C$6:$C$505,"<="&$C10),""),IF(COUNTIFS($C$6:$C10,"<>"&"")>=3,SUMIFS(DZ$6:DZ$505,$C$6:$C$505,">="&EOMONTH($C10,-3),$C$6:$C$505,"<="&$C10)*4,"")) -> 0 | ED10: =IF(COUNTIFS($EC$6:$EC$505,">"&0)>=24,IF(EC$3="%",AVERAGEIFS(EC$6:EC$505,$C$6:$C$505,">="&EOMONTH($C10,-INPUT!$O$113),$C$6:$C$505,"<="&$C10),SUMIFS(EC$6:EC$505,$C$6:$C$505,">="&EOMONTH($C10,-INPUT!$O$113),$C$6:$C$505,"<="&$C10)),0) -> 0 | EF10: =IF(EE$3="%",AVERAGEIFS(EE$6:EE$505,$C$6:$C$505,">="&EOMONTH($C10,-INPUT!$O$113),$C$6:$C$505,"<="&$C10),SUMIFS(EE$6:EE$505,$C$6:$C$505,">="&EOMONTH($C10,-INPUT!$O$113),$C$6:$C$505,"<="&$C10)) -> 0 | EG10: =IF(EG$3="%",IF(COUNTIFS($C$6:$C10,"<>"&"")>=3,AVERAGEIFS(EE$6:EE$505,$C$6:$C$505,">="&EOMONTH($C10,-3),$C$6:$C$505,"<="&$C10),""),IF(COUNTIFS($C$6:$C10,"<>"&"")>=3,SUMIFS(EE$6:EE$505,$C$6:$C$505,">="&EOMONTH($C10,-3),$C$6:$C$505,"<="&$C10)*4,"")) -> 0 | EI10: =IF(COUNTIFS($EH$6:$EH$505,">"&0)>=24,IF(EH$3="%",AVERAGEIFS(EH$6:EH$505,$C$6:$C$505,">="&EOMONTH($C10,-INPUT!$O$113),$C$6:$C$505,"<="&$C10),SUMIFS(EH$6:EH$505,$C$6:$C$505,">="&EOMONTH($C10,-INPUT!$O$113),$C$6:$C$505,"<="&$C10)),0) -> 0 | EK10: =IF(EJ$3="%",AVERAGEIFS(EJ$6:EJ$505,$C$6:$C$505,">="&EOMONTH($C10,-INPUT!$O$113),$C$6:$C$505,"<="&$C10),SUMIFS(EJ$6:EJ$505,$C$6:$C$505,">="&EOMONTH($C10,-INPUT!$O$113),$C$6:$C$505,"<="&$C10)) -> 0 | EL10: =IF(EL$3="%",IF(COUNTIFS($C$6:$C10,"<>"&"")>=3,AVERAGEIFS(EJ$6:EJ$505,$C$6:$C$505,">="&EOMONTH($C10,-3),$C$6:$C$505,"<="&$C10),""),IF(COUNTIFS($C$6:$C10,"<>"&"")>=3,SUMIFS(EJ$6:EJ$505,$C$6:$C$505,">="&EOMONTH($C10,-3),$C$6:$C$505,"<="&$C10)*4,"")) -> 0 | EN10: =IF(COUNTIFS($EM$6:$EM$505,">"&0)>=24,IF(EM$3="%",AVERAGEIFS(EM$6:EM$505,$C$6:$C$505,">="&EOMONTH($C10,-INPUT!$O$113),$C$6:$C$505,"<="&$C10),SUMIFS(EM$6:EM$505,$C$6:$C$505,">="&EOMONTH($C10,-INPUT!$O$113),$C$6:$C$505,"<="&$C10)),0) -> 0 | EP10: =IF(EO$3="%",AVERAGEIFS(EO$6:EO$505,$C$6:$C$505,">="&EOMONTH($C10,-INPUT!$O$113),$C$6:$C$505,"<="&$C10),SUMIFS(EO$6:EO$505,$C$6:$C$505,">="&EOMONTH($C10,-INPUT!$O$113),$C$6:$C$505,"<="&$C10)) -> 0 | EQ10: =IF(EQ$3="%",IF(COUNTIFS($C$6:$C10,"<>"&"")>=3,AVERAGEIFS(EO$6:EO$505,$C$6:$C$505,">="&EOMONTH($C10,-3),$C$6:$C$505,"<="&$C10),""),IF(COUNTIFS($C$6:$C10,"<>"&"")>=3,SUMIFS(EO$6:EO$505,$C$6:$C$505,">="&EOMONTH($C10,-3),$C$6:$C$505,"<="&$C10)*4,"")) -> 0 | ES10: =IF(COUNTIFS($ER$6:$ER$505,">"&0)>=24,IF(ER$3="%",AVERAGEIFS(ER$6:ER$505,$C$6:$C$505,">="&EOMONTH($C10,-INPUT!$O$113),$C$6:$C$505,"<="&$C10),SUMIFS(ER$6:ER$505,$C$6:$C$505,">="&EOMONTH($C10,-INPUT!$O$113),$C$6:$C$505,"<="&$C10)),0) -> 0 | EU10: =IF(ET$3="%",AVERAGEIFS(ET$6:ET$505,$C$6:$C$505,">="&EOMONTH($C10,-INPUT!$O$113),$C$6:$C$505,"<="&$C10),SUMIFS(ET$6:ET$505,$C$6:$C$505,">="&EOMONTH($C10,-INPUT!$O$113),$C$6:$C$505,"<="&$C10)) -> 0 | EV10: =IF(EV$3="%",IF(COUNTIFS($C$6:$C10,"<>"&"")>=3,AVERAGEIFS(ET$6:ET$505,$C$6:$C$505,">="&EOMONTH($C10,-3),$C$6:$C$505,"<="&$C10),""),IF(COUNTIFS($C$6:$C10,"<>"&"")>=3,SUMIFS(ET$6:ET$505,$C$6:$C$505,">="&EOMONTH($C10,-3),$C$6:$C$505,"<="&$C10)*4,"")) -> 0 | EX10: =IF(COUNTIFS($EW$6:$EW$505,">"&0)>=24,IF(EW$3="%",AVERAGEIFS(EW$6:EW$505,$C$6:$C$505,">="&EOMONTH($C10,-INPUT!$O$113),$C$6:$C$505,"<="&$C10),SUMIFS(EW$6:EW$505,$C$6:$C$505,">="&EOMONTH($C10,-INPUT!$O$113),$C$6:$C$505,"<="&$C10)),0) -> 0 | EZ10: =IF(EY$3="%",AVERAGEIFS(EY$6:EY$505,$C$6:$C$505,">="&EOMONTH($C10,-INPUT!$O$113),$C$6:$C$505,"<="&$C10),SUMIFS(EY$6:EY$505,$C$6:$C$505,">="&EOMONTH($C10,-INPUT!$O$113),$C$6:$C$505,"<="&$C10)) -> 0 | FA10: =IF(FA$3="%",IF(COUNTIFS($C$6:$C10,"<>"&"")>=3,AVERAGEIFS(EY$6:EY$505,$C$6:$C$505,">="&EOMONTH($C10,-3),$C$6:$C$505,"<="&$C10),""),IF(COUNTIFS($C$6:$C10,"<>"&"")>=3,SUMIFS(EY$6:EY$505,$C$6:$C$505,">="&EOMONTH($C10,-3),$C$6:$C$505,"<="&$C10)*4,"")) -> 0 | FC10: =IF(COUNTIFS($FB$6:$FB$505,">"&0)>=24,IF(FB$3="%",AVERAGEIFS(FB$6:FB$505,$C$6:$C$505,">="&EOMONTH($C10,-INPUT!$O$113),$C$6:$C$505,"<="&$C10),SUMIFS(FB$6:FB$505,$C$6:$C$505,">="&EOMONTH($C10,-INPUT!$O$113),$C$6:$C$505,"<="&$C10)),0) -> 0 | FE10: =IF(FD$3="%",AVERAGEIFS(FD$6:FD$505,$C$6:$C$505,">="&EOMONTH($C10,-INPUT!$O$113),$C$6:$C$505,"<="&$C10),SUMIFS(FD$6:FD$505,$C$6:$C$505,">="&EOMONTH($C10,-INPUT!$O$113),$C$6:$C$505,"<="&$C10)) -> 0 | FF10: =IF(FF$3="%",IF(COUNTIFS($C$6:$C10,"<>"&"")>=3,AVERAGEIFS(FD$6:FD$505,$C$6:$C$505,">="&EOMONTH($C10,-3),$C$6:$C$505,"<="&$C10),""),IF(COUNTIFS($C$6:$C10,"<>"&"")>=3,SUMIFS(FD$6:FD$505,$C$6:$C$505,">="&EOMONTH($C10,-3),$C$6:$C$505,"<="&$C10)*4,"")) -> 0 | FH10: =IF(COUNTIFS($FG$6:$FG$505,">"&0)>=24,IF(FG$3="%",AVERAGEIFS(FG$6:FG$505,$C$6:$C$505,">="&EOMONTH($C10,-INPUT!$O$113),$C$6:$C$505,"<="&$C10),SUMIFS(FG$6:FG$505,$C$6:$C$505,">="&EOMONTH($C10,-INPUT!$O$113),$C$6:$C$505,"<="&$C10)),0) -> 0 | FJ10: =IF(FI$3="%",AVERAGEIFS(FI$6:FI$505,$C$6:$C$505,">="&EOMONTH($C10,-INPUT!$O$113),$C$6:$C$505,"<="&$C10),SUMIFS(FI$6:FI$505,$C$6:$C$505,">="&EOMONTH($C10,-INPUT!$O$113),$C$6:$C$505,"<="&$C10)) -> 0 | FK10: =IF(FK$3="%",IF(COUNTIFS($C$6:$C10,"<>"&"")>=3,AVERAGEIFS(FI$6:FI$505,$C$6:$C$505,">="&EOMONTH($C10,-3),$C$6:$C$505,"<="&$C10),""),IF(COUNTIFS($C$6:$C10,"<>"&"")>=3,SUMIFS(FI$6:FI$505,$C$6:$C$505,">="&EOMONTH($C10,-3),$C$6:$C$505,"<="&$C10)*4,"")) -> 0 | FM10: =IF(COUNTIFS($FL$6:$FL$505,">"&0)>=24,IF(FL$3="%",AVERAGEIFS(FL$6:FL$505,$C$6:$C$505,">="&EOMONTH($C10,-INPUT!$O$113),$C$6:$C$505,"<="&$C10),SUMIFS(FL$6:FL$505,$C$6:$C$505,">="&EOMONTH($C10,-INPUT!$O$113),$C$6:$C$505,"<="&$C10)),0) -> 0 | FO10: =IF(FN$3="%",AVERAGEIFS(FN$6:FN$505,$C$6:$C$505,">="&EOMONTH($C10,-INPUT!$O$113),$C$6:$C$505,"<="&$C10),SUMIFS(FN$6:FN$505,$C$6:$C$505,">="&EOMONTH($C10,-INPUT!$O$113),$C$6:$C$505,"<="&$C10)) -> 0 | FP10: =IF(FP$3="%",IF(COUNTIFS($C$6:$C10,"<>"&"")>=3,AVERAGEIFS(FN$6:FN$505,$C$6:$C$505,">="&EOMONTH($C10,-3),$C$6:$C$505,"<="&$C10),""),IF(COUNTIFS($C$6:$C10,"<>"&"")>=3,SUMIFS(FN$6:FN$505,$C$6:$C$505,">="&EOMONTH($C10,-3),$C$6:$C$505,"<="&$C10)*4,"")) -> 0 | FR10: =IF(COUNTIFS($FQ$6:$FQ$505,">"&0)>=24,IF(FQ$3="%",AVERAGEIFS(FQ$6:FQ$505,$C$6:$C$505,">="&EOMONTH($C10,-INPUT!$O$113),$C$6:$C$505,"<="&$C10),SUMIFS(FQ$6:FQ$505,$C$6:$C$505,">="&EOMONTH($C10,-INPUT!$O$113),$C$6:$C$505,"<="&$C10)),0) -> 0 | FT10: =IF(FS$3="%",AVERAGEIFS(FS$6:FS$505,$C$6:$C$505,">="&EOMONTH($C10,-INPUT!$O$113),$C$6:$C$505,"<="&$C10),SUMIFS(FS$6:FS$505,$C$6:$C$505,">="&EOMONTH($C10,-INPUT!$O$113),$C$6:$C$505,"<="&$C10)) -> 0 | FU10: =IF(FU$3="%",IF(COUNTIFS($C$6:$C10,"<>"&"")>=3,AVERAGEIFS(FS$6:FS$505,$C$6:$C$505,">="&EOMONTH($C10,-3),$C$6:$C$505,"<="&$C10),""),IF(COUNTIFS($C$6:$C10,"<>"&"")>=3,SUMIFS(FS$6:FS$505,$C$6:$C$505,">="&EOMONTH($C10,-3),$C$6:$C$505,"<="&$C10)*4,"")) -> 0 | FW10: =IF(COUNTIFS($FV$6:$FV$505,">"&0)>=24,IF(FV$3="%",AVERAGEIFS(FV$6:FV$505,$C$6:$C$505,">="&EOMONTH($C10,-INPUT!$O$113),$C$6:$C$505,"<="&$C10),SUMIFS(FV$6:FV$505,$C$6:$C$505,">="&EOMONTH($C10,-INPUT!$O$113),$C$6:$C$505,"<="&$C10)),0) -> 0 | FY10: =IF(FX$3="%",AVERAGEIFS(FX$6:FX$505,$C$6:$C$505,">="&EOMONTH($C10,-INPUT!$O$113),$C$6:$C$505,"<="&$C10),SUMIFS(FX$6:FX$505,$C$6:$C$505,">="&EOMONTH($C10,-INPUT!$O$113),$C$6:$C$505,"<="&$C10)) -> 0 | FZ10: =IF(FZ$3="%",IF(COUNTIFS($C$6:$C10,"<>"&"")>=3,AVERAGEIFS(FX$6:FX$505,$C$6:$C$505,">="&EOMONTH($C10,-3),$C$6:$C$505,"<="&$C10),""),IF(COUNTIFS($C$6:$C10,"<>"&"")>=3,SUMIFS(FX$6:FX$505,$C$6:$C$505,">="&EOMONTH($C10,-3),$C$6:$C$505,"<="&$C10)*4,"")) -> 0 | GB10: =IF(COUNTIFS($GA$6:$GA$505,">"&0)>=24,IF(GA$3="%",AVERAGEIFS(GA$6:GA$505,$C$6:$C$505,">="&EOMONTH($C10,-INPUT!$O$113),$C$6:$C$505,"<="&$C10),SUMIFS(GA$6:GA$505,$C$6:$C$505,">="&EOMONTH($C10,-INPUT!$O$113),$C$6:$C$505,"<="&$C10)),0) -> 0 | GD10: =IF(GC$3="%",AVERAGEIFS(GC$6:GC$505,$C$6:$C$505,">="&EOMONTH($C10,-INPUT!$O$113),$C$6:$C$505,"<="&$C10),SUMIFS(GC$6:GC$505,$C$6:$C$505,">="&EOMONTH($C10,-INPUT!$O$113),$C$6:$C$505,"<="&$C10)) -> 0 | GE10: =IF(GE$3="%",IF(COUNTIFS($C$6:$C10,"<>"&"")>=3,AVERAGEIFS(GC$6:GC$505,$C$6:$C$505,">="&EOMONTH($C10,-3),$C$6:$C$505,"<="&$C10),""),IF(COUNTIFS($C$6:$C10,"<>"&"")>=3,SUMIFS(GC$6:GC$505,$C$6:$C$505,">="&EOMONTH($C10,-3),$C$6:$C$505,"<="&$C10)*4,"")) -> 0 | GG10: =IF(COUNTIFS($GF$6:$GF$505,">"&0)>=24,IF(GF$3="%",AVERAGEIFS(GF$6:GF$505,$C$6:$C$505,">="&EOMONTH($C10,-INPUT!$O$113),$C$6:$C$505,"<="&$C10),SUMIFS(GF$6:GF$505,$C$6:$C$505,">="&EOMONTH($C10,-INPUT!$O$113),$C$6:$C$505,"<="&$C10)),0) -> 0 | GI10: =IF(GH$3="%",AVERAGEIFS(GH$6:GH$505,$C$6:$C$505,">="&EOMONTH($C10,-INPUT!$O$113),$C$6:$C$505,"<="&$C10),SUMIFS(GH$6:GH$505,$C$6:$C$505,">="&EOMONTH($C10,-INPUT!$O$113),$C$6:$C$505,"<="&$C10)) -> 0 | GJ10: =IF(GJ$3="%",IF(COUNTIFS($C$6:$C10,"<>"&"")>=3,AVERAGEIFS(GH$6:GH$505,$C$6:$C$505,">="&EOMONTH($C10,-3),$C$6:$C$505,"<="&$C10),""),IF(COUNTIFS($C$6:$C10,"<>"&"")>=3,SUMIFS(GH$6:GH$505,$C$6:$C$505,">="&EOMONTH($C10,-3),$C$6:$C$505,"<="&$C10)*4,"")) -> 0 | GL10: =IF(COUNTIFS($GK$6:$GK$505,">"&0)>=24,IF(GK$3="%",AVERAGEIFS(GK$6:GK$505,$C$6:$C$505,">="&EOMONTH($C10,-INPUT!$O$113),$C$6:$C$505,"<="&$C10),SUMIFS(GK$6:GK$505,$C$6:$C$505,">="&EOMONTH($C10,-INPUT!$O$113),$C$6:$C$505,"<="&$C10)),0) -> 0 | GN10: =IF(GM$3="%",AVERAGEIFS(GM$6:GM$505,$C$6:$C$505,">="&EOMONTH($C10,-INPUT!$O$113),$C$6:$C$505,"<="&$C10),SUMIFS(GM$6:GM$505,$C$6:$C$505,">="&EOMONTH($C10,-INPUT!$O$113),$C$6:$C$505,"<="&$C10)) -> 0 | GO10: =IF(GO$3="%",IF(COUNTIFS($C$6:$C10,"<>"&"")>=3,AVERAGEIFS(GM$6:GM$505,$C$6:$C$505,">="&EOMONTH($C10,-3),$C$6:$C$505,"<="&$C10),""),IF(COUNTIFS($C$6:$C10,"<>"&"")>=3,SUMIFS(GM$6:GM$505,$C$6:$C$505,">="&EOMONTH($C10,-3),$C$6:$C$505,"<="&$C10)*4,"")) -> 0 | GQ10: =IF(COUNTIFS($GP$6:$GP$505,">"&0)>=24,IF(GP$3="%",AVERAGEIFS(GP$6:GP$505,$C$6:$C$505,">="&EOMONTH($C10,-INPUT!$O$113),$C$6:$C$505,"<="&$C10),SUMIFS(GP$6:GP$505,$C$6:$C$505,">="&EOMONTH($C10,-INPUT!$O$113),$C$6:$C$505,"<="&$C10)),0) -> 0 | GS10: =IF(GR$3="%",AVERAGEIFS(GR$6:GR$505,$C$6:$C$505,">="&EOMONTH($C10,-INPUT!$O$113),$C$6:$C$505,"<="&$C10),SUMIFS(GR$6:GR$505,$C$6:$C$505,">="&EOMONTH($C10,-INPUT!$O$113),$C$6:$C$505,"<="&$C10)) -> 0 | GT10: =IF(GT$3="%",IF(COUNTIFS($C$6:$C10,"<>"&"")>=3,AVERAGEIFS(GR$6:GR$505,$C$6:$C$505,">="&EOMONTH($C10,-3),$C$6:$C$505,"<="&$C10),""),IF(COUNTIFS($C$6:$C10,"<>"&"")>=3,SUMIFS(GR$6:GR$505,$C$6:$C$505,">="&EOMONTH($C10,-3),$C$6:$C$505,"<="&$C10)*4,"")) -> 0 | GV10: =IF(COUNTIFS($GU$6:$GU$505,">"&0)>=24,IF(GU$3="%",AVERAGEIFS(GU$6:GU$505,$C$6:$C$505,">="&EOMONTH($C10,-INPUT!$O$113),$C$6:$C$505,"<="&$C10),SUMIFS(GU$6:GU$505,$C$6:$C$505,">="&EOMONTH($C10,-INPUT!$O$113),$C$6:$C$505,"<="&$C10)),0) -> 0 | GX10: =IF(GW$3="%",AVERAGEIFS(GW$6:GW$505,$C$6:$C$505,">="&EOMONTH($C10,-INPUT!$O$113),$C$6:$C$505,"<="&$C10),SUMIFS(GW$6:GW$505,$C$6:$C$505,">="&EOMONTH($C10,-INPUT!$O$113),$C$6:$C$505,"<="&$C10)) -> 0 | GY10: =IF(GY$3="%",IF(COUNTIFS($C$6:$C10,"<>"&"")>=3,AVERAGEIFS(GW$6:GW$505,$C$6:$C$505,">="&EOMONTH($C10,-3),$C$6:$C$505,"<="&$C10),""),IF(COUNTIFS($C$6:$C10,"<>"&"")>=3,SUMIFS(GW$6:GW$505,$C$6:$C$505,">="&EOMONTH($C10,-3),$C$6:$C$505,"<="&$C10)*4,"")) -> 0 | HA10: =IF(COUNTIFS($GZ$6:$GZ$505,">"&0)>=24,IF(GZ$3="%",AVERAGEIFS(GZ$6:GZ$505,$C$6:$C$505,">="&EOMONTH($C10,-INPUT!$O$113),$C$6:$C$505,"<="&$C10),SUMIFS(GZ$6:GZ$505,$C$6:$C$505,">="&EOMONTH($C10,-INPUT!$O$113),$C$6:$C$505,"<="&$C10)),0) -> 0 | HC10: =IF(HB$3="%",AVERAGEIFS(HB$6:HB$505,$C$6:$C$505,">="&EOMONTH($C10,-INPUT!$O$113),$C$6:$C$505,"<="&$C10),SUMIFS(HB$6:HB$505,$C$6:$C$505,">="&EOMONTH($C10,-INPUT!$O$113),$C$6:$C$505,"<="&$C10)) -> 0 | HD10: =IF(HD$3="%",IF(COUNTIFS($C$6:$C10,"<>"&"")>=3,AVERAGEIFS(HB$6:HB$505,$C$6:$C$505,">="&EOMONTH($C10,-3),$C$6:$C$505,"<="&$C10),""),IF(COUNTIFS($C$6:$C10,"<>"&"")>=3,SUMIFS(HB$6:HB$505,$C$6:$C$505,">="&EOMONTH($C10,-3),$C$6:$C$505,"<="&$C10)*4,"")) -> 0 | HF10: =IF(COUNTIFS($HE$6:$HE$505,">"&0)>=24,IF(HE$3="%",AVERAGEIFS(HE$6:HE$505,$C$6:$C$505,">="&EOMONTH($C10,-INPUT!$O$113),$C$6:$C$505,"<="&$C10),SUMIFS(HE$6:HE$505,$C$6:$C$505,">="&EOMONTH($C10,-INPUT!$O$113),$C$6:$C$505,"<="&$C10)),0) -> 0 | HH10: =IF(HG$3="%",AVERAGEIFS(HG$6:HG$505,$C$6:$C$505,">="&EOMONTH($C10,-INPUT!$O$113),$C$6:$C$505,"<="&$C10),SUMIFS(HG$6:HG$505,$C$6:$C$505,">="&EOMONTH($C10,-INPUT!$O$113),$C$6:$C$505,"<="&$C10)) -> 0 | HI10: =IF(HI$3="%",IF(COUNTIFS($C$6:$C10,"<>"&"")>=3,AVERAGEIFS(HG$6:HG$505,$C$6:$C$505,">="&EOMONTH($C10,-3),$C$6:$C$505,"<="&$C10),""),IF(COUNTIFS($C$6:$C10,"<>"&"")>=3,SUMIFS(HG$6:HG$505,$C$6:$C$505,">="&EOMONTH($C10,-3),$C$6:$C$505,"<="&$C10)*4,"")) -> 0 | HK10: =IF(COUNTIFS($HJ$6:$HJ$505,">"&0)>=24,IF(HJ$3="%",AVERAGEIFS(HJ$6:HJ$505,$C$6:$C$505,">="&EOMONTH($C10,-INPUT!$O$113),$C$6:$C$505,"<="&$C10),SUMIFS(HJ$6:HJ$505,$C$6:$C$505,">="&EOMONTH($C10,-INPUT!$O$113),$C$6:$C$505,"<="&$C10)),0) -> 0 | HM10: =IF(HL$3="%",AVERAGEIFS(HL$6:HL$505,$C$6:$C$505,">="&EOMONTH($C10,-INPUT!$O$113),$C$6:$C$505,"<="&$C10),SUMIFS(HL$6:HL$505,$C$6:$C$505,">="&EOMONTH($C10,-INPUT!$O$113),$C$6:$C$505,"<="&$C10)) -> 0 | HN10: =IF(HN$3="%",IF(COUNTIFS($C$6:$C10,"<>"&"")>=3,AVERAGEIFS(HL$6:HL$505,$C$6:$C$505,">="&EOMONTH($C10,-3),$C$6:$C$505,"<="&$C10),""),IF(COUNTIFS($C$6:$C10,"<>"&"")>=3,SUMIFS(HL$6:HL$505,$C$6:$C$505,">="&EOMONTH($C10,-3),$C$6:$C$505,"<="&$C10)*4,"")) -> 0 | HP10: =IF(COUNTIFS($HO$6:$HO$505,">"&0)>=24,IF(HO$3="%",AVERAGEIFS(HO$6:HO$505,$C$6:$C$505,">="&EOMONTH($C10,-INPUT!$O$113),$C$6:$C$505,"<="&$C10),SUMIFS(HO$6:HO$505,$C$6:$C$505,">="&EOMONTH($C10,-INPUT!$O$113),$C$6:$C$505,"<="&$C10)),0) -> 0 | HR10: =IF(HQ$3="%",AVERAGEIFS(HQ$6:HQ$505,$C$6:$C$505,">="&EOMONTH($C10,-INPUT!$O$113),$C$6:$C$505,"<="&$C10),SUMIFS(HQ$6:HQ$505,$C$6:$C$505,">="&EOMONTH($C10,-INPUT!$O$113),$C$6:$C$505,"<="&$C10)) -> 0 | HS10: =IF(HS$3="%",IF(COUNTIFS($C$6:$C10,"<>"&"")>=3,AVERAGEIFS(HQ$6:HQ$505,$C$6:$C$505,">="&EOMONTH($C10,-3),$C$6:$C$505,"<="&$C10),""),IF(COUNTIFS($C$6:$C10,"<>"&"")>=3,SUMIFS(HQ$6:HQ$505,$C$6:$C$505,">="&EOMONTH($C10,-3),$C$6:$C$505,"<="&$C10)*4,"")) -> 0 | HU10: =IF(COUNTIFS($HT$6:$HT$505,">"&0)>=24,IF(HT$3="%",AVERAGEIFS(HT$6:HT$505,$C$6:$C$505,">="&EOMONTH($C10,-INPUT!$O$113),$C$6:$C$505,"<="&$C10),SUMIFS(HT$6:HT$505,$C$6:$C$505,">="&EOMONTH($C10,-INPUT!$O$113),$C$6:$C$505,"<="&$C10)),0) -> 0 | HW10: =IF(HV$3="%",AVERAGEIFS(HV$6:HV$505,$C$6:$C$505,">="&EOMONTH($C10,-INPUT!$O$113),$C$6:$C$505,"<="&$C10),SUMIFS(HV$6:HV$505,$C$6:$C$505,">="&EOMONTH($C10,-INPUT!$O$113),$C$6:$C$505,"<="&$C10)) -> 0 | HX10: =IF(HX$3="%",IF(COUNTIFS($C$6:$C10,"<>"&"")>=3,AVERAGEIFS(HV$6:HV$505,$C$6:$C$505,">="&EOMONTH($C10,-3),$C$6:$C$505,"<="&$C10),""),IF(COUNTIFS($C$6:$C10,"<>"&"")>=3,SUMIFS(HV$6:HV$505,$C$6:$C$505,">="&EOMONTH($C10,-3),$C$6:$C$505,"<="&$C10)*4,"")) -> 0 | HZ10: =IF(COUNTIFS($HY$6:$HY$505,">"&0)>=24,IF(HY$3="%",AVERAGEIFS(HY$6:HY$505,$C$6:$C$505,">="&EOMONTH($C10,-INPUT!$O$113),$C$6:$C$505,"<="&$C10),SUMIFS(HY$6:HY$505,$C$6:$C$505,">="&EOMONTH($C10,-INPUT!$O$113),$C$6:$C$505,"<="&$C10)),0) -> 0 | IA10: 7518.453333 | IB10: =SUMIFS(IA$6:IA$505,$C$6:$C$505,">="&EOMONTH($C10,-INPUT!$O$113),$C$6:$C$505,"<="&$C10) -> 33191.12267 | IC10: =IF(COUNTIFS($C$6:HK10,"<>"&"")>=3,SUMIFS(IA$6:IA$505,$C$6:$C$505,">="&EOMONTH($C10,-3),$C$6:$C$505,"<="&$C10)*4,"") -> 84743.968 | ID10: =IF(COUNTIFS($C$6:HK10,"<>"&"")>=6,SUMIFS(IA$6:IA$505,$C$6:$C$505,">="&EOMONTH($C10,-6),$C$6:$C$505,"<="&$C10)*2,"") -> 66382.24533 | IE10: -2481.546667 | IF10: =IF(COUNTIFS($IE$6:$IE$505,">"&0)>=24,SUMIFS(IE$6:IE$505,$C$6:$C$505,">="&EOMONTH($C10,-INPUT!$O$113),$C$6:$C$505,"<="&$C10),0) -> -16808.87733 | IG10: 3197.883333 | IH10: =IFERROR(SUMIFS(IG$6:IG$505,$C$6:$C$505,">="&EOMONTH($C10,-INPUT!$O$113),$C$6:$C$505,"<="&$C10),0) -> 42483.92232 | II10: =IFERROR(IF(II$3="%",IF(COUNTIFS($C$6:$C10,"<>"&"")>=3,AVERAGEIFS(D$6:D$505,$C$6:$C$505,">="&EOMONTH($C10,-3),$C$6:$C$505,"<="&$C10),""),IF(COUNTIFS($C$6:$C10,"<>"&"")>=3,SUMIFS(D$6:D$505,$C$6:$C$505,">="&EOMONTH($C10,-3),$C$6:$C$505,"<="&$C10)*4,"")) / IF(II$3="%",IF(COUNTIFS($C$6:$C10,"<>"&"")>=3,AVERAGEIFS(Y$6:Y$505,$C$6:$C$505,">="&EOMONTH($C10,-3),$C$6:$C$505,"<="&$C10),""),IF(COUNTIFS($C$6:$C10,"<>"&"")>=3,SUMIFS(Y$6:Y$505,$C$6:$C$505,">="&EOMONTH($C10,-3),$C$6:$C$505,"<="&$C10)*4,"")),0) -> 7725.01626 | IJ10: 5862.829268 | IK10: =IFERROR(SUMIFS(IJ$6:IJ$505,$C$6:$C$505,">="&EOMONTH($C10,-INPUT!$O$113),$C$6:$C$505,"<="&$C10),0) -> 27232.57205 | IL10: =IFERROR(IF(IL$3="%",IF(COUNTIFS($C$6:$C10,"<>"&"")>=3,AVERAGEIFS(H$6:H$505,$C$6:$C$505,">="&EOMONTH($C10,-3),$C$6:$C$505,"<="&$C10),""),IF(COUNTIFS($C$6:$C10,"<>"&"")>=3,SUMIFS(H$6:H$505,$C$6:$C$505,">="&EOMONTH($C10,-3),$C$6:$C$505,"<="&$C10)*4,"")) / IF(IL$3="%",IF(COUNTIFS($C$6:$C10,"<>"&"")>=3,AVERAGEIFS(AB$6:AB$505,$C$6:$C$505,">="&EOMONTH($C10,-3),$C$6:$C$505,"<="&$C10),""),IF(COUNTIFS($C$6:$C10,"<>"&"")>=3,SUMIFS(AB$6:AB$505,$C$6:$C$505,">="&EOMONTH($C10,-3),$C$6:$C$505,"<="&$C10)*4,"")),0) -> 5686.689922
A11: 3 | B11: 2018 | C11: 2018-03-01 | D11: 215358.3333 | E11: =SUMIFS(D$6:D$505,$C$6:$C$505,">="&EOMONTH($C11,-INPUT!$O$113),$C$6:$C$505,"<="&$C11) -> 1969976 | F11: =IF(COUNTIFS($C$6:C11,"<>"&"")>=3,SUMIFS(D$6:D$505,$C$6:$C$505,">="&EOMONTH($C11,-3),$C$6:$C$505,"<="&$C11)*4,"") -> 2709176 | G11: =IF(COUNTIFS($C$6:C11,"<>"&"")>=6,SUMIFS(D$6:D$505,$C$6:$C$505,">="&EOMONTH($C11,-6),$C$6:$C$505,"<="&$C11)*2,"") -> 3939952 | H11: 227923 | I11: =IF(COUNTIFS($H$6:$H$505,">"&0)>=24,SUMIFS(H$6:H$505,$C$6:$C$505,">="&EOMONTH($C11,-INPUT!$O$113),$C$6:$C$505,"<="&$C11),0) -> 1413053 | J11: 84226.10667 | K11: =SUMIFS(J$6:J$505,$C$6:$C$505,">="&EOMONTH($C11,-INPUT!$O$113),$C$6:$C$505,"<="&$C11) -> 412394.17 | L11: =IF(COUNTIFS($C$6:C11,"<>"&"")>=3,SUMIFS(J$6:J$505,$C$6:$C$505,">="&EOMONTH($C11,-3),$C$6:$C$505,"<="&$C11)*4,"") -> 1088533.92 | M11: =IF(COUNTIFS($C$6:C11,"<>"&"")>=6,SUMIFS(J$6:J$505,$C$6:$C$505,">="&EOMONTH($C11,-6),$C$6:$C$505,"<="&$C11)*2,"") -> 824788.34 | N11: 72843.66667 | O11: =IF(COUNTIFS($N$6:$N$505,">"&0)>=24,SUMIFS(N$6:N$505,$C$6:$C$505,">="&EOMONTH($C11,-INPUT!$O$113),$C$6:$C$505,"<="&$C11),0) -> 464573 | P11: 0.3910975042 | Q11: 0.2093396925 | R11: 0.3195977004 | S11: 10972.76 | T11: =SUMIFS(S$6:S$505,$C$6:$C$505,">="&EOMONTH($C11,-INPUT!$O$113),$C$6:$C$505,"<="&$C11) -> -33897.59 | U11: =IF(COUNTIFS($C$6:C11,"<>"&"")>=3,SUMIFS(S$6:S$505,$C$6:$C$505,">="&EOMONTH($C11,-3),$C$6:$C$505,"<="&$C11)*4,"") -> 239531.88 | V11: =IF(COUNTIFS($C$6:C11,"<>"&"")>=6,SUMIFS(S$6:S$505,$C$6:$C$505,">="&EOMONTH($C11,-6),$C$6:$C$505,"<="&$C11)*2,"") -> -67795.18 | W11: -9190 | X11: =IF(COUNTIFS($W$6:$W$505,">"&0)>=24,SUMIFS(W$6:W$505,$C$6:$C$505,">="&EOMONTH($C11,-INPUT!$O$113),$C$6:$C$505,"<="&$C11),0) -> 0 | Y11: 40 | Z11: =AVERAGEIFS(Y$6:Y$505,$C$6:$C$505,">="&EOMONTH($C11,-INPUT!$O$113),$C$6:$C$505,"<="&$C11) -> 40.83333333 | AA11: =IF(COUNTIFS($C$6:$C11,"<>"&"")>=3,AVERAGEIFS(Y$6:Y$505,$C$6:$C$505,">="&EOMONTH($C11,-3),$C$6:$C$505,"<="&$C11),"") -> 40.33333333 | AB11: 43 | AC11: =IF(COUNTIFS($AB$6:$AB$505,">"&0)>=24,AVERAGEIFS(AB$6:AB$505,$C$6:$C$505,">="&EOMONTH($C11,-INPUT!$O$113),$C$6:$C$505,"<="&$C11),0) -> 43.5 | AD11: 7671.08 | AE11: =SUMIFS(AD$6:AD$505,$C$6:$C$505,">="&EOMONTH($C11,-INPUT!$O$113),$C$6:$C$505,"<="&$C11) -> 43729.18 | AF11: =IF(COUNTIFS($C$6:$C11,"<>"&"")>=3,SUMIFS(AD$6:AD$505,$C$6:$C$505,">="&EOMONTH($C11,-3),$C$6:$C$505,"<="&$C11)*4,"") -> 87676.32 | AG11: 7912 | AH11: =IF(COUNTIFS($AG$6:$AG$505,">"&0)>=24,SUMIFS(AG$6:AG$505,$C$6:$C$505,">="&EOMONTH($C11,-INPUT!$O$113),$C$6:$C$505,"<="&$C11),0) -> 48024 | AI11: 282216.33 | AJ11: =SUMIFS(AI$6:AI$505,$C$6:$C$505,">="&EOMONTH($C11,-INPUT!$O$113),$C$6:$C$505,"<="&$C11) -> 1703771.01 | AK11: =IF(COUNTIFS($C$6:$C11,"<>"&"")>=3,SUMIFS(AI$6:AI$505,$C$6:$C$505,">="&EOMONTH($C11,-3),$C$6:$C$505,"<="&$C11)*4,"") -> 3538094.48 | AL11: 293919 | AM11: =IF(COUNTIFS($AL$6:$AL$505,">"&0)>=24,SUMIFS(AL$6:AL$505,$C$6:$C$505,">="&EOMONTH($C11,-INPUT!$O$113),$C$6:$C$505,"<="&$C11),0) -> 1747591 | AN11: 28.0740565 | AO11: 45.04946125 | AP11: 30.89974579 | AQ11: 28.8072548 | AR11: 29.42389222 | AS11: =IFERROR(IF('Chart Support '!$D$68=1,AI11/Y11,AI11/AD11),0) -> 7055.40825 | AT11: =IFERROR(IF('Chart Support '!$D$68=1,SUMIFS(AS$6:AS$505,$C$6:$C$505,">="&EOMONTH($C11,-INPUT!$O$113),$C$6:$C$505,"<="&$C11),$AJ11/$AE11),0) -> 41743.10037 | AU11: =IFERROR(IF('Chart Support '!$D$68=1,$AK11/IF(IC$3="%",IF(COUNTIFS($C$6:$C11,"<>"&"")>=3,AVERAGEIFS(Y$6:Y$505,$C$6:$C$505,">="&EOMONTH($C11,-3),$C$6:$C$505,"<="&$C11),""),IF(COUNTIFS($C$6:$C11,"<>"&"")>=3,SUMIFS(Y$6:Y$505,$C$6:$C$505,">="&EOMONTH($C11,-3),$C$6:$C$505,"<="&$C11)*4,"")),$AK11/$AF11),0) -> 7310.112562 | AV11: =IFERROR(IF('Chart Support '!$D$68=1,$AL11/$AB11,$AL11/$AG11),0) -> 6835.325581 | AW11: =IFERROR(IF('Chart Support '!$D$68=1,SUMIFS(AV$6:AV$505,$C$6:$C$505,">="&EOMONTH($C11,-INPUT!$O$113),$C$6:$C$505,"<="&$C11),$AM11/$AH11),0) -> 40206.46016 | AX11: 0.03888067002 | AY11: -0.01989562553 | AZ11: 0.06770081504 | BA11: -0.03126711781 | BB11: 0 | BC11: 3.711111111 | BD11: =IF(BC$3="%",AVERAGEIFS(BC$6:BC$505,$C$6:$C$505,">="&EOMONTH($C11,-INPUT!$O$113),$C$6:$C$505,"<="&$C11),SUMIFS(BC$6:BC$505,$C$6:$C$505,">="&EOMONTH($C11,-INPUT!$O$113),$C$6:$C$505,"<="&$C11)) -> 21.01666667 | BE11: =IF(BE$3="%",IF(COUNTIFS($C$6:$C11,"<>"&"")>=3,AVERAGEIFS(BC$6:BC$505,$C$6:$C$505,">="&EOMONTH($C11,-3),$C$6:$C$505,"<="&$C11),""),IF(COUNTIFS($C$6:$C11,"<>"&"")>=3,SUMIFS(BC$6:BC$505,$C$6:$C$505,">="&EOMONTH($C11,-3),$C$6:$C$505,"<="&$C11)*4,"")) -> 43.53333333 | BG11: =IF(COUNTIFS($BF$6:$BF$505,">"&0)>=24,IF(BF$3="%",AVERAGEIFS(BF$6:BF$505,$C$6:$C$505,">="&EOMONTH($C11,-INPUT!$O$113),$C$6:$C$505,"<="&$C11),SUMIFS(BF$6:BF$505,$C$6:$C$505,">="&EOMONTH($C11,-INPUT!$O$113),$C$6:$C$505,"<="&$C11)),0) -> 0 | BH11: 29 | BI11: =IF(BH$3="%",AVERAGEIFS(BH$6:BH$505,$C$6:$C$505,">="&EOMONTH($C11,-INPUT!$O$113),$C$6:$C$505,"<="&$C11),SUMIFS(BH$6:BH$505,$C$6:$C$505,">="&EOMONTH($C11,-INPUT!$O$113),$C$6:$C$505,"<="&$C11)) -> 177 | BJ11: =IF(BJ$3="%",IF(COUNTIFS($C$6:$C11,"<>"&"")>=3,AVERAGEIFS(BH$6:BH$505,$C$6:$C$505,">="&EOMONTH($C11,-3),$C$6:$C$505,"<="&$C11),""),IF(COUNTIFS($C$6:$C11,"<>"&"")>=3,SUMIFS(BH$6:BH$505,$C$6:$C$505,">="&EOMONTH($C11,-3),$C$6:$C$505,"<="&$C11)*4,"")) -> 348 | BK11: 30 | BL11: =IF(COUNTIFS($BK$6:$BK$505,">"&0)>=24,IF(BK$3="%",AVERAGEIFS(BK$6:BK$505,$C$6:$C$505,">="&EOMONTH($C11,-INPUT!$O$113),$C$6:$C$505,"<="&$C11),SUMIFS(BK$6:BK$505,$C$6:$C$505,">="&EOMONTH($C11,-INPUT!$O$113),$C$6:$C$505,"<="&$C11)),0) -> 180 | BM11: 0.8180284858 | BN11: =IF(BM$3="%",AVERAGEIFS(BM$6:BM$505,$C$6:$C$505,">="&EOMONTH($C11,-INPUT!$O$113),$C$6:$C$505,"<="&$C11),SUMIFS(BM$6:BM$505,$C$6:$C$505,">="&EOMONTH($C11,-INPUT!$O$113),$C$6:$C$505,"<="&$C11)) -> 0.7524160015 | BO11: =IF(BO$3="%",IF(COUNTIFS($C$6:$C11,"<>"&"")>=3,AVERAGEIFS(BM$6:BM$505,$C$6:$C$505,">="&EOMONTH($C11,-3),$C$6:$C$505,"<="&$C11),""),IF(COUNTIFS($C$6:$C11,"<>"&"")>=3,SUMIFS(BM$6:BM$505,$C$6:$C$505,">="&EOMONTH($C11,-3),$C$6:$C$505,"<="&$C11)*4,"")) -> 0.8496484712 | BP11: 0.73 | BQ11: =IF(BP$3="%",AVERAGEIFS(BP$6:BP$505,$C$6:$C$505,">="&EOMONTH($C11,-INPUT!$O$113),$C$6:$C$505,"<="&$C11),SUMIFS(BP$6:BP$505,$C$6:$C$505,">="&EOMONTH($C11,-INPUT!$O$113),$C$6:$C$505,"<="&$C11)) -> 0.73 | BR11: 10544.24138 | BS11: =IF(BR$3="%",AVERAGEIFS(BR$6:BR$505,$C$6:$C$505,">="&EOMONTH($C11,-INPUT!$O$113),$C$6:$C$505,"<="&$C11),SUMIFS(BR$6:BR$505,$C$6:$C$505,">="&EOMONTH($C11,-INPUT!$O$113),$C$6:$C$505,"<="&$C11)) -> 58990.55602 | BT11: =IF(BT$3="%",IF(COUNTIFS($C$6:$C11,"<>"&"")>=3,AVERAGEIFS(BR$6:BR$505,$C$6:$C$505,">="&EOMONTH($C11,-3),$C$6:$C$505,"<="&$C11),""),IF(COUNTIFS($C$6:$C11,"<>"&"")>=3,SUMIFS(BR$6:BR$505,$C$6:$C$505,">="&EOMONTH($C11,-3),$C$6:$C$505,"<="&$C11)*4,"")) -> 125787.4828 | BU11: 9869.4102 | BV11: =IF(COUNTIFS($BU$6:$BU$505,">"&0)>=24,IF(BU$3="%",AVERAGEIFS(BU$6:BU$505,$C$6:$C$505,">="&EOMONTH($C11,-INPUT!$O$113),$C$6:$C$505,"<="&$C11),SUMIFS(BU$6:BU$505,$C$6:$C$505,">="&EOMONTH($C11,-INPUT!$O$113),$C$6:$C$505,"<="&$C11)),0) -> 57999.6846 | BW11: 80.28293242 | BX11: =IF(BW$3="%",AVERAGEIFS(BW$6:BW$505,$C$6:$C$505,">="&EOMONTH($C11,-INPUT!$O$113),$C$6:$C$505,"<="&$C11),SUMIFS(BW$6:BW$505,$C$6:$C$505,">="&EOMONTH($C11,-INPUT!$O$113),$C$6:$C$505,"<="&$C11)) -> 494.1566758 | BY11: =IF(BY$3="%",IF(COUNTIFS($C$6:$C11,"<>"&"")>=3,AVERAGEIFS(BW$6:BW$505,$C$6:$C$505,">="&EOMONTH($C11,-3),$C$6:$C$505,"<="&$C11),""),IF(COUNTIFS($C$6:$C11,"<>"&"")>=3,SUMIFS(BW$6:BW$505,$C$6:$C$505,">="&EOMONTH($C11,-3),$C$6:$C$505,"<="&$C11)*4,"")) -> 974.4899117 | BZ11: 85 | CA11: =IF(COUNTIFS($BZ$6:$BZ$505,">"&0)>=24,IF(BZ$3="%",AVERAGEIFS(BZ$6:BZ$505,$C$6:$C$505,">="&EOMONTH($C11,-INPUT!$O$113),$C$6:$C$505,"<="&$C11),SUMIFS(BZ$6:BZ$505,$C$6:$C$505,">="&EOMONTH($C11,-INPUT!$O$113),$C$6:$C$505,"<="&$C11)),0) -> 510 | CB11: 65.67372564 | CC11: =IF(CB$3="%",AVERAGEIFS(CB$6:CB$505,$C$6:$C$505,">="&EOMONTH($C11,-INPUT!$O$113),$C$6:$C$505,"<="&$C11),SUMIFS(CB$6:CB$505,$C$6:$C$505,">="&EOMONTH($C11,-INPUT!$O$113),$C$6:$C$505,"<="&$C11)) -> 371.2979918 | CD11: =IF(CD$3="%",IF(COUNTIFS($C$6:$C11,"<>"&"")>=3,AVERAGEIFS(CB$6:CB$505,$C$6:$C$505,">="&EOMONTH($C11,-3),$C$6:$C$505,"<="&$C11),""),IF(COUNTIFS($C$6:$C11,"<>"&"")>=3,SUMIFS(CB$6:CB$505,$C$6:$C$505,">="&EOMONTH($C11,-3),$C$6:$C$505,"<="&$C11)*4,"")) -> 828.6473093 | CE11: 66.3 | CF11: =IF(COUNTIFS($CE$6:$CE$505,">"&0)>=24,IF(CE$3="%",AVERAGEIFS(CE$6:CE$505,$C$6:$C$505,">="&EOMONTH($C11,-INPUT!$O$113),$C$6:$C$505,"<="&$C11),SUMIFS(CE$6:CE$505,$C$6:$C$505,">="&EOMONTH($C11,-INPUT!$O$113),$C$6:$C$505,"<="&$C11)),0) -> 399.5 | CG11: 111 | CH11: =IF(CG$3="%",AVERAGEIFS(CG$6:CG$505,$C$6:$C$505,">="&EOMONTH($C11,-INPUT!$O$113),$C$6:$C$505,"<="&$C11),SUMIFS(CG$6:CG$505,$C$6:$C$505,">="&EOMONTH($C11,-INPUT!$O$113),$C$6:$C$505,"<="&$C11)) -> 654 | CI11: =IF(CI$3="%",IF(COUNTIFS($C$6:$C11,"<>"&"")>=3,AVERAGEIFS(CG$6:CG$505,$C$6:$C$505,">="&EOMONTH($C11,-3),$C$6:$C$505,"<="&$C11),""),IF(COUNTIFS($C$6:$C11,"<>"&"")>=3,SUMIFS(CG$6:CG$505,$C$6:$C$505,">="&EOMONTH($C11,-3),$C$6:$C$505,"<="&$C11)*4,"")) -> 1332 | CK11: =IF(COUNTIFS($CJ$6:$CJ$505,">"&0)>=24,IF(CJ$3="%",AVERAGEIFS(CJ$6:CJ$505,$C$6:$C$505,">="&EOMONTH($C11,-INPUT!$O$113),$C$6:$C$505,"<="&$C11),SUMIFS(CJ$6:CJ$505,$C$6:$C$505,">="&EOMONTH($C11,-INPUT!$O$113),$C$6:$C$505,"<="&$C11)),0) -> 0 | CL11: 2755 | CM11: =IF(CL$3="%",AVERAGEIFS(CL$6:CL$505,$C$6:$C$505,">="&EOMONTH($C11,-INPUT!$O$113),$C$6:$C$505,"<="&$C11),SUMIFS(CL$6:CL$505,$C$6:$C$505,">="&EOMONTH($C11,-INPUT!$O$113),$C$6:$C$505,"<="&$C11)) -> 15829 | CN11: =IF(CN$3="%",IF(COUNTIFS($C$6:$C11,"<>"&"")>=3,AVERAGEIFS(CL$6:CL$505,$C$6:$C$505,">="&EOMONTH($C11,-3),$C$6:$C$505,"<="&$C11),""),IF(COUNTIFS($C$6:$C11,"<>"&"")>=3,SUMIFS(CL$6:CL$505,$C$6:$C$505,">="&EOMONTH($C11,-3),$C$6:$C$505,"<="&$C11)*4,"")) -> 32892 | CP11: =IF(COUNTIFS($CO$6:$CO$505,">"&0)>=24,IF(CO$3="%",AVERAGEIFS(CO$6:CO$505,$C$6:$C$505,">="&EOMONTH($C11,-INPUT!$O$113),$C$6:$C$505,"<="&$C11),SUMIFS(CO$6:CO$505,$C$6:$C$505,">="&EOMONTH($C11,-INPUT!$O$113),$C$6:$C$505,"<="&$C11)),0) -> 0 | CQ11: 305783 | CR11: =IF(CQ$3="%",AVERAGEIFS(CQ$6:CQ$505,$C$6:$C$505,">="&EOMONTH($C11,-INPUT!$O$113),$C$6:$C$505,"<="&$C11),SUMIFS(CQ$6:CQ$505,$C$6:$C$505,">="&EOMONTH($C11,-INPUT!$O$113),$C$6:$C$505,"<="&$C11)) -> 1738269.81 | CS11: =IF(CS$3="%",IF(COUNTIFS($C$6:$C11,"<>"&"")>=3,AVERAGEIFS(CQ$6:CQ$505,$C$6:$C$505,">="&EOMONTH($C11,-3),$C$6:$C$505,"<="&$C11),""),IF(COUNTIFS($C$6:$C11,"<>"&"")>=3,SUMIFS(CQ$6:CQ$505,$C$6:$C$505,">="&EOMONTH($C11,-3),$C$6:$C$505,"<="&$C11)*4,"")) -> 3647837 | CT11: 311878 | CU11: =IF(COUNTIFS($CT$6:$CT$505,">"&0)>=24,IF(CT$3="%",AVERAGEIFS(CT$6:CT$505,$C$6:$C$505,">="&EOMONTH($C11,-INPUT!$O$113),$C$6:$C$505,"<="&$C11),SUMIFS(CT$6:CT$505,$C$6:$C$505,">="&EOMONTH($C11,-INPUT!$O$113),$C$6:$C$505,"<="&$C11)),0) -> 1735189 | CV11: 44652 | CW11: =IF(CV$3="%",AVERAGEIFS(CV$6:CV$505,$C$6:$C$505,">="&EOMONTH($C11,-INPUT!$O$113),$C$6:$C$505,"<="&$C11),SUMIFS(CV$6:CV$505,$C$6:$C$505,">="&EOMONTH($C11,-INPUT!$O$113),$C$6:$C$505,"<="&$C11)) -> 153071.27 | CX11: =IF(CX$3="%",IF(COUNTIFS($C$6:$C11,"<>"&"")>=3,AVERAGEIFS(CV$6:CV$505,$C$6:$C$505,">="&EOMONTH($C11,-3),$C$6:$C$505,"<="&$C11),""),IF(COUNTIFS($C$6:$C11,"<>"&"")>=3,SUMIFS(CV$6:CV$505,$C$6:$C$505,">="&EOMONTH($C11,-3),$C$6:$C$505,"<="&$C11)*4,"")) -> 503320.08 | CY11: 34867 | CZ11: =IF(COUNTIFS($CY$6:$CY$505,">"&0)>=24,IF(CY$3="%",AVERAGEIFS(CY$6:CY$505,$C$6:$C$505,">="&EOMONTH($C11,-INPUT!$O$113),$C$6:$C$505,"<="&$C11),SUMIFS(CY$6:CY$505,$C$6:$C$505,">="&EOMONTH($C11,-INPUT!$O$113),$C$6:$C$505,"<="&$C11)),0) -> 116593 | DA11: 0.57 | DB11: =IF(DA$3="%",AVERAGEIFS(DA$6:DA$505,$C$6:$C$505,">="&EOMONTH($C11,-INPUT!$O$113),$C$6:$C$505,"<="&$C11),SUMIFS(DA$6:DA$505,$C$6:$C$505,">="&EOMONTH($C11,-INPUT!$O$113),$C$6:$C$505,"<="&$C11)) -> 0.5883333333 | DC11: =IF(DC$3="%",IF(COUNTIFS($C$6:$C11,"<>"&"")>=3,AVERAGEIFS(DA$6:DA$505,$C$6:$C$505,">="&EOMONTH($C11,-3),$C$6:$C$505,"<="&$C11),""),IF(COUNTIFS($C$6:$C11,"<>"&"")>=3,SUMIFS(DA$6:DA$505,$C$6:$C$505,">="&EOMONTH($C11,-3),$C$6:$C$505,"<="&$C11)*4,"")) -> 0.57 | DD11: 0.56 | DE11: =IF(COUNTIFS($DD$6:$DD$505,">"&0)>=24,IF(DD$3="%",AVERAGEIFS(DD$6:DD$505,$C$6:$C$505,">="&EOMONTH($C11,-INPUT!$O$113),$C$6:$C$505,"<="&$C11),SUMIFS(DD$6:DD$505,$C$6:$C$505,">="&EOMONTH($C11,-INPUT!$O$113),$C$6:$C$505,"<="&$C11)),0) -> 0.55 | DF11: 0.47 | DG11: =IF(DF$3="%",AVERAGEIFS(DF$6:DF$505,$C$6:$C$505,">="&EOMONTH($C11,-INPUT!$O$113),$C$6:$C$505,"<="&$C11),SUMIFS(DF$6:DF$505,$C$6:$C$505,">="&EOMONTH($C11,-INPUT!$O$113),$C$6:$C$505,"<="&$C11)) -> 0.4533333333 | DH11: =IF(DH$3="%",IF(COUNTIFS($C$6:$C11,"<>"&"")>=3,AVERAGEIFS(DF$6:DF$505,$C$6:$C$505,">="&EOMONTH($C11,-3),$C$6:$C$505,"<="&$C11),""),IF(COUNTIFS($C$6:$C11,"<>"&"")>=3,SUMIFS(DF$6:DF$505,$C$6:$C$505,">="&EOMONTH($C11,-3),$C$6:$C$505,"<="&$C11)*4,"")) -> 0.4833333333 | DI11: 0.44 | DJ11: =IF(COUNTIFS($DI$6:$DI$505,">"&0)>=24,IF(DI$3="%",AVERAGEIFS(DI$6:DI$505,$C$6:$C$505,">="&EOMONTH($C11,-INPUT!$O$113),$C$6:$C$505,"<="&$C11),SUMIFS(DI$6:DI$505,$C$6:$C$505,">="&EOMONTH($C11,-INPUT!$O$113),$C$6:$C$505,"<="&$C11)),0) -> 0.435 | DK11: -7600 | DL11: =IF(DK$3="%",AVERAGEIFS(DK$6:DK$505,$C$6:$C$505,">="&EOMONTH($C11,-INPUT!$O$113),$C$6:$C$505,"<="&$C11),SUMIFS(DK$6:DK$505,$C$6:$C$505,">="&EOMONTH($C11,-INPUT!$O$113),$C$6:$C$505,"<="&$C11)) -> -7600 | DM11: =IF(DM$3="%",IF(COUNTIFS($C$6:$C11,"<>"&"")>=3,AVERAGEIFS(DK$6:DK$505,$C$6:$C$505,">="&EOMONTH($C11,-3),$C$6:$C$505,"<="&$C11),""),IF(COUNTIFS($C$6:$C11,"<>"&"")>=3,SUMIFS(DK$6:DK$505,$C$6:$C$505,">="&EOMONTH($C11,-3),$C$6:$C$505,"<="&$C11)*4,"")) -> -30400 | DN11: -5182.335208 | DO11: =IF(COUNTIFS($DN$6:$DN$505,">"&0)>=24,IF(DN$3="%",AVERAGEIFS(DN$6:DN$505,$C$6:$C$505,">="&EOMONTH($C11,-INPUT!$O$113),$C$6:$C$505,"<="&$C11),SUMIFS(DN$6:DN$505,$C$6:$C$505,">="&EOMONTH($C11,-INPUT!$O$113),$C$6:$C$505,"<="&$C11)),0) -> 0 | DQ11: =IF(DP$3="%",AVERAGEIFS(DP$6:DP$505,$C$6:$C$505,">="&EOMONTH($C11,-INPUT!$O$113),$C$6:$C$505,"<="&$C11),SUMIFS(DP$6:DP$505,$C$6:$C$505,">="&EOMONTH($C11,-INPUT!$O$113),$C$6:$C$505,"<="&$C11)) -> 0 | DR11: =IF(DR$3="%",IF(COUNTIFS($C$6:$C11,"<>"&"")>=3,AVERAGEIFS(DP$6:DP$505,$C$6:$C$505,">="&EOMONTH($C11,-3),$C$6:$C$505,"<="&$C11),""),IF(COUNTIFS($C$6:$C11,"<>"&"")>=3,SUMIFS(DP$6:DP$505,$C$6:$C$505,">="&EOMONTH($C11,-3),$C$6:$C$505,"<="&$C11)*4,"")) -> 0 | DT11: =IF(COUNTIFS($DS$6:$DS$505,">"&0)>=24,IF(DS$3="%",AVERAGEIFS(DS$6:DS$505,$C$6:$C$505,">="&EOMONTH($C11,-INPUT!$O$113),$C$6:$C$505,"<="&$C11),SUMIFS(DS$6:DS$505,$C$6:$C$505,">="&EOMONTH($C11,-INPUT!$O$113),$C$6:$C$505,"<="&$C11)),0) -> 0 | DV11: =IF(DU$3="%",AVERAGEIFS(DU$6:DU$505,$C$6:$C$505,">="&EOMONTH($C11,-INPUT!$O$113),$C$6:$C$505,"<="&$C11),SUMIFS(DU$6:DU$505,$C$6:$C$505,">="&EOMONTH($C11,-INPUT!$O$113),$C$6:$C$505,"<="&$C11)) -> 0 | DW11: =IF(DW$3="%",IF(COUNTIFS($C$6:$C11,"<>"&"")>=3,AVERAGEIFS(DU$6:DU$505,$C$6:$C$505,">="&EOMONTH($C11,-3),$C$6:$C$505,"<="&$C11),""),IF(COUNTIFS($C$6:$C11,"<>"&"")>=3,SUMIFS(DU$6:DU$505,$C$6:$C$505,">="&EOMONTH($C11,-3),$C$6:$C$505,"<="&$C11)*4,"")) -> 0 | DY11: =IF(COUNTIFS($DX$6:$DX$505,">"&0)>=24,IF(DX$3="%",AVERAGEIFS(DX$6:DX$505,$C$6:$C$505,">="&EOMONTH($C11,-INPUT!$O$113),$C$6:$C$505,"<="&$C11),SUMIFS(DX$6:DX$505,$C$6:$C$505,">="&EOMONTH($C11,-INPUT!$O$113),$C$6:$C$505,"<="&$C11)),0) -> 0 | EA11: =IF(DZ$3="%",AVERAGEIFS(DZ$6:DZ$505,$C$6:$C$505,">="&EOMONTH($C11,-INPUT!$O$113),$C$6:$C$505,"<="&$C11),SUMIFS(DZ$6:DZ$505,$C$6:$C$505,">="&EOMONTH($C11,-INPUT!$O$113),$C$6:$C$505,"<="&$C11)) -> 0 | EB11: =IF(EB$3="%",IF(COUNTIFS($C$6:$C11,"<>"&"")>=3,AVERAGEIFS(DZ$6:DZ$505,$C$6:$C$505,">="&EOMONTH($C11,-3),$C$6:$C$505,"<="&$C11),""),IF(COUNTIFS($C$6:$C11,"<>"&"")>=3,SUMIFS(DZ$6:DZ$505,$C$6:$C$505,">="&EOMONTH($C11,-3),$C$6:$C$505,"<="&$C11)*4,"")) -> 0 | ED11: =IF(COUNTIFS($EC$6:$EC$505,">"&0)>=24,IF(EC$3="%",AVERAGEIFS(EC$6:EC$505,$C$6:$C$505,">="&EOMONTH($C11,-INPUT!$O$113),$C$6:$C$505,"<="&$C11),SUMIFS(EC$6:EC$505,$C$6:$C$505,">="&EOMONTH($C11,-INPUT!$O$113),$C$6:$C$505,"<="&$C11)),0) -> 0 | EF11: =IF(EE$3="%",AVERAGEIFS(EE$6:EE$505,$C$6:$C$505,">="&EOMONTH($C11,-INPUT!$O$113),$C$6:$C$505,"<="&$C11),SUMIFS(EE$6:EE$505,$C$6:$C$505,">="&EOMONTH($C11,-INPUT!$O$113),$C$6:$C$505,"<="&$C11)) -> 0 | EG11: =IF(EG$3="%",IF(COUNTIFS($C$6:$C11,"<>"&"")>=3,AVERAGEIFS(EE$6:EE$505,$C$6:$C$505,">="&EOMONTH($C11,-3),$C$6:$C$505,"<="&$C11),""),IF(COUNTIFS($C$6:$C11,"<>"&"")>=3,SUMIFS(EE$6:EE$505,$C$6:$C$505,">="&EOMONTH($C11,-3),$C$6:$C$505,"<="&$C11)*4,"")) -> 0 | EI11: =IF(COUNTIFS($EH$6:$EH$505,">"&0)>=24,IF(EH$3="%",AVERAGEIFS(EH$6:EH$505,$C$6:$C$505,">="&EOMONTH($C11,-INPUT!$O$113),$C$6:$C$505,"<="&$C11),SUMIFS(EH$6:EH$505,$C$6:$C$505,">="&EOMONTH($C11,-INPUT!$O$113),$C$6:$C$505,"<="&$C11)),0) -> 0 | EK11: =IF(EJ$3="%",AVERAGEIFS(EJ$6:EJ$505,$C$6:$C$505,">="&EOMONTH($C11,-INPUT!$O$113),$C$6:$C$505,"<="&$C11),SUMIFS(EJ$6:EJ$505,$C$6:$C$505,">="&EOMONTH($C11,-INPUT!$O$113),$C$6:$C$505,"<="&$C11)) -> 0 | EL11: =IF(EL$3="%",IF(COUNTIFS($C$6:$C11,"<>"&"")>=3,AVERAGEIFS(EJ$6:EJ$505,$C$6:$C$505,">="&EOMONTH($C11,-3),$C$6:$C$505,"<="&$C11),""),IF(COUNTIFS($C$6:$C11,"<>"&"")>=3,SUMIFS(EJ$6:EJ$505,$C$6:$C$505,">="&EOMONTH($C11,-3),$C$6:$C$505,"<="&$C11)*4,"")) -> 0 | EN11: =IF(COUNTIFS($EM$6:$EM$505,">"&0)>=24,IF(EM$3="%",AVERAGEIFS(EM$6:EM$505,$C$6:$C$505,">="&EOMONTH($C11,-INPUT!$O$113),$C$6:$C$505,"<="&$C11),SUMIFS(EM$6:EM$505,$C$6:$C$505,">="&EOMONTH($C11,-INPUT!$O$113),$C$6:$C$505,"<="&$C11)),0) -> 0 | EP11: =IF(EO$3="%",AVERAGEIFS(EO$6:EO$505,$C$6:$C$505,">="&EOMONTH($C11,-INPUT!$O$113),$C$6:$C$505,"<="&$C11),SUMIFS(EO$6:EO$505,$C$6:$C$505,">="&EOMONTH($C11,-INPUT!$O$113),$C$6:$C$505,"<="&$C11)) -> 0 | EQ11: =IF(EQ$3="%",IF(COUNTIFS($C$6:$C11,"<>"&"")>=3,AVERAGEIFS(EO$6:EO$505,$C$6:$C$505,">="&EOMONTH($C11,-3),$C$6:$C$505,"<="&$C11),""),IF(COUNTIFS($C$6:$C11,"<>"&"")>=3,SUMIFS(EO$6:EO$505,$C$6:$C$505,">="&EOMONTH($C11,-3),$C$6:$C$505,"<="&$C11)*4,"")) -> 0 | ES11: =IF(COUNTIFS($ER$6:$ER$505,">"&0)>=24,IF(ER$3="%",AVERAGEIFS(ER$6:ER$505,$C$6:$C$505,">="&EOMONTH($C11,-INPUT!$O$113),$C$6:$C$505,"<="&$C11),SUMIFS(ER$6:ER$505,$C$6:$C$505,">="&EOMONTH($C11,-INPUT!$O$113),$C$6:$C$505,"<="&$C11)),0) -> 0 | EU11: =IF(ET$3="%",AVERAGEIFS(ET$6:ET$505,$C$6:$C$505,">="&EOMONTH($C11,-INPUT!$O$113),$C$6:$C$505,"<="&$C11),SUMIFS(ET$6:ET$505,$C$6:$C$505,">="&EOMONTH($C11,-INPUT!$O$113),$C$6:$C$505,"<="&$C11)) -> 0 | EV11: =IF(EV$3="%",IF(COUNTIFS($C$6:$C11,"<>"&"")>=3,AVERAGEIFS(ET$6:ET$505,$C$6:$C$505,">="&EOMONTH($C11,-3),$C$6:$C$505,"<="&$C11),""),IF(COUNTIFS($C$6:$C11,"<>"&"")>=3,SUMIFS(ET$6:ET$505,$C$6:$C$505,">="&EOMONTH($C11,-3),$C$6:$C$505,"<="&$C11)*4,"")) -> 0 | EX11: =IF(COUNTIFS($EW$6:$EW$505,">"&0)>=24,IF(EW$3="%",AVERAGEIFS(EW$6:EW$505,$C$6:$C$505,">="&EOMONTH($C11,-INPUT!$O$113),$C$6:$C$505,"<="&$C11),SUMIFS(EW$6:EW$505,$C$6:$C$505,">="&EOMONTH($C11,-INPUT!$O$113),$C$6:$C$505,"<="&$C11)),0) -> 0 | EZ11: =IF(EY$3="%",AVERAGEIFS(EY$6:EY$505,$C$6:$C$505,">="&EOMONTH($C11,-INPUT!$O$113),$C$6:$C$505,"<="&$C11),SUMIFS(EY$6:EY$505,$C$6:$C$505,">="&EOMONTH($C11,-INPUT!$O$113),$C$6:$C$505,"<="&$C11)) -> 0 | FA11: =IF(FA$3="%",IF(COUNTIFS($C$6:$C11,"<>"&"")>=3,AVERAGEIFS(EY$6:EY$505,$C$6:$C$505,">="&EOMONTH($C11,-3),$C$6:$C$505,"<="&$C11),""),IF(COUNTIFS($C$6:$C11,"<>"&"")>=3,SUMIFS(EY$6:EY$505,$C$6:$C$505,">="&EOMONTH($C11,-3),$C$6:$C$505,"<="&$C11)*4,"")) -> 0 | FC11: =IF(COUNTIFS($FB$6:$FB$505,">"&0)>=24,IF(FB$3="%",AVERAGEIFS(FB$6:FB$505,$C$6:$C$505,">="&EOMONTH($C11,-INPUT!$O$113),$C$6:$C$505,"<="&$C11),SUMIFS(FB$6:FB$505,$C$6:$C$505,">="&EOMONTH($C11,-INPUT!$O$113),$C$6:$C$505,"<="&$C11)),0) -> 0 | FE11: =IF(FD$3="%",AVERAGEIFS(FD$6:FD$505,$C$6:$C$505,">="&EOMONTH($C11,-INPUT!$O$113),$C$6:$C$505,"<="&$C11),SUMIFS(FD$6:FD$505,$C$6:$C$505,">="&EOMONTH($C11,-INPUT!$O$113),$C$6:$C$505,"<="&$C11)) -> 0 | FF11: =IF(FF$3="%",IF(COUNTIFS($C$6:$C11,"<>"&"")>=3,AVERAGEIFS(FD$6:FD$505,$C$6:$C$505,">="&EOMONTH($C11,-3),$C$6:$C$505,"<="&$C11),""),IF(COUNTIFS($C$6:$C11,"<>"&"")>=3,SUMIFS(FD$6:FD$505,$C$6:$C$505,">="&EOMONTH($C11,-3),$C$6:$C$505,"<="&$C11)*4,"")) -> 0 | FH11: =IF(COUNTIFS($FG$6:$FG$505,">"&0)>=24,IF(FG$3="%",AVERAGEIFS(FG$6:FG$505,$C$6:$C$505,">="&EOMONTH($C11,-INPUT!$O$113),$C$6:$C$505,"<="&$C11),SUMIFS(FG$6:FG$505,$C$6:$C$505,">="&EOMONTH($C11,-INPUT!$O$113),$C$6:$C$505,"<="&$C11)),0) -> 0 | FJ11: =IF(FI$3="%",AVERAGEIFS(FI$6:FI$505,$C$6:$C$505,">="&EOMONTH($C11,-INPUT!$O$113),$C$6:$C$505,"<="&$C11),SUMIFS(FI$6:FI$505,$C$6:$C$505,">="&EOMONTH($C11,-INPUT!$O$113),$C$6:$C$505,"<="&$C11)) -> 0 | FK11: =IF(FK$3="%",IF(COUNTIFS($C$6:$C11,"<>"&"")>=3,AVERAGEIFS(FI$6:FI$505,$C$6:$C$505,">="&EOMONTH($C11,-3),$C$6:$C$505,"<="&$C11),""),IF(COUNTIFS($C$6:$C11,"<>"&"")>=3,SUMIFS(FI$6:FI$505,$C$6:$C$505,">="&EOMONTH($C11,-3),$C$6:$C$505,"<="&$C11)*4,"")) -> 0 | FM11: =IF(COUNTIFS($FL$6:$FL$505,">"&0)>=24,IF(FL$3="%",AVERAGEIFS(FL$6:FL$505,$C$6:$C$505,">="&EOMONTH($C11,-INPUT!$O$113),$C$6:$C$505,"<="&$C11),SUMIFS(FL$6:FL$505,$C$6:$C$505,">="&EOMONTH($C11,-INPUT!$O$113),$C$6:$C$505,"<="&$C11)),0) -> 0 | FO11: =IF(FN$3="%",AVERAGEIFS(FN$6:FN$505,$C$6:$C$505,">="&EOMONTH($C11,-INPUT!$O$113),$C$6:$C$505,"<="&$C11),SUMIFS(FN$6:FN$505,$C$6:$C$505,">="&EOMONTH($C11,-INPUT!$O$113),$C$6:$C$505,"<="&$C11)) -> 0 | FP11: =IF(FP$3="%",IF(COUNTIFS($C$6:$C11,"<>"&"")>=3,AVERAGEIFS(FN$6:FN$505,$C$6:$C$505,">="&EOMONTH($C11,-3),$C$6:$C$505,"<="&$C11),""),IF(COUNTIFS($C$6:$C11,"<>"&"")>=3,SUMIFS(FN$6:FN$505,$C$6:$C$505,">="&EOMONTH($C11,-3),$C$6:$C$505,"<="&$C11)*4,"")) -> 0 | FR11: =IF(COUNTIFS($FQ$6:$FQ$505,">"&0)>=24,IF(FQ$3="%",AVERAGEIFS(FQ$6:FQ$505,$C$6:$C$505,">="&EOMONTH($C11,-INPUT!$O$113),$C$6:$C$505,"<="&$C11),SUMIFS(FQ$6:FQ$505,$C$6:$C$505,">="&EOMONTH($C11,-INPUT!$O$113),$C$6:$C$505,"<="&$C11)),0) -> 0 | FT11: =IF(FS$3="%",AVERAGEIFS(FS$6:FS$505,$C$6:$C$505,">="&EOMONTH($C11,-INPUT!$O$113),$C$6:$C$505,"<="&$C11),SUMIFS(FS$6:FS$505,$C$6:$C$505,">="&EOMONTH($C11,-INPUT!$O$113),$C$6:$C$505,"<="&$C11)) -> 0 | FU11: =IF(FU$3="%",IF(COUNTIFS($C$6:$C11,"<>"&"")>=3,AVERAGEIFS(FS$6:FS$505,$C$6:$C$505,">="&EOMONTH($C11,-3),$C$6:$C$505,"<="&$C11),""),IF(COUNTIFS($C$6:$C11,"<>"&"")>=3,SUMIFS(FS$6:FS$505,$C$6:$C$505,">="&EOMONTH($C11,-3),$C$6:$C$505,"<="&$C11)*4,"")) -> 0 | FW11: =IF(COUNTIFS($FV$6:$FV$505,">"&0)>=24,IF(FV$3="%",AVERAGEIFS(FV$6:FV$505,$C$6:$C$505,">="&EOMONTH($C11,-INPUT!$O$113),$C$6:$C$505,"<="&$C11),SUMIFS(FV$6:FV$505,$C$6:$C$505,">="&EOMONTH($C11,-INPUT!$O$113),$C$6:$C$505,"<="&$C11)),0) -> 0 | FY11: =IF(FX$3="%",AVERAGEIFS(FX$6:FX$505,$C$6:$C$505,">="&EOMONTH($C11,-INPUT!$O$113),$C$6:$C$505,"<="&$C11),SUMIFS(FX$6:FX$505,$C$6:$C$505,">="&EOMONTH($C11,-INPUT!$O$113),$C$6:$C$505,"<="&$C11)) -> 0 | FZ11: =IF(FZ$3="%",IF(COUNTIFS($C$6:$C11,"<>"&"")>=3,AVERAGEIFS(FX$6:FX$505,$C$6:$C$505,">="&EOMONTH($C11,-3),$C$6:$C$505,"<="&$C11),""),IF(COUNTIFS($C$6:$C11,"<>"&"")>=3,SUMIFS(FX$6:FX$505,$C$6:$C$505,">="&EOMONTH($C11,-3),$C$6:$C$505,"<="&$C11)*4,"")) -> 0 | GB11: =IF(COUNTIFS($GA$6:$GA$505,">"&0)>=24,IF(GA$3="%",AVERAGEIFS(GA$6:GA$505,$C$6:$C$505,">="&EOMONTH($C11,-INPUT!$O$113),$C$6:$C$505,"<="&$C11),SUMIFS(GA$6:GA$505,$C$6:$C$505,">="&EOMONTH($C11,-INPUT!$O$113),$C$6:$C$505,"<="&$C11)),0) -> 0 | GD11: =IF(GC$3="%",AVERAGEIFS(GC$6:GC$505,$C$6:$C$505,">="&EOMONTH($C11,-INPUT!$O$113),$C$6:$C$505,"<="&$C11),SUMIFS(GC$6:GC$505,$C$6:$C$505,">="&EOMONTH($C11,-INPUT!$O$113),$C$6:$C$505,"<="&$C11)) -> 0 | GE11: =IF(GE$3="%",IF(COUNTIFS($C$6:$C11,"<>"&"")>=3,AVERAGEIFS(GC$6:GC$505,$C$6:$C$505,">="&EOMONTH($C11,-3),$C$6:$C$505,"<="&$C11),""),IF(COUNTIFS($C$6:$C11,"<>"&"")>=3,SUMIFS(GC$6:GC$505,$C$6:$C$505,">="&EOMONTH($C11,-3),$C$6:$C$505,"<="&$C11)*4,"")) -> 0 | GG11: =IF(COUNTIFS($GF$6:$GF$505,">"&0)>=24,IF(GF$3="%",AVERAGEIFS(GF$6:GF$505,$C$6:$C$505,">="&EOMONTH($C11,-INPUT!$O$113),$C$6:$C$505,"<="&$C11),SUMIFS(GF$6:GF$505,$C$6:$C$505,">="&EOMONTH($C11,-INPUT!$O$113),$C$6:$C$505,"<="&$C11)),0) -> 0 | GI11: =IF(GH$3="%",AVERAGEIFS(GH$6:GH$505,$C$6:$C$505,">="&EOMONTH($C11,-INPUT!$O$113),$C$6:$C$505,"<="&$C11),SUMIFS(GH$6:GH$505,$C$6:$C$505,">="&EOMONTH($C11,-INPUT!$O$113),$C$6:$C$505,"<="&$C11)) -> 0 | GJ11: =IF(GJ$3="%",IF(COUNTIFS($C$6:$C11,"<>"&"")>=3,AVERAGEIFS(GH$6:GH$505,$C$6:$C$505,">="&EOMONTH($C11,-3),$C$6:$C$505,"<="&$C11),""),IF(COUNTIFS($C$6:$C11,"<>"&"")>=3,SUMIFS(GH$6:GH$505,$C$6:$C$505,">="&EOMONTH($C11,-3),$C$6:$C$505,"<="&$C11)*4,"")) -> 0 | GL11: =IF(COUNTIFS($GK$6:$GK$505,">"&0)>=24,IF(GK$3="%",AVERAGEIFS(GK$6:GK$505,$C$6:$C$505,">="&EOMONTH($C11,-INPUT!$O$113),$C$6:$C$505,"<="&$C11),SUMIFS(GK$6:GK$505,$C$6:$C$505,">="&EOMONTH($C11,-INPUT!$O$113),$C$6:$C$505,"<="&$C11)),0) -> 0 | GN11: =IF(GM$3="%",AVERAGEIFS(GM$6:GM$505,$C$6:$C$505,">="&EOMONTH($C11,-INPUT!$O$113),$C$6:$C$505,"<="&$C11),SUMIFS(GM$6:GM$505,$C$6:$C$505,">="&EOMONTH($C11,-INPUT!$O$113),$C$6:$C$505,"<="&$C11)) -> 0 | GO11: =IF(GO$3="%",IF(COUNTIFS($C$6:$C11,"<>"&"")>=3,AVERAGEIFS(GM$6:GM$505,$C$6:$C$505,">="&EOMONTH($C11,-3),$C$6:$C$505,"<="&$C11),""),IF(COUNTIFS($C$6:$C11,"<>"&"")>=3,SUMIFS(GM$6:GM$505,$C$6:$C$505,">="&EOMONTH($C11,-3),$C$6:$C$505,"<="&$C11)*4,"")) -> 0 | GQ11: =IF(COUNTIFS($GP$6:$GP$505,">"&0)>=24,IF(GP$3="%",AVERAGEIFS(GP$6:GP$505,$C$6:$C$505,">="&EOMONTH($C11,-INPUT!$O$113),$C$6:$C$505,"<="&$C11),SUMIFS(GP$6:GP$505,$C$6:$C$505,">="&EOMONTH($C11,-INPUT!$O$113),$C$6:$C$505,"<="&$C11)),0) -> 0 | GS11: =IF(GR$3="%",AVERAGEIFS(GR$6:GR$505,$C$6:$C$505,">="&EOMONTH($C11,-INPUT!$O$113),$C$6:$C$505,"<="&$C11),SUMIFS(GR$6:GR$505,$C$6:$C$505,">="&EOMONTH($C11,-INPUT!$O$113),$C$6:$C$505,"<="&$C11)) -> 0 | GT11: =IF(GT$3="%",IF(COUNTIFS($C$6:$C11,"<>"&"")>=3,AVERAGEIFS(GR$6:GR$505,$C$6:$C$505,">="&EOMONTH($C11,-3),$C$6:$C$505,"<="&$C11),""),IF(COUNTIFS($C$6:$C11,"<>"&"")>=3,SUMIFS(GR$6:GR$505,$C$6:$C$505,">="&EOMONTH($C11,-3),$C$6:$C$505,"<="&$C11)*4,"")) -> 0 | GV11: =IF(COUNTIFS($GU$6:$GU$505,">"&0)>=24,IF(GU$3="%",AVERAGEIFS(GU$6:GU$505,$C$6:$C$505,">="&EOMONTH($C11,-INPUT!$O$113),$C$6:$C$505,"<="&$C11),SUMIFS(GU$6:GU$505,$C$6:$C$505,">="&EOMONTH($C11,-INPUT!$O$113),$C$6:$C$505,"<="&$C11)),0) -> 0 | GX11: =IF(GW$3="%",AVERAGEIFS(GW$6:GW$505,$C$6:$C$505,">="&EOMONTH($C11,-INPUT!$O$113),$C$6:$C$505,"<="&$C11),SUMIFS(GW$6:GW$505,$C$6:$C$505,">="&EOMONTH($C11,-INPUT!$O$113),$C$6:$C$505,"<="&$C11)) -> 0 | GY11: =IF(GY$3="%",IF(COUNTIFS($C$6:$C11,"<>"&"")>=3,AVERAGEIFS(GW$6:GW$505,$C$6:$C$505,">="&EOMONTH($C11,-3),$C$6:$C$505,"<="&$C11),""),IF(COUNTIFS($C$6:$C11,"<>"&"")>=3,SUMIFS(GW$6:GW$505,$C$6:$C$505,">="&EOMONTH($C11,-3),$C$6:$C$505,"<="&$C11)*4,"")) -> 0 | HA11: =IF(COUNTIFS($GZ$6:$GZ$505,">"&0)>=24,IF(GZ$3="%",AVERAGEIFS(GZ$6:GZ$505,$C$6:$C$505,">="&EOMONTH($C11,-INPUT!$O$113),$C$6:$C$505,"<="&$C11),SUMIFS(GZ$6:GZ$505,$C$6:$C$505,">="&EOMONTH($C11,-INPUT!$O$113),$C$6:$C$505,"<="&$C11)),0) -> 0 | HC11: =IF(HB$3="%",AVERAGEIFS(HB$6:HB$505,$C$6:$C$505,">="&EOMONTH($C11,-INPUT!$O$113),$C$6:$C$505,"<="&$C11),SUMIFS(HB$6:HB$505,$C$6:$C$505,">="&EOMONTH($C11,-INPUT!$O$113),$C$6:$C$505,"<="&$C11)) -> 0 | HD11: =IF(HD$3="%",IF(COUNTIFS($C$6:$C11,"<>"&"")>=3,AVERAGEIFS(HB$6:HB$505,$C$6:$C$505,">="&EOMONTH($C11,-3),$C$6:$C$505,"<="&$C11),""),IF(COUNTIFS($C$6:$C11,"<>"&"")>=3,SUMIFS(HB$6:HB$505,$C$6:$C$505,">="&EOMONTH($C11,-3),$C$6:$C$505,"<="&$C11)*4,"")) -> 0 | HF11: =IF(COUNTIFS($HE$6:$HE$505,">"&0)>=24,IF(HE$3="%",AVERAGEIFS(HE$6:HE$505,$C$6:$C$505,">="&EOMONTH($C11,-INPUT!$O$113),$C$6:$C$505,"<="&$C11),SUMIFS(HE$6:HE$505,$C$6:$C$505,">="&EOMONTH($C11,-INPUT!$O$113),$C$6:$C$505,"<="&$C11)),0) -> 0 | HH11: =IF(HG$3="%",AVERAGEIFS(HG$6:HG$505,$C$6:$C$505,">="&EOMONTH($C11,-INPUT!$O$113),$C$6:$C$505,"<="&$C11),SUMIFS(HG$6:HG$505,$C$6:$C$505,">="&EOMONTH($C11,-INPUT!$O$113),$C$6:$C$505,"<="&$C11)) -> 0 | HI11: =IF(HI$3="%",IF(COUNTIFS($C$6:$C11,"<>"&"")>=3,AVERAGEIFS(HG$6:HG$505,$C$6:$C$505,">="&EOMONTH($C11,-3),$C$6:$C$505,"<="&$C11),""),IF(COUNTIFS($C$6:$C11,"<>"&"")>=3,SUMIFS(HG$6:HG$505,$C$6:$C$505,">="&EOMONTH($C11,-3),$C$6:$C$505,"<="&$C11)*4,"")) -> 0 | HK11: =IF(COUNTIFS($HJ$6:$HJ$505,">"&0)>=24,IF(HJ$3="%",AVERAGEIFS(HJ$6:HJ$505,$C$6:$C$505,">="&EOMONTH($C11,-INPUT!$O$113),$C$6:$C$505,"<="&$C11),SUMIFS(HJ$6:HJ$505,$C$6:$C$505,">="&EOMONTH($C11,-INPUT!$O$113),$C$6:$C$505,"<="&$C11)),0) -> 0 | HM11: =IF(HL$3="%",AVERAGEIFS(HL$6:HL$505,$C$6:$C$505,">="&EOMONTH($C11,-INPUT!$O$113),$C$6:$C$505,"<="&$C11),SUMIFS(HL$6:HL$505,$C$6:$C$505,">="&EOMONTH($C11,-INPUT!$O$113),$C$6:$C$505,"<="&$C11)) -> 0 | HN11: =IF(HN$3="%",IF(COUNTIFS($C$6:$C11,"<>"&"")>=3,AVERAGEIFS(HL$6:HL$505,$C$6:$C$505,">="&EOMONTH($C11,-3),$C$6:$C$505,"<="&$C11),""),IF(COUNTIFS($C$6:$C11,"<>"&"")>=3,SUMIFS(HL$6:HL$505,$C$6:$C$505,">="&EOMONTH($C11,-3),$C$6:$C$505,"<="&$C11)*4,"")) -> 0 | HP11: =IF(COUNTIFS($HO$6:$HO$505,">"&0)>=24,IF(HO$3="%",AVERAGEIFS(HO$6:HO$505,$C$6:$C$505,">="&EOMONTH($C11,-INPUT!$O$113),$C$6:$C$505,"<="&$C11),SUMIFS(HO$6:HO$505,$C$6:$C$505,">="&EOMONTH($C11,-INPUT!$O$113),$C$6:$C$505,"<="&$C11)),0) -> 0 | HR11: =IF(HQ$3="%",AVERAGEIFS(HQ$6:HQ$505,$C$6:$C$505,">="&EOMONTH($C11,-INPUT!$O$113),$C$6:$C$505,"<="&$C11),SUMIFS(HQ$6:HQ$505,$C$6:$C$505,">="&EOMONTH($C11,-INPUT!$O$113),$C$6:$C$505,"<="&$C11)) -> 0 | HS11: =IF(HS$3="%",IF(COUNTIFS($C$6:$C11,"<>"&"")>=3,AVERAGEIFS(HQ$6:HQ$505,$C$6:$C$505,">="&EOMONTH($C11,-3),$C$6:$C$505,"<="&$C11),""),IF(COUNTIFS($C$6:$C11,"<>"&"")>=3,SUMIFS(HQ$6:HQ$505,$C$6:$C$505,">="&EOMONTH($C11,-3),$C$6:$C$505,"<="&$C11)*4,"")) -> 0 | HU11: =IF(COUNTIFS($HT$6:$HT$505,">"&0)>=24,IF(HT$3="%",AVERAGEIFS(HT$6:HT$505,$C$6:$C$505,">="&EOMONTH($C11,-INPUT!$O$113),$C$6:$C$505,"<="&$C11),SUMIFS(HT$6:HT$505,$C$6:$C$505,">="&EOMONTH($C11,-INPUT!$O$113),$C$6:$C$505,"<="&$C11)),0) -> 0 | HW11: =IF(HV$3="%",AVERAGEIFS(HV$6:HV$505,$C$6:$C$505,">="&EOMONTH($C11,-INPUT!$O$113),$C$6:$C$505,"<="&$C11),SUMIFS(HV$6:HV$505,$C$6:$C$505,">="&EOMONTH($C11,-INPUT!$O$113),$C$6:$C$505,"<="&$C11)) -> 0 | HX11: =IF(HX$3="%",IF(COUNTIFS($C$6:$C11,"<>"&"")>=3,AVERAGEIFS(HV$6:HV$505,$C$6:$C$505,">="&EOMONTH($C11,-3),$C$6:$C$505,"<="&$C11),""),IF(COUNTIFS($C$6:$C11,"<>"&"")>=3,SUMIFS(HV$6:HV$505,$C$6:$C$505,">="&EOMONTH($C11,-3),$C$6:$C$505,"<="&$C11)*4,"")) -> 0 | HZ11: =IF(COUNTIFS($HY$6:$HY$505,">"&0)>=24,IF(HY$3="%",AVERAGEIFS(HY$6:HY$505,$C$6:$C$505,">="&EOMONTH($C11,-INPUT!$O$113),$C$6:$C$505,"<="&$C11),SUMIFS(HY$6:HY$505,$C$6:$C$505,">="&EOMONTH($C11,-INPUT!$O$113),$C$6:$C$505,"<="&$C11)),0) -> 0 | IA11: 6113.973333 | IB11: =SUMIFS(IA$6:IA$505,$C$6:$C$505,">="&EOMONTH($C11,-INPUT!$O$113),$C$6:$C$505,"<="&$C11) -> 39305.096 | IC11: =IF(COUNTIFS($C$6:HK11,"<>"&"")>=3,SUMIFS(IA$6:IA$505,$C$6:$C$505,">="&EOMONTH($C11,-3),$C$6:$C$505,"<="&$C11)*4,"") -> 81794.56 | ID11: =IF(COUNTIFS($C$6:HK11,"<>"&"")>=6,SUMIFS(IA$6:IA$505,$C$6:$C$505,">="&EOMONTH($C11,-6),$C$6:$C$505,"<="&$C11)*2,"") -> 78610.192 | IE11: -3886.026667 | IF11: =IF(COUNTIFS($IE$6:$IE$505,">"&0)>=24,SUMIFS(IE$6:IE$505,$C$6:$C$505,">="&EOMONTH($C11,-INPUT!$O$113),$C$6:$C$505,"<="&$C11),0) -> -20694.904 | IG11: 5383.958333 | IH11: =IFERROR(SUMIFS(IG$6:IG$505,$C$6:$C$505,">="&EOMONTH($C11,-INPUT!$O$113),$C$6:$C$505,"<="&$C11),0) -> 47867.88065 | II11: =IFERROR(IF(II$3="%",IF(COUNTIFS($C$6:$C11,"<>"&"")>=3,AVERAGEIFS(D$6:D$505,$C$6:$C$505,">="&EOMONTH($C11,-3),$C$6:$C$505,"<="&$C11),""),IF(COUNTIFS($C$6:$C11,"<>"&"")>=3,SUMIFS(D$6:D$505,$C$6:$C$505,">="&EOMONTH($C11,-3),$C$6:$C$505,"<="&$C11)*4,"")) / IF(II$3="%",IF(COUNTIFS($C$6:$C11,"<>"&"")>=3,AVERAGEIFS(Y$6:Y$505,$C$6:$C$505,">="&EOMONTH($C11,-3),$C$6:$C$505,"<="&$C11),""),IF(COUNTIFS($C$6:$C11,"<>"&"")>=3,SUMIFS(Y$6:Y$505,$C$6:$C$505,">="&EOMONTH($C11,-3),$C$6:$C$505,"<="&$C11)*4,"")),0) -> 5597.471074 | IJ11: 5300.534884 | IK11: =IFERROR(SUMIFS(IJ$6:IJ$505,$C$6:$C$505,">="&EOMONTH($C11,-INPUT!$O$113),$C$6:$C$505,"<="&$C11),0) -> 32533.10693 | IL11: =IFERROR(IF(IL$3="%",IF(COUNTIFS($C$6:$C11,"<>"&"")>=3,AVERAGEIFS(H$6:H$505,$C$6:$C$505,">="&EOMONTH($C11,-3),$C$6:$C$505,"<="&$C11),""),IF(COUNTIFS($C$6:$C11,"<>"&"")>=3,SUMIFS(H$6:H$505,$C$6:$C$505,">="&EOMONTH($C11,-3),$C$6:$C$505,"<="&$C11)*4,"")) / IF(IL$3="%",IF(COUNTIFS($C$6:$C11,"<>"&"")>=3,AVERAGEIFS(AB$6:AB$505,$C$6:$C$505,">="&EOMONTH($C11,-3),$C$6:$C$505,"<="&$C11),""),IF(COUNTIFS($C$6:$C11,"<>"&"")>=3,SUMIFS(AB$6:AB$505,$C$6:$C$505,">="&EOMONTH($C11,-3),$C$6:$C$505,"<="&$C11)*4,"")),0) -> 5647.055556
A12: 4 | B12: 2018 | C12: 2018-04-01 | D12: 168168 | E12: =SUMIFS(D$6:D$505,$C$6:$C$505,">="&EOMONTH($C12,-INPUT!$O$113),$C$6:$C$505,"<="&$C12) -> 2138144 | F12: =IF(COUNTIFS($C$6:C12,"<>"&"")>=3,SUMIFS(D$6:D$505,$C$6:$C$505,">="&EOMONTH($C12,-3),$C$6:$C$505,"<="&$C12)*4,"") -> 2045766.667 | G12: =IF(COUNTIFS($C$6:C12,"<>"&"")>=6,SUMIFS(D$6:D$505,$C$6:$C$505,">="&EOMONTH($C12,-6),$C$6:$C$505,"<="&$C12)*2,"") -> 3669709.333 | H12: 242391 | I12: =IF(COUNTIFS($H$6:$H$505,">"&0)>=24,SUMIFS(H$6:H$505,$C$6:$C$505,">="&EOMONTH($C12,-INPUT!$O$113),$C$6:$C$505,"<="&$C12),0) -> 1655444 | J12: 67758.64667 | K12: =SUMIFS(J$6:J$505,$C$6:$C$505,">="&EOMONTH($C12,-INPUT!$O$113),$C$6:$C$505,"<="&$C12) -> 480152.8167 | L12: =IF(COUNTIFS($C$6:C12,"<>"&"")>=3,SUMIFS(J$6:J$505,$C$6:$C$505,">="&EOMONTH($C12,-3),$C$6:$C$505,"<="&$C12)*4,"") -> 996698.2 | M12: =IF(COUNTIFS($C$6:C12,"<>"&"")>=6,SUMIFS(J$6:J$505,$C$6:$C$505,">="&EOMONTH($C12,-6),$C$6:$C$505,"<="&$C12)*2,"") -> 862963.2 | N12: 76507.66667 | O12: =IF(COUNTIFS($N$6:$N$505,">"&0)>=24,SUMIFS(N$6:N$505,$C$6:$C$505,">="&EOMONTH($C12,-INPUT!$O$113),$C$6:$C$505,"<="&$C12),0) -> 541080.6667 | P12: 0.4029223554 | Q12: 0.2245652382 | R12: 0.3156374068 | S12: -7839.57 | T12: =SUMIFS(S$6:S$505,$C$6:$C$505,">="&EOMONTH($C12,-INPUT!$O$113),$C$6:$C$505,"<="&$C12) -> -41737.16 | U12: =IF(COUNTIFS($C$6:C12,"<>"&"")>=3,SUMIFS(S$6:S$505,$C$6:$C$505,">="&EOMONTH($C12,-3),$C$6:$C$505,"<="&$C12)*4,"") -> 143686.72 | V12: =IF(COUNTIFS($C$6:C12,"<>"&"")>=6,SUMIFS(S$6:S$505,$C$6:$C$505,">="&EOMONTH($C12,-6),$C$6:$C$505,"<="&$C12)*2,"") -> -57432.76 | W12: -10308 | X12: =IF(COUNTIFS($W$6:$W$505,">"&0)>=24,SUMIFS(W$6:W$505,$C$6:$C$505,">="&EOMONTH($C12,-INPUT!$O$113),$C$6:$C$505,"<="&$C12),0) -> 0 | Y12: 42 | Z12: =AVERAGEIFS(Y$6:Y$505,$C$6:$C$505,">="&EOMONTH($C12,-INPUT!$O$113),$C$6:$C$505,"<="&$C12) -> 41 | AA12: =IF(COUNTIFS($C$6:$C12,"<>"&"")>=3,AVERAGEIFS(Y$6:Y$505,$C$6:$C$505,">="&EOMONTH($C12,-3),$C$6:$C$505,"<="&$C12),"") -> 40.66666667 | AB12: 45 | AC12: =IF(COUNTIFS($AB$6:$AB$505,">"&0)>=24,AVERAGEIFS(AB$6:AB$505,$C$6:$C$505,">="&EOMONTH($C12,-INPUT!$O$113),$C$6:$C$505,"<="&$C12),0) -> 43.71428571 | AD12: 6861.75 | AE12: =SUMIFS(AD$6:AD$505,$C$6:$C$505,">="&EOMONTH($C12,-INPUT!$O$113),$C$6:$C$505,"<="&$C12) -> 50590.93 | AF12: =IF(COUNTIFS($C$6:$C12,"<>"&"")>=3,SUMIFS(AD$6:AD$505,$C$6:$C$505,">="&EOMONTH($C12,-3),$C$6:$C$505,"<="&$C12)*4,"") -> 85016.32 | AG12: 8280 | AH12: =IF(COUNTIFS($AG$6:$AG$505,">"&0)>=24,SUMIFS(AG$6:AG$505,$C$6:$C$505,">="&EOMONTH($C12,-INPUT!$O$113),$C$6:$C$505,"<="&$C12),0) -> 56304 | AI12: 281723.45 | AJ12: =SUMIFS(AI$6:AI$505,$C$6:$C$505,">="&EOMONTH($C12,-INPUT!$O$113),$C$6:$C$505,"<="&$C12) -> 1985494.46 | AK12: =IF(COUNTIFS($C$6:$C12,"<>"&"")>=3,SUMIFS(AI$6:AI$505,$C$6:$C$505,">="&EOMONTH($C12,-3),$C$6:$C$505,"<="&$C12)*4,"") -> 3463122.32 | AL12: 298921 | AM12: =IF(COUNTIFS($AL$6:$AL$505,">"&0)>=24,SUMIFS(AL$6:AL$505,$C$6:$C$505,">="&EOMONTH($C12,-INPUT!$O$113),$C$6:$C$505,"<="&$C12),0) -> 2046512 | AN12: 24.50803366 | AO12: 42.26338595 | AP12: 24.063223 | AQ12: 29.27427536 | AR12: 29.40188974 | AS12: =IFERROR(IF('Chart Support '!$D$68=1,AI12/Y12,AI12/AD12),0) -> 6707.70119 | AT12: =IFERROR(IF('Chart Support '!$D$68=1,SUMIFS(AS$6:AS$505,$C$6:$C$505,">="&EOMONTH($C12,-INPUT!$O$113),$C$6:$C$505,"<="&$C12),$AJ12/$AE12),0) -> 48450.80156 | AU12: =IFERROR(IF('Chart Support '!$D$68=1,$AK12/IF(IC$3="%",IF(COUNTIFS($C$6:$C12,"<>"&"")>=3,AVERAGEIFS(Y$6:Y$505,$C$6:$C$505,">="&EOMONTH($C12,-3),$C$6:$C$505,"<="&$C12),""),IF(COUNTIFS($C$6:$C12,"<>"&"")>=3,SUMIFS(Y$6:Y$505,$C$6:$C$505,">="&EOMONTH($C12,-3),$C$6:$C$505,"<="&$C12)*4,"")),$AK12/$AF12),0) -> 7096.562131 | AV12: =IFERROR(IF('Chart Support '!$D$68=1,$AL12/$AB12,$AL12/$AG12),0) -> 6642.688889 | AW12: =IFERROR(IF('Chart Support '!$D$68=1,SUMIFS(AV$6:AV$505,$C$6:$C$505,">="&EOMONTH($C12,-INPUT!$O$113),$C$6:$C$505,"<="&$C12),$AM12/$AH12),0) -> 46849.14904 | AX12: -0.02782718301 | AY12: -0.02102104077 | AZ12: 0.04149051253 | BA12: -0.03448402755 | BB12: 0 | BC12: 3.5625 | BD12: =IF(BC$3="%",AVERAGEIFS(BC$6:BC$505,$C$6:$C$505,">="&EOMONTH($C12,-INPUT!$O$113),$C$6:$C$505,"<="&$C12),SUMIFS(BC$6:BC$505,$C$6:$C$505,">="&EOMONTH($C12,-INPUT!$O$113),$C$6:$C$505,"<="&$C12)) -> 24.57916667 | BE12: =IF(BE$3="%",IF(COUNTIFS($C$6:$C12,"<>"&"")>=3,AVERAGEIFS(BC$6:BC$505,$C$6:$C$505,">="&EOMONTH($C12,-3),$C$6:$C$505,"<="&$C12),""),IF(COUNTIFS($C$6:$C12,"<>"&"")>=3,SUMIFS(BC$6:BC$505,$C$6:$C$505,">="&EOMONTH($C12,-3),$C$6:$C$505,"<="&$C12)*4,"")) -> 43.60555556 | BG12: =IF(COUNTIFS($BF$6:$BF$505,">"&0)>=24,IF(BF$3="%",AVERAGEIFS(BF$6:BF$505,$C$6:$C$505,">="&EOMONTH($C12,-INPUT!$O$113),$C$6:$C$505,"<="&$C12),SUMIFS(BF$6:BF$505,$C$6:$C$505,">="&EOMONTH($C12,-INPUT!$O$113),$C$6:$C$505,"<="&$C12)),0) -> 0 | BH12: 31 | BI12: =IF(BH$3="%",AVERAGEIFS(BH$6:BH$505,$C$6:$C$505,">="&EOMONTH($C12,-INPUT!$O$113),$C$6:$C$505,"<="&$C12),SUMIFS(BH$6:BH$505,$C$6:$C$505,">="&EOMONTH($C12,-INPUT!$O$113),$C$6:$C$505,"<="&$C12)) -> 208 | BJ12: =IF(BJ$3="%",IF(COUNTIFS($C$6:$C12,"<>"&"")>=3,AVERAGEIFS(BH$6:BH$505,$C$6:$C$505,">="&EOMONTH($C12,-3),$C$6:$C$505,"<="&$C12),""),IF(COUNTIFS($C$6:$C12,"<>"&"")>=3,SUMIFS(BH$6:BH$505,$C$6:$C$505,">="&EOMONTH($C12,-3),$C$6:$C$505,"<="&$C12)*4,"")) -> 356 | BK12: 31 | BL12: =IF(COUNTIFS($BK$6:$BK$505,">"&0)>=24,IF(BK$3="%",AVERAGEIFS(BK$6:BK$505,$C$6:$C$505,">="&EOMONTH($C12,-INPUT!$O$113),$C$6:$C$505,"<="&$C12),SUMIFS(BK$6:BK$505,$C$6:$C$505,">="&EOMONTH($C12,-INPUT!$O$113),$C$6:$C$505,"<="&$C12)),0) -> 211 | BM12: 0.7558467742 | BN12: =IF(BM$3="%",AVERAGEIFS(BM$6:BM$505,$C$6:$C$505,">="&EOMONTH($C12,-INPUT!$O$113),$C$6:$C$505,"<="&$C12),SUMIFS(BM$6:BM$505,$C$6:$C$505,">="&EOMONTH($C12,-INPUT!$O$113),$C$6:$C$505,"<="&$C12)) -> 0.7529061119 | BO12: =IF(BO$3="%",IF(COUNTIFS($C$6:$C12,"<>"&"")>=3,AVERAGEIFS(BM$6:BM$505,$C$6:$C$505,">="&EOMONTH($C12,-3),$C$6:$C$505,"<="&$C12),""),IF(COUNTIFS($C$6:$C12,"<>"&"")>=3,SUMIFS(BM$6:BM$505,$C$6:$C$505,">="&EOMONTH($C12,-3),$C$6:$C$505,"<="&$C12)*4,"")) -> 0.8203147418 | BP12: 0.73 | BQ12: =IF(BP$3="%",AVERAGEIFS(BP$6:BP$505,$C$6:$C$505,">="&EOMONTH($C12,-INPUT!$O$113),$C$6:$C$505,"<="&$C12),SUMIFS(BP$6:BP$505,$C$6:$C$505,">="&EOMONTH($C12,-INPUT!$O$113),$C$6:$C$505,"<="&$C12)) -> 0.73 | BR12: 9564.972258 | BS12: =IF(BR$3="%",AVERAGEIFS(BR$6:BR$505,$C$6:$C$505,">="&EOMONTH($C12,-INPUT!$O$113),$C$6:$C$505,"<="&$C12),SUMIFS(BR$6:BR$505,$C$6:$C$505,">="&EOMONTH($C12,-INPUT!$O$113),$C$6:$C$505,"<="&$C12)) -> 68555.52828 | BT12: =IF(BT$3="%",IF(COUNTIFS($C$6:$C12,"<>"&"")>=3,AVERAGEIFS(BR$6:BR$505,$C$6:$C$505,">="&EOMONTH($C12,-3),$C$6:$C$505,"<="&$C12),""),IF(COUNTIFS($C$6:$C12,"<>"&"")>=3,SUMIFS(BR$6:BR$505,$C$6:$C$505,">="&EOMONTH($C12,-3),$C$6:$C$505,"<="&$C12)*4,"")) -> 122837.6821 | BU12: 9748.444105 | BV12: =IF(COUNTIFS($BU$6:$BU$505,">"&0)>=24,IF(BU$3="%",AVERAGEIFS(BU$6:BU$505,$C$6:$C$505,">="&EOMONTH($C12,-INPUT!$O$113),$C$6:$C$505,"<="&$C12),SUMIFS(BU$6:BU$505,$C$6:$C$505,">="&EOMONTH($C12,-INPUT!$O$113),$C$6:$C$505,"<="&$C12)),0) -> 67748.12871 | BW12: 88.33658842 | BX12: =IF(BW$3="%",AVERAGEIFS(BW$6:BW$505,$C$6:$C$505,">="&EOMONTH($C12,-INPUT!$O$113),$C$6:$C$505,"<="&$C12),SUMIFS(BW$6:BW$505,$C$6:$C$505,">="&EOMONTH($C12,-INPUT!$O$113),$C$6:$C$505,"<="&$C12)) -> 582.4932642 | BY12: =IF(BY$3="%",IF(COUNTIFS($C$6:$C12,"<>"&"")>=3,AVERAGEIFS(BW$6:BW$505,$C$6:$C$505,">="&EOMONTH($C12,-3),$C$6:$C$505,"<="&$C12),""),IF(COUNTIFS($C$6:$C12,"<>"&"")>=3,SUMIFS(BW$6:BW$505,$C$6:$C$505,">="&EOMONTH($C12,-3),$C$6:$C$505,"<="&$C12)*4,"")) -> 1012.680231 | BZ12: 85 | CA12: =IF(COUNTIFS($BZ$6:$BZ$505,">"&0)>=24,IF(BZ$3="%",AVERAGEIFS(BZ$6:BZ$505,$C$6:$C$505,">="&EOMONTH($C12,-INPUT!$O$113),$C$6:$C$505,"<="&$C12),SUMIFS(BZ$6:BZ$505,$C$6:$C$505,">="&EOMONTH($C12,-INPUT!$O$113),$C$6:$C$505,"<="&$C12)),0) -> 595 | CB12: 66.7689254 | CC12: =IF(CB$3="%",AVERAGEIFS(CB$6:CB$505,$C$6:$C$505,">="&EOMONTH($C12,-INPUT!$O$113),$C$6:$C$505,"<="&$C12),SUMIFS(CB$6:CB$505,$C$6:$C$505,">="&EOMONTH($C12,-INPUT!$O$113),$C$6:$C$505,"<="&$C12)) -> 438.0669172 | CD12: =IF(CD$3="%",IF(COUNTIFS($C$6:$C12,"<>"&"")>=3,AVERAGEIFS(CB$6:CB$505,$C$6:$C$505,">="&EOMONTH($C12,-3),$C$6:$C$505,"<="&$C12),""),IF(COUNTIFS($C$6:$C12,"<>"&"")>=3,SUMIFS(CB$6:CB$505,$C$6:$C$505,">="&EOMONTH($C12,-3),$C$6:$C$505,"<="&$C12)*4,"")) -> 829.7792335 | CE12: 66.3 | CF12: =IF(COUNTIFS($CE$6:$CE$505,">"&0)>=24,IF(CE$3="%",AVERAGEIFS(CE$6:CE$505,$C$6:$C$505,">="&EOMONTH($C12,-INPUT!$O$113),$C$6:$C$505,"<="&$C12),SUMIFS(CE$6:CE$505,$C$6:$C$505,">="&EOMONTH($C12,-INPUT!$O$113),$C$6:$C$505,"<="&$C12)),0) -> 465.8 | CG12: 113 | CH12: =IF(CG$3="%",AVERAGEIFS(CG$6:CG$505,$C$6:$C$505,">="&EOMONTH($C12,-INPUT!$O$113),$C$6:$C$505,"<="&$C12),SUMIFS(CG$6:CG$505,$C$6:$C$505,">="&EOMONTH($C12,-INPUT!$O$113),$C$6:$C$505,"<="&$C12)) -> 767 | CI12: =IF(CI$3="%",IF(COUNTIFS($C$6:$C12,"<>"&"")>=3,AVERAGEIFS(CG$6:CG$505,$C$6:$C$505,">="&EOMONTH($C12,-3),$C$6:$C$505,"<="&$C12),""),IF(COUNTIFS($C$6:$C12,"<>"&"")>=3,SUMIFS(CG$6:CG$505,$C$6:$C$505,">="&EOMONTH($C12,-3),$C$6:$C$505,"<="&$C12)*4,"")) -> 1340 | CK12: =IF(COUNTIFS($CJ$6:$CJ$505,">"&0)>=24,IF(CJ$3="%",AVERAGEIFS(CJ$6:CJ$505,$C$6:$C$505,">="&EOMONTH($C12,-INPUT!$O$113),$C$6:$C$505,"<="&$C12),SUMIFS(CJ$6:CJ$505,$C$6:$C$505,">="&EOMONTH($C12,-INPUT!$O$113),$C$6:$C$505,"<="&$C12)),0) -> 0 | CL12: 2655 | CM12: =IF(CL$3="%",AVERAGEIFS(CL$6:CL$505,$C$6:$C$505,">="&EOMONTH($C12,-INPUT!$O$113),$C$6:$C$505,"<="&$C12),SUMIFS(CL$6:CL$505,$C$6:$C$505,">="&EOMONTH($C12,-INPUT!$O$113),$C$6:$C$505,"<="&$C12)) -> 18484 | CN12: =IF(CN$3="%",IF(COUNTIFS($C$6:$C12,"<>"&"")>=3,AVERAGEIFS(CL$6:CL$505,$C$6:$C$505,">="&EOMONTH($C12,-3),$C$6:$C$505,"<="&$C12),""),IF(COUNTIFS($C$6:$C12,"<>"&"")>=3,SUMIFS(CL$6:CL$505,$C$6:$C$505,">="&EOMONTH($C12,-3),$C$6:$C$505,"<="&$C12)*4,"")) -> 32712 | CP12: =IF(COUNTIFS($CO$6:$CO$505,">"&0)>=24,IF(CO$3="%",AVERAGEIFS(CO$6:CO$505,$C$6:$C$505,">="&EOMONTH($C12,-INPUT!$O$113),$C$6:$C$505,"<="&$C12),SUMIFS(CO$6:CO$505,$C$6:$C$505,">="&EOMONTH($C12,-INPUT!$O$113),$C$6:$C$505,"<="&$C12)),0) -> 0 | CQ12: 296514.14 | CR12: =IF(CQ$3="%",AVERAGEIFS(CQ$6:CQ$505,$C$6:$C$505,">="&EOMONTH($C12,-INPUT!$O$113),$C$6:$C$505,"<="&$C12),SUMIFS(CQ$6:CQ$505,$C$6:$C$505,">="&EOMONTH($C12,-INPUT!$O$113),$C$6:$C$505,"<="&$C12)) -> 2034783.95 | CS12: =IF(CS$3="%",IF(COUNTIFS($C$6:$C12,"<>"&"")>=3,AVERAGEIFS(CQ$6:CQ$505,$C$6:$C$505,">="&EOMONTH($C12,-3),$C$6:$C$505,"<="&$C12),""),IF(COUNTIFS($C$6:$C12,"<>"&"")>=3,SUMIFS(CQ$6:CQ$505,$C$6:$C$505,">="&EOMONTH($C12,-3),$C$6:$C$505,"<="&$C12)*4,"")) -> 3638812.56 | CT12: 304404 | CU12: =IF(COUNTIFS($CT$6:$CT$505,">"&0)>=24,IF(CT$3="%",AVERAGEIFS(CT$6:CT$505,$C$6:$C$505,">="&EOMONTH($C12,-INPUT!$O$113),$C$6:$C$505,"<="&$C12),SUMIFS(CT$6:CT$505,$C$6:$C$505,">="&EOMONTH($C12,-INPUT!$O$113),$C$6:$C$505,"<="&$C12)),0) -> 2039593 | CV12: 34659.73 | CW12: =IF(CV$3="%",AVERAGEIFS(CV$6:CV$505,$C$6:$C$505,">="&EOMONTH($C12,-INPUT!$O$113),$C$6:$C$505,"<="&$C12),SUMIFS(CV$6:CV$505,$C$6:$C$505,">="&EOMONTH($C12,-INPUT!$O$113),$C$6:$C$505,"<="&$C12)) -> 187731 | CX12: =IF(CX$3="%",IF(COUNTIFS($C$6:$C12,"<>"&"")>=3,AVERAGEIFS(CV$6:CV$505,$C$6:$C$505,">="&EOMONTH($C12,-3),$C$6:$C$505,"<="&$C12),""),IF(COUNTIFS($C$6:$C12,"<>"&"")>=3,SUMIFS(CV$6:CV$505,$C$6:$C$505,">="&EOMONTH($C12,-3),$C$6:$C$505,"<="&$C12)*4,"")) -> 479662.96 | CY12: 45354 | CZ12: =IF(COUNTIFS($CY$6:$CY$505,">"&0)>=24,IF(CY$3="%",AVERAGEIFS(CY$6:CY$505,$C$6:$C$505,">="&EOMONTH($C12,-INPUT!$O$113),$C$6:$C$505,"<="&$C12),SUMIFS(CY$6:CY$505,$C$6:$C$505,">="&EOMONTH($C12,-INPUT!$O$113),$C$6:$C$505,"<="&$C12)),0) -> 161947 | DA12: 0.56 | DB12: =IF(DA$3="%",AVERAGEIFS(DA$6:DA$505,$C$6:$C$505,">="&EOMONTH($C12,-INPUT!$O$113),$C$6:$C$505,"<="&$C12),SUMIFS(DA$6:DA$505,$C$6:$C$505,">="&EOMONTH($C12,-INPUT!$O$113),$C$6:$C$505,"<="&$C12)) -> 0.5842857143 | DC12: =IF(DC$3="%",IF(COUNTIFS($C$6:$C12,"<>"&"")>=3,AVERAGEIFS(DA$6:DA$505,$C$6:$C$505,">="&EOMONTH($C12,-3),$C$6:$C$505,"<="&$C12),""),IF(COUNTIFS($C$6:$C12,"<>"&"")>=3,SUMIFS(DA$6:DA$505,$C$6:$C$505,">="&EOMONTH($C12,-3),$C$6:$C$505,"<="&$C12)*4,"")) -> 0.57 | DD12: 0.52 | DE12: =IF(COUNTIFS($DD$6:$DD$505,">"&0)>=24,IF(DD$3="%",AVERAGEIFS(DD$6:DD$505,$C$6:$C$505,">="&EOMONTH($C12,-INPUT!$O$113),$C$6:$C$505,"<="&$C12),SUMIFS(DD$6:DD$505,$C$6:$C$505,">="&EOMONTH($C12,-INPUT!$O$113),$C$6:$C$505,"<="&$C12)),0) -> 0.5457142857 | DF12: 0.43 | DG12: =IF(DF$3="%",AVERAGEIFS(DF$6:DF$505,$C$6:$C$505,">="&EOMONTH($C12,-INPUT!$O$113),$C$6:$C$505,"<="&$C12),SUMIFS(DF$6:DF$505,$C$6:$C$505,">="&EOMONTH($C12,-INPUT!$O$113),$C$6:$C$505,"<="&$C12)) -> 0.45 | DH12: =IF(DH$3="%",IF(COUNTIFS($C$6:$C12,"<>"&"")>=3,AVERAGEIFS(DF$6:DF$505,$C$6:$C$505,">="&EOMONTH($C12,-3),$C$6:$C$505,"<="&$C12),""),IF(COUNTIFS($C$6:$C12,"<>"&"")>=3,SUMIFS(DF$6:DF$505,$C$6:$C$505,">="&EOMONTH($C12,-3),$C$6:$C$505,"<="&$C12)*4,"")) -> 0.47 | DI12: 0.4 | DJ12: =IF(COUNTIFS($DI$6:$DI$505,">"&0)>=24,IF(DI$3="%",AVERAGEIFS(DI$6:DI$505,$C$6:$C$505,">="&EOMONTH($C12,-INPUT!$O$113),$C$6:$C$505,"<="&$C12),SUMIFS(DI$6:DI$505,$C$6:$C$505,">="&EOMONTH($C12,-INPUT!$O$113),$C$6:$C$505,"<="&$C12)),0) -> 0.43 | DK12: 2070 | DL12: =IF(DK$3="%",AVERAGEIFS(DK$6:DK$505,$C$6:$C$505,">="&EOMONTH($C12,-INPUT!$O$113),$C$6:$C$505,"<="&$C12),SUMIFS(DK$6:DK$505,$C$6:$C$505,">="&EOMONTH($C12,-INPUT!$O$113),$C$6:$C$505,"<="&$C12)) -> -5530 | DM12: =IF(DM$3="%",IF(COUNTIFS($C$6:$C12,"<>"&"")>=3,AVERAGEIFS(DK$6:DK$505,$C$6:$C$505,">="&EOMONTH($C12,-3),$C$6:$C$505,"<="&$C12),""),IF(COUNTIFS($C$6:$C12,"<>"&"")>=3,SUMIFS(DK$6:DK$505,$C$6:$C$505,">="&EOMONTH($C12,-3),$C$6:$C$505,"<="&$C12)*4,"")) -> -22120 | DN12: -5237.304583 | DO12: =IF(COUNTIFS($DN$6:$DN$505,">"&0)>=24,IF(DN$3="%",AVERAGEIFS(DN$6:DN$505,$C$6:$C$505,">="&EOMONTH($C12,-INPUT!$O$113),$C$6:$C$505,"<="&$C12),SUMIFS(DN$6:DN$505,$C$6:$C$505,">="&EOMONTH($C12,-INPUT!$O$113),$C$6:$C$505,"<="&$C12)),0) -> 0 | DQ12: =IF(DP$3="%",AVERAGEIFS(DP$6:DP$505,$C$6:$C$505,">="&EOMONTH($C12,-INPUT!$O$113),$C$6:$C$505,"<="&$C12),SUMIFS(DP$6:DP$505,$C$6:$C$505,">="&EOMONTH($C12,-INPUT!$O$113),$C$6:$C$505,"<="&$C12)) -> 0 | DR12: =IF(DR$3="%",IF(COUNTIFS($C$6:$C12,"<>"&"")>=3,AVERAGEIFS(DP$6:DP$505,$C$6:$C$505,">="&EOMONTH($C12,-3),$C$6:$C$505,"<="&$C12),""),IF(COUNTIFS($C$6:$C12,"<>"&"")>=3,SUMIFS(DP$6:DP$505,$C$6:$C$505,">="&EOMONTH($C12,-3),$C$6:$C$505,"<="&$C12)*4,"")) -> 0 | DT12: =IF(COUNTIFS($DS$6:$DS$505,">"&0)>=24,IF(DS$3="%",AVERAGEIFS(DS$6:DS$505,$C$6:$C$505,">="&EOMONTH($C12,-INPUT!$O$113),$C$6:$C$505,"<="&$C12),SUMIFS(DS$6:DS$505,$C$6:$C$505,">="&EOMONTH($C12,-INPUT!$O$113),$C$6:$C$505,"<="&$C12)),0) -> 0 | DV12: =IF(DU$3="%",AVERAGEIFS(DU$6:DU$505,$C$6:$C$505,">="&EOMONTH($C12,-INPUT!$O$113),$C$6:$C$505,"<="&$C12),SUMIFS(DU$6:DU$505,$C$6:$C$505,">="&EOMONTH($C12,-INPUT!$O$113),$C$6:$C$505,"<="&$C12)) -> 0 | DW12: =IF(DW$3="%",IF(COUNTIFS($C$6:$C12,"<>"&"")>=3,AVERAGEIFS(DU$6:DU$505,$C$6:$C$505,">="&EOMONTH($C12,-3),$C$6:$C$505,"<="&$C12),""),IF(COUNTIFS($C$6:$C12,"<>"&"")>=3,SUMIFS(DU$6:DU$505,$C$6:$C$505,">="&EOMONTH($C12,-3),$C$6:$C$505,"<="&$C12)*4,"")) -> 0 | DY12: =IF(COUNTIFS($DX$6:$DX$505,">"&0)>=24,IF(DX$3="%",AVERAGEIFS(DX$6:DX$505,$C$6:$C$505,">="&EOMONTH($C12,-INPUT!$O$113),$C$6:$C$505,"<="&$C12),SUMIFS(DX$6:DX$505,$C$6:$C$505,">="&EOMONTH($C12,-INPUT!$O$113),$C$6:$C$505,"<="&$C12)),0) -> 0 | EA12: =IF(DZ$3="%",AVERAGEIFS(DZ$6:DZ$505,$C$6:$C$505,">="&EOMONTH($C12,-INPUT!$O$113),$C$6:$C$505,"<="&$C12),SUMIFS(DZ$6:DZ$505,$C$6:$C$505,">="&EOMONTH($C12,-INPUT!$O$113),$C$6:$C$505,"<="&$C12)) -> 0 | EB12: =IF(EB$3="%",IF(COUNTIFS($C$6:$C12,"<>"&"")>=3,AVERAGEIFS(DZ$6:DZ$505,$C$6:$C$505,">="&EOMONTH($C12,-3),$C$6:$C$505,"<="&$C12),""),IF(COUNTIFS($C$6:$C12,"<>"&"")>=3,SUMIFS(DZ$6:DZ$505,$C$6:$C$505,">="&EOMONTH($C12,-3),$C$6:$C$505,"<="&$C12)*4,"")) -> 0 | ED12: =IF(COUNTIFS($EC$6:$EC$505,">"&0)>=24,IF(EC$3="%",AVERAGEIFS(EC$6:EC$505,$C$6:$C$505,">="&EOMONTH($C12,-INPUT!$O$113),$C$6:$C$505,"<="&$C12),SUMIFS(EC$6:EC$505,$C$6:$C$505,">="&EOMONTH($C12,-INPUT!$O$113),$C$6:$C$505,"<="&$C12)),0) -> 0 | EF12: =IF(EE$3="%",AVERAGEIFS(EE$6:EE$505,$C$6:$C$505,">="&EOMONTH($C12,-INPUT!$O$113),$C$6:$C$505,"<="&$C12),SUMIFS(EE$6:EE$505,$C$6:$C$505,">="&EOMONTH($C12,-INPUT!$O$113),$C$6:$C$505,"<="&$C12)) -> 0 | EG12: =IF(EG$3="%",IF(COUNTIFS($C$6:$C12,"<>"&"")>=3,AVERAGEIFS(EE$6:EE$505,$C$6:$C$505,">="&EOMONTH($C12,-3),$C$6:$C$505,"<="&$C12),""),IF(COUNTIFS($C$6:$C12,"<>"&"")>=3,SUMIFS(EE$6:EE$505,$C$6:$C$505,">="&EOMONTH($C12,-3),$C$6:$C$505,"<="&$C12)*4,"")) -> 0 | EI12: =IF(COUNTIFS($EH$6:$EH$505,">"&0)>=24,IF(EH$3="%",AVERAGEIFS(EH$6:EH$505,$C$6:$C$505,">="&EOMONTH($C12,-INPUT!$O$113),$C$6:$C$505,"<="&$C12),SUMIFS(EH$6:EH$505,$C$6:$C$505,">="&EOMONTH($C12,-INPUT!$O$113),$C$6:$C$505,"<="&$C12)),0) -> 0 | EK12: =IF(EJ$3="%",AVERAGEIFS(EJ$6:EJ$505,$C$6:$C$505,">="&EOMONTH($C12,-INPUT!$O$113),$C$6:$C$505,"<="&$C12),SUMIFS(EJ$6:EJ$505,$C$6:$C$505,">="&EOMONTH($C12,-INPUT!$O$113),$C$6:$C$505,"<="&$C12)) -> 0 | EL12: =IF(EL$3="%",IF(COUNTIFS($C$6:$C12,"<>"&"")>=3,AVERAGEIFS(EJ$6:EJ$505,$C$6:$C$505,">="&EOMONTH($C12,-3),$C$6:$C$505,"<="&$C12),""),IF(COUNTIFS($C$6:$C12,"<>"&"")>=3,SUMIFS(EJ$6:EJ$505,$C$6:$C$505,">="&EOMONTH($C12,-3),$C$6:$C$505,"<="&$C12)*4,"")) -> 0 | EN12: =IF(COUNTIFS($EM$6:$EM$505,">"&0)>=24,IF(EM$3="%",AVERAGEIFS(EM$6:EM$505,$C$6:$C$505,">="&EOMONTH($C12,-INPUT!$O$113),$C$6:$C$505,"<="&$C12),SUMIFS(EM$6:EM$505,$C$6:$C$505,">="&EOMONTH($C12,-INPUT!$O$113),$C$6:$C$505,"<="&$C12)),0) -> 0 | EP12: =IF(EO$3="%",AVERAGEIFS(EO$6:EO$505,$C$6:$C$505,">="&EOMONTH($C12,-INPUT!$O$113),$C$6:$C$505,"<="&$C12),SUMIFS(EO$6:EO$505,$C$6:$C$505,">="&EOMONTH($C12,-INPUT!$O$113),$C$6:$C$505,"<="&$C12)) -> 0 | EQ12: =IF(EQ$3="%",IF(COUNTIFS($C$6:$C12,"<>"&"")>=3,AVERAGEIFS(EO$6:EO$505,$C$6:$C$505,">="&EOMONTH($C12,-3),$C$6:$C$505,"<="&$C12),""),IF(COUNTIFS($C$6:$C12,"<>"&"")>=3,SUMIFS(EO$6:EO$505,$C$6:$C$505,">="&EOMONTH($C12,-3),$C$6:$C$505,"<="&$C12)*4,"")) -> 0 | ES12: =IF(COUNTIFS($ER$6:$ER$505,">"&0)>=24,IF(ER$3="%",AVERAGEIFS(ER$6:ER$505,$C$6:$C$505,">="&EOMONTH($C12,-INPUT!$O$113),$C$6:$C$505,"<="&$C12),SUMIFS(ER$6:ER$505,$C$6:$C$505,">="&EOMONTH($C12,-INPUT!$O$113),$C$6:$C$505,"<="&$C12)),0) -> 0 | EU12: =IF(ET$3="%",AVERAGEIFS(ET$6:ET$505,$C$6:$C$505,">="&EOMONTH($C12,-INPUT!$O$113),$C$6:$C$505,"<="&$C12),SUMIFS(ET$6:ET$505,$C$6:$C$505,">="&EOMONTH($C12,-INPUT!$O$113),$C$6:$C$505,"<="&$C12)) -> 0 | EV12: =IF(EV$3="%",IF(COUNTIFS($C$6:$C12,"<>"&"")>=3,AVERAGEIFS(ET$6:ET$505,$C$6:$C$505,">="&EOMONTH($C12,-3),$C$6:$C$505,"<="&$C12),""),IF(COUNTIFS($C$6:$C12,"<>"&"")>=3,SUMIFS(ET$6:ET$505,$C$6:$C$505,">="&EOMONTH($C12,-3),$C$6:$C$505,"<="&$C12)*4,"")) -> 0 | EX12: =IF(COUNTIFS($EW$6:$EW$505,">"&0)>=24,IF(EW$3="%",AVERAGEIFS(EW$6:EW$505,$C$6:$C$505,">="&EOMONTH($C12,-INPUT!$O$113),$C$6:$C$505,"<="&$C12),SUMIFS(EW$6:EW$505,$C$6:$C$505,">="&EOMONTH($C12,-INPUT!$O$113),$C$6:$C$505,"<="&$C12)),0) -> 0 | EZ12: =IF(EY$3="%",AVERAGEIFS(EY$6:EY$505,$C$6:$C$505,">="&EOMONTH($C12,-INPUT!$O$113),$C$6:$C$505,"<="&$C12),SUMIFS(EY$6:EY$505,$C$6:$C$505,">="&EOMONTH($C12,-INPUT!$O$113),$C$6:$C$505,"<="&$C12)) -> 0 | FA12: =IF(FA$3="%",IF(COUNTIFS($C$6:$C12,"<>"&"")>=3,AVERAGEIFS(EY$6:EY$505,$C$6:$C$505,">="&EOMONTH($C12,-3),$C$6:$C$505,"<="&$C12),""),IF(COUNTIFS($C$6:$C12,"<>"&"")>=3,SUMIFS(EY$6:EY$505,$C$6:$C$505,">="&EOMONTH($C12,-3),$C$6:$C$505,"<="&$C12)*4,"")) -> 0 | FC12: =IF(COUNTIFS($FB$6:$FB$505,">"&0)>=24,IF(FB$3="%",AVERAGEIFS(FB$6:FB$505,$C$6:$C$505,">="&EOMONTH($C12,-INPUT!$O$113),$C$6:$C$505,"<="&$C12),SUMIFS(FB$6:FB$505,$C$6:$C$505,">="&EOMONTH($C12,-INPUT!$O$113),$C$6:$C$505,"<="&$C12)),0) -> 0 | FE12: =IF(FD$3="%",AVERAGEIFS(FD$6:FD$505,$C$6:$C$505,">="&EOMONTH($C12,-INPUT!$O$113),$C$6:$C$505,"<="&$C12),SUMIFS(FD$6:FD$505,$C$6:$C$505,">="&EOMONTH($C12,-INPUT!$O$113),$C$6:$C$505,"<="&$C12)) -> 0 | FF12: =IF(FF$3="%",IF(COUNTIFS($C$6:$C12,"<>"&"")>=3,AVERAGEIFS(FD$6:FD$505,$C$6:$C$505,">="&EOMONTH($C12,-3),$C$6:$C$505,"<="&$C12),""),IF(COUNTIFS($C$6:$C12,"<>"&"")>=3,SUMIFS(FD$6:FD$505,$C$6:$C$505,">="&EOMONTH($C12,-3),$C$6:$C$505,"<="&$C12)*4,"")) -> 0 | FH12: =IF(COUNTIFS($FG$6:$FG$505,">"&0)>=24,IF(FG$3="%",AVERAGEIFS(FG$6:FG$505,$C$6:$C$505,">="&EOMONTH($C12,-INPUT!$O$113),$C$6:$C$505,"<="&$C12),SUMIFS(FG$6:FG$505,$C$6:$C$505,">="&EOMONTH($C12,-INPUT!$O$113),$C$6:$C$505,"<="&$C12)),0) -> 0 | FJ12: =IF(FI$3="%",AVERAGEIFS(FI$6:FI$505,$C$6:$C$505,">="&EOMONTH($C12,-INPUT!$O$113),$C$6:$C$505,"<="&$C12),SUMIFS(FI$6:FI$505,$C$6:$C$505,">="&EOMONTH($C12,-INPUT!$O$113),$C$6:$C$505,"<="&$C12)) -> 0 | FK12: =IF(FK$3="%",IF(COUNTIFS($C$6:$C12,"<>"&"")>=3,AVERAGEIFS(FI$6:FI$505,$C$6:$C$505,">="&EOMONTH($C12,-3),$C$6:$C$505,"<="&$C12),""),IF(COUNTIFS($C$6:$C12,"<>"&"")>=3,SUMIFS(FI$6:FI$505,$C$6:$C$505,">="&EOMONTH($C12,-3),$C$6:$C$505,"<="&$C12)*4,"")) -> 0 | FM12: =IF(COUNTIFS($FL$6:$FL$505,">"&0)>=24,IF(FL$3="%",AVERAGEIFS(FL$6:FL$505,$C$6:$C$505,">="&EOMONTH($C12,-INPUT!$O$113),$C$6:$C$505,"<="&$C12),SUMIFS(FL$6:FL$505,$C$6:$C$505,">="&EOMONTH($C12,-INPUT!$O$113),$C$6:$C$505,"<="&$C12)),0) -> 0 | FO12: =IF(FN$3="%",AVERAGEIFS(FN$6:FN$505,$C$6:$C$505,">="&EOMONTH($C12,-INPUT!$O$113),$C$6:$C$505,"<="&$C12),SUMIFS(FN$6:FN$505,$C$6:$C$505,">="&EOMONTH($C12,-INPUT!$O$113),$C$6:$C$505,"<="&$C12)) -> 0 | FP12: =IF(FP$3="%",IF(COUNTIFS($C$6:$C12,"<>"&"")>=3,AVERAGEIFS(FN$6:FN$505,$C$6:$C$505,">="&EOMONTH($C12,-3),$C$6:$C$505,"<="&$C12),""),IF(COUNTIFS($C$6:$C12,"<>"&"")>=3,SUMIFS(FN$6:FN$505,$C$6:$C$505,">="&EOMONTH($C12,-3),$C$6:$C$505,"<="&$C12)*4,"")) -> 0 | FR12: =IF(COUNTIFS($FQ$6:$FQ$505,">"&0)>=24,IF(FQ$3="%",AVERAGEIFS(FQ$6:FQ$505,$C$6:$C$505,">="&EOMONTH($C12,-INPUT!$O$113),$C$6:$C$505,"<="&$C12),SUMIFS(FQ$6:FQ$505,$C$6:$C$505,">="&EOMONTH($C12,-INPUT!$O$113),$C$6:$C$505,"<="&$C12)),0) -> 0 | FT12: =IF(FS$3="%",AVERAGEIFS(FS$6:FS$505,$C$6:$C$505,">="&EOMONTH($C12,-INPUT!$O$113),$C$6:$C$505,"<="&$C12),SUMIFS(FS$6:FS$505,$C$6:$C$505,">="&EOMONTH($C12,-INPUT!$O$113),$C$6:$C$505,"<="&$C12)) -> 0 | FU12: =IF(FU$3="%",IF(COUNTIFS($C$6:$C12,"<>"&"")>=3,AVERAGEIFS(FS$6:FS$505,$C$6:$C$505,">="&EOMONTH($C12,-3),$C$6:$C$505,"<="&$C12),""),IF(COUNTIFS($C$6:$C12,"<>"&"")>=3,SUMIFS(FS$6:FS$505,$C$6:$C$505,">="&EOMONTH($C12,-3),$C$6:$C$505,"<="&$C12)*4,"")) -> 0 | FW12: =IF(COUNTIFS($FV$6:$FV$505,">"&0)>=24,IF(FV$3="%",AVERAGEIFS(FV$6:FV$505,$C$6:$C$505,">="&EOMONTH($C12,-INPUT!$O$113),$C$6:$C$505,"<="&$C12),SUMIFS(FV$6:FV$505,$C$6:$C$505,">="&EOMONTH($C12,-INPUT!$O$113),$C$6:$C$505,"<="&$C12)),0) -> 0 | FY12: =IF(FX$3="%",AVERAGEIFS(FX$6:FX$505,$C$6:$C$505,">="&EOMONTH($C12,-INPUT!$O$113),$C$6:$C$505,"<="&$C12),SUMIFS(FX$6:FX$505,$C$6:$C$505,">="&EOMONTH($C12,-INPUT!$O$113),$C$6:$C$505,"<="&$C12)) -> 0 | FZ12: =IF(FZ$3="%",IF(COUNTIFS($C$6:$C12,"<>"&"")>=3,AVERAGEIFS(FX$6:FX$505,$C$6:$C$505,">="&EOMONTH($C12,-3),$C$6:$C$505,"<="&$C12),""),IF(COUNTIFS($C$6:$C12,"<>"&"")>=3,SUMIFS(FX$6:FX$505,$C$6:$C$505,">="&EOMONTH($C12,-3),$C$6:$C$505,"<="&$C12)*4,"")) -> 0 | GB12: =IF(COUNTIFS($GA$6:$GA$505,">"&0)>=24,IF(GA$3="%",AVERAGEIFS(GA$6:GA$505,$C$6:$C$505,">="&EOMONTH($C12,-INPUT!$O$113),$C$6:$C$505,"<="&$C12),SUMIFS(GA$6:GA$505,$C$6:$C$505,">="&EOMONTH($C12,-INPUT!$O$113),$C$6:$C$505,"<="&$C12)),0) -> 0 | GD12: =IF(GC$3="%",AVERAGEIFS(GC$6:GC$505,$C$6:$C$505,">="&EOMONTH($C12,-INPUT!$O$113),$C$6:$C$505,"<="&$C12),SUMIFS(GC$6:GC$505,$C$6:$C$505,">="&EOMONTH($C12,-INPUT!$O$113),$C$6:$C$505,"<="&$C12)) -> 0 | GE12: =IF(GE$3="%",IF(COUNTIFS($C$6:$C12,"<>"&"")>=3,AVERAGEIFS(GC$6:GC$505,$C$6:$C$505,">="&EOMONTH($C12,-3),$C$6:$C$505,"<="&$C12),""),IF(COUNTIFS($C$6:$C12,"<>"&"")>=3,SUMIFS(GC$6:GC$505,$C$6:$C$505,">="&EOMONTH($C12,-3),$C$6:$C$505,"<="&$C12)*4,"")) -> 0 | GG12: =IF(COUNTIFS($GF$6:$GF$505,">"&0)>=24,IF(GF$3="%",AVERAGEIFS(GF$6:GF$505,$C$6:$C$505,">="&EOMONTH($C12,-INPUT!$O$113),$C$6:$C$505,"<="&$C12),SUMIFS(GF$6:GF$505,$C$6:$C$505,">="&EOMONTH($C12,-INPUT!$O$113),$C$6:$C$505,"<="&$C12)),0) -> 0 | GI12: =IF(GH$3="%",AVERAGEIFS(GH$6:GH$505,$C$6:$C$505,">="&EOMONTH($C12,-INPUT!$O$113),$C$6:$C$505,"<="&$C12),SUMIFS(GH$6:GH$505,$C$6:$C$505,">="&EOMONTH($C12,-INPUT!$O$113),$C$6:$C$505,"<="&$C12)) -> 0 | GJ12: =IF(GJ$3="%",IF(COUNTIFS($C$6:$C12,"<>"&"")>=3,AVERAGEIFS(GH$6:GH$505,$C$6:$C$505,">="&EOMONTH($C12,-3),$C$6:$C$505,"<="&$C12),""),IF(COUNTIFS($C$6:$C12,"<>"&"")>=3,SUMIFS(GH$6:GH$505,$C$6:$C$505,">="&EOMONTH($C12,-3),$C$6:$C$505,"<="&$C12)*4,"")) -> 0 | GL12: =IF(COUNTIFS($GK$6:$GK$505,">"&0)>=24,IF(GK$3="%",AVERAGEIFS(GK$6:GK$505,$C$6:$C$505,">="&EOMONTH($C12,-INPUT!$O$113),$C$6:$C$505,"<="&$C12),SUMIFS(GK$6:GK$505,$C$6:$C$505,">="&EOMONTH($C12,-INPUT!$O$113),$C$6:$C$505,"<="&$C12)),0) -> 0 | GN12: =IF(GM$3="%",AVERAGEIFS(GM$6:GM$505,$C$6:$C$505,">="&EOMONTH($C12,-INPUT!$O$113),$C$6:$C$505,"<="&$C12),SUMIFS(GM$6:GM$505,$C$6:$C$505,">="&EOMONTH($C12,-INPUT!$O$113),$C$6:$C$505,"<="&$C12)) -> 0 | GO12: =IF(GO$3="%",IF(COUNTIFS($C$6:$C12,"<>"&"")>=3,AVERAGEIFS(GM$6:GM$505,$C$6:$C$505,">="&EOMONTH($C12,-3),$C$6:$C$505,"<="&$C12),""),IF(COUNTIFS($C$6:$C12,"<>"&"")>=3,SUMIFS(GM$6:GM$505,$C$6:$C$505,">="&EOMONTH($C12,-3),$C$6:$C$505,"<="&$C12)*4,"")) -> 0 | GQ12: =IF(COUNTIFS($GP$6:$GP$505,">"&0)>=24,IF(GP$3="%",AVERAGEIFS(GP$6:GP$505,$C$6:$C$505,">="&EOMONTH($C12,-INPUT!$O$113),$C$6:$C$505,"<="&$C12),SUMIFS(GP$6:GP$505,$C$6:$C$505,">="&EOMONTH($C12,-INPUT!$O$113),$C$6:$C$505,"<="&$C12)),0) -> 0 | GS12: =IF(GR$3="%",AVERAGEIFS(GR$6:GR$505,$C$6:$C$505,">="&EOMONTH($C12,-INPUT!$O$113),$C$6:$C$505,"<="&$C12),SUMIFS(GR$6:GR$505,$C$6:$C$505,">="&EOMONTH($C12,-INPUT!$O$113),$C$6:$C$505,"<="&$C12)) -> 0 | GT12: =IF(GT$3="%",IF(COUNTIFS($C$6:$C12,"<>"&"")>=3,AVERAGEIFS(GR$6:GR$505,$C$6:$C$505,">="&EOMONTH($C12,-3),$C$6:$C$505,"<="&$C12),""),IF(COUNTIFS($C$6:$C12,"<>"&"")>=3,SUMIFS(GR$6:GR$505,$C$6:$C$505,">="&EOMONTH($C12,-3),$C$6:$C$505,"<="&$C12)*4,"")) -> 0 | GV12: =IF(COUNTIFS($GU$6:$GU$505,">"&0)>=24,IF(GU$3="%",AVERAGEIFS(GU$6:GU$505,$C$6:$C$505,">="&EOMONTH($C12,-INPUT!$O$113),$C$6:$C$505,"<="&$C12),SUMIFS(GU$6:GU$505,$C$6:$C$505,">="&EOMONTH($C12,-INPUT!$O$113),$C$6:$C$505,"<="&$C12)),0) -> 0 | GX12: =IF(GW$3="%",AVERAGEIFS(GW$6:GW$505,$C$6:$C$505,">="&EOMONTH($C12,-INPUT!$O$113),$C$6:$C$505,"<="&$C12),SUMIFS(GW$6:GW$505,$C$6:$C$505,">="&EOMONTH($C12,-INPUT!$O$113),$C$6:$C$505,"<="&$C12)) -> 0 | GY12: =IF(GY$3="%",IF(COUNTIFS($C$6:$C12,"<>"&"")>=3,AVERAGEIFS(GW$6:GW$505,$C$6:$C$505,">="&EOMONTH($C12,-3),$C$6:$C$505,"<="&$C12),""),IF(COUNTIFS($C$6:$C12,"<>"&"")>=3,SUMIFS(GW$6:GW$505,$C$6:$C$505,">="&EOMONTH($C12,-3),$C$6:$C$505,"<="&$C12)*4,"")) -> 0 | HA12: =IF(COUNTIFS($GZ$6:$GZ$505,">"&0)>=24,IF(GZ$3="%",AVERAGEIFS(GZ$6:GZ$505,$C$6:$C$505,">="&EOMONTH($C12,-INPUT!$O$113),$C$6:$C$505,"<="&$C12),SUMIFS(GZ$6:GZ$505,$C$6:$C$505,">="&EOMONTH($C12,-INPUT!$O$113),$C$6:$C$505,"<="&$C12)),0) -> 0 | HC12: =IF(HB$3="%",AVERAGEIFS(HB$6:HB$505,$C$6:$C$505,">="&EOMONTH($C12,-INPUT!$O$113),$C$6:$C$505,"<="&$C12),SUMIFS(HB$6:HB$505,$C$6:$C$505,">="&EOMONTH($C12,-INPUT!$O$113),$C$6:$C$505,"<="&$C12)) -> 0 | HD12: =IF(HD$3="%",IF(COUNTIFS($C$6:$C12,"<>"&"")>=3,AVERAGEIFS(HB$6:HB$505,$C$6:$C$505,">="&EOMONTH($C12,-3),$C$6:$C$505,"<="&$C12),""),IF(COUNTIFS($C$6:$C12,"<>"&"")>=3,SUMIFS(HB$6:HB$505,$C$6:$C$505,">="&EOMONTH($C12,-3),$C$6:$C$505,"<="&$C12)*4,"")) -> 0 | HF12: =IF(COUNTIFS($HE$6:$HE$505,">"&0)>=24,IF(HE$3="%",AVERAGEIFS(HE$6:HE$505,$C$6:$C$505,">="&EOMONTH($C12,-INPUT!$O$113),$C$6:$C$505,"<="&$C12),SUMIFS(HE$6:HE$505,$C$6:$C$505,">="&EOMONTH($C12,-INPUT!$O$113),$C$6:$C$505,"<="&$C12)),0) -> 0 | HH12: =IF(HG$3="%",AVERAGEIFS(HG$6:HG$505,$C$6:$C$505,">="&EOMONTH($C12,-INPUT!$O$113),$C$6:$C$505,"<="&$C12),SUMIFS(HG$6:HG$505,$C$6:$C$505,">="&EOMONTH($C12,-INPUT!$O$113),$C$6:$C$505,"<="&$C12)) -> 0 | HI12: =IF(HI$3="%",IF(COUNTIFS($C$6:$C12,"<>"&"")>=3,AVERAGEIFS(HG$6:HG$505,$C$6:$C$505,">="&EOMONTH($C12,-3),$C$6:$C$505,"<="&$C12),""),IF(COUNTIFS($C$6:$C12,"<>"&"")>=3,SUMIFS(HG$6:HG$505,$C$6:$C$505,">="&EOMONTH($C12,-3),$C$6:$C$505,"<="&$C12)*4,"")) -> 0 | HK12: =IF(COUNTIFS($HJ$6:$HJ$505,">"&0)>=24,IF(HJ$3="%",AVERAGEIFS(HJ$6:HJ$505,$C$6:$C$505,">="&EOMONTH($C12,-INPUT!$O$113),$C$6:$C$505,"<="&$C12),SUMIFS(HJ$6:HJ$505,$C$6:$C$505,">="&EOMONTH($C12,-INPUT!$O$113),$C$6:$C$505,"<="&$C12)),0) -> 0 | HM12: =IF(HL$3="%",AVERAGEIFS(HL$6:HL$505,$C$6:$C$505,">="&EOMONTH($C12,-INPUT!$O$113),$C$6:$C$505,"<="&$C12),SUMIFS(HL$6:HL$505,$C$6:$C$505,">="&EOMONTH($C12,-INPUT!$O$113),$C$6:$C$505,"<="&$C12)) -> 0 | HN12: =IF(HN$3="%",IF(COUNTIFS($C$6:$C12,"<>"&"")>=3,AVERAGEIFS(HL$6:HL$505,$C$6:$C$505,">="&EOMONTH($C12,-3),$C$6:$C$505,"<="&$C12),""),IF(COUNTIFS($C$6:$C12,"<>"&"")>=3,SUMIFS(HL$6:HL$505,$C$6:$C$505,">="&EOMONTH($C12,-3),$C$6:$C$505,"<="&$C12)*4,"")) -> 0 | HP12: =IF(COUNTIFS($HO$6:$HO$505,">"&0)>=24,IF(HO$3="%",AVERAGEIFS(HO$6:HO$505,$C$6:$C$505,">="&EOMONTH($C12,-INPUT!$O$113),$C$6:$C$505,"<="&$C12),SUMIFS(HO$6:HO$505,$C$6:$C$505,">="&EOMONTH($C12,-INPUT!$O$113),$C$6:$C$505,"<="&$C12)),0) -> 0 | HR12: =IF(HQ$3="%",AVERAGEIFS(HQ$6:HQ$505,$C$6:$C$505,">="&EOMONTH($C12,-INPUT!$O$113),$C$6:$C$505,"<="&$C12),SUMIFS(HQ$6:HQ$505,$C$6:$C$505,">="&EOMONTH($C12,-INPUT!$O$113),$C$6:$C$505,"<="&$C12)) -> 0 | HS12: =IF(HS$3="%",IF(COUNTIFS($C$6:$C12,"<>"&"")>=3,AVERAGEIFS(HQ$6:HQ$505,$C$6:$C$505,">="&EOMONTH($C12,-3),$C$6:$C$505,"<="&$C12),""),IF(COUNTIFS($C$6:$C12,"<>"&"")>=3,SUMIFS(HQ$6:HQ$505,$C$6:$C$505,">="&EOMONTH($C12,-3),$C$6:$C$505,"<="&$C12)*4,"")) -> 0 | HU12: =IF(COUNTIFS($HT$6:$HT$505,">"&0)>=24,IF(HT$3="%",AVERAGEIFS(HT$6:HT$505,$C$6:$C$505,">="&EOMONTH($C12,-INPUT!$O$113),$C$6:$C$505,"<="&$C12),SUMIFS(HT$6:HT$505,$C$6:$C$505,">="&EOMONTH($C12,-INPUT!$O$113),$C$6:$C$505,"<="&$C12)),0) -> 0 | HW12: =IF(HV$3="%",AVERAGEIFS(HV$6:HV$505,$C$6:$C$505,">="&EOMONTH($C12,-INPUT!$O$113),$C$6:$C$505,"<="&$C12),SUMIFS(HV$6:HV$505,$C$6:$C$505,">="&EOMONTH($C12,-INPUT!$O$113),$C$6:$C$505,"<="&$C12)) -> 0 | HX12: =IF(HX$3="%",IF(COUNTIFS($C$6:$C12,"<>"&"")>=3,AVERAGEIFS(HV$6:HV$505,$C$6:$C$505,">="&EOMONTH($C12,-3),$C$6:$C$505,"<="&$C12),""),IF(COUNTIFS($C$6:$C12,"<>"&"")>=3,SUMIFS(HV$6:HV$505,$C$6:$C$505,">="&EOMONTH($C12,-3),$C$6:$C$505,"<="&$C12)*4,"")) -> 0 | HZ12: =IF(COUNTIFS($HY$6:$HY$505,">"&0)>=24,IF(HY$3="%",AVERAGEIFS(HY$6:HY$505,$C$6:$C$505,">="&EOMONTH($C12,-INPUT!$O$113),$C$6:$C$505,"<="&$C12),SUMIFS(HY$6:HY$505,$C$6:$C$505,">="&EOMONTH($C12,-INPUT!$O$113),$C$6:$C$505,"<="&$C12)),0) -> 0 | IA12: 6816.213333 | IB12: =SUMIFS(IA$6:IA$505,$C$6:$C$505,">="&EOMONTH($C12,-INPUT!$O$113),$C$6:$C$505,"<="&$C12) -> 46121.30933 | IC12: =IF(COUNTIFS($C$6:HK12,"<>"&"")>=3,SUMIFS(IA$6:IA$505,$C$6:$C$505,">="&EOMONTH($C12,-3),$C$6:$C$505,"<="&$C12)*4,"") -> 81794.56 | ID12: =IF(COUNTIFS($C$6:HK12,"<>"&"")>=6,SUMIFS(IA$6:IA$505,$C$6:$C$505,">="&EOMONTH($C12,-6),$C$6:$C$505,"<="&$C12)*2,"") -> 80600.752 | IE12: -3183.786667 | IF12: =IF(COUNTIFS($IE$6:$IE$505,">"&0)>=24,SUMIFS(IE$6:IE$505,$C$6:$C$505,">="&EOMONTH($C12,-INPUT!$O$113),$C$6:$C$505,"<="&$C12),0) -> -23878.69067 | IG12: 4004 | IH12: =IFERROR(SUMIFS(IG$6:IG$505,$C$6:$C$505,">="&EOMONTH($C12,-INPUT!$O$113),$C$6:$C$505,"<="&$C12),0) -> 51871.88065 | II12: =IFERROR(IF(II$3="%",IF(COUNTIFS($C$6:$C12,"<>"&"")>=3,AVERAGEIFS(D$6:D$505,$C$6:$C$505,">="&EOMONTH($C12,-3),$C$6:$C$505,"<="&$C12),""),IF(COUNTIFS($C$6:$C12,"<>"&"")>=3,SUMIFS(D$6:D$505,$C$6:$C$505,">="&EOMONTH($C12,-3),$C$6:$C$505,"<="&$C12)*4,"")) / IF(II$3="%",IF(COUNTIFS($C$6:$C12,"<>"&"")>=3,AVERAGEIFS(Y$6:Y$505,$C$6:$C$505,">="&EOMONTH($C12,-3),$C$6:$C$505,"<="&$C12),""),IF(COUNTIFS($C$6:$C12,"<>"&"")>=3,SUMIFS(Y$6:Y$505,$C$6:$C$505,">="&EOMONTH($C12,-3),$C$6:$C$505,"<="&$C12)*4,"")),0) -> 4192.144809 | IJ12: 5386.466667 | IK12: =IFERROR(SUMIFS(IJ$6:IJ$505,$C$6:$C$505,">="&EOMONTH($C12,-INPUT!$O$113),$C$6:$C$505,"<="&$C12),0) -> 37919.5736 | IL12: =IFERROR(IF(IL$3="%",IF(COUNTIFS($C$6:$C12,"<>"&"")>=3,AVERAGEIFS(H$6:H$505,$C$6:$C$505,">="&EOMONTH($C12,-3),$C$6:$C$505,"<="&$C12),""),IF(COUNTIFS($C$6:$C12,"<>"&"")>=3,SUMIFS(H$6:H$505,$C$6:$C$505,">="&EOMONTH($C12,-3),$C$6:$C$505,"<="&$C12)*4,"")) / IF(IL$3="%",IF(COUNTIFS($C$6:$C12,"<>"&"")>=3,AVERAGEIFS(AB$6:AB$505,$C$6:$C$505,">="&EOMONTH($C12,-3),$C$6:$C$505,"<="&$C12),""),IF(COUNTIFS($C$6:$C12,"<>"&"")>=3,SUMIFS(AB$6:AB$505,$C$6:$C$505,">="&EOMONTH($C12,-3),$C$6:$C$505,"<="&$C12)*4,"")),0) -> 5509.224806
A13: 5 | B13: 2018 | C13: 2018-05-01 | D13: 136668.3333 | E13: =SUMIFS(D$6:D$505,$C$6:$C$505,">="&EOMONTH($C13,-INPUT!$O$113),$C$6:$C$505,"<="&$C13) -> 2274812.333 | F13: =IF(COUNTIFS($C$6:C13,"<>"&"")>=3,SUMIFS(D$6:D$505,$C$6:$C$505,">="&EOMONTH($C13,-3),$C$6:$C$505,"<="&$C13)*4,"") -> 2080778.667 | G13: =IF(COUNTIFS($C$6:C13,"<>"&"")>=6,SUMIFS(D$6:D$505,$C$6:$C$505,">="&EOMONTH($C13,-6),$C$6:$C$505,"<="&$C13)*2,"") -> 2940743.333 | H13: 245043 | I13: =IF(COUNTIFS($H$6:$H$505,">"&0)>=24,SUMIFS(H$6:H$505,$C$6:$C$505,">="&EOMONTH($C13,-INPUT!$O$113),$C$6:$C$505,"<="&$C13),0) -> 1900487 | J13: 86151.32667 | K13: =SUMIFS(J$6:J$505,$C$6:$C$505,">="&EOMONTH($C13,-INPUT!$O$113),$C$6:$C$505,"<="&$C13) -> 566304.1433 | L13: =IF(COUNTIFS($C$6:C13,"<>"&"")>=3,SUMIFS(J$6:J$505,$C$6:$C$505,">="&EOMONTH($C13,-3),$C$6:$C$505,"<="&$C13)*4,"") -> 952544.32 | M13: =IF(COUNTIFS($C$6:C13,"<>"&"")>=6,SUMIFS(J$6:J$505,$C$6:$C$505,">="&EOMONTH($C13,-6),$C$6:$C$505,"<="&$C13)*2,"") -> 966198.06 | N13: 71291.66667 | O13: =IF(COUNTIFS($N$6:$N$505,">"&0)>=24,SUMIFS(N$6:N$505,$C$6:$C$505,">="&EOMONTH($C13,-INPUT!$O$113),$C$6:$C$505,"<="&$C13),0) -> 612372.3333 | P13: 0.6303678736 | Q13: 0.2489454339 | R13: 0.2909353324 | S13: 11158.38 | T13: =SUMIFS(S$6:S$505,$C$6:$C$505,">="&EOMONTH($C13,-INPUT!$O$113),$C$6:$C$505,"<="&$C13) -> -30578.78 | U13: =IF(COUNTIFS($C$6:C13,"<>"&"")>=3,SUMIFS(S$6:S$505,$C$6:$C$505,">="&EOMONTH($C13,-3),$C$6:$C$505,"<="&$C13)*4,"") -> 57166.28 | V13: =IF(COUNTIFS($C$6:C13,"<>"&"")>=6,SUMIFS(S$6:S$505,$C$6:$C$505,">="&EOMONTH($C13,-6),$C$6:$C$505,"<="&$C13)*2,"") -> 28169.08 | W13: -17131 | X13: =IF(COUNTIFS($W$6:$W$505,">"&0)>=24,SUMIFS(W$6:W$505,$C$6:$C$505,">="&EOMONTH($C13,-INPUT!$O$113),$C$6:$C$505,"<="&$C13),0) -> 0 | Y13: 43 | Z13: =AVERAGEIFS(Y$6:Y$505,$C$6:$C$505,">="&EOMONTH($C13,-INPUT!$O$113),$C$6:$C$505,"<="&$C13) -> 41.25 | AA13: =IF(COUNTIFS($C$6:$C13,"<>"&"")>=3,AVERAGEIFS(Y$6:Y$505,$C$6:$C$505,">="&EOMONTH($C13,-3),$C$6:$C$505,"<="&$C13),"") -> 41.66666667 | AB13: 46 | AC13: =IF(COUNTIFS($AB$6:$AB$505,">"&0)>=24,AVERAGEIFS(AB$6:AB$505,$C$6:$C$505,">="&EOMONTH($C13,-INPUT!$O$113),$C$6:$C$505,"<="&$C13),0) -> 44 | AD13: 8292.76 | AE13: =SUMIFS(AD$6:AD$505,$C$6:$C$505,">="&EOMONTH($C13,-INPUT!$O$113),$C$6:$C$505,"<="&$C13) -> 58883.69 | AF13: =IF(COUNTIFS($C$6:$C13,"<>"&"")>=3,SUMIFS(AD$6:AD$505,$C$6:$C$505,">="&EOMONTH($C13,-3),$C$6:$C$505,"<="&$C13)*4,"") -> 91302.36 | AG13: 8464 | AH13: =IF(COUNTIFS($AG$6:$AG$505,">"&0)>=24,SUMIFS(AG$6:AG$505,$C$6:$C$505,">="&EOMONTH($C13,-INPUT!$O$113),$C$6:$C$505,"<="&$C13),0) -> 64768 | AI13: 302364.77 | AJ13: =SUMIFS(AI$6:AI$505,$C$6:$C$505,">="&EOMONTH($C13,-INPUT!$O$113),$C$6:$C$505,"<="&$C13) -> 2287859.23 | AK13: =IF(COUNTIFS($C$6:$C13,"<>"&"")>=3,SUMIFS(AI$6:AI$505,$C$6:$C$505,">="&EOMONTH($C13,-3),$C$6:$C$505,"<="&$C13)*4,"") -> 3465218.2 | AL13: 307168 | AM13: =IF(COUNTIFS($AL$6:$AL$505,">"&0)>=24,SUMIFS(AL$6:AL$505,$C$6:$C$505,">="&EOMONTH($C13,-INPUT!$O$113),$C$6:$C$505,"<="&$C13),0) -> 2353680 | AN13: 16.48043997 | AO13: 38.63229926 | AP13: 22.78997681 | AQ13: 28.9512051 | AR13: 29.34299345 | AS13: =IFERROR(IF('Chart Support '!$D$68=1,AI13/Y13,AI13/AD13),0) -> 7031.738837 | AT13: =IFERROR(IF('Chart Support '!$D$68=1,SUMIFS(AS$6:AS$505,$C$6:$C$505,">="&EOMONTH($C13,-INPUT!$O$113),$C$6:$C$505,"<="&$C13),$AJ13/$AE13),0) -> 55482.5404 | AU13: =IFERROR(IF('Chart Support '!$D$68=1,$AK13/IF(IC$3="%",IF(COUNTIFS($C$6:$C13,"<>"&"")>=3,AVERAGEIFS(Y$6:Y$505,$C$6:$C$505,">="&EOMONTH($C13,-3),$C$6:$C$505,"<="&$C13),""),IF(COUNTIFS($C$6:$C13,"<>"&"")>=3,SUMIFS(Y$6:Y$505,$C$6:$C$505,">="&EOMONTH($C13,-3),$C$6:$C$505,"<="&$C13)*4,"")),$AK13/$AF13),0) -> 6930.4364 | AV13: =IFERROR(IF('Chart Support '!$D$68=1,$AL13/$AB13,$AL13/$AG13),0) -> 6677.565217 | AW13: =IFERROR(IF('Chart Support '!$D$68=1,SUMIFS(AV$6:AV$505,$C$6:$C$505,">="&EOMONTH($C13,-INPUT!$O$113),$C$6:$C$505,"<="&$C13),$AM13/$AH13),0) -> 53526.71426 | AX13: 0.03690370409 | AY13: -0.01336567373 | AZ13: 0.01649716604 | BA13: -0.05577078341 | BB13: 0 | BC13: 3.482323232 | BD13: =IF(BC$3="%",AVERAGEIFS(BC$6:BC$505,$C$6:$C$505,">="&EOMONTH($C13,-INPUT!$O$113),$C$6:$C$505,"<="&$C13),SUMIFS(BC$6:BC$505,$C$6:$C$505,">="&EOMONTH($C13,-INPUT!$O$113),$C$6:$C$505,"<="&$C13)) -> 28.0614899 | BE13: =IF(BE$3="%",IF(COUNTIFS($C$6:$C13,"<>"&"")>=3,AVERAGEIFS(BC$6:BC$505,$C$6:$C$505,">="&EOMONTH($C13,-3),$C$6:$C$505,"<="&$C13),""),IF(COUNTIFS($C$6:$C13,"<>"&"")>=3,SUMIFS(BC$6:BC$505,$C$6:$C$505,">="&EOMONTH($C13,-3),$C$6:$C$505,"<="&$C13)*4,"")) -> 43.02373737 | BG13: =IF(COUNTIFS($BF$6:$BF$505,">"&0)>=24,IF(BF$3="%",AVERAGEIFS(BF$6:BF$505,$C$6:$C$505,">="&EOMONTH($C13,-INPUT!$O$113),$C$6:$C$505,"<="&$C13),SUMIFS(BF$6:BF$505,$C$6:$C$505,">="&EOMONTH($C13,-INPUT!$O$113),$C$6:$C$505,"<="&$C13)),0) -> 0 | BH13: 32 | BI13: =IF(BH$3="%",AVERAGEIFS(BH$6:BH$505,$C$6:$C$505,">="&EOMONTH($C13,-INPUT!$O$113),$C$6:$C$505,"<="&$C13),SUMIFS(BH$6:BH$505,$C$6:$C$505,">="&EOMONTH($C13,-INPUT!$O$113),$C$6:$C$505,"<="&$C13)) -> 240 | BJ13: =IF(BJ$3="%",IF(COUNTIFS($C$6:$C13,"<>"&"")>=3,AVERAGEIFS(BH$6:BH$505,$C$6:$C$505,">="&EOMONTH($C13,-3),$C$6:$C$505,"<="&$C13),""),IF(COUNTIFS($C$6:$C13,"<>"&"")>=3,SUMIFS(BH$6:BH$505,$C$6:$C$505,">="&EOMONTH($C13,-3),$C$6:$C$505,"<="&$C13)*4,"")) -> 368 | BK13: 34 | BL13: =IF(COUNTIFS($BK$6:$BK$505,">"&0)>=24,IF(BK$3="%",AVERAGEIFS(BK$6:BK$505,$C$6:$C$505,">="&EOMONTH($C13,-INPUT!$O$113),$C$6:$C$505,"<="&$C13),SUMIFS(BK$6:BK$505,$C$6:$C$505,">="&EOMONTH($C13,-INPUT!$O$113),$C$6:$C$505,"<="&$C13)),0) -> 245 | BM13: 0.7272843071 | BN13: =IF(BM$3="%",AVERAGEIFS(BM$6:BM$505,$C$6:$C$505,">="&EOMONTH($C13,-INPUT!$O$113),$C$6:$C$505,"<="&$C13),SUMIFS(BM$6:BM$505,$C$6:$C$505,">="&EOMONTH($C13,-INPUT!$O$113),$C$6:$C$505,"<="&$C13)) -> 0.7497033863 | BO13: =IF(BO$3="%",IF(COUNTIFS($C$6:$C13,"<>"&"")>=3,AVERAGEIFS(BM$6:BM$505,$C$6:$C$505,">="&EOMONTH($C13,-3),$C$6:$C$505,"<="&$C13),""),IF(COUNTIFS($C$6:$C13,"<>"&"")>=3,SUMIFS(BM$6:BM$505,$C$6:$C$505,">="&EOMONTH($C13,-3),$C$6:$C$505,"<="&$C13)*4,"")) -> 0.767053189 | BP13: 0.73 | BQ13: =IF(BP$3="%",AVERAGEIFS(BP$6:BP$505,$C$6:$C$505,">="&EOMONTH($C13,-INPUT!$O$113),$C$6:$C$505,"<="&$C13),SUMIFS(BP$6:BP$505,$C$6:$C$505,">="&EOMONTH($C13,-INPUT!$O$113),$C$6:$C$505,"<="&$C13)) -> 0.73 | BR13: 10211.7775 | BS13: =IF(BR$3="%",AVERAGEIFS(BR$6:BR$505,$C$6:$C$505,">="&EOMONTH($C13,-INPUT!$O$113),$C$6:$C$505,"<="&$C13),SUMIFS(BR$6:BR$505,$C$6:$C$505,">="&EOMONTH($C13,-INPUT!$O$113),$C$6:$C$505,"<="&$C13)) -> 78767.30578 | BT13: =IF(BT$3="%",IF(COUNTIFS($C$6:$C13,"<>"&"")>=3,AVERAGEIFS(BR$6:BR$505,$C$6:$C$505,">="&EOMONTH($C13,-3),$C$6:$C$505,"<="&$C13),""),IF(COUNTIFS($C$6:$C13,"<>"&"")>=3,SUMIFS(BR$6:BR$505,$C$6:$C$505,">="&EOMONTH($C13,-3),$C$6:$C$505,"<="&$C13)*4,"")) -> 121283.9645 | BU13: 9793.145 | BV13: =IF(COUNTIFS($BU$6:$BU$505,">"&0)>=24,IF(BU$3="%",AVERAGEIFS(BU$6:BU$505,$C$6:$C$505,">="&EOMONTH($C13,-INPUT!$O$113),$C$6:$C$505,"<="&$C13),SUMIFS(BU$6:BU$505,$C$6:$C$505,">="&EOMONTH($C13,-INPUT!$O$113),$C$6:$C$505,"<="&$C13)),0) -> 77541.27371 | BW13: 84.95532489 | BX13: =IF(BW$3="%",AVERAGEIFS(BW$6:BW$505,$C$6:$C$505,">="&EOMONTH($C13,-INPUT!$O$113),$C$6:$C$505,"<="&$C13),SUMIFS(BW$6:BW$505,$C$6:$C$505,">="&EOMONTH($C13,-INPUT!$O$113),$C$6:$C$505,"<="&$C13)) -> 667.4485891 | BY13: =IF(BY$3="%",IF(COUNTIFS($C$6:$C13,"<>"&"")>=3,AVERAGEIFS(BW$6:BW$505,$C$6:$C$505,">="&EOMONTH($C13,-3),$C$6:$C$505,"<="&$C13),""),IF(COUNTIFS($C$6:$C13,"<>"&"")>=3,SUMIFS(BW$6:BW$505,$C$6:$C$505,">="&EOMONTH($C13,-3),$C$6:$C$505,"<="&$C13)*4,"")) -> 1014.299383 | BZ13: 85 | CA13: =IF(COUNTIFS($BZ$6:$BZ$505,">"&0)>=24,IF(BZ$3="%",AVERAGEIFS(BZ$6:BZ$505,$C$6:$C$505,">="&EOMONTH($C13,-INPUT!$O$113),$C$6:$C$505,"<="&$C13),SUMIFS(BZ$6:BZ$505,$C$6:$C$505,">="&EOMONTH($C13,-INPUT!$O$113),$C$6:$C$505,"<="&$C13)),0) -> 680 | CB13: 61.78667459 | CC13: =IF(CB$3="%",AVERAGEIFS(CB$6:CB$505,$C$6:$C$505,">="&EOMONTH($C13,-INPUT!$O$113),$C$6:$C$505,"<="&$C13),SUMIFS(CB$6:CB$505,$C$6:$C$505,">="&EOMONTH($C13,-INPUT!$O$113),$C$6:$C$505,"<="&$C13)) -> 499.8535918 | CD13: =IF(CD$3="%",IF(COUNTIFS($C$6:$C13,"<>"&"")>=3,AVERAGEIFS(CB$6:CB$505,$C$6:$C$505,">="&EOMONTH($C13,-3),$C$6:$C$505,"<="&$C13),""),IF(COUNTIFS($C$6:$C13,"<>"&"")>=3,SUMIFS(CB$6:CB$505,$C$6:$C$505,">="&EOMONTH($C13,-3),$C$6:$C$505,"<="&$C13)*4,"")) -> 776.9173025 | CE13: 66.3 | CF13: =IF(COUNTIFS($CE$6:$CE$505,">"&0)>=24,IF(CE$3="%",AVERAGEIFS(CE$6:CE$505,$C$6:$C$505,">="&EOMONTH($C13,-INPUT!$O$113),$C$6:$C$505,"<="&$C13),SUMIFS(CE$6:CE$505,$C$6:$C$505,">="&EOMONTH($C13,-INPUT!$O$113),$C$6:$C$505,"<="&$C13)),0) -> 532.1 | CG13: 118 | CH13: =IF(CG$3="%",AVERAGEIFS(CG$6:CG$505,$C$6:$C$505,">="&EOMONTH($C13,-INPUT!$O$113),$C$6:$C$505,"<="&$C13),SUMIFS(CG$6:CG$505,$C$6:$C$505,">="&EOMONTH($C13,-INPUT!$O$113),$C$6:$C$505,"<="&$C13)) -> 885 | CI13: =IF(CI$3="%",IF(COUNTIFS($C$6:$C13,"<>"&"")>=3,AVERAGEIFS(CG$6:CG$505,$C$6:$C$505,">="&EOMONTH($C13,-3),$C$6:$C$505,"<="&$C13),""),IF(COUNTIFS($C$6:$C13,"<>"&"")>=3,SUMIFS(CG$6:CG$505,$C$6:$C$505,">="&EOMONTH($C13,-3),$C$6:$C$505,"<="&$C13)*4,"")) -> 1368 | CK13: =IF(COUNTIFS($CJ$6:$CJ$505,">"&0)>=24,IF(CJ$3="%",AVERAGEIFS(CJ$6:CJ$505,$C$6:$C$505,">="&EOMONTH($C13,-INPUT!$O$113),$C$6:$C$505,"<="&$C13),SUMIFS(CJ$6:CJ$505,$C$6:$C$505,">="&EOMONTH($C13,-INPUT!$O$113),$C$6:$C$505,"<="&$C13)),0) -> 0 | CL13: 2747 | CM13: =IF(CL$3="%",AVERAGEIFS(CL$6:CL$505,$C$6:$C$505,">="&EOMONTH($C13,-INPUT!$O$113),$C$6:$C$505,"<="&$C13),SUMIFS(CL$6:CL$505,$C$6:$C$505,">="&EOMONTH($C13,-INPUT!$O$113),$C$6:$C$505,"<="&$C13)) -> 21231 | CN13: =IF(CN$3="%",IF(COUNTIFS($C$6:$C13,"<>"&"")>=3,AVERAGEIFS(CL$6:CL$505,$C$6:$C$505,">="&EOMONTH($C13,-3),$C$6:$C$505,"<="&$C13),""),IF(COUNTIFS($C$6:$C13,"<>"&"")>=3,SUMIFS(CL$6:CL$505,$C$6:$C$505,">="&EOMONTH($C13,-3),$C$6:$C$505,"<="&$C13)*4,"")) -> 32628 | CP13: =IF(COUNTIFS($CO$6:$CO$505,">"&0)>=24,IF(CO$3="%",AVERAGEIFS(CO$6:CO$505,$C$6:$C$505,">="&EOMONTH($C13,-INPUT!$O$113),$C$6:$C$505,"<="&$C13),SUMIFS(CO$6:CO$505,$C$6:$C$505,">="&EOMONTH($C13,-INPUT!$O$113),$C$6:$C$505,"<="&$C13)),0) -> 0 | CQ13: 326776.88 | CR13: =IF(CQ$3="%",AVERAGEIFS(CQ$6:CQ$505,$C$6:$C$505,">="&EOMONTH($C13,-INPUT!$O$113),$C$6:$C$505,"<="&$C13),SUMIFS(CQ$6:CQ$505,$C$6:$C$505,">="&EOMONTH($C13,-INPUT!$O$113),$C$6:$C$505,"<="&$C13)) -> 2361560.83 | CS13: =IF(CS$3="%",IF(COUNTIFS($C$6:$C13,"<>"&"")>=3,AVERAGEIFS(CQ$6:CQ$505,$C$6:$C$505,">="&EOMONTH($C13,-3),$C$6:$C$505,"<="&$C13),""),IF(COUNTIFS($C$6:$C13,"<>"&"")>=3,SUMIFS(CQ$6:CQ$505,$C$6:$C$505,">="&EOMONTH($C13,-3),$C$6:$C$505,"<="&$C13)*4,"")) -> 3716296.08 | CT13: 328043 | CU13: =IF(COUNTIFS($CT$6:$CT$505,">"&0)>=24,IF(CT$3="%",AVERAGEIFS(CT$6:CT$505,$C$6:$C$505,">="&EOMONTH($C13,-INPUT!$O$113),$C$6:$C$505,"<="&$C13),SUMIFS(CT$6:CT$505,$C$6:$C$505,">="&EOMONTH($C13,-INPUT!$O$113),$C$6:$C$505,"<="&$C13)),0) -> 2367636 | CV13: 37023.06 | CW13: =IF(CV$3="%",AVERAGEIFS(CV$6:CV$505,$C$6:$C$505,">="&EOMONTH($C13,-INPUT!$O$113),$C$6:$C$505,"<="&$C13),SUMIFS(CV$6:CV$505,$C$6:$C$505,">="&EOMONTH($C13,-INPUT!$O$113),$C$6:$C$505,"<="&$C13)) -> 224754.06 | CX13: =IF(CX$3="%",IF(COUNTIFS($C$6:$C13,"<>"&"")>=3,AVERAGEIFS(CV$6:CV$505,$C$6:$C$505,">="&EOMONTH($C13,-3),$C$6:$C$505,"<="&$C13),""),IF(COUNTIFS($C$6:$C13,"<>"&"")>=3,SUMIFS(CV$6:CV$505,$C$6:$C$505,">="&EOMONTH($C13,-3),$C$6:$C$505,"<="&$C13)*4,"")) -> 465339.16 | CY13: 47508 | CZ13: =IF(COUNTIFS($CY$6:$CY$505,">"&0)>=24,IF(CY$3="%",AVERAGEIFS(CY$6:CY$505,$C$6:$C$505,">="&EOMONTH($C13,-INPUT!$O$113),$C$6:$C$505,"<="&$C13),SUMIFS(CY$6:CY$505,$C$6:$C$505,">="&EOMONTH($C13,-INPUT!$O$113),$C$6:$C$505,"<="&$C13)),0) -> 209455 | DA13: 0.59 | DB13: =IF(DA$3="%",AVERAGEIFS(DA$6:DA$505,$C$6:$C$505,">="&EOMONTH($C13,-INPUT!$O$113),$C$6:$C$505,"<="&$C13),SUMIFS(DA$6:DA$505,$C$6:$C$505,">="&EOMONTH($C13,-INPUT!$O$113),$C$6:$C$505,"<="&$C13)) -> 0.585 | DC13: =IF(DC$3="%",IF(COUNTIFS($C$6:$C13,"<>"&"")>=3,AVERAGEIFS(DA$6:DA$505,$C$6:$C$505,">="&EOMONTH($C13,-3),$C$6:$C$505,"<="&$C13),""),IF(COUNTIFS($C$6:$C13,"<>"&"")>=3,SUMIFS(DA$6:DA$505,$C$6:$C$505,">="&EOMONTH($C13,-3),$C$6:$C$505,"<="&$C13)*4,"")) -> 0.5733333333 | DD13: 0.53 | DE13: =IF(COUNTIFS($DD$6:$DD$505,">"&0)>=24,IF(DD$3="%",AVERAGEIFS(DD$6:DD$505,$C$6:$C$505,">="&EOMONTH($C13,-INPUT!$O$113),$C$6:$C$505,"<="&$C13),SUMIFS(DD$6:DD$505,$C$6:$C$505,">="&EOMONTH($C13,-INPUT!$O$113),$C$6:$C$505,"<="&$C13)),0) -> 0.54375 | DF13: 0.44 | DG13: =IF(DF$3="%",AVERAGEIFS(DF$6:DF$505,$C$6:$C$505,">="&EOMONTH($C13,-INPUT!$O$113),$C$6:$C$505,"<="&$C13),SUMIFS(DF$6:DF$505,$C$6:$C$505,">="&EOMONTH($C13,-INPUT!$O$113),$C$6:$C$505,"<="&$C13)) -> 0.44875 | DH13: =IF(DH$3="%",IF(COUNTIFS($C$6:$C13,"<>"&"")>=3,AVERAGEIFS(DF$6:DF$505,$C$6:$C$505,">="&EOMONTH($C13,-3),$C$6:$C$505,"<="&$C13),""),IF(COUNTIFS($C$6:$C13,"<>"&"")>=3,SUMIFS(DF$6:DF$505,$C$6:$C$505,">="&EOMONTH($C13,-3),$C$6:$C$505,"<="&$C13)*4,"")) -> 0.4466666667 | DI13: 0.41 | DJ13: =IF(COUNTIFS($DI$6:$DI$505,">"&0)>=24,IF(DI$3="%",AVERAGEIFS(DI$6:DI$505,$C$6:$C$505,">="&EOMONTH($C13,-INPUT!$O$113),$C$6:$C$505,"<="&$C13),SUMIFS(DI$6:DI$505,$C$6:$C$505,">="&EOMONTH($C13,-INPUT!$O$113),$C$6:$C$505,"<="&$C13)),0) -> 0.4275 | DK13: 719.2 | DL13: =IF(DK$3="%",AVERAGEIFS(DK$6:DK$505,$C$6:$C$505,">="&EOMONTH($C13,-INPUT!$O$113),$C$6:$C$505,"<="&$C13),SUMIFS(DK$6:DK$505,$C$6:$C$505,">="&EOMONTH($C13,-INPUT!$O$113),$C$6:$C$505,"<="&$C13)) -> -4810.8 | DM13: =IF(DM$3="%",IF(COUNTIFS($C$6:$C13,"<>"&"")>=3,AVERAGEIFS(DK$6:DK$505,$C$6:$C$505,">="&EOMONTH($C13,-3),$C$6:$C$505,"<="&$C13),""),IF(COUNTIFS($C$6:$C13,"<>"&"")>=3,SUMIFS(DK$6:DK$505,$C$6:$C$505,">="&EOMONTH($C13,-3),$C$6:$C$505,"<="&$C13)*4,"")) -> -19243.2 | DN13: -5123.190417 | DO13: =IF(COUNTIFS($DN$6:$DN$505,">"&0)>=24,IF(DN$3="%",AVERAGEIFS(DN$6:DN$505,$C$6:$C$505,">="&EOMONTH($C13,-INPUT!$O$113),$C$6:$C$505,"<="&$C13),SUMIFS(DN$6:DN$505,$C$6:$C$505,">="&EOMONTH($C13,-INPUT!$O$113),$C$6:$C$505,"<="&$C13)),0) -> 0 | DQ13: =IF(DP$3="%",AVERAGEIFS(DP$6:DP$505,$C$6:$C$505,">="&EOMONTH($C13,-INPUT!$O$113),$C$6:$C$505,"<="&$C13),SUMIFS(DP$6:DP$505,$C$6:$C$505,">="&EOMONTH($C13,-INPUT!$O$113),$C$6:$C$505,"<="&$C13)) -> 0 | DR13: =IF(DR$3="%",IF(COUNTIFS($C$6:$C13,"<>"&"")>=3,AVERAGEIFS(DP$6:DP$505,$C$6:$C$505,">="&EOMONTH($C13,-3),$C$6:$C$505,"<="&$C13),""),IF(COUNTIFS($C$6:$C13,"<>"&"")>=3,SUMIFS(DP$6:DP$505,$C$6:$C$505,">="&EOMONTH($C13,-3),$C$6:$C$505,"<="&$C13)*4,"")) -> 0 | DT13: =IF(COUNTIFS($DS$6:$DS$505,">"&0)>=24,IF(DS$3="%",AVERAGEIFS(DS$6:DS$505,$C$6:$C$505,">="&EOMONTH($C13,-INPUT!$O$113),$C$6:$C$505,"<="&$C13),SUMIFS(DS$6:DS$505,$C$6:$C$505,">="&EOMONTH($C13,-INPUT!$O$113),$C$6:$C$505,"<="&$C13)),0) -> 0 | DV13: =IF(DU$3="%",AVERAGEIFS(DU$6:DU$505,$C$6:$C$505,">="&EOMONTH($C13,-INPUT!$O$113),$C$6:$C$505,"<="&$C13),SUMIFS(DU$6:DU$505,$C$6:$C$505,">="&EOMONTH($C13,-INPUT!$O$113),$C$6:$C$505,"<="&$C13)) -> 0 | DW13: =IF(DW$3="%",IF(COUNTIFS($C$6:$C13,"<>"&"")>=3,AVERAGEIFS(DU$6:DU$505,$C$6:$C$505,">="&EOMONTH($C13,-3),$C$6:$C$505,"<="&$C13),""),IF(COUNTIFS($C$6:$C13,"<>"&"")>=3,SUMIFS(DU$6:DU$505,$C$6:$C$505,">="&EOMONTH($C13,-3),$C$6:$C$505,"<="&$C13)*4,"")) -> 0 | DY13: =IF(COUNTIFS($DX$6:$DX$505,">"&0)>=24,IF(DX$3="%",AVERAGEIFS(DX$6:DX$505,$C$6:$C$505,">="&EOMONTH($C13,-INPUT!$O$113),$C$6:$C$505,"<="&$C13),SUMIFS(DX$6:DX$505,$C$6:$C$505,">="&EOMONTH($C13,-INPUT!$O$113),$C$6:$C$505,"<="&$C13)),0) -> 0 | EA13: =IF(DZ$3="%",AVERAGEIFS(DZ$6:DZ$505,$C$6:$C$505,">="&EOMONTH($C13,-INPUT!$O$113),$C$6:$C$505,"<="&$C13),SUMIFS(DZ$6:DZ$505,$C$6:$C$505,">="&EOMONTH($C13,-INPUT!$O$113),$C$6:$C$505,"<="&$C13)) -> 0 | EB13: =IF(EB$3="%",IF(COUNTIFS($C$6:$C13,"<>"&"")>=3,AVERAGEIFS(DZ$6:DZ$505,$C$6:$C$505,">="&EOMONTH($C13,-3),$C$6:$C$505,"<="&$C13),""),IF(COUNTIFS($C$6:$C13,"<>"&"")>=3,SUMIFS(DZ$6:DZ$505,$C$6:$C$505,">="&EOMONTH($C13,-3),$C$6:$C$505,"<="&$C13)*4,"")) -> 0 | ED13: =IF(COUNTIFS($EC$6:$EC$505,">"&0)>=24,IF(EC$3="%",AVERAGEIFS(EC$6:EC$505,$C$6:$C$505,">="&EOMONTH($C13,-INPUT!$O$113),$C$6:$C$505,"<="&$C13),SUMIFS(EC$6:EC$505,$C$6:$C$505,">="&EOMONTH($C13,-INPUT!$O$113),$C$6:$C$505,"<="&$C13)),0) -> 0 | EF13: =IF(EE$3="%",AVERAGEIFS(EE$6:EE$505,$C$6:$C$505,">="&EOMONTH($C13,-INPUT!$O$113),$C$6:$C$505,"<="&$C13),SUMIFS(EE$6:EE$505,$C$6:$C$505,">="&EOMONTH($C13,-INPUT!$O$113),$C$6:$C$505,"<="&$C13)) -> 0 | EG13: =IF(EG$3="%",IF(COUNTIFS($C$6:$C13,"<>"&"")>=3,AVERAGEIFS(EE$6:EE$505,$C$6:$C$505,">="&EOMONTH($C13,-3),$C$6:$C$505,"<="&$C13),""),IF(COUNTIFS($C$6:$C13,"<>"&"")>=3,SUMIFS(EE$6:EE$505,$C$6:$C$505,">="&EOMONTH($C13,-3),$C$6:$C$505,"<="&$C13)*4,"")) -> 0 | EI13: =IF(COUNTIFS($EH$6:$EH$505,">"&0)>=24,IF(EH$3="%",AVERAGEIFS(EH$6:EH$505,$C$6:$C$505,">="&EOMONTH($C13,-INPUT!$O$113),$C$6:$C$505,"<="&$C13),SUMIFS(EH$6:EH$505,$C$6:$C$505,">="&EOMONTH($C13,-INPUT!$O$113),$C$6:$C$505,"<="&$C13)),0) -> 0 | EK13: =IF(EJ$3="%",AVERAGEIFS(EJ$6:EJ$505,$C$6:$C$505,">="&EOMONTH($C13,-INPUT!$O$113),$C$6:$C$505,"<="&$C13),SUMIFS(EJ$6:EJ$505,$C$6:$C$505,">="&EOMONTH($C13,-INPUT!$O$113),$C$6:$C$505,"<="&$C13)) -> 0 | EL13: =IF(EL$3="%",IF(COUNTIFS($C$6:$C13,"<>"&"")>=3,AVERAGEIFS(EJ$6:EJ$505,$C$6:$C$505,">="&EOMONTH($C13,-3),$C$6:$C$505,"<="&$C13),""),IF(COUNTIFS($C$6:$C13,"<>"&"")>=3,SUMIFS(EJ$6:EJ$505,$C$6:$C$505,">="&EOMONTH($C13,-3),$C$6:$C$505,"<="&$C13)*4,"")) -> 0 | EN13: =IF(COUNTIFS($EM$6:$EM$505,">"&0)>=24,IF(EM$3="%",AVERAGEIFS(EM$6:EM$505,$C$6:$C$505,">="&EOMONTH($C13,-INPUT!$O$113),$C$6:$C$505,"<="&$C13),SUMIFS(EM$6:EM$505,$C$6:$C$505,">="&EOMONTH($C13,-INPUT!$O$113),$C$6:$C$505,"<="&$C13)),0) -> 0 | EP13: =IF(EO$3="%",AVERAGEIFS(EO$6:EO$505,$C$6:$C$505,">="&EOMONTH($C13,-INPUT!$O$113),$C$6:$C$505,"<="&$C13),SUMIFS(EO$6:EO$505,$C$6:$C$505,">="&EOMONTH($C13,-INPUT!$O$113),$C$6:$C$505,"<="&$C13)) -> 0 | EQ13: =IF(EQ$3="%",IF(COUNTIFS($C$6:$C13,"<>"&"")>=3,AVERAGEIFS(EO$6:EO$505,$C$6:$C$505,">="&EOMONTH($C13,-3),$C$6:$C$505,"<="&$C13),""),IF(COUNTIFS($C$6:$C13,"<>"&"")>=3,SUMIFS(EO$6:EO$505,$C$6:$C$505,">="&EOMONTH($C13,-3),$C$6:$C$505,"<="&$C13)*4,"")) -> 0 | ES13: =IF(COUNTIFS($ER$6:$ER$505,">"&0)>=24,IF(ER$3="%",AVERAGEIFS(ER$6:ER$505,$C$6:$C$505,">="&EOMONTH($C13,-INPUT!$O$113),$C$6:$C$505,"<="&$C13),SUMIFS(ER$6:ER$505,$C$6:$C$505,">="&EOMONTH($C13,-INPUT!$O$113),$C$6:$C$505,"<="&$C13)),0) -> 0 | EU13: =IF(ET$3="%",AVERAGEIFS(ET$6:ET$505,$C$6:$C$505,">="&EOMONTH($C13,-INPUT!$O$113),$C$6:$C$505,"<="&$C13),SUMIFS(ET$6:ET$505,$C$6:$C$505,">="&EOMONTH($C13,-INPUT!$O$113),$C$6:$C$505,"<="&$C13)) -> 0 | EV13: =IF(EV$3="%",IF(COUNTIFS($C$6:$C13,"<>"&"")>=3,AVERAGEIFS(ET$6:ET$505,$C$6:$C$505,">="&EOMONTH($C13,-3),$C$6:$C$505,"<="&$C13),""),IF(COUNTIFS($C$6:$C13,"<>"&"")>=3,SUMIFS(ET$6:ET$505,$C$6:$C$505,">="&EOMONTH($C13,-3),$C$6:$C$505,"<="&$C13)*4,"")) -> 0 | EX13: =IF(COUNTIFS($EW$6:$EW$505,">"&0)>=24,IF(EW$3="%",AVERAGEIFS(EW$6:EW$505,$C$6:$C$505,">="&EOMONTH($C13,-INPUT!$O$113),$C$6:$C$505,"<="&$C13),SUMIFS(EW$6:EW$505,$C$6:$C$505,">="&EOMONTH($C13,-INPUT!$O$113),$C$6:$C$505,"<="&$C13)),0) -> 0 | EZ13: =IF(EY$3="%",AVERAGEIFS(EY$6:EY$505,$C$6:$C$505,">="&EOMONTH($C13,-INPUT!$O$113),$C$6:$C$505,"<="&$C13),SUMIFS(EY$6:EY$505,$C$6:$C$505,">="&EOMONTH($C13,-INPUT!$O$113),$C$6:$C$505,"<="&$C13)) -> 0 | FA13: =IF(FA$3="%",IF(COUNTIFS($C$6:$C13,"<>"&"")>=3,AVERAGEIFS(EY$6:EY$505,$C$6:$C$505,">="&EOMONTH($C13,-3),$C$6:$C$505,"<="&$C13),""),IF(COUNTIFS($C$6:$C13,"<>"&"")>=3,SUMIFS(EY$6:EY$505,$C$6:$C$505,">="&EOMONTH($C13,-3),$C$6:$C$505,"<="&$C13)*4,"")) -> 0 | FC13: =IF(COUNTIFS($FB$6:$FB$505,">"&0)>=24,IF(FB$3="%",AVERAGEIFS(FB$6:FB$505,$C$6:$C$505,">="&EOMONTH($C13,-INPUT!$O$113),$C$6:$C$505,"<="&$C13),SUMIFS(FB$6:FB$505,$C$6:$C$505,">="&EOMONTH($C13,-INPUT!$O$113),$C$6:$C$505,"<="&$C13)),0) -> 0 | FE13: =IF(FD$3="%",AVERAGEIFS(FD$6:FD$505,$C$6:$C$505,">="&EOMONTH($C13,-INPUT!$O$113),$C$6:$C$505,"<="&$C13),SUMIFS(FD$6:FD$505,$C$6:$C$505,">="&EOMONTH($C13,-INPUT!$O$113),$C$6:$C$505,"<="&$C13)) -> 0 | FF13: =IF(FF$3="%",IF(COUNTIFS($C$6:$C13,"<>"&"")>=3,AVERAGEIFS(FD$6:FD$505,$C$6:$C$505,">="&EOMONTH($C13,-3),$C$6:$C$505,"<="&$C13),""),IF(COUNTIFS($C$6:$C13,"<>"&"")>=3,SUMIFS(FD$6:FD$505,$C$6:$C$505,">="&EOMONTH($C13,-3),$C$6:$C$505,"<="&$C13)*4,"")) -> 0 | FH13: =IF(COUNTIFS($FG$6:$FG$505,">"&0)>=24,IF(FG$3="%",AVERAGEIFS(FG$6:FG$505,$C$6:$C$505,">="&EOMONTH($C13,-INPUT!$O$113),$C$6:$C$505,"<="&$C13),SUMIFS(FG$6:FG$505,$C$6:$C$505,">="&EOMONTH($C13,-INPUT!$O$113),$C$6:$C$505,"<="&$C13)),0) -> 0 | FJ13: =IF(FI$3="%",AVERAGEIFS(FI$6:FI$505,$C$6:$C$505,">="&EOMONTH($C13,-INPUT!$O$113),$C$6:$C$505,"<="&$C13),SUMIFS(FI$6:FI$505,$C$6:$C$505,">="&EOMONTH($C13,-INPUT!$O$113),$C$6:$C$505,"<="&$C13)) -> 0 | FK13: =IF(FK$3="%",IF(COUNTIFS($C$6:$C13,"<>"&"")>=3,AVERAGEIFS(FI$6:FI$505,$C$6:$C$505,">="&EOMONTH($C13,-3),$C$6:$C$505,"<="&$C13),""),IF(COUNTIFS($C$6:$C13,"<>"&"")>=3,SUMIFS(FI$6:FI$505,$C$6:$C$505,">="&EOMONTH($C13,-3),$C$6:$C$505,"<="&$C13)*4,"")) -> 0 | FM13: =IF(COUNTIFS($FL$6:$FL$505,">"&0)>=24,IF(FL$3="%",AVERAGEIFS(FL$6:FL$505,$C$6:$C$505,">="&EOMONTH($C13,-INPUT!$O$113),$C$6:$C$505,"<="&$C13),SUMIFS(FL$6:FL$505,$C$6:$C$505,">="&EOMONTH($C13,-INPUT!$O$113),$C$6:$C$505,"<="&$C13)),0) -> 0 | FO13: =IF(FN$3="%",AVERAGEIFS(FN$6:FN$505,$C$6:$C$505,">="&EOMONTH($C13,-INPUT!$O$113),$C$6:$C$505,"<="&$C13),SUMIFS(FN$6:FN$505,$C$6:$C$505,">="&EOMONTH($C13,-INPUT!$O$113),$C$6:$C$505,"<="&$C13)) -> 0 | FP13: =IF(FP$3="%",IF(COUNTIFS($C$6:$C13,"<>"&"")>=3,AVERAGEIFS(FN$6:FN$505,$C$6:$C$505,">="&EOMONTH($C13,-3),$C$6:$C$505,"<="&$C13),""),IF(COUNTIFS($C$6:$C13,"<>"&"")>=3,SUMIFS(FN$6:FN$505,$C$6:$C$505,">="&EOMONTH($C13,-3),$C$6:$C$505,"<="&$C13)*4,"")) -> 0 | FR13: =IF(COUNTIFS($FQ$6:$FQ$505,">"&0)>=24,IF(FQ$3="%",AVERAGEIFS(FQ$6:FQ$505,$C$6:$C$505,">="&EOMONTH($C13,-INPUT!$O$113),$C$6:$C$505,"<="&$C13),SUMIFS(FQ$6:FQ$505,$C$6:$C$505,">="&EOMONTH($C13,-INPUT!$O$113),$C$6:$C$505,"<="&$C13)),0) -> 0 | FT13: =IF(FS$3="%",AVERAGEIFS(FS$6:FS$505,$C$6:$C$505,">="&EOMONTH($C13,-INPUT!$O$113),$C$6:$C$505,"<="&$C13),SUMIFS(FS$6:FS$505,$C$6:$C$505,">="&EOMONTH($C13,-INPUT!$O$113),$C$6:$C$505,"<="&$C13)) -> 0 | FU13: =IF(FU$3="%",IF(COUNTIFS($C$6:$C13,"<>"&"")>=3,AVERAGEIFS(FS$6:FS$505,$C$6:$C$505,">="&EOMONTH($C13,-3),$C$6:$C$505,"<="&$C13),""),IF(COUNTIFS($C$6:$C13,"<>"&"")>=3,SUMIFS(FS$6:FS$505,$C$6:$C$505,">="&EOMONTH($C13,-3),$C$6:$C$505,"<="&$C13)*4,"")) -> 0 | FW13: =IF(COUNTIFS($FV$6:$FV$505,">"&0)>=24,IF(FV$3="%",AVERAGEIFS(FV$6:FV$505,$C$6:$C$505,">="&EOMONTH($C13,-INPUT!$O$113),$C$6:$C$505,"<="&$C13),SUMIFS(FV$6:FV$505,$C$6:$C$505,">="&EOMONTH($C13,-INPUT!$O$113),$C$6:$C$505,"<="&$C13)),0) -> 0 | FY13: =IF(FX$3="%",AVERAGEIFS(FX$6:FX$505,$C$6:$C$505,">="&EOMONTH($C13,-INPUT!$O$113),$C$6:$C$505,"<="&$C13),SUMIFS(FX$6:FX$505,$C$6:$C$505,">="&EOMONTH($C13,-INPUT!$O$113),$C$6:$C$505,"<="&$C13)) -> 0 | FZ13: =IF(FZ$3="%",IF(COUNTIFS($C$6:$C13,"<>"&"")>=3,AVERAGEIFS(FX$6:FX$505,$C$6:$C$505,">="&EOMONTH($C13,-3),$C$6:$C$505,"<="&$C13),""),IF(COUNTIFS($C$6:$C13,"<>"&"")>=3,SUMIFS(FX$6:FX$505,$C$6:$C$505,">="&EOMONTH($C13,-3),$C$6:$C$505,"<="&$C13)*4,"")) -> 0 | GB13: =IF(COUNTIFS($GA$6:$GA$505,">"&0)>=24,IF(GA$3="%",AVERAGEIFS(GA$6:GA$505,$C$6:$C$505,">="&EOMONTH($C13,-INPUT!$O$113),$C$6:$C$505,"<="&$C13),SUMIFS(GA$6:GA$505,$C$6:$C$505,">="&EOMONTH($C13,-INPUT!$O$113),$C$6:$C$505,"<="&$C13)),0) -> 0 | GD13: =IF(GC$3="%",AVERAGEIFS(GC$6:GC$505,$C$6:$C$505,">="&EOMONTH($C13,-INPUT!$O$113),$C$6:$C$505,"<="&$C13),SUMIFS(GC$6:GC$505,$C$6:$C$505,">="&EOMONTH($C13,-INPUT!$O$113),$C$6:$C$505,"<="&$C13)) -> 0 | GE13: =IF(GE$3="%",IF(COUNTIFS($C$6:$C13,"<>"&"")>=3,AVERAGEIFS(GC$6:GC$505,$C$6:$C$505,">="&EOMONTH($C13,-3),$C$6:$C$505,"<="&$C13),""),IF(COUNTIFS($C$6:$C13,"<>"&"")>=3,SUMIFS(GC$6:GC$505,$C$6:$C$505,">="&EOMONTH($C13,-3),$C$6:$C$505,"<="&$C13)*4,"")) -> 0 | GG13: =IF(COUNTIFS($GF$6:$GF$505,">"&0)>=24,IF(GF$3="%",AVERAGEIFS(GF$6:GF$505,$C$6:$C$505,">="&EOMONTH($C13,-INPUT!$O$113),$C$6:$C$505,"<="&$C13),SUMIFS(GF$6:GF$505,$C$6:$C$505,">="&EOMONTH($C13,-INPUT!$O$113),$C$6:$C$505,"<="&$C13)),0) -> 0 | GI13: =IF(GH$3="%",AVERAGEIFS(GH$6:GH$505,$C$6:$C$505,">="&EOMONTH($C13,-INPUT!$O$113),$C$6:$C$505,"<="&$C13),SUMIFS(GH$6:GH$505,$C$6:$C$505,">="&EOMONTH($C13,-INPUT!$O$113),$C$6:$C$505,"<="&$C13)) -> 0 | GJ13: =IF(GJ$3="%",IF(COUNTIFS($C$6:$C13,"<>"&"")>=3,AVERAGEIFS(GH$6:GH$505,$C$6:$C$505,">="&EOMONTH($C13,-3),$C$6:$C$505,"<="&$C13),""),IF(COUNTIFS($C$6:$C13,"<>"&"")>=3,SUMIFS(GH$6:GH$505,$C$6:$C$505,">="&EOMONTH($C13,-3),$C$6:$C$505,"<="&$C13)*4,"")) -> 0 | GL13: =IF(COUNTIFS($GK$6:$GK$505,">"&0)>=24,IF(GK$3="%",AVERAGEIFS(GK$6:GK$505,$C$6:$C$505,">="&EOMONTH($C13,-INPUT!$O$113),$C$6:$C$505,"<="&$C13),SUMIFS(GK$6:GK$505,$C$6:$C$505,">="&EOMONTH($C13,-INPUT!$O$113),$C$6:$C$505,"<="&$C13)),0) -> 0 | GN13: =IF(GM$3="%",AVERAGEIFS(GM$6:GM$505,$C$6:$C$505,">="&EOMONTH($C13,-INPUT!$O$113),$C$6:$C$505,"<="&$C13),SUMIFS(GM$6:GM$505,$C$6:$C$505,">="&EOMONTH($C13,-INPUT!$O$113),$C$6:$C$505,"<="&$C13)) -> 0 | GO13: =IF(GO$3="%",IF(COUNTIFS($C$6:$C13,"<>"&"")>=3,AVERAGEIFS(GM$6:GM$505,$C$6:$C$505,">="&EOMONTH($C13,-3),$C$6:$C$505,"<="&$C13),""),IF(COUNTIFS($C$6:$C13,"<>"&"")>=3,SUMIFS(GM$6:GM$505,$C$6:$C$505,">="&EOMONTH($C13,-3),$C$6:$C$505,"<="&$C13)*4,"")) -> 0 | GQ13: =IF(COUNTIFS($GP$6:$GP$505,">"&0)>=24,IF(GP$3="%",AVERAGEIFS(GP$6:GP$505,$C$6:$C$505,">="&EOMONTH($C13,-INPUT!$O$113),$C$6:$C$505,"<="&$C13),SUMIFS(GP$6:GP$505,$C$6:$C$505,">="&EOMONTH($C13,-INPUT!$O$113),$C$6:$C$505,"<="&$C13)),0) -> 0 | GS13: =IF(GR$3="%",AVERAGEIFS(GR$6:GR$505,$C$6:$C$505,">="&EOMONTH($C13,-INPUT!$O$113),$C$6:$C$505,"<="&$C13),SUMIFS(GR$6:GR$505,$C$6:$C$505,">="&EOMONTH($C13,-INPUT!$O$113),$C$6:$C$505,"<="&$C13)) -> 0 | GT13: =IF(GT$3="%",IF(COUNTIFS($C$6:$C13,"<>"&"")>=3,AVERAGEIFS(GR$6:GR$505,$C$6:$C$505,">="&EOMONTH($C13,-3),$C$6:$C$505,"<="&$C13),""),IF(COUNTIFS($C$6:$C13,"<>"&"")>=3,SUMIFS(GR$6:GR$505,$C$6:$C$505,">="&EOMONTH($C13,-3),$C$6:$C$505,"<="&$C13)*4,"")) -> 0 | GV13: =IF(COUNTIFS($GU$6:$GU$505,">"&0)>=24,IF(GU$3="%",AVERAGEIFS(GU$6:GU$505,$C$6:$C$505,">="&EOMONTH($C13,-INPUT!$O$113),$C$6:$C$505,"<="&$C13),SUMIFS(GU$6:GU$505,$C$6:$C$505,">="&EOMONTH($C13,-INPUT!$O$113),$C$6:$C$505,"<="&$C13)),0) -> 0 | GX13: =IF(GW$3="%",AVERAGEIFS(GW$6:GW$505,$C$6:$C$505,">="&EOMONTH($C13,-INPUT!$O$113),$C$6:$C$505,"<="&$C13),SUMIFS(GW$6:GW$505,$C$6:$C$505,">="&EOMONTH($C13,-INPUT!$O$113),$C$6:$C$505,"<="&$C13)) -> 0 | GY13: =IF(GY$3="%",IF(COUNTIFS($C$6:$C13,"<>"&"")>=3,AVERAGEIFS(GW$6:GW$505,$C$6:$C$505,">="&EOMONTH($C13,-3),$C$6:$C$505,"<="&$C13),""),IF(COUNTIFS($C$6:$C13,"<>"&"")>=3,SUMIFS(GW$6:GW$505,$C$6:$C$505,">="&EOMONTH($C13,-3),$C$6:$C$505,"<="&$C13)*4,"")) -> 0 | HA13: =IF(COUNTIFS($GZ$6:$GZ$505,">"&0)>=24,IF(GZ$3="%",AVERAGEIFS(GZ$6:GZ$505,$C$6:$C$505,">="&EOMONTH($C13,-INPUT!$O$113),$C$6:$C$505,"<="&$C13),SUMIFS(GZ$6:GZ$505,$C$6:$C$505,">="&EOMONTH($C13,-INPUT!$O$113),$C$6:$C$505,"<="&$C13)),0) -> 0 | HC13: =IF(HB$3="%",AVERAGEIFS(HB$6:HB$505,$C$6:$C$505,">="&EOMONTH($C13,-INPUT!$O$113),$C$6:$C$505,"<="&$C13),SUMIFS(HB$6:HB$505,$C$6:$C$505,">="&EOMONTH($C13,-INPUT!$O$113),$C$6:$C$505,"<="&$C13)) -> 0 | HD13: =IF(HD$3="%",IF(COUNTIFS($C$6:$C13,"<>"&"")>=3,AVERAGEIFS(HB$6:HB$505,$C$6:$C$505,">="&EOMONTH($C13,-3),$C$6:$C$505,"<="&$C13),""),IF(COUNTIFS($C$6:$C13,"<>"&"")>=3,SUMIFS(HB$6:HB$505,$C$6:$C$505,">="&EOMONTH($C13,-3),$C$6:$C$505,"<="&$C13)*4,"")) -> 0 | HF13: =IF(COUNTIFS($HE$6:$HE$505,">"&0)>=24,IF(HE$3="%",AVERAGEIFS(HE$6:HE$505,$C$6:$C$505,">="&EOMONTH($C13,-INPUT!$O$113),$C$6:$C$505,"<="&$C13),SUMIFS(HE$6:HE$505,$C$6:$C$505,">="&EOMONTH($C13,-INPUT!$O$113),$C$6:$C$505,"<="&$C13)),0) -> 0 | HH13: =IF(HG$3="%",AVERAGEIFS(HG$6:HG$505,$C$6:$C$505,">="&EOMONTH($C13,-INPUT!$O$113),$C$6:$C$505,"<="&$C13),SUMIFS(HG$6:HG$505,$C$6:$C$505,">="&EOMONTH($C13,-INPUT!$O$113),$C$6:$C$505,"<="&$C13)) -> 0 | HI13: =IF(HI$3="%",IF(COUNTIFS($C$6:$C13,"<>"&"")>=3,AVERAGEIFS(HG$6:HG$505,$C$6:$C$505,">="&EOMONTH($C13,-3),$C$6:$C$505,"<="&$C13),""),IF(COUNTIFS($C$6:$C13,"<>"&"")>=3,SUMIFS(HG$6:HG$505,$C$6:$C$505,">="&EOMONTH($C13,-3),$C$6:$C$505,"<="&$C13)*4,"")) -> 0 | HK13: =IF(COUNTIFS($HJ$6:$HJ$505,">"&0)>=24,IF(HJ$3="%",AVERAGEIFS(HJ$6:HJ$505,$C$6:$C$505,">="&EOMONTH($C13,-INPUT!$O$113),$C$6:$C$505,"<="&$C13),SUMIFS(HJ$6:HJ$505,$C$6:$C$505,">="&EOMONTH($C13,-INPUT!$O$113),$C$6:$C$505,"<="&$C13)),0) -> 0 | HM13: =IF(HL$3="%",AVERAGEIFS(HL$6:HL$505,$C$6:$C$505,">="&EOMONTH($C13,-INPUT!$O$113),$C$6:$C$505,"<="&$C13),SUMIFS(HL$6:HL$505,$C$6:$C$505,">="&EOMONTH($C13,-INPUT!$O$113),$C$6:$C$505,"<="&$C13)) -> 0 | HN13: =IF(HN$3="%",IF(COUNTIFS($C$6:$C13,"<>"&"")>=3,AVERAGEIFS(HL$6:HL$505,$C$6:$C$505,">="&EOMONTH($C13,-3),$C$6:$C$505,"<="&$C13),""),IF(COUNTIFS($C$6:$C13,"<>"&"")>=3,SUMIFS(HL$6:HL$505,$C$6:$C$505,">="&EOMONTH($C13,-3),$C$6:$C$505,"<="&$C13)*4,"")) -> 0 | HP13: =IF(COUNTIFS($HO$6:$HO$505,">"&0)>=24,IF(HO$3="%",AVERAGEIFS(HO$6:HO$505,$C$6:$C$505,">="&EOMONTH($C13,-INPUT!$O$113),$C$6:$C$505,"<="&$C13),SUMIFS(HO$6:HO$505,$C$6:$C$505,">="&EOMONTH($C13,-INPUT!$O$113),$C$6:$C$505,"<="&$C13)),0) -> 0 | HR13: =IF(HQ$3="%",AVERAGEIFS(HQ$6:HQ$505,$C$6:$C$505,">="&EOMONTH($C13,-INPUT!$O$113),$C$6:$C$505,"<="&$C13),SUMIFS(HQ$6:HQ$505,$C$6:$C$505,">="&EOMONTH($C13,-INPUT!$O$113),$C$6:$C$505,"<="&$C13)) -> 0 | HS13: =IF(HS$3="%",IF(COUNTIFS($C$6:$C13,"<>"&"")>=3,AVERAGEIFS(HQ$6:HQ$505,$C$6:$C$505,">="&EOMONTH($C13,-3),$C$6:$C$505,"<="&$C13),""),IF(COUNTIFS($C$6:$C13,"<>"&"")>=3,SUMIFS(HQ$6:HQ$505,$C$6:$C$505,">="&EOMONTH($C13,-3),$C$6:$C$505,"<="&$C13)*4,"")) -> 0 | HU13: =IF(COUNTIFS($HT$6:$HT$505,">"&0)>=24,IF(HT$3="%",AVERAGEIFS(HT$6:HT$505,$C$6:$C$505,">="&EOMONTH($C13,-INPUT!$O$113),$C$6:$C$505,"<="&$C13),SUMIFS(HT$6:HT$505,$C$6:$C$505,">="&EOMONTH($C13,-INPUT!$O$113),$C$6:$C$505,"<="&$C13)),0) -> 0 | HW13: =IF(HV$3="%",AVERAGEIFS(HV$6:HV$505,$C$6:$C$505,">="&EOMONTH($C13,-INPUT!$O$113),$C$6:$C$505,"<="&$C13),SUMIFS(HV$6:HV$505,$C$6:$C$505,">="&EOMONTH($C13,-INPUT!$O$113),$C$6:$C$505,"<="&$C13)) -> 0 | HX13: =IF(HX$3="%",IF(COUNTIFS($C$6:$C13,"<>"&"")>=3,AVERAGEIFS(HV$6:HV$505,$C$6:$C$505,">="&EOMONTH($C13,-3),$C$6:$C$505,"<="&$C13),""),IF(COUNTIFS($C$6:$C13,"<>"&"")>=3,SUMIFS(HV$6:HV$505,$C$6:$C$505,">="&EOMONTH($C13,-3),$C$6:$C$505,"<="&$C13)*4,"")) -> 0 | HZ13: =IF(COUNTIFS($HY$6:$HY$505,">"&0)>=24,IF(HY$3="%",AVERAGEIFS(HY$6:HY$505,$C$6:$C$505,">="&EOMONTH($C13,-INPUT!$O$113),$C$6:$C$505,"<="&$C13),SUMIFS(HY$6:HY$505,$C$6:$C$505,">="&EOMONTH($C13,-INPUT!$O$113),$C$6:$C$505,"<="&$C13)),0) -> 0 | IA13: 6816.213333 | IB13: =SUMIFS(IA$6:IA$505,$C$6:$C$505,">="&EOMONTH($C13,-INPUT!$O$113),$C$6:$C$505,"<="&$C13) -> 52937.52267 | IC13: =IF(COUNTIFS($C$6:HK13,"<>"&"")>=3,SUMIFS(IA$6:IA$505,$C$6:$C$505,">="&EOMONTH($C13,-3),$C$6:$C$505,"<="&$C13)*4,"") -> 78985.6 | ID13: =IF(COUNTIFS($C$6:HK13,"<>"&"")>=6,SUMIFS(IA$6:IA$505,$C$6:$C$505,">="&EOMONTH($C13,-6),$C$6:$C$505,"<="&$C13)*2,"") -> 81864.784 | IE13: -3183.786667 | IF13: =IF(COUNTIFS($IE$6:$IE$505,">"&0)>=24,SUMIFS(IE$6:IE$505,$C$6:$C$505,">="&EOMONTH($C13,-INPUT!$O$113),$C$6:$C$505,"<="&$C13),0) -> -27062.47733 | IG13: 3178.333333 | IH13: =IFERROR(SUMIFS(IG$6:IG$505,$C$6:$C$505,">="&EOMONTH($C13,-INPUT!$O$113),$C$6:$C$505,"<="&$C13),0) -> 55050.21399 | II13: =IFERROR(IF(II$3="%",IF(COUNTIFS($C$6:$C13,"<>"&"")>=3,AVERAGEIFS(D$6:D$505,$C$6:$C$505,">="&EOMONTH($C13,-3),$C$6:$C$505,"<="&$C13),""),IF(COUNTIFS($C$6:$C13,"<>"&"")>=3,SUMIFS(D$6:D$505,$C$6:$C$505,">="&EOMONTH($C13,-3),$C$6:$C$505,"<="&$C13)*4,"")) / IF(II$3="%",IF(COUNTIFS($C$6:$C13,"<>"&"")>=3,AVERAGEIFS(Y$6:Y$505,$C$6:$C$505,">="&EOMONTH($C13,-3),$C$6:$C$505,"<="&$C13),""),IF(COUNTIFS($C$6:$C13,"<>"&"")>=3,SUMIFS(Y$6:Y$505,$C$6:$C$505,">="&EOMONTH($C13,-3),$C$6:$C$505,"<="&$C13)*4,"")),0) -> 4161.557333 | IJ13: 5327.021739 | IK13: =IFERROR(SUMIFS(IJ$6:IJ$505,$C$6:$C$505,">="&EOMONTH($C13,-INPUT!$O$113),$C$6:$C$505,"<="&$C13),0) -> 43246.59534 | IL13: =IFERROR(IF(IL$3="%",IF(COUNTIFS($C$6:$C13,"<>"&"")>=3,AVERAGEIFS(H$6:H$505,$C$6:$C$505,">="&EOMONTH($C13,-3),$C$6:$C$505,"<="&$C13),""),IF(COUNTIFS($C$6:$C13,"<>"&"")>=3,SUMIFS(H$6:H$505,$C$6:$C$505,">="&EOMONTH($C13,-3),$C$6:$C$505,"<="&$C13)*4,"")) / IF(IL$3="%",IF(COUNTIFS($C$6:$C13,"<>"&"")>=3,AVERAGEIFS(AB$6:AB$505,$C$6:$C$505,">="&EOMONTH($C13,-3),$C$6:$C$505,"<="&$C13),""),IF(COUNTIFS($C$6:$C13,"<>"&"")>=3,SUMIFS(AB$6:AB$505,$C$6:$C$505,">="&EOMONTH($C13,-3),$C$6:$C$505,"<="&$C13)*4,"")),0) -> 5338.485075
